Workbook

Sheet Data
A1: Notation & Variables: | M1: GLM Bootstrap: | Y1: ODP Bootstrap (No Outlier): | AQ1: ODP Bootstrap (With Outlier, Excluding Denominator): | BG1: ODP Bootstrap (With Outlier, Excluding Numerator): | BW1: ODP Bootstrap (With Outlier, Excluding Both):
A3: Cumulative Data | M3: Cumulative Data | Y3: Fitted Cumulative Data | AQ3: Fitted Cumulative Data | BG3: Fitted Cumulative Data | BW3: Fitted Cumulative Data
B4: 1 | C4: 2 | D4: 3 | E4: 4 | F4: 5 | G4: 6 | N4: 1 | O4: 2 | P4: 3 | Q4: 4 | R4: 5 | S4: 6 | Z4: 1 | AA4: 2 | AB4: 3 | AC4: 4 | AD4: 5 | AE4: 6 | AR4: 1 | AS4: 2 | AT4: 3 | AU4: 4 | AV4: 5 | AW4: 6 | BH4: 1 | BI4: 2 | BJ4: 3 | BK4: 4 | BL4: 5 | BM4: 6 | BX4: 1 | BY4: 2 | BZ4: 3 | CA4: 4 | CB4: 5 | CC4: 6
A5: 1 | B5: ="c("&$A5&","&B$4&")" -> c(1,1) | C5: c(1,2) | D5: c(1,3) | E5: c(1,4) | F5: c(1,5) | G5: c(1,6) | M5: 1 | N5: 95 | O5: 150 | P5: 170 | Q5: 200 | R5: 215 | S5: 220 | Y5: 1 | Z5: =AA5/AA$11 -> 109.1664813 | AA5: 155.9521162 | AB5: 178.23099 | AC5: 204.8823529 | AD5: =AE5/AE$11 -> 215 | AE5: =S5 -> 220 | AQ5: 1 | AR5: =AS5/AS$11 -> 109.4607306 | AS5: =AT5/AT$11 -> 156.3724723 | AT5: =AU5/AU$11 -> 178.23099 | AU5: =AV5/AV$11 -> 204.8823529 | AV5: =AW5/AW$11 -> 215 | AW5: =S5 -> 220 | BG5: 1 | BH5: =BI5/BI$11 -> 111.7452171 | BI5: =BJ5/BJ$11 -> 155.9521162 | BJ5: =BK5/BK$11 -> 178.23099 | BK5: =BL5/BL$11 -> 204.8823529 | BL5: =BM5/BM$11 -> 215 | BM5: =S5 -> 220 | BW5: 1 | BX5: =BY5/BY$11 -> 112.0464172 | BY5: =BZ5/BZ$11 -> 156.3724723 | BZ5: =CA5/CA$11 -> 178.23099 | CA5: =CB5/CB$11 -> 204.8823529 | CB5: =CC5/CC$11 -> 215 | CC5: =S5 -> 220
A6: 2 | B6: ="c("&$A6&","&B$4&")" -> c(2,1) | C6: c(2,2) | D6: c(2,3) | E6: c(2,4) | F6: c(2,5) | M6: 2 | N6: 110 | O6: 160 | P6: 175 | Q6: 205 | R6: 210 | Y6: 2 | Z6: 106.627726 | AA6: 152.3253228 | AB6: 174.0860832 | AC6: 200.1176471 | AD6: =R6 -> 210 | AQ6: 2 | AR6: =AS6/AS$11 -> 106.9151322 | AS6: =AT6/AT$11 -> 152.7359032 | AT6: =AU6/AU$11 -> 174.0860832 | AU6: =AV6/AV$11 -> 200.1176471 | AV6: =R6 -> 210 | BG6: 2 | BH6: =BI6/BI$11 -> 109.1464911 | BI6: =BJ6/BJ$11 -> 152.3253228 | BJ6: =BK6/BK$11 -> 174.0860832 | BK6: =BL6/BL$11 -> 200.1176471 | BL6: =R6 -> 210 | BW6: 2 | BX6: =BY6/BY$11 -> 109.4406865 | BY6: =BZ6/BZ$11 -> 152.7359032 | BZ6: =CA6/CA$11 -> 174.0860832 | CA6: =CB6/CB$11 -> 200.1176471 | CB6: =R6 -> 210
A7: 3 | B7: c(3,1) | C7: c(3,2) | D7: c(3,3) | E7: c(3,4) | M7: 3 | N7: 105 | O7: 165 | P7: 190 | Q7: 210 | Y7: 3 | Z7: 111.8932927 | AA7: 159.847561 | AB7: 182.6829268 | AC7: =Q7 -> 210 | AQ7: 3 | AR7: =AS7/AS$11 -> 112.1948919 | AS7: =AT7/AT$11 -> 160.2784169 | AT7: =AU7/AU$11 -> 182.6829268 | AU7: =Q7 -> 210 | BG7: 3 | BH7: =BI7/BI$11 -> 114.5364413 | BI7: =BJ7/BJ$11 -> 159.847561 | BJ7: =BK7/BK$11 -> 182.6829268 | BK7: =Q7 -> 210 | BW7: 3 | BX7: =BY7/BY$11 -> 114.8451649 | BY7: =BZ7/BZ$11 -> 160.2784169 | BZ7: =CA7/CA$11 -> 182.6829268 | CA7: =Q7 -> 210
A8: 4 | B8: c(4,1) | C8: c(4,2) | D8: c(4,3) | M8: 4 | N8: 120 | O8: 155 | P8: 185 | Y8: 4 | Z8: 113.3125 | AA8: 161.875 | AB8: =P8 -> 185 | AQ8: 4 | AR8: =AS8/AS$11 -> 113.6179245 | AS8: =AT8/AT$11 -> 162.3113208 | AT8: =P8 -> 185 | BG8: 4 | BH8: =BI8/BI$11 -> 115.9891732 | BI8: =BJ8/BJ$11 -> 161.875 | BJ8: =P8 -> 185 | BW8: 4 | BX8: =BY8/BY$11 -> 116.3018125 | BY8: =BZ8/BZ$11 -> 162.3113208 | BZ8: =P8 -> 185
A9: 5 | B9: c(5,1) | C9: c(5,2) | M9: 5 | N9: 130 | O9: 170 | Y9: 5 | Z9: 119 | AA9: =O9 -> 170 | AQ9: 5 | AR9: =AS9/AS$11 -> 119 | AS9: =O9 -> 170 | BG9: 5 | BH9: =BI9/BI$11 -> 121.8110236 | BI9: =O9 -> 170 | BW9: 5 | BX9: =BY9/BY$11 -> 121.8110236 | BY9: =O9 -> 170
A10: 6 | B10: c(6,1) | M10: 6 | N10: 125 | Y10: 6 | Z10: =N10 -> 125 | AQ10: 6 | AR10: =N10 -> 125 | BG10: 6 | BH10: =N10 -> 125 | BW10: 6 | BX10: =N10 -> 125
N11: Factors: | O11: =SUM(O5:O9)/SUM(N5:N9) -> 1.428571429 | P11: =SUM(P5:P8)/SUM(O5:O8) -> 1.142857143 | Q11: =SUM(Q5:Q7)/SUM(P5:P7) -> 1.14953271 | R11: =SUM(R5:R6)/SUM(Q5:Q6) -> 1.049382716 | S11: =S5/R5 -> 1.023255814 | Z11: Factors: | AA11: =SUM(O5:O9)/SUM(N5:N9) -> 1.428571429 | AB11: =SUM(P5:P8)/SUM(O5:O8) -> 1.142857143 | AC11: =SUM(Q5:Q7)/SUM(P5:P7) -> 1.14953271 | AD11: =SUM(R5:R6)/SUM(Q5:Q6) -> 1.049382716 | AE11: =S5/R5 -> 1.023255814 | AR11: Factors: | AS11: =SUM(O5:O9)/SUM(N5:N9) -> 1.428571429 | AT11: =SUM(P5:P6,P8)/SUM(O5:O6,O8) -> 1.139784946 | AU11: =SUM(Q5:Q7)/SUM(P5:P7) -> 1.14953271 | AV11: =SUM(R5:R6)/SUM(Q5:Q6) -> 1.049382716 | AW11: =S5/R5 -> 1.023255814 | BH11: Factors: | BI11: =SUM(O5:O6,O8:O9)/SUM(N5:N6,N8:N9) -> 1.395604396 | BJ11: =SUM(P5:P8)/SUM(O5:O8) -> 1.142857143 | BK11: =SUM(Q5:Q7)/SUM(P5:P7) -> 1.14953271 | BL11: =SUM(R5:R6)/SUM(Q5:Q6) -> 1.049382716 | BM11: =S5/R5 -> 1.023255814 | BX11: Factors: | BY11: =SUM(O5:O6,O8:O9)/SUM(N5:N6,N8:N9) -> 1.395604396 | BZ11: =SUM(P5:P6,P8)/SUM(O5:O6,O8) -> 1.139784946 | CA11: =SUM(Q5:Q7)/SUM(P5:P7) -> 1.14953271 | CB11: =SUM(R5:R6)/SUM(Q5:Q6) -> 1.049382716 | CC11: =S5/R5 -> 1.023255814
A12: Incremental Data | M12: Incremental Data | Y12: Fitted Incremental Data | AQ12: Fitted Incremental Data | BG12: Fitted Incremental Data | BW12: Fitted Incremental Data
B13: 1 | C13: 2 | D13: 3 | E13: 4 | F13: 5 | G13: 6 | N13: 1 | O13: 2 | P13: 3 | Q13: 4 | R13: 5 | S13: 6 | Z13: 1 | AA13: 2 | AB13: 3 | AC13: 4 | AD13: 5 | AE13: 6 | AR13: 1 | AS13: 2 | AT13: 3 | AU13: 4 | AV13: 5 | AW13: 6 | BH13: 1 | BI13: 2 | BJ13: 3 | BK13: 4 | BL13: 5 | BM13: 6 | BX13: 1 | BY13: 2 | BZ13: 3 | CA13: 4 | CB13: 5 | CC13: 6
A14: 1 | B14: ="q("&$A14&","&B$4&")" -> q(1,1) | C14: ="q("&$A14&","&C$4&")" -> q(1,2) | D14: q(1,3) | E14: q(1,4) | F14: q(1,5) | G14: ="q("&$A14&","&G$4&")" -> q(1,6) | M14: 1 | N14: =N5 -> 95 | O14: =O5-N5 -> 55 | P14: =P5-O5 -> 20 | Q14: =Q5-P5 -> 30 | R14: =R5-Q5 -> 15 | S14: =S5-R5 -> 5 | Y14: 1 | Z14: =Z5 -> 109.1664813 | AA14: =AA5-Z5 -> 46.78563486 | AB14: =AB5-AA5 -> 22.27887374 | AC14: =AC5-AB5 -> 26.65136298 | AD14: =AD5-AC5 -> 10.11764706 | AE14: =AE5-AD5 -> 5 | AQ14: 1 | AR14: =AR5 -> 109.4607306 | AS14: =AS5-AR5 -> 46.9117417 | AT14: =AT5-AS5 -> 21.85851764 | AU14: =AU5-AT5 -> 26.65136298 | AV14: =AV5-AU5 -> 10.11764706 | AW14: =AW5-AV5 -> 5 | BG14: 1 | BH14: =BH5 -> 111.7452171 | BI14: =BI5-BH5 -> 44.20689908 | BJ14: =BJ5-BI5 -> 22.27887374 | BK14: =BK5-BJ5 -> 26.65136298 | BL14: =BL5-BK5 -> 10.11764706 | BM14: =BM5-BL5 -> 5 | BW14: 1 | BX14: =BX5 -> 112.0464172 | BY14: =BY5-BX5 -> 44.32605515 | BZ14: =BZ5-BY5 -> 21.85851764 | CA14: =CA5-BZ5 -> 26.65136298 | CB14: =CB5-CA5 -> 10.11764706 | CC14: =CC5-CB5 -> 5
A15: 2 | B15: q(2,1) | C15: q(2,2) | D15: q(2,3) | E15: q(2,4) | F15: q(2,5) | M15: 2 | N15: 110 | O15: =O6-N6 -> 50 | P15: =P6-O6 -> 15 | Q15: =Q6-P6 -> 30 | R15: =R6-Q6 -> 5 | Y15: 2 | Z15: 106.627726 | AA15: =AA6-Z6 -> 45.69759684 | AB15: =AB6-AA6 -> 21.7607604 | AC15: =AC6-AB6 -> 26.03156385 | AD15: =AD6-AC6 -> 9.882352941 | AQ15: 2 | AR15: 106.9151322 | AS15: =AS6-AR6 -> 45.82077096 | AT15: =AT6-AS6 -> 21.35018002 | AU15: =AU6-AT6 -> 26.03156385 | AV15: =AV6-AU6 -> 9.882352941 | BG15: 2 | BH15: 109.1464911 | BI15: =BI6-BH6 -> 43.17883166 | BJ15: =BJ6-BI6 -> 21.7607604 | BK15: =BK6-BJ6 -> 26.03156385 | BL15: =BL6-BK6 -> 9.882352941 | BW15: 2 | BX15: 109.4406865 | BY15: =BY6-BX6 -> 43.29521665 | BZ15: =BZ6-BY6 -> 21.35018002 | CA15: =CA6-BZ6 -> 26.03156385 | CB15: =CB6-CA6 -> 9.882352941
A16: 3 | B16: q(3,1) | C16: q(3,2) | D16: q(3,3) | E16: q(3,4) | M16: 3 | N16: 105 | O16: =O7-N7 -> 60 | P16: =P7-O7 -> 25 | Q16: =Q7-P7 -> 20 | Y16: 3 | Z16: 111.8932927 | AA16: =AA7-Z7 -> 47.95426829 | AB16: =AB7-AA7 -> 22.83536585 | AC16: =AC7-AB7 -> 27.31707317 | AQ16: 3 | AR16: 112.1948919 | AS16: =AS7-AR7 -> 48.08352508 | AT16: =AT7-AS7 -> 22.40450989 | AU16: =AU7-AT7 -> 27.31707317 | BG16: 3 | BH16: 114.5364413 | BI16: =BI7-BH7 -> 45.31111965 | BJ16: =BJ7-BI7 -> 22.83536585 | BK16: =BK7-BJ7 -> 27.31707317 | BW16: 3 | BX16: 114.8451649 | BY16: =BY7-BX7 -> 45.43325204 | BZ16: =BZ7-BY7 -> 22.40450989 | CA16: =CA7-BZ7 -> 27.31707317
A17: 4 | B17: q(4,1) | C17: q(4,2) | D17: q(4,3) | M17: 4 | N17: 120 | O17: =O8-N8 -> 35 | P17: =P8-O8 -> 30 | Y17: 4 | Z17: 113.3125 | AA17: =AA8-Z8 -> 48.5625 | AB17: =AB8-AA8 -> 23.125 | AQ17: 4 | AR17: 113.6179245 | AS17: =AS8-AR8 -> 48.69339623 | AT17: =AT8-AS8 -> 22.68867925 | BG17: 4 | BH17: 115.9891732 | BI17: =BI8-BH8 -> 45.88582677 | BJ17: =BJ8-BI8 -> 23.125 | BW17: 4 | BX17: 116.3018125 | BY17: =BY8-BX8 -> 46.00950825 | BZ17: =BZ8-BY8 -> 22.68867925
A18: 5 | B18: q(5,1) | C18: q(5,2) | M18: 5 | N18: 130 | O18: =O9-N9 -> 40 | Y18: 5 | Z18: 119 | AA18: =AA9-Z9 -> 51 | AQ18: 5 | AR18: 119 | AS18: =AS9-AR9 -> 51 | BG18: 5 | BH18: 121.8110236 | BI18: =BI9-BH9 -> 48.18897638 | BW18: 5 | BX18: 121.8110236 | BY18: =BY9-BX9 -> 48.18897638
A19: 6 | B19: q(6,1) | M19: 6 | N19: 125 | Y19: 6 | Z19: 125 | AQ19: 6 | AR19: 125 | BG19: 6 | BH19: 125 | BW19: 6 | BX19: 125
A21: Log-Link of Incremental Data | M21: Log-Link of Incremental Data | Z21: From Model Fitted Data | AR21: From Model Fitted Data | BH21: From Model Fitted Data | BX21: From Model Fitted Data
B22: 1 | C22: 2 | D22: 3 | E22: 4 | F22: 5 | G22: 6 | N22: 1 | O22: 2 | P22: 3 | Q22: 4 | R22: 5 | S22: 6 | Z22: Factors: | AA22: =SUM($N$78:$O$82)/SUM($N$78:$N$82) -> 1.394038623 | AB22: =SUM($N$78:$P$81)/SUM($N$78:$O$81) -> 1.147381128 | AC22: =SUM($N$78:$Q$80)/SUM($N$78:$P$80) -> 1.155140494 | AD22: =SUM($N$78:$R$79)/SUM($N$78:$Q$79) -> 1.049382716 | AE22: =SUM($N$78:$S$78)/SUM($N$78:$R$78) -> 1.023255814 | AR22: Factors: | AS22: =SUM($N$78:$O$82)/SUM($N$78:$N$82) -> 1.394038623 | AT22: =SUM($N$78:$P$79,$N$81:$P$81)/SUM($N$78:$O$79,$N$81:$O$81) -> 1.147381128 | AU22: =SUM($N$78:$Q$80)/SUM($N$78:$P$80) -> 1.155140494 | AV22: =SUM($N$78:$R$79)/SUM($N$78:$Q$79) -> 1.049382716 | AW22: =SUM($N$78:$S$78)/SUM($N$78:$R$78) -> 1.023255814 | BH22: Factors: | BI22: =SUM($N$78:$O$79,$N$81:$O$82)/SUM($N$78:$N$79,$N$81:$N$82) -> 1.394038623 | BJ22: =SUM($N$78:$P$81)/SUM($N$78:$O$81) -> 1.147381128 | BK22: =SUM($N$78:$Q$80)/SUM($N$78:$P$80) -> 1.155140494 | BL22: =SUM($N$78:$R$79)/SUM($N$78:$Q$79) -> 1.049382716 | BM22: =SUM($N$78:$S$78)/SUM($N$78:$R$78) -> 1.023255814 | BX22: Factors: | BY22: =SUM($N$78:$O$79,$N$81:$O$82)/SUM($N$78:$N$79,$N$81:$N$82) -> 1.394038623 | BZ22: =SUM($N$78:$P$79,$N$81:$P$81)/SUM($N$78:$O$79,$N$81:$O$81) -> 1.147381128 | CA22: =SUM($N$78:$Q$80)/SUM($N$78:$P$80) -> 1.155140494 | CB22: =SUM($N$78:$R$79)/SUM($N$78:$Q$79) -> 1.049382716 | CC22: =SUM($N$78:$S$78)/SUM($N$78:$R$78) -> 1.023255814
A23: 1 | B23: ="ln[q("&$A23&","&B$4&")]" -> ln[q(1,1)] | C23: ="ln[q("&$A23&","&C$4&")]" -> ln[q(1,2)] | D23: ln[q(1,3)] | E23: ="ln[q("&$A23&","&E$4&")]" -> ln[q(1,4)] | F23: ="ln[q("&$A23&","&F$4&")]" -> ln[q(1,5)] | G23: ="ln[q("&$A23&","&G$4&")]" -> ln[q(1,6)] | M23: 1 | N23: =LN(N14) -> 4.553876892 | O23: =LN(O14) -> 4.007333185 | P23: 2.995732274 | Q23: =LN(Q14) -> 3.401197382 | R23: =LN(R14) -> 2.708050201 | S23: =LN(S14) -> 1.609437912 | Z23: Diff: | AA23: =AA11-AA22 -> 0.03453280507 | AB23: =AB11-AB22 -> -0.004523985582 | AC23: =AC11-AC22 -> -0.005607783944 | AD23: =AD11-AD22 -> 0 | AE23: =AE11-AE22 -> 0 | AR23: Diff: | AS23: =AS11-AS22 -> 0.03453280507 | AT23: =AT11-AT22 -> -0.007596182203 | AU23: =AU11-AU22 -> -0.005607783944 | AV23: =AV11-AV22 -> 0 | AW23: =AW11-AW22 -> 0 | BH23: Diff: | BI23: =BI11-BI22 -> 0.001565772107 | BJ23: =BJ11-BJ22 -> -0.004523985582 | BK23: =BK11-BK22 -> -0.005607783944 | BL23: =BL11-BL22 -> 0 | BM23: =BM11-BM22 -> 0 | BX23: Diff: | BY23: =BY11-BY22 -> 0.001565772107 | BZ23: =BZ11-BZ22 -> -0.007596182203 | CA23: =CA11-CA22 -> -0.005607783944 | CB23: =CB11-CB22 -> 0 | CC23: =CC11-CC22 -> 0
A24: 2 | B24: ln[q(2,1)] | C24: ln[q(2,2)] | D24: ln[q(2,3)] | E24: ln[q(2,4)] | F24: ln[q(2,5)] | M24: 2 | N24: 4.700480366 | O24: 3.912023005 | P24: 2.708050201 | Q24: =LN(Q15) -> 3.401197382 | R24: 1.609437912
A25: 3 | B25: ln[q(3,1)] | C25: ln[q(3,2)] | D25: ln[q(3,3)] | E25: ln[q(3,4)] | M25: 3 | N25: 4.65396035 | O25: 4.094344562 | P25: =LN(P16) -> 3.218875825 | Q25: =LN(Q16) -> 2.995732274
A26: 4 | B26: ln[q(4,1)] | C26: ln[q(4,2)] | D26: ln[q(4,3)] | M26: 4 | N26: 4.787491743 | O26: =LN(O17) -> 3.555348061 | P26: =LN(P17) -> 3.401197382
A27: 5 | B27: ln[q(5,1)] | C27: ln[q(5,2)] | M27: 5 | N27: 4.86753445 | O27: =LN(O18) -> 3.688879454
A28: 6 | B28: ln[q(6,1)] | M28: 6 | N28: 4.828313737
AR29: Model Parameters from Maximum Likelihood
A30: Design Matrix | AA30: α1 | AB30: α2 | AC30: α3 | AD30: α4 | AE30: α5 | AF30: α6 | AG30: β2 | AH30: β3 | AI30: β4 | AJ30: β5 | AK30: β6 | AM30: X x A | AS30: Actual | AU30: Estimate | AV30: Loglikelihood | AZ30: Maximum Likelihood Steps:
A31: X | B31: 1 | C31: 0 | D31: 0 | E31: 0 | F31: 0 | G31: 0 | H31: 0 | I31: 0 | J31: 0 | K31: 0 | L31: 0 | N31: 1 | O31: 0 | P31: 0 | Q31: 0 | R31: 0 | S31: 0 | T31: 0 | U31: 0 | V31: 0 | W31: 0 | X31: 0 | Z31: A | AA31: 4.708518786 | AB31: 4.68498926 | AC31: 4.636587175 | AD31: 4.750662565 | AE31: 4.803587565 | AF31: 4.828308907 | AG31: -0.9313026587 | AH31: -0.6512194745 | AI31: 0.1887928208 | AJ31: -1.000509857 | AK31: -0.7048584322 | AM31: =SUMPRODUCT(N31:X31,$AA$31:$AK$31) -> 4.708518786 | AR31: q(1,1) | AS31: =N14 -> 95 | AT31: m1,1 | AU31: =EXP(AM31) -> 110.8877896 | AV31: =IF($F$55=0,-(((AS31-AU31)^2)/2)-0.5*LN(2*PI()),IF($F$55=1,-AU31+LN(AU31)*AS31-GAMMALN(AS31+1),IF($F$55=2,-LN(AU31)-AS31/AU31,-0.5*(LN(2*PI())+3*LN(AS31))-(AS31-AU31)^2/(2*AU31^2*AS31)))) -> -4.39356385 | AY31: 1) | AZ31: Enter Starting Values for vector A (Row 31)
B32: 0 | C32: 1 | D32: 0 | E32: 0 | F32: 0 | G32: 0 | H32: 0 | I32: 0 | J32: 0 | K32: 0 | L32: 0 | N32: 0 | O32: 1 | P32: 0 | Q32: 0 | R32: 0 | S32: 0 | T32: 0 | U32: 0 | V32: 0 | W32: 0 | X32: 0 | AM32: =SUMPRODUCT(N32:X32,$AA$31:$AK$31) -> 4.68498926 | AR32: q(2,1) | AS32: =N15 -> 110 | AT32: m2,1 | AU32: =EXP(AM32) -> 108.309109 | AV32: =IF($F$55=0,-(((AS32-AU32)^2)/2)-0.5*LN(2*PI()),IF($F$55=1,-AU32+LN(AU32)*AS32-GAMMALN(AS32+1),IF($F$55=2,-LN(AU32)-AS32/AU32,-0.5*(LN(2*PI())+3*LN(AS32))-(AS32-AU32)^2/(2*AU32^2*AS32)))) -> -3.283066989 | AY32: 2) | AZ32: Use Solver to Maximize Total Loglikelihood
B33: 0 | C33: 0 | D33: 1 | E33: 0 | F33: 0 | G33: 0 | H33: 0 | I33: 0 | J33: 0 | K33: 0 | L33: 0 | N33: 0 | O33: 0 | P33: 1 | Q33: 0 | R33: 0 | S33: 0 | T33: 0 | U33: 0 | V33: 0 | W33: 0 | X33: 0 | AM33: 4.636587175 | AR33: q(3,1) | AS33: =N16 -> 105 | AT33: m3,1 | AU33: 103.1915711 | AV33: -3.262466919
B34: 0 | C34: 0 | D34: 0 | E34: 1 | F34: 0 | G34: 0 | H34: 0 | I34: 0 | J34: 0 | K34: 0 | L34: 0 | N34: 0 | O34: 0 | P34: 0 | Q34: 1 | R34: 0 | S34: 0 | T34: 0 | U34: 0 | V34: 0 | W34: 0 | X34: 0 | AM34: 4.750662565 | AR34: q(4,1) | AS34: =N17 -> 120 | AT34: m4,1 | AU34: 115.660892 | AV34: -3.393772188
B35: 0 | C35: 0 | D35: 0 | E35: 0 | F35: 1 | G35: 0 | H35: 0 | I35: 0 | J35: 0 | K35: 0 | L35: 0 | N35: 0 | O35: 0 | P35: 0 | Q35: 0 | R35: 1 | S35: 0 | T35: 0 | U35: 0 | V35: 0 | W35: 0 | X35: 0 | AM35: 4.803587565 | AR35: q(5,1) | AS35: =N18 -> 130 | AT35: m5,1 | AU35: 121.9471269 | AV35: -3.613568827
B36: 0 | C36: 0 | D36: 0 | E36: 0 | F36: 0 | G36: 1 | H36: 0 | I36: 0 | J36: 0 | K36: 0 | L36: 0 | N36: 0 | O36: 0 | P36: 0 | Q36: 0 | R36: 0 | S36: 1 | T36: 0 | U36: 0 | V36: 0 | W36: 0 | X36: 0 | AM36: 4.828308907 | AR36: q(6,1) | AS36: =N19 -> 125 | AT36: m6,1 | AU36: 124.9993963 | AV36: -3.333762069
B37: 1 | C37: 0 | D37: 0 | E37: 0 | F37: 0 | G37: 0 | H37: 1 | I37: 0 | J37: 0 | K37: 0 | L37: 0 | N37: 1 | O37: 0 | P37: 0 | Q37: 0 | R37: 0 | S37: 0 | T37: 1 | U37: 0 | V37: 0 | W37: 0 | X37: 0 | AM37: 3.777216127 | AR37: q(1,2) | AS37: =O14 -> 55 | AT37: m1,2 | AU37: 43.69423306 | AV37: -4.274791533
B38: 0 | C38: 1 | D38: 0 | E38: 0 | F38: 0 | G38: 0 | H38: 1 | I38: 0 | J38: 0 | K38: 0 | L38: 0 | N38: 0 | O38: 1 | P38: 0 | Q38: 0 | R38: 0 | S38: 0 | T38: 1 | U38: 0 | V38: 0 | W38: 0 | X38: 0 | AM38: 3.753686601 | AR38: q(2,2) | AS38: =O15 -> 50 | AT38: m2,2 | AU38: 42.67812957 | AV38: -3.471566473
B39: 0 | C39: 0 | D39: 1 | E39: 0 | F39: 0 | G39: 0 | H39: 1 | I39: 0 | J39: 0 | K39: 0 | L39: 0 | N39: 0 | O39: 0 | P39: 0 | Q39: 1 | R39: 0 | S39: 0 | T39: 1 | U39: 0 | V39: 0 | W39: 0 | X39: 0 | AM39: 3.819359906 | AR39: q(4,2) | AS39: =O17 -> 35 | AT39: m4,2 | AU39: 45.57502668 | AV39: -4.033605574
B40: 0 | C40: 0 | D40: 0 | E40: 1 | F40: 0 | G40: 0 | H40: 1 | I40: 0 | J40: 0 | K40: 0 | L40: 0 | M40: => | N40: 0 | O40: 0 | P40: 0 | Q40: 0 | R40: 1 | S40: 0 | T40: 1 | U40: 0 | V40: 0 | W40: 0 | X40: 0 | AM40: =SUMPRODUCT(N40:X40,$AA$31:$AK$31) -> 3.872284906 | AR40: q(5,2) | AS40: =O18 -> 40 | AT40: m5,2 | AU40: 48.05205518 | AV40: -3.481298646
B41: 0 | C41: 0 | D41: 0 | E41: 0 | F41: 1 | G41: 0 | H41: 1 | I41: 0 | J41: 0 | K41: 0 | L41: 0 | N41: 1 | O41: 0 | P41: 0 | Q41: 0 | R41: 0 | S41: 0 | T41: 1 | U41: 1 | V41: 0 | W41: 0 | X41: 0 | AM41: 3.125996652 | AR41: q(1,3) | AS41: =P14 -> 20 | AT41: m1,3 | AU41: 22.78259011 | AV41: -2.598273518
B42: 1 | C42: 0 | D42: 0 | E42: 0 | F42: 0 | G42: 0 | H42: 1 | I42: 1 | J42: 0 | K42: 0 | L42: 0 | N42: 0 | O42: 1 | P42: 0 | Q42: 0 | R42: 0 | S42: 0 | T42: 1 | U42: 1 | V42: 0 | W42: 0 | X42: 0 | AM42: 3.102467127 | AR42: q(2,3) | AS42: =P15 -> 15 | AT42: m2,3 | AU42: 22.25278405 | AV42: -3.615048534
B43: 0 | C43: 1 | D43: 0 | E43: 0 | F43: 0 | G43: 0 | H43: 1 | I43: 1 | J43: 0 | K43: 0 | L43: 0 | N43: 0 | O43: 0 | P43: 1 | Q43: 0 | R43: 0 | S43: 0 | T43: 1 | U43: 1 | V43: 0 | W43: 0 | X43: 0 | AM43: 3.054065041 | AR43: q(3,3) | AS43: =P16 -> 25 | AT43: m3,3 | AU43: 21.20135387 | AV43: -2.853333058
B44: 0 | C44: 0 | D44: 1 | E44: 0 | F44: 0 | G44: 0 | H44: 1 | I44: 1 | J44: 0 | K44: 0 | L44: 0 | N44: 0 | O44: 0 | P44: 0 | Q44: 1 | R44: 0 | S44: 0 | T44: 1 | U44: 1 | V44: 0 | W44: 0 | X44: 0 | AM44: 3.168140431 | AR44: q(4,3) | AS44: =P17 -> 30 | AT44: m4,3 | AU44: 23.76325384 | AV44: -3.37727725
B45: 0 | C45: 0 | D45: 0 | E45: 1 | F45: 0 | G45: 0 | H45: 1 | I45: 1 | J45: 0 | K45: 0 | L45: 0 | N45: 1 | O45: 0 | P45: 0 | Q45: 0 | R45: 0 | S45: 0 | T45: 1 | U45: 1 | V45: 1 | W45: 0 | X45: 0 | AM45: 3.314789473 | AR45: q(1,4) | AS45: =Q14 -> 30 | AT45: m1,4 | AU45: 27.51660039 | AV45: -2.731152546
B46: 1 | C46: 0 | D46: 0 | E46: 0 | F46: 0 | G46: 0 | H46: 1 | I46: 1 | J46: 1 | K46: 0 | L46: 0 | N46: 0 | O46: 1 | P46: 0 | Q46: 0 | R46: 0 | S46: 0 | T46: 1 | U46: 1 | V46: 1 | W46: 0 | X46: 0 | AM46: 3.291259947 | AR46: q(2,4) | AS46: =Q15 -> 30 | AT46: m2,4 | AU46: 26.87670557 | AV46: -2.797143494
B47: 0 | C47: 1 | D47: 0 | E47: 0 | F47: 0 | G47: 0 | H47: 1 | I47: 1 | J47: 1 | K47: 0 | L47: 0 | N47: 0 | O47: 0 | P47: 1 | Q47: 0 | R47: 0 | S47: 0 | T47: 1 | U47: 1 | V47: 1 | W47: 0 | X47: 0 | AM47: 3.242857862 | AR47: q(3,4) | AS47: =Q16 -> 20 | AT47: m3,4 | AU47: 25.60679798 | AV47: -3.085257193
B48: 0 | C48: 0 | D48: 1 | E48: 0 | F48: 0 | G48: 0 | H48: 1 | I48: 1 | J48: 1 | K48: 0 | L48: 0 | N48: 1 | O48: 0 | P48: 0 | Q48: 0 | R48: 0 | S48: 0 | T48: 1 | U48: 1 | V48: 1 | W48: 1 | X48: 0 | AM48: 2.314279616 | AR48: q(1,5) | AS48: =R14 -> 15 | AT48: m1,5 | AU48: 10.11763171 | AV48: -3.302708857
B49: 1 | C49: 0 | D49: 0 | E49: 0 | F49: 0 | G49: 0 | H49: 1 | I49: 1 | J49: 1 | K49: 1 | L49: 0 | N49: 0 | O49: 1 | P49: 0 | Q49: 0 | R49: 0 | S49: 0 | T49: 1 | U49: 1 | V49: 1 | W49: 1 | X49: 0 | AM49: 2.29075009 | AR49: q(2,5) | AS49: =R15 -> 5 | AT49: m2,5 | AU49: 9.882347553 | AV49: -3.216088845
B50: 0 | C50: 1 | D50: 0 | E50: 0 | F50: 0 | G50: 0 | H50: 1 | I50: 1 | J50: 1 | K50: 1 | L50: 0 | N50: 1 | O50: 0 | P50: 0 | Q50: 0 | R50: 0 | S50: 0 | T50: 1 | U50: 1 | V50: 1 | W50: 1 | X50: 1 | AM50: 1.609421184 | AR50: q(1,6) | AS50: =S14 -> 5 | AT50: m1,6 | AU50: 4.999916357 | AV50: -1.740302181
B51: 1 | C51: 0 | D51: 0 | E51: 0 | F51: 0 | G51: 0 | H51: 1 | I51: 1 | J51: 1 | K51: 1 | L51: 1
AS52: =COUNTIF(AS31:AS50,"<>0") -> 20 | AU52: Total | AV52: =SUM(AV31:AV50) -> -65.85804854
A53: Model Parameters from Iteratively Weighted Least Squares
B54: Value | C54: t-Stat | D54: p-Value | F54: Error Distribution
A55: α1 | B55: =GLM!CB130 -> 4.708526865 | C55: =B55/SQRT(ScaleParameter*GLM!AR130) -> 39.05125437 | D55: =_xlfn.T.DIST.2T(ABS(C55),$T$113) -> 2.353429131e-11 | E55: z = | F55: 1 | AJ55: 0 | AK55: Normal
A56: α2 | B56: =GLM!CB131 -> 4.684996368 | C56: =(B56-B55)/SQRT(ScaleParameter*GLM!AS131) -> -0.1933140526 | D56: =_xlfn.T.DIST.2T(ABS(C56),$T$113) -> 0.8510053309 | F56: =VLOOKUP(F55,ErrorTable,2) -> Poisson | AJ56: 1 | AK56: Poisson
A57: α3 | B57: =GLM!CB132 -> 4.636591221 | C57: =(B57-B55)/SQRT(ScaleParameter*GLM!AT132) -> -0.5247120656 | D57: 0.6124612334 | AJ57: 2 | AK57: Gamma
A58: α4 | B58: =GLM!CB133 -> 4.75066874 | C58: =(B58-B55)/SQRT(ScaleParameter*GLM!AU133) -> 0.3377781787 | D58: 0.7432754072 | AJ58: 3 | AK58: Inverse Gaussian
A59: α5 | B59: =GLM!CB134 -> 4.803593418 | C59: =(B59-B55)/SQRT(ScaleParameter*GLM!AV134) -> 0.7442743082 | D59: 0.4756933934
A60: α6 | B60: =GLM!CB135 -> 4.828313737 | C60: =(B60-B55)/SQRT(ScaleParameter*GLM!AW135) -> 0.8448164252 | D60: 0.420103518
A61: β2 | B61: =GLM!CB136 -> -0.9313063453 | C61: =B61/SQRT(ScaleParameter*GLM!AX136) -> -6.724767708 | D61: 8.607773572e-05
A62: β3 | B62: =GLM!CB137 -> -0.6512219728 | C62: =B62/SQRT(ScaleParameter*GLM!AY137) -> -3.102783381 | D62: 0.01266544641
A63: β4 | B63: =GLM!CB138 -> 0.1887912446 | C63: =B63/SQRT(ScaleParameter*GLM!AZ138) -> 0.7664997734 | D63: 0.4630091799
A64: β5 | B64: =GLM!CB139 -> -1.000508659 | C64: =B64/SQRT(ScaleParameter*GLM!BA139) -> -2.5051421 | D64: 0.03357733229
A65: β6 | B65: =GLM!CB140 -> -0.7048432203 | C65: =B65/SQRT(ScaleParameter*GLM!BB140) -> -0.8851839874 | D65: 0.399089182
A67: Log-Link of Fitted Values | M67: Log-Link of Fitted Values
B68: 1 | C68: 2 | D68: 3 | E68: 4 | F68: 5 | G68: 6 | N68: 1 | O68: 2 | P68: 3 | Q68: 4 | R68: 5 | S68: 6
A69: 1 | B69: ln[m1,1] | C69: ln[m1,2] | D69: ln[m1,3] | E69: ln[m1,4] | F69: ln[m1,5] | G69: ln[m1,6] | M69: 1 | N69: =B55 -> 4.708526865 | O69: =B55+B61 -> 3.77722052 | P69: =B55+B61+B62 -> 3.125998547 | Q69: =B55+B61+B62+B63 -> 3.314789791 | R69: =B55+B61+B62+B63+B64 -> 2.314281133 | S69: =B55+B61+B62+B63+B64+B65 -> 1.609437912
A70: 2 | B70: ln[m2,1] | C70: ln[m2,2] | D70: ln[m2,3] | E70: ln[m2,4] | F70: ln[m2,5] | M70: 2 | N70: 4.684996368 | O70: =B56+B61 -> 3.753690022 | P70: =B56+B61+B62 -> 3.102468049 | Q70: =B56+B61+B62+B63 -> 3.291259294 | R70: =B56+B61+B62+B63+B64 -> 2.290750635
A71: 3 | B71: ln[m3,1] | C71: ln[m3,2] | D71: ln[m3,3] | E71: ln[m3,4] | M71: 3 | N71: 4.636591221 | O71: =B57+B61 -> 3.705284875 | P71: =B57+B61+B62 -> 3.054062902 | Q71: =B57+B61+B62+B63 -> 3.242854147
A72: 4 | B72: ln[m4,1] | C72: ln[m4,2] | D72: ln[m4,3] | M72: 4 | N72: 4.75066874 | O72: =B58+B61 -> 3.819362395 | P72: =B58+B61+B62 -> 3.168140422
A73: 5 | B73: ln[m5,1] | C73: ln[m5,2] | M73: 5 | N73: 4.803593418 | O73: =B59+B61 -> 3.872287073
A74: 6 | B74: ln[m6,1] | M74: 6 | N74: 4.828313737
A76: Fitted Incremental Values | M76: Fitted Incremental Values | Y76: Fitted Incremental Values | AI76: Differences | AQ76: Fitted Incremental Values | AY76: Differences | BG76: Fitted Incremental Values | BO76: Differences | BW76: Fitted Incremental Values | CE76: Differences
B77: 1 | C77: 2 | D77: 3 | E77: 4 | F77: 5 | G77: 6 | N77: 1 | O77: 2 | P77: 3 | Q77: 4 | R77: 5 | S77: 6 | Z77: 1 | AA77: 2 | AB77: 3 | AC77: 4 | AD77: 5 | AE77: 6 | AJ77: 1 | AK77: 2 | AL77: 3 | AM77: 4 | AN77: 5 | AO77: 6 | AR77: 1 | AS77: 2 | AT77: 3 | AU77: 4 | AV77: 5 | AW77: 6 | AZ77: 1 | BA77: 2 | BB77: 3 | BC77: 4 | BD77: 5 | BE77: 6 | BH77: 1 | BI77: 2 | BJ77: 3 | BK77: 4 | BL77: 5 | BM77: 6 | BP77: 1 | BQ77: 2 | BR77: 3 | BS77: 4 | BT77: 5 | BU77: 6 | BX77: 1 | BY77: 2 | BZ77: 3 | CA77: 4 | CB77: 5 | CC77: 6 | CF77: 1 | CG77: 2 | CH77: 3 | CI77: 4 | CJ77: 5 | CK77: 6
A78: 1 | B78: m1,1 | C78: m1,2 | D78: m1,3 | E78: m1,4 | F78: m1,5 | G78: m1,6 | M78: 1 | N78: =EXP(N69) -> 110.8886855 | O78: =EXP(O69) -> 43.694425 | P78: 22.78263327 | Q78: =EXP(Q69) -> 27.51660915 | R78: =EXP(R69) -> 10.11764706 | S78: =EXP(S69) -> 5 | Y78: 1 | Z78: =Z5 -> 109.1664813 | AA78: =AA5-Z5 -> 46.78563486 | AB78: =AB5-AA5 -> 22.27887374 | AC78: =AC5-AB5 -> 26.65136298 | AD78: =AD5-AC5 -> 10.11764706 | AE78: =AE5-AD5 -> 5 | AI78: 1 | AJ78: =N78-Z78 -> 1.722204172 | AK78: -3.09120986 | AL78: 0.5037595221 | AM78: 0.8652461659 | AN78: 1.598721155e-14 | AO78: 7.993605777e-15 | AQ78: 1 | AR78: =AR5 -> 109.4607306 | AS78: =AS5-AR5 -> 46.9117417 | AT78: =AT5-AS5 -> 21.85851764 | AU78: =AU5-AT5 -> 26.65136298 | AV78: =AV5-AU5 -> 10.11764706 | AW78: =AW5-AV5 -> 5 | AY78: 1 | AZ78: =N78-AR78 -> 1.427954896 | BA78: -3.217316692 | BB78: 0.9241156305 | BC78: 0.8652461659 | BD78: 1.598721155e-14 | BE78: 7.993605777e-15 | BG78: 1 | BH78: =BH5 -> 111.7452171 | BI78: =BI5-BH5 -> 44.20689908 | BJ78: =BJ5-BI5 -> 22.27887374 | BK78: =BK5-BJ5 -> 26.65136298 | BL78: =BL5-BK5 -> 10.11764706 | BM78: =BM5-BL5 -> 5 | BO78: 1 | BP78: =N78-BH78 -> -0.8565316081 | BQ78: -0.51247408 | BR78: 0.5037595221 | BS78: 0.8652461659 | BT78: 1.598721155e-14 | BU78: 7.993605777e-15 | BW78: 1 | BX78: =BX5 -> 112.0464172 | BY78: =BY5-BX5 -> 44.32605515 | BZ78: =BZ5-BY5 -> 21.85851764 | CA78: =CA5-BZ5 -> 26.65136298 | CB78: =CB5-CA5 -> 10.11764706 | CC78: =CC5-CB5 -> 5 | CE78: 1 | CF78: =N78-BX14 -> -1.157731654 | CG78: -0.6316301422 | CH78: 0.9241156305 | CI78: 0.8652461659 | CJ78: 1.598721155e-14 | CK78: 7.993605777e-15
A79: 2 | B79: m2,1 | C79: m2,2 | D79: m2,3 | E79: m2,4 | F79: m2,5 | M79: 2 | N79: 108.3098789 | O79: 42.67827559 | P79: 22.25280459 | Q79: =EXP(Q70) -> 26.87668801 | R79: 9.882352941 | Y79: 2 | Z79: 106.627726 | AA79: =AA6-Z6 -> 45.69759684 | AB79: =AB6-AA6 -> 21.7607604 | AC79: =AC6-AB6 -> 26.03156385 | AD79: =AD6-AC6 -> 9.882352941 | AI79: 2 | AJ79: =N79-Z79 -> 1.682152912 | AK79: =O79-AA79 -> -3.019321258 | AL79: =P79-AB79 -> 0.4920441844 | AM79: =Q79-AC79 -> 0.8451241621 | AN79: =R79-AD79 -> 0 | AQ79: 2 | AR79: 106.9151322 | AS79: =AS6-AR6 -> 45.82077096 | AT79: =AT6-AS6 -> 21.35018002 | AU79: =AU6-AT6 -> 26.03156385 | AV79: =AV6-AU6 -> 9.882352941 | AY79: 2 | AZ79: =N79-AR79 -> 1.394746643 | BA79: =O79-AS79 -> -3.142495374 | BB79: =P79-AT79 -> 0.9026245693 | BC79: =Q79-AU79 -> 0.8451241621 | BD79: =R79-AV79 -> 0 | BG79: 2 | BH79: 109.1464911 | BI79: =BI6-BH6 -> 43.17883166 | BJ79: =BJ6-BI6 -> 21.7607604 | BK79: =BK6-BJ6 -> 26.03156385 | BL79: =BL6-BK6 -> 9.882352941 | BO79: 2 | BP79: =N79-BH79 -> -0.8366122684 | BQ79: =O79-BI79 -> -0.5005560781 | BR79: =P79-BJ79 -> 0.4920441844 | BS79: =Q79-BK79 -> 0.8451241621 | BT79: =R79-BL79 -> 0 | BW79: 2 | BX79: 109.4406865 | BY79: =BY6-BX6 -> 43.29521665 | BZ79: =BZ6-BY6 -> 21.35018002 | CA79: =CA6-BZ6 -> 26.03156385 | CB79: =CB6-CA6 -> 9.882352941 | CE79: 2 | CF79: =N79-BX15 -> -1.130807662 | CG79: =O79-BY15 -> -0.6169410691 | CH79: =P79-BZ15 -> 0.9026245693 | CI79: =Q79-CA15 -> 0.8451241621 | CJ79: =R79-CB15 -> 0
A80: 3 | B80: m3,1 | C80: m3,2 | D80: m3,3 | E80: m3,4 | M80: 3 | N80: 103.1919886 | O80: 40.66162916 | P80: =EXP(P71) -> 21.20130852 | Q80: =EXP(Q71) -> 25.60670284 | Y80: 3 | Z80: 111.8932927 | AA80: =AA7-Z7 -> 47.95426829 | AB80: =AB7-AA7 -> 22.83536585 | AC80: =AC7-AB7 -> 27.31707317 | AI80: 3 | AJ80: =N80-Z80 -> -8.701304046 | AK80: =O80-AA80 -> -7.292639134 | AL80: =P80-AB80 -> -1.634057333 | AM80: =Q80-AC80 -> -1.710370328 | AQ80: 3 | AR80: 112.1948919 | AS80: =AS7-AR7 -> 48.08352508 | AT80: =AT7-AS7 -> 22.40450989 | AU80: =AU7-AT7 -> 27.31707317 | AY80: 3 | AZ80: =N80-AR80 -> -9.002903218 | BA80: =O80-AS80 -> -7.421895922 | BB80: =P80-AT80 -> -1.203201373 | BC80: =Q80-AU80 -> -1.710370328 | BG80: 3 | BH80: 114.5364413 | BI80: =BI7-BH7 -> 45.31111965 | BJ80: =BJ7-BI7 -> 22.83536585 | BK80: =BK7-BJ7 -> 27.31707317 | BO80: 3 | BP80: =N80-BH80 -> -11.34445269 | BQ80: =O80-BI80 -> -4.649490488 | BR80: =P80-BJ80 -> -1.634057333 | BS80: =Q80-BK80 -> -1.710370328 | BW80: 3 | BX80: 114.8451649 | BY80: =BY7-BX7 -> 45.43325204 | BZ80: =BZ7-BY7 -> 22.40450989 | CA80: =CA7-BZ7 -> 27.31707317 | CE80: 3 | CF80: =N80-BX16 -> -11.65317625 | CG80: =O80-BY16 -> -4.771622886 | CH80: =P80-BZ16 -> -1.203201373 | CI80: =Q80-CA16 -> -1.710370328
A81: 4 | B81: m4,1 | C81: m4,2 | D81: m4,3 | M81: 4 | N81: 115.6616063 | O81: =EXP(O72) -> 45.57514012 | P81: =EXP(P72) -> 23.76325363 | Y81: 4 | Z81: 113.3125 | AA81: =AA8-Z8 -> 48.5625 | AB81: =AB8-AA8 -> 23.125 | AI81: 4 | AJ81: =N81-Z81 -> 2.349106254 | AK81: =O81-AA81 -> -2.98735988 | AL81: =P81-AB81 -> 0.6382536264 | AQ81: 4 | AR81: 113.6179245 | AS81: =AS8-AR8 -> 48.69339623 | AT81: =AT8-AS8 -> 22.68867925 | AY81: 4 | AZ81: =N81-AR81 -> 2.043681726 | BA81: =O81-AS81 -> -3.118256107 | BB81: =P81-AT81 -> 1.074574381 | BG81: 4 | BH81: 115.9891732 | BI81: =BI8-BH8 -> 45.88582677 | BJ81: =BJ8-BI8 -> 23.125 | BO81: 4 | BP81: =N81-BH81 -> -0.3275669745 | BQ81: =O81-BI81 -> -0.3106866519 | BR81: =P81-BJ81 -> 0.6382536264 | BW81: 4 | BX81: 116.3018125 | BY81: =BY8-BX8 -> 46.00950825 | BZ81: =BZ8-BY8 -> 22.68867925 | CE81: 4 | CF81: =N81-BX17 -> -0.6402062554 | CG81: =O81-BY17 -> -0.4343681257 | CH81: =P81-BZ17 -> 1.074574381
A82: 5 | B82: m5,1 | C82: m5,2 | M82: 5 | N82: 121.9478407 | O82: =EXP(O73) -> 48.05215929 | Y82: 5 | Z82: 119 | AA82: =AA9-Z9 -> 51 | AI82: 5 | AJ82: =N82-Z82 -> 2.947840709 | AK82: =O82-AA82 -> -2.947840709 | AQ82: 5 | AR82: 119 | AS82: =AS9-AR9 -> 51 | AY82: 5 | AZ82: =N82-AR82 -> 2.947840709 | BA82: =O82-AS82 -> -2.947840709 | BG82: 5 | BH82: 121.8110236 | BI82: =BI9-BH9 -> 48.18897638 | BO82: 5 | BP82: =N82-BH82 -> 0.1368170867 | BQ82: =O82-BI82 -> -0.1368170867 | BW82: 5 | BX82: 121.8110236 | BY82: =BY9-BX9 -> 48.18897638 | CE82: 5 | CF82: =N82-BX18 -> 0.1368170867 | CG82: =O82-BY18 -> -0.1368170867
A83: 6 | B83: m6,1 | M83: 6 | N83: 125 | Y83: 6 | Z83: 125 | AI83: 6 | AJ83: =N83-Z83 -> 0 | AQ83: 6 | AR83: 125 | AY83: 6 | AZ83: =N83-AR83 -> 0 | BG83: 6 | BH83: 125 | BO83: 6 | BP83: =N83-BH83 -> 0 | BW83: 6 | BX83: 125 | CE83: 6 | CF83: =N83-BX19 -> 0
AJ84: sumsq | AK84: =SUMSQ(AJ78:AO83) -> 193.1465761 | AZ84: sumsq | BA84: =SUMSQ(AZ78:BE83) -> 200.2866454 | BP84: sumsq | BQ84: =SUMSQ(BP78:BU83) -> 160.46403 | CF84: sumsq | CG84: =SUMSQ(CF78:CK83) -> 171.2588977
A85: Unscaled Pearson residuals | M85: Unscaled Pearson Residuals | Y85: Unscaled Pearson Residuals | AI85: Differences | AQ85: Unscaled Pearson Residuals | AY85: Differences | BG85: Unscaled Pearson Residuals | BO85: Differences | BW85: Unscaled Pearson Residuals | CE85: Differences
B86: 1 | C86: 2 | D86: 3 | E86: 4 | F86: 5 | G86: 6 | N86: 1 | O86: 2 | P86: 3 | Q86: 4 | R86: 5 | S86: 6 | Z86: 1 | AA86: 2 | AB86: 3 | AC86: 4 | AD86: 5 | AE86: 6 | AJ86: 1 | AK86: 2 | AL86: 3 | AM86: 4 | AN86: 5 | AO86: 6 | AR86: 1 | AS86: 2 | AT86: 3 | AU86: 4 | AV86: 5 | AW86: 6 | AZ86: 1 | BA86: 2 | BB86: 3 | BC86: 4 | BD86: 5 | BE86: 6 | BH86: 1 | BI86: 2 | BJ86: 3 | BK86: 4 | BL86: 5 | BM86: 6 | BP86: 1 | BQ86: 2 | BR86: 3 | BS86: 4 | BT86: 5 | BU86: 6 | BX86: 1 | BY86: 2 | BZ86: 3 | CA86: 4 | CB86: 5 | CC86: 6 | CF86: 1 | CG86: 2 | CH86: 3 | CI86: 4 | CJ86: 5 | CK86: 6
A87: 1 | B87: r1,1 | C87: r1,2 | D87: r1,3 | E87: r1,4 | F87: r1,5 | G87: r1,6 | M87: 1 | N87: =(N14-N78)/SQRT(N78^$F$55) -> -1.50884404 | O87: =(O14-O78)/SQRT(O78^$F$55) -> 1.710328927 | P87: =(P14-P78)/SQRT(P78^$F$55) -> -0.5829804796 | Q87: =(Q14-Q78)/SQRT(Q78^$F$55) -> 0.4734211097 | R87: =(R14-R78)/SQRT(R78^$F$55) -> 1.534932947 | S87: =(S14-S78)/SQRT(S78^$F$55) -> -3.574849181e-15 | Y87: 1 | Z87: =(N14-Z14)/SQRT(Z14) -> -1.355867772 | AA87: 1.200930128 | AB87: -0.4828071007 | AC87: 0.6486469218 | AD87: 1.534932947 | AE87: 0 | AI87: 1 | AJ87: =N87-Z87 -> -0.1529762676 | AK87: 0.5093987985 | AL87: -0.100173379 | AM87: -0.1752258121 | AN87: -5.995204333e-15 | AO87: -3.574849181e-15 | AQ87: 1 | AR87: =(N14-AR14)/SQRT(AR14) -> -1.382168735 | AS87: 1.180903021 | AT87: -0.3975175742 | AU87: 0.6486469218 | AV87: 1.534932947 | AW87: 0 | AY87: 1 | AZ87: =N87-AR87 -> -0.1266753048 | BA87: 0.5294259055 | BB87: -0.1854629055 | BC87: -0.1752258121 | BD87: -5.995204333e-15 | BE87: -3.574849181e-15 | BG87: 1 | BH87: =(N14-BH14)/SQRT(BH14) -> -1.584077084 | BI87: 1.623309057 | BJ87: -0.4828071007 | BK87: 0.6486469218 | BL87: 1.534932947 | BM87: 0 | BO87: 1 | BP87: =N87-BH87 -> 0.07523304471 | BQ87: 0.08701986973 | BR87: -0.100173379 | BS87: -0.1752258121 | BT87: -5.995204333e-15 | BU87: -3.574849181e-15 | BW87: 1 | BX87: =(N14-BX14)/SQRT(BX14) -> -1.610401349 | BY87: 1.603228459 | BZ87: -0.3975175742 | CA87: 0.6486469218 | CB87: 1.534932947 | CC87: 0 | CE87: 1 | CF87: =N87-BX87 -> 0.1015573094 | CG87: 0.1071004672 | CH87: -0.1854629055 | CI87: -0.1752258121 | CJ87: -5.995204333e-15 | CK87: -3.574849181e-15
A88: 2 | B88: r2,1 | C88: r2,2 | D88: r2,3 | E88: r2,4 | F88: r2,5 | M88: 2 | N88: =(N15-N79)/SQRT(N79^$F$55) -> 0.1623991656 | O88: =(O15-O79)/SQRT(O79^$F$55) -> 1.120753094 | P88: =(P15-P79)/SQRT(P79^$F$55) -> -1.5374946 | Q88: =(Q15-Q79)/SQRT(Q79^$F$55) -> 0.6024589962 | R88: =(R15-R79)/SQRT(R79^$F$55) -> -1.553098466 | Y88: 2 | Z88: =(N15-Z15)/SQRT(Z15) -> 0.3265786464 | AA88: =(O15-AA15)/SQRT(AA15) -> 0.636450193 | AB88: =(P15-AB15)/SQRT(AB15) -> -1.449300732 | AC88: =(Q15-AC15)/SQRT(AC15) -> 0.7778023807 | AD88: =(R15-AD15)/SQRT(AD15) -> -1.553098466 | AI88: 2 | AJ88: =N88-Z88 -> -0.1641794808 | AK88: =O88-AA88 -> 0.4843029012 | AL88: =P88-AB88 -> -0.08819386885 | AM88: =Q88-AC88 -> -0.1753433845 | AN88: =R88-AD88 -> 0 | AQ88: 2 | AR88: =(N15-AR15)/SQRT(AR15) -> 0.2983437631 | AS88: =(O15-AS15)/SQRT(AS15) -> 0.617397657 | AT88: =(P15-AT15)/SQRT(AT15) -> -1.374311771 | AU88: =(Q15-AU15)/SQRT(AU15) -> 0.7778023807 | AV88: =(R15-AV15)/SQRT(AV15) -> -1.553098466 | AY88: 2 | AZ88: =N88-AR88 -> -0.1359445975 | BA88: =O88-AS88 -> 0.5033554372 | BB88: =P88-AT88 -> -0.163182829 | BC88: =Q88-AU88 -> -0.1753433845 | BD88: =R88-AV88 -> 0 | BG88: 2 | BH88: =(N15-BH15)/SQRT(BH15) -> 0.08169644148 | BI88: =(O15-BI15)/SQRT(BI15) -> 1.038062073 | BJ88: =(P15-BJ15)/SQRT(BJ15) -> -1.449300732 | BK88: =(Q15-BK15)/SQRT(BK15) -> 0.7778023807 | BL88: =(R15-BL15)/SQRT(BL15) -> -1.553098466 | BO88: 2 | BP88: =N88-BH88 -> 0.08070272415 | BQ88: =O88-BI88 -> 0.08269102086 | BR88: =P88-BJ88 -> -0.08819386885 | BS88: =Q88-BK88 -> -0.1753433845 | BT88: =R88-BL88 -> 0 | BW88: 2 | BX88: =(N15-BX15)/SQRT(BX15) -> 0.05346454366 | BY88: =(O15-BY15)/SQRT(BY15) -> 1.018977959 | BZ88: =(P15-BZ15)/SQRT(BZ15) -> -1.374311771 | CA88: =(Q15-CA15)/SQRT(CA15) -> 0.7778023807 | CB88: =(R15-CB15)/SQRT(CB15) -> -1.553098466 | CE88: 2 | CF88: =N88-BX88 -> 0.108934622 | CG88: =O88-BY88 -> 0.1017751348 | CH88: =P88-BZ88 -> -0.163182829 | CI88: =Q88-CA88 -> -0.1753433845 | CJ88: =R88-CB88 -> 0
A89: 3 | B89: r3,1 | C89: r3,2 | D89: r3,3 | E89: r3,4 | M89: 3 | N89: =(N16-N80)/SQRT(N80^$F$55) -> 0.1779828533 | O89: =(O16-O80)/SQRT(O80^$F$55) -> 3.032686351 | P89: =(P16-P80)/SQRT(P80^$F$55) -> 0.8249976086 | Q89: =(Q16-Q80)/SQRT(Q80^$F$55) -> -1.107976905 | Y89: 3 | Z89: =(N16-Z16)/SQRT(Z16) -> -0.6516654432 | AA89: =(O16-AA16)/SQRT(AA16) -> 1.739480448 | AB89: =(P16-AB16)/SQRT(AB16) -> 0.4529815547 | AC89: =(Q16-AC16)/SQRT(AC16) -> -1.399975112 | AI89: 3 | AJ89: =N89-Z89 -> 0.8296482964 | AK89: =O89-AA89 -> 1.293205903 | AL89: =P89-AB89 -> 0.3720160539 | AM89: =Q89-AC89 -> 0.2919982063 | AQ89: 3 | AR89: =(N16-AR16)/SQRT(AR16) -> -0.6792626395 | AS89: =(O16-AS16)/SQRT(AS16) -> 1.718500464 | AT89: =(P16-AT16)/SQRT(AT16) -> 0.5483421792 | AU89: =(Q16-AU16)/SQRT(AU16) -> -1.399975112 | AY89: 3 | AZ89: =N89-AR89 -> 0.8572454927 | BA89: =O89-AS89 -> 1.314185886 | BB89: =P89-AT89 -> 0.2766554294 | BC89: =Q89-AU89 -> 0.2919982063 | BG89: 3 | BH89: =(N16-BH16)/SQRT(BH16) -> -0.8910754909 | BI89: =(O16-BI16)/SQRT(BI16) -> 2.182158521 | BJ89: =(P16-BJ16)/SQRT(BJ16) -> 0.4529815547 | BK89: =(Q16-BK16)/SQRT(BK16) -> -1.399975112 | BO89: 3 | BP89: =N89-BH89 -> 1.069058344 | BQ89: =O89-BI89 -> 0.8505278291 | BR89: =P89-BJ89 -> 0.3720160539 | BS89: =Q89-BK89 -> 0.2919982063 | BW89: 3 | BX89: =(N16-BX16)/SQRT(BX16) -> -0.9186850233 | BY89: =(O16-BY16)/SQRT(BY16) -> 2.161104132 | BZ89: =(P16-BZ16)/SQRT(BZ16) -> 0.5483421792 | CA89: =(Q16-CA16)/SQRT(CA16) -> -1.399975112 | CE89: 3 | CF89: =N89-BX89 -> 1.096667877 | CG89: =O89-BY89 -> 0.8715822183 | CH89: =P89-BZ89 -> 0.2766554294 | CI89: =Q89-CA89 -> 0.2919982063
A90: 4 | B90: r4,1 | C90: r4,2 | D90: r4,3 | M90: 4 | N90: =(N17-N81)/SQRT(N81^$F$55) -> 0.4033985713 | O90: =(O17-O81)/SQRT(O81^$F$55) -> -1.566470152 | P90: =(P17-P81)/SQRT(P81^$F$55) -> 1.279396421 | Y90: 4 | Z90: =(N17-Z17)/SQRT(Z17) -> 0.6282389872 | AA90: =(O17-AA17)/SQRT(AA17) -> -1.946207909 | AB90: =(P17-AB17)/SQRT(AB17) -> 1.429656924 | AI90: 4 | AJ90: =N90-Z90 -> -0.2248404159 | AK90: =O90-AA90 -> 0.3797377568 | AL90: =P90-AB90 -> -0.1502605023 | AQ90: 4 | AR90: =(N17-AR17)/SQRT(AR17) -> 0.5987403265 | AS90: =(O17-AS17)/SQRT(AS17) -> -1.962348518 | AT90: =(P17-AT17)/SQRT(AT17) -> 1.534939384 | AY90: 4 | AZ90: =N90-AR90 -> -0.1953417552 | BA90: =O90-AS90 -> 0.3958783659 | BB90: =P90-AT90 -> -0.2555429628 | BG90: 4 | BH90: =(N17-BH17)/SQRT(BH17) -> 0.3724132967 | BI90: =(O17-BI17)/SQRT(BI17) -> -1.60702317 | BJ90: =(P17-BJ17)/SQRT(BJ17) -> 1.429656924 | BO90: 4 | BP90: =N90-BH90 -> 0.03098527456 | BQ90: =O90-BI90 -> 0.04055301763 | BR90: =P90-BJ90 -> -0.1502605023 | BW90: 4 | BX90: =(N17-BX17)/SQRT(BX17) -> 0.3429222651 | BY90: =(O17-BY17)/SQRT(BY17) -> -1.623095693 | BZ90: =(P17-BZ17)/SQRT(BZ17) -> 1.534939384 | CE90: 4 | CF90: =N90-BX90 -> 0.06047630618 | CG90: =O90-BY90 -> 0.05662554074 | CH90: =P90-BZ90 -> -0.2555429628
A91: 5 | B91: r5,1 | C91: r5,2 | M91: 5 | N91: =(N18-N82)/SQRT(N82^$F$55) -> 0.729164137 | O91: =(O18-O82)/SQRT(O82^$F$55) -> -1.161598129 | Y91: 5 | Z91: =(N18-Z18)/SQRT(Z18) -> 1.008368347 | AA91: =(O18-AA18)/SQRT(AA18) -> -1.540308092 | AI91: 5 | AJ91: =N91-Z91 -> -0.2792042097 | AK91: =O91-AA91 -> 0.3787099639 | AQ91: 5 | AR91: =(N18-AR18)/SQRT(AR18) -> 1.008368347 | AS91: =(O18-AS18)/SQRT(AS18) -> -1.540308092 | AY91: 5 | AZ91: =N91-AR91 -> -0.2792042097 | BA91: =O91-AS91 -> 0.3787099639 | BG91: 5 | BH91: =(N18-BH18)/SQRT(BH18) -> 0.7419699592 | BI91: =(O18-BI18)/SQRT(BI18) -> -1.179657051 | BO91: 5 | BP91: =N91-BH91 -> -0.0128058222 | BQ91: =O91-BI91 -> 0.01805892206 | BW91: 5 | BX91: =(N18-BX18)/SQRT(BX18) -> 0.7419699592 | BY91: =(O18-BY18)/SQRT(BY18) -> -1.179657051 | CE91: 5 | CF91: =N91-BX91 -> -0.0128058222 | CG91: =O91-BY91 -> 0.01805892206
A92: 6 | B92: r6,1 | M92: 6 | N92: =(N19-N83)/SQRT(N83^$F$55) -> -3.813172459e-15 | Y92: 6 | Z92: =(N19-Z19)/SQRT(Z19) -> 0 | AI92: 6 | AJ92: =N92-Z92 -> -3.813172459e-15 | AQ92: 6 | AR92: =(N19-AR19)/SQRT(AR19) -> 0 | AY92: 6 | AZ92: =N92-AR92 -> -3.813172459e-15 | BG92: 6 | BH92: =(N19-BH19)/SQRT(BH19) -> 0 | BO92: 6 | BP92: =N92-BH92 -> -3.813172459e-15 | BW92: 6 | BX92: =(N19-BX19)/SQRT(BX19) -> 0 | CE92: 6 | CF92: =N92-BX92 -> -3.813172459e-15
AJ93: sumsq | AK93: =SUMSQ(AJ87:AO92) -> 3.64672045 | AZ93: sumsq | BA93: =SUMSQ(AZ87:BE92) -> 3.795972638 | BP93: sumsq | BQ93: =SUMSQ(BP87:BU92) -> 2.22146065 | CF93: sumsq | CG93: =SUMSQ(CF87:CK92) -> 2.363277169
A94: Hat Matrix Factors | M94: Hat Matrix Factors
B95: 1 | C95: 2 | D95: 3 | E95: 4 | F95: 5 | G95: 6 | N95: 1 | O95: 2 | P95: 3 | Q95: 4 | R95: 5 | S95: 6
A96: 1 | B96: fH1,1 | C96: fH1,2 | D96: fH1,3 | E96: fH1,4 | F96: fH1,5 | G96: fH1,6 | M96: 1 | N96: ='Hat Matrix'!A49 -> 1.670104835 | O96: ='Hat Matrix'!G55 -> 1.301504542 | P96: ='Hat Matrix'!K59 -> 1.228271351 | Q96: ='Hat Matrix'!O63 -> 1.329095165 | R96: ='Hat Matrix'!R66 -> 1.457309416 | S96: ='Hat Matrix'!T68 -> 0
A97: 2 | B97: fH2,1 | C97: fH2,2 | D97: fH2,3 | E97: fH2,4 | F97: fH2,5 | M97: 2 | N97: ='Hat Matrix'!B50 -> 1.663336394 | O97: ='Hat Matrix'!H56 -> 1.296244921 | P97: ='Hat Matrix'!L60 -> 1.223320023 | Q97: ='Hat Matrix'!P64 -> 1.320821245 | R97: ='Hat Matrix'!S67 -> 1.440264275
A98: 3 | B98: fH3,1 | C98: fH3,2 | D98: fH3,3 | E98: fH3,4 | M98: 3 | N98: ='Hat Matrix'!C51 -> 2.093218086 | O98: 0 | P98: ='Hat Matrix'!M61 -> 1.23522293 | Q98: ='Hat Matrix'!Q65 -> 1.327140659
A99: 4 | B99: fH4,1 | C99: fH4,2 | D99: fH4,3 | M99: 4 | N99: ='Hat Matrix'!D52 -> 1.877758908 | O99: ='Hat Matrix'!I57 -> 1.33515822 | P99: ='Hat Matrix'!N62 -> 1.251632397
A100: 5 | B100: fH5,1 | C100: fH5,2 | M100: 5 | N100: ='Hat Matrix'!E53 -> 2.191057318 | O100: ='Hat Matrix'!J58 -> 1.375381364
A101: 6 | B101: fH6,1 | M101: 6 | N101: ='Hat Matrix'!F54 -> 0
A103: Standardized Pearson Residuals | M103: Standardized Pearson Residuals
B104: 1 | C104: 2 | D104: 3 | E104: 4 | F104: 5 | G104: 6 | N104: 1 | O104: 2 | P104: 3 | Q104: 4 | R104: 5 | S104: 6
A105: 1 | B105: rH1,1 | C105: rH1,2 | D105: rH1,3 | E105: rH1,4 | F105: rH1,5 | G105: rH1,6 | M105: 1 | N105: =N87*N96 -> -2.519927725 | O105: =O87*O96 -> 2.226000867 | P105: -0.7160582213 | Q105: 0.6292217077 | R105: 2.236872237 | S105: =S87*S96 -> 0
A106: 2 | B106: rH2,1 | C106: rH2,2 | D106: rH2,3 | E106: rH2,4 | F106: rH2,5 | M106: 2 | N106: 0.2701244426 | O106: 1.452770506 | P106: -1.880847929 | Q106: 0.7957406412 | R106: -2.236872237
A107: 3 | B107: rH3,1 | C107: rH3,2 | D107: rH3,3 | E107: rH3,4 | M107: 3 | N107: 0.3725569274 | O107: 0 | P107: 1.019055963 | Q107: -1.470441201
A108: 4 | B108: rH4,1 | C108: rH4,2 | D108: rH4,3 | M108: 4 | N108: 0.7574852607 | O108: -2.0914855 | P108: 1.60133401
A109: 5 | B109: rH5,1 | C109: rH5,2 | M109: 5 | N109: 1.597640418 | O109: -1.597640418
A110: 6 | B110: rH6,1 | M110: 6 | N110: 0
M112: Pearson chi-squared statistic | T112: =SUMSQ(N87:N92,O87:O88,O90:O91,P87:S90) -> 22.6175873
M113: Degrees of freedom | P113: =COUNT(N14:S19)-1 -> 20 | Q113: - | R113: =COUNT(B55:B65) -> 11 | S113: = | T113: =P113-R113 -> 9
M114: Scale Parameter | T114: =T112/T113 -> 2.513065256
M115: Degrees of Freedom Adjustment Factor | T115: =SQRT(P113/T113) -> 1.490711985
M116: Number of Non-Zero Residuals | T116: =COUNTIF(N105:N110,"<>0")+COUNTIF(O105:O109,"<>0")+COUNTIF(P105:P108,"<>0")+COUNTIF(Q105:Q107,"<>0")+COUNTIF(R105:R106,"<>0")+COUNTIF(S105,"<>0") -> 18
M118: Random Selections
N119: 1 | O119: 2 | P119: 3 | Q119: 4 | R119: 5 | S119: 6 | Y119: Residual Lookup Table
M120: 1 | N120: =RANDBETWEEN(1,NonZeroCount) -> 13 | O120: 8 | P120: 8 | Q120: 2 | R120: 14 | S120: 17 | Y120: 1 | Z120: =N105 -> -2.519927725 | AA120: =Z120 -> -2.519927725
M121: 2 | N121: =RANDBETWEEN(1,NonZeroCount) -> 12 | O121: =RANDBETWEEN(1,NonZeroCount) -> 9 | P121: =RANDBETWEEN(1,NonZeroCount) -> 3 | Q121: =RANDBETWEEN(1,NonZeroCount) -> 9 | R121: =RANDBETWEEN(1,NonZeroCount) -> 10 | Y121: 2 | Z121: 0.2701244426 | AA121: =Z121 -> 0.2701244426
M122: 3 | N122: =RANDBETWEEN(1,NonZeroCount) -> 10 | O122: =RANDBETWEEN(1,NonZeroCount) -> 9 | P122: =RANDBETWEEN(1,NonZeroCount) -> 6 | Q122: =RANDBETWEEN(1,NonZeroCount) -> 2 | Y122: 3 | Z122: 0.3725569274 | AA122: =Z122 -> 0.3725569274
M123: 4 | N123: =RANDBETWEEN(1,NonZeroCount) -> 17 | O123: =RANDBETWEEN(1,NonZeroCount) -> 10 | P123: =RANDBETWEEN(1,NonZeroCount) -> 17 | Y123: 4 | Z123: 0.7574852607 | AA123: =Z123 -> 0.7574852607
M124: 5 | N124: =RANDBETWEEN(1,NonZeroCount) -> 18 | O124: =RANDBETWEEN(1,NonZeroCount) -> 13 | Y124: 5 | Z124: 1.597640418 | AA124: =Z124 -> 1.597640418
M125: 6 | N125: =RANDBETWEEN(1,NonZeroCount) -> 7 | Y125: 6 | Z125: 0 | AA125: =Z126 -> 2.226000867
Y126: 7 | Z126: =O105 -> 2.226000867 | AA126: =Z127 -> 1.452770506
M127: Random Residuals | Y127: 8 | Z127: =O106 -> 1.452770506 | AA127: =Z129 -> -2.0914855
N128: 1 | O128: 2 | P128: 3 | Q128: 4 | R128: 5 | S128: 6 | Y128: 9 | Z128: =O107 -> 0 | AA128: -1.597640418
M129: 1 | N129: =VLOOKUP(N120,$Y$120:$AA$140,3) -> 1.60133401 | O129: =VLOOKUP(O120,$Y$120:$AA$140,3) -> -2.0914855 | P129: -2.0914855 | Q129: 0.2701244426 | R129: 0.6292217077 | S129: =VLOOKUP(S120,$Y$120:$AA$140,3) -> 2.236872237 | Y129: 10 | Z129: =O108 -> -2.0914855 | AA129: -0.7160582213
M130: 2 | N130: 1.019055963 | O130: -1.597640418 | P130: 0.3725569274 | Q130: -1.597640418 | R130: -0.7160582213 | Y130: 11 | Z130: =O109 -> -1.597640418 | AA130: -1.880847929
M131: 3 | N131: -0.7160582213 | O131: -1.597640418 | P131: 2.226000867 | Q131: 0.2701244426 | Y131: 12 | Z131: =P105 -> -0.7160582213 | AA131: 1.019055963
M132: 4 | N132: 2.236872237 | O132: -0.7160582213 | P132: 2.236872237 | Y132: 13 | Z132: =P106 -> -1.880847929 | AA132: 1.60133401
M133: 5 | N133: -2.236872237 | O133: 1.60133401 | Y133: 14 | Z133: =P107 -> 1.019055963 | AA133: 0.6292217077
M134: 6 | N134: 1.452770506 | Y134: 15 | Z134: =P108 -> 1.60133401 | AA134: 0.7957406412
Y135: 16 | Z135: =Q105 -> 0.6292217077 | AA135: -1.470441201
A136: Sample Incremental Triangle | M136: Sample Incremental Triangle | Y136: 17 | Z136: =Q106 -> 0.7957406412 | AA136: 2.236872237
B137: 1 | C137: 2 | D137: 3 | E137: 4 | F137: 5 | G137: 6 | N137: 1 | O137: 2 | P137: 3 | Q137: 4 | R137: 5 | S137: 6 | Y137: 18 | Z137: =Q107 -> -1.470441201 | AA137: -2.236872237
A138: 1 | B138: ="q'("&$A138&","&B$4&")" -> q'(1,1) | C138: ="q'("&$A138&","&C$4&")" -> q'(1,2) | D138: q'(1,3) | E138: ="q'("&$A138&","&E$4&")" -> q'(1,4) | F138: ="q'("&$A138&","&F$4&")" -> q'(1,5) | G138: ="q'("&$A138&","&G$4&")" -> q'(1,6) | M138: 1 | N138: =N78+N129*SQRT(N78^$F$55) -> 127.7513246 | O138: =O78+O129*SQRT(O78^$F$55) -> 29.86933802 | P138: =P78+P129*SQRT(P78^$F$55) -> 12.79973104 | Q138: =Q78+Q129*SQRT(Q78^$F$55) -> 28.93358139 | R138: =R78+R129*SQRT(R78^$F$55) -> 12.11909114 | S138: =S78+S129*SQRT(S78^$F$55) -> 10.00179838 | Y138: 19 | Z138: =R105 -> 2.236872237
A139: 2 | B139: q'(2,1) | C139: q'(2,2) | D139: q'(2,3) | E139: q'(2,4) | F139: q'(2,5) | M139: 2 | N139: =N79+N130*SQRT(N79^$F$55) -> 118.9154014 | O139: =O79+O130*SQRT(O79^$F$55) -> 32.24111247 | P139: =P79+P130*SQRT(P79^$F$55) -> 24.01026285 | Q139: =Q79+Q130*SQRT(Q79^$F$55) -> 18.5940837 | R139: =R79+R130*SQRT(R79^$F$55) -> 7.631337285 | Y139: 20 | Z139: =R106 -> -2.236872237
A140: 3 | B140: q'(3,1) | C140: q'(3,2) | D140: q'(3,3) | E140: q'(3,4) | M140: 3 | N140: =N80+N131*SQRT(N80^$F$55) -> 95.91802164 | O140: =O80+O131*SQRT(O80^$F$55) -> 30.4740399 | P140: =P80+P131*SQRT(P80^$F$55) -> 31.4509025 | Q140: =Q80+Q131*SQRT(Q80^$F$55) -> 26.97361534 | Y140: 21 | Z140: =S105 -> 0
A141: 4 | B141: q'(4,1) | C141: q'(4,2) | D141: q'(4,3) | M141: 4 | N141: =N81+N132*SQRT(N81^$F$55) -> 139.7182917 | O141: =O81+O132*SQRT(O81^$F$55) -> 40.74107672 | P141: =P81+P132*SQRT(P81^$F$55) -> 34.66746172
A142: 5 | B142: q'(5,1) | C142: q'(5,2) | M142: 5 | N142: =N82+N133*SQRT(N82^$F$55) -> 97.24606143 | O142: =O82+O133*SQRT(O82^$F$55) -> 59.15255297
A143: 6 | B143: q'(6,1) | M143: 6 | N143: =N83+N134*SQRT(N83^$F$55) -> 141.242468
A145: Sample Cumulative Triangle | M145: Sample Triangle Fitted Values | Y145: Sample Cumulative Triangle
B146: 1 | C146: 2 | D146: 3 | E146: 4 | F146: 5 | G146: 6 | N146: 1 | O146: 2 | P146: 3 | Q146: 4 | R146: 5 | S146: 6 | Z146: 1 | AA146: 2 | AB146: 3 | AC146: 4 | AD146: 5 | AE146: 6
A147: 1 | B147: ="c'("&$A147&","&B$4&")" -> c'(1,1) | C147: ="c'("&$A147&","&C$4&")" -> c'(1,2) | D147: c'(1,3) | E147: ="c'("&$A147&","&E$4&")" -> c'(1,4) | F147: ="c'("&$A147&","&F$4&")" -> c'(1,5) | G147: ="c'("&$A147&","&G$4&")" -> c'(1,6) | M147: 1 | N147: =EXP($B155) -> 112.8091348 | O147: =EXP($B155+$B$161) -> 37.46583363 | P147: =EXP($B155+$B$161+$B$162) -> 25.12481649 | Q147: =EXP($B155+$B$161+$B$162+$B$163) -> 25.9569455 | R147: =EXP($B155+$B$161+$B$162+$B$163+$B$164) -> 10.11633582 | S147: =EXP($B155+$B$161+$B$162+$B$163+$B$164+$B$165) -> 10.00179838 | Y147: 1 | Z147: =N138 -> 127.7513246 | AA147: =O138+Z147 -> 157.6206626 | AB147: =P138+AA147 -> 170.4203937 | AC147: =Q138+AB147 -> 199.3539751 | AD147: =R138+AC147 -> 211.4730662 | AE147: =S138+AD147 -> 221.4748646
A148: 2 | B148: c'(2,1) | C148: c'(2,2) | D148: c'(2,3) | E148: c'(2,4) | F148: c'(2,5) | M148: 2 | N148: 107.4315513 | O148: =EXP($B156+$B$161) -> 35.67984665 | P148: =EXP($B156+$B$161+$B$162) -> 23.92712273 | Q148: =EXP($B156+$B$161+$B$162+$B$163) -> 24.71958435 | R148: =EXP($B156+$B$161+$B$162+$B$163+$B$164) -> 9.634092603 | Y148: 2 | Z148: 118.9154014 | AA148: =O139+Z148 -> 151.1565139 | AB148: =P139+AA148 -> 175.1667767 | AC148: =Q139+AB148 -> 193.7608604 | AD148: =R139+AC148 -> 201.3921977
A149: 3 | B149: c'(3,1) | C149: c'(3,2) | D149: c'(3,3) | E149: c'(3,4) | M149: 3 | N149: 103.5425951 | O149: =EXP($B157+$B$161) -> 34.3882581 | P149: =EXP($B157+$B$161+$B$162) -> 23.06097558 | Q149: =EXP($B157+$B$161+$B$162+$B$163) -> 23.82475057 | Y149: 3 | Z149: 95.91802164 | AA149: =O140+Z149 -> 126.3920615 | AB149: =P140+AA149 -> 157.842964 | AC149: =Q140+AB149 -> 184.8165794
A150: 4 | B150: c'(4,1) | C150: c'(4,2) | D150: c'(4,3) | M150: 4 | N150: 138.3597567 | O150: =EXP($B158+$B$161) -> 45.95163005 | P150: =EXP($B158+$B$161+$B$162) -> 30.81544331 | Y150: 4 | Z150: 139.7182917 | AA150: =O141+Z150 -> 180.4593684 | AB150: =P141+AA150 -> 215.1268301
A151: 5 | B151: c'(5,1) | C151: c'(5,2) | M151: 5 | N151: 117.4060628 | O151: =EXP($B159+$B$161) -> 38.99255165 | Y151: 5 | Z151: 97.24606143 | AA151: =O142+Z151 -> 156.3986144
A152: 6 | B152: c'(6,1) | M152: 6 | N152: 141.242468 | Y152: 6 | Z152: 141.242468
Z153: Factors: | AA153: =SUM(AA147:AA148,AA150:AA151)/SUM(Z147:Z148,Z150:Z151) -> 1.334974503 | AB153: =SUM(AB147:AB148,AB150)/SUM(AA147:AA148,AA150) -> 1.146099993 | AC153: =SUM(AC147:AC149)/SUM(AB147:AB149) -> 1.147987328 | AD153: =SUM(AD147:AD148)/SUM(AC147:AC148) -> 1.050240863 | AE153: =AE147/AD147 -> 1.04729585
A154: Sample Data Parameters | AA154: =AA153*AB154 -> 1.931927699 | AB154: =AB153*AC154 -> 1.447164492 | AC154: =AC153*AD154 -> 1.262686067 | AD154: =AD153*AE154 -> 1.099912897 | AE154: =AE153 -> 1.04729585
A155: α1 | B155: ='GLM 2'!CB130 -> 4.725697318
A156: α2 | B156: ='GLM 2'!CB131 -> 4.676853913 | Y156: Projected Cumulative Data
A157: α3 | B157: ='GLM 2'!CB132 -> 4.639983075 | Z157: 1 | AA157: 2 | AB157: 3 | AC157: 4 | AD157: 5 | AE157: 6
A158: α4 | B158: ='GLM 2'!CB133 -> 4.929857226 | Y158: 1 | Z158: =Z147 -> 127.7513246 | AA158: =AA147 -> 157.6206626 | AB158: 170.4203937 | AC158: 199.3539751 | AD158: 211.4730662 | AE158: =AE147 -> 221.4748646
A159: α5 | B159: ='GLM 2'!CB134 -> 4.765638548 | Y159: 2 | Z159: 118.9154014 | AA159: 151.1565139 | AB159: 175.1667767 | AC159: 193.7608604 | AD159: 201.3921977 | AE159: =AD159*AE$153 -> 210.9172128
A160: α6 | B160: ='GLM 2'!CB135 -> 4.950478045 | Y160: 3 | Z160: 95.91802164 | AA160: 126.3920615 | AB160: 157.842964 | AC160: 184.8165794 | AD160: =AC160*AD$153 -> 194.1019238 | AE160: =AD160*AE$153 -> 203.2821392
A161: β2 | B161: ='GLM 2'!CB136 -> -1.102267903 | Y161: 4 | Z161: 139.7182917 | AA161: 180.4593684 | AB161: 215.1268301 | AC161: =AB161*AC$153 -> 246.9628749 | AD161: =AC161*AD$153 -> 259.3705027 | AE161: =AD161*AE$153 -> 271.6376511
A162: β3 | B162: ='GLM 2'!CB137 -> -0.399573352 | Y162: 5 | Z162: 97.24606143 | AA162: 156.3986144 | AB162: =AA162*AB$153 -> 179.2484508 | AC162: =AB162*AC$153 -> 205.7749501 | AD162: =AC162*AD$153 -> 216.1132611 | AE162: =AD162*AE$153 -> 226.3345214
A163: β4 | B163: ='GLM 2'!CB138 -> 0.03258316048 | Y163: 6 | Z163: 141.242468 | AA163: =Z163*AA$153 -> 188.5550935 | AB163: =AA163*AB$153 -> 216.1029913 | AC163: =AB163*AC$153 -> 248.0834955 | AD163: =AC163*AD$153 -> 260.5474243 | AE163: =AD163*AE$153 -> 272.8702362
A164: β5 | B164: ='GLM 2'!CB139 -> -0.942287698
A165: β6 | B165: ='GLM 2'!CB140 -> -0.0113866102 | M165: Projected Incremental Data | U165: Point | Y165: Projected Incremental Data | AG165: Point
N166: 1 | O166: 2 | P166: 3 | Q166: 4 | R166: 5 | S166: 6 | U166: Estimate | Z166: 1 | AA166: 2 | AB166: 3 | AC166: 4 | AD166: 5 | AE166: 6 | AG166: Estimate
M167: 1 | Y167: 1
M168: 2 | S168: =EXP($B156+$B$161+$B$162+$B$163+$B$164+$B$165) -> 9.525015136 | U168: =SUM(N168:S168) -> 9.525015136 | Y168: 2 | AE168: =AE159-AD159 -> 9.525015136 | AG168: =SUM(Z168:AE168) -> 9.525015136
M169: 3 | R169: =EXP($B157+$B$161+$B$162+$B$163+$B$164) -> 9.285344365 | S169: =EXP($B157+$B$161+$B$162+$B$163+$B$164+$B$165) -> 9.180215435 | U169: =SUM(N169:S169) -> 18.4655598 | Y169: 3 | AD169: =AD160-AC160 -> 9.285344365 | AE169: =AE160-AD160 -> 9.180215435 | AG169: =SUM(Z169:AE169) -> 18.4655598
M170: 4 | Q170: =EXP($B158+$B$161+$B$162+$B$163) -> 31.83604477 | R170: =EXP($B158+$B$161+$B$162+$B$163+$B$164) -> 12.40762786 | S170: =EXP($B158+$B$161+$B$162+$B$163+$B$164+$B$165) -> 12.26714834 | U170: =SUM(N170:S170) -> 56.51082097 | Y170: 4 | AC170: =AC161-AB161 -> 31.83604477 | AD170: =AD161-AC161 -> 12.40762786 | AE170: =AE161-AD161 -> 12.26714834 | AG170: =SUM(Z170:AE170) -> 56.51082097
M171: 5 | P171: =EXP($B159+$B$161+$B$162) -> 26.14864291 | Q171: =EXP($B159+$B$161+$B$162+$B$163) -> 27.01468084 | R171: =EXP($B159+$B$161+$B$162+$B$163+$B$164) -> 10.52857253 | S171: =EXP($B159+$B$161+$B$162+$B$163+$B$164+$B$165) -> 10.40936774 | U171: =SUM(N171:S171) -> 74.10126402 | Y171: 5 | AB171: =AB162-AA162 -> 22.84983641 | AC171: =AC162-AB162 -> 26.52649928 | AD171: =AD162-AC162 -> 10.33831099 | AE171: =AE162-AD162 -> 10.22126034 | AG171: =SUM(Z171:AE171) -> 69.93590703
M172: 6 | O172: =EXP($B160+$B$161) -> 46.90902753 | P172: =EXP($B160+$B$161+$B$162) -> 31.4574799 | Q172: =EXP($B160+$B$161+$B$162+$B$163) -> 32.49934548 | R172: =EXP($B160+$B$161+$B$162+$B$163+$B$164) -> 12.6661395 | S172: =EXP($B160+$B$161+$B$162+$B$163+$B$164+$B$165) -> 12.52273312 | U172: =SUM(N172:S172) -> 136.0547255 | Y172: 6 | AA172: =AA163-Z163 -> 47.31262548 | AB172: =AB163-AA163 -> 27.54789778 | AC172: =AC163-AB163 -> 31.98050425 | AD172: =AD163-AC163 -> 12.4639288 | AE172: =AE163-AD163 -> 12.32281185 | AG172: =SUM(Z172:AE172) -> 131.6277682
U173: =SUM(U168:U172) -> 294.6573855 | AG173: =SUM(AG168:AG172) -> 286.0650711
M174: Random Values
N175: 1 | O175: 2 | P175: 3 | Q175: 4 | R175: 5 | S175: 6
M176: 1
M177: 2 | S177: =RAND() -> 0.01227306789
M178: 3 | R178: 0.3738399888 | S178: 0.4372629181
M179: 4 | Q179: 0.3127729465 | R179: 0.8527529174 | S179: 0.6603324194
M180: 5 | P180: 0.2833979261 | Q180: 0.3563898013 | R180: 0.1888603201 | S180: 0.8950846149
M181: 6 | O181: =RAND() -> 0.5048816249 | P181: 0.4072628909 | Q181: 0.7098826839 | R181: 0.7993657125 | S181: 0.9182274607
M183: Incremental Data w/ Process Variance | U183: Possible | Y183: Incremental Data w/ Process Variance | AG183: Possible
N184: 1 | O184: 2 | P184: 3 | Q184: 4 | R184: 5 | S184: 6 | U184: Outcome | Z184: 1 | AA184: 2 | AB184: 3 | AC184: 4 | AD184: 5 | AE184: 6 | AG184: Outcome
M185: 1 | Y185: 1
M186: 2 | S186: =GAMMAINV(S177,S168/ScaleParameter,ScaleParameter) -> 1.970344009 | U186: =SUM(N186:S186) -> 1.970344009 | Y186: 2 | AE186: =GAMMAINV(S177,AE168/ScaleParameter,ScaleParameter) -> 1.970344009 | AG186: =SUM(Z186:AE186) -> 1.970344009
M187: 3 | R187: =GAMMAINV(R178,R169/ScaleParameter,ScaleParameter) -> 7.076069244 | S187: =GAMMAINV(S178,S169/ScaleParameter,ScaleParameter) -> 7.660537608 | U187: =SUM(N187:S187) -> 14.73660685 | Y187: 3 | AD187: =GAMMAINV(R178,AD169/ScaleParameter,ScaleParameter) -> 7.076069244 | AE187: =GAMMAINV(S178,AE169/ScaleParameter,ScaleParameter) -> 7.660537608 | AG187: =SUM(Z187:AE187) -> 14.73660685
M188: 4 | Q188: =GAMMAINV(Q179,Q170/ScaleParameter,ScaleParameter) -> 26.90136896 | R188: =GAMMAINV(R179,R170/ScaleParameter,ScaleParameter) -> 18.15231744 | S188: =GAMMAINV(S179,S170/ScaleParameter,ScaleParameter) -> 13.78768655 | U188: =SUM(N188:S188) -> 58.84137295 | Y188: 4 | AC188: =GAMMAINV(Q179,AC170/ScaleParameter,ScaleParameter) -> 26.90136896 | AD188: =GAMMAINV(R179,AD170/ScaleParameter,ScaleParameter) -> 18.15231744 | AE188: =GAMMAINV(S179,AE170/ScaleParameter,ScaleParameter) -> 13.78768655 | AG188: =SUM(Z188:AE188) -> 58.84137295
M189: 5 | P189: =GAMMAINV(P180,P171/ScaleParameter,ScaleParameter) -> 21.02983062 | Q189: =GAMMAINV(Q180,Q171/ScaleParameter,ScaleParameter) -> 23.31587346 | R189: =GAMMAINV(R180,R171/ScaleParameter,ScaleParameter) -> 6.000617767 | S189: =GAMMAINV(S180,S171/ScaleParameter,ScaleParameter) -> 17.06758176 | U189: =SUM(N189:S189) -> 67.41390361 | Y189: 5 | AB189: =GAMMAINV(P180,AB171/ScaleParameter,ScaleParameter) -> 18.0402402 | AC189: =GAMMAINV(Q180,AC171/ScaleParameter,ScaleParameter) -> 22.85580807 | AD189: =GAMMAINV(R180,AD171/ScaleParameter,ScaleParameter) -> 5.853418017 | AE189: =GAMMAINV(S180,AE171/ScaleParameter,ScaleParameter) -> 16.81908682 | AG189: =SUM(Z189:AE189) -> 63.56855311
M190: 6 | O190: =GAMMAINV(O181,O172/ScaleParameter,ScaleParameter) -> 46.20564816 | P190: =GAMMAINV(P181,P172/ScaleParameter,ScaleParameter) -> 28.61634221 | Q190: =GAMMAINV(Q181,Q172/ScaleParameter,ScaleParameter) -> 36.8470935 | R190: =GAMMAINV(R181,R172/ScaleParameter,ScaleParameter) -> 16.99503692 | S190: =GAMMAINV(S181,S172/ScaleParameter,ScaleParameter) -> 20.90160236 | U190: =SUM(N190:S190) -> 149.5657231 | Y190: 6 | AA190: =GAMMAINV(O181,AA172/ScaleParameter,ScaleParameter) -> 46.60979883 | AB190: =GAMMAINV(P181,AB172/ScaleParameter,ScaleParameter) -> 24.84349214 | AC190: =GAMMAINV(Q181,AC172/ScaleParameter,ScaleParameter) -> 36.28766461 | AD190: =GAMMAINV(R181,AD172/ScaleParameter,ScaleParameter) -> 16.75362842 | AE190: =GAMMAINV(S181,AE172/ScaleParameter,ScaleParameter) -> 20.63718322 | AG190: =SUM(Z190:AE190) -> 145.1317672
U191: =SUM(U186:U190) -> 292.5279506 | AG191: =SUM(AG186:AG190) -> 284.2486442

Sheet GLM
A1: GLM Estimation of Model Parameters | G1: rho = | H1: =Data!F55 -> 1 | J1: parameters = | K1: =2*6-1 -> 11
A2: Newton-Raphson Interation Sequence -- Iteration 1
B3: y(i) | D3: xb(i) | F3: W(i,i) | AB3: XWX | AN3: zz(i) | AP3: factor | AR3: xwx-1 | BD3: aa1(i,j) | BZ3: aa2(j) | CB3: beta(j) | CD3: beta_diff = | CE3: =SUM(CD5:CD15) -> 2.302413686 | CF3: beta_old = | CG3: =SUM(CB5:CB15) -> 25.32655054
B4: 1 | D4: 1 | F4: 1 | G4: 2 | H4: 3 | I4: 4 | J4: 5 | K4: 6 | L4: 7 | M4: 8 | N4: 9 | O4: 10 | P4: 11 | Q4: 12 | R4: 13 | S4: 14 | T4: 15 | U4: 16 | V4: 17 | W4: 18 | X4: 19 | Y4: 20 | Z4: 21 | AB4: 1 | AC4: 2 | AD4: 3 | AE4: 4 | AF4: 5 | AG4: 6 | AH4: 7 | AI4: 8 | AJ4: 9 | AK4: 10 | AL4: 11 | AN4: 1 | AR4: 1 | AS4: 2 | AT4: 3 | AU4: 4 | AV4: 5 | AW4: 6 | AX4: 7 | AY4: 8 | AZ4: 9 | BA4: 10 | BB4: 11 | BD4: 1 | BE4: 2 | BF4: 3 | BG4: 4 | BH4: 5 | BI4: 6 | BJ4: 7 | BK4: 8 | BL4: 9 | BM4: 10 | BN4: 11 | BO4: 12 | BP4: 13 | BQ4: 14 | BR4: 15 | BS4: 16 | BT4: 17 | BU4: 18 | BV4: 19 | BW4: 20 | BX4: 21
A5: 1 | B5: =Data!N14 -> 95 | D5: =IF(B5<0,-LN(-B5),LN(B5)) -> 4.553876892 | F5: =IF($A5=F$4,IF($B5<0,-(EXP(-$D5)^(2-$H$1)),IF($B5=0,0,EXP($D5)^(2-$H$1))),0) -> 95 | G5: 0 | H5: 0 | I5: 0 | J5: 0 | K5: 0 | L5: 0 | M5: 0 | N5: 0 | O5: 0 | P5: =IF($A5=P$4,IF($B5<0,-(EXP(-$D5)^(2-$H$1)),IF($B5=0,0,EXP($D5)^(2-$H$1))),0) -> 0 | Q5: 0 | R5: 0 | S5: 0 | T5: 0 | U5: 0 | V5: 0 | W5: 0 | X5: 0 | Y5: 0 | AB5: =MMULT(TRANSPOSE(OutlierDesignMatrix),MMULT(F5:Y24,OutlierDesignMatrix)) -> 220 | AC5: 0 | AD5: 0 | AE5: 0 | AF5: 0 | AG5: 0 | AH5: 125 | AI5: 70 | AJ5: 50 | AK5: 20 | AL5: 5 | AN5: =IF(B5<0,D5+(B5+EXP(-D5))/-EXP(-D5),IF(B5=0,0,D5+(B5-EXP(D5))/EXP(D5))) -> 4.553876892 | AP5: =OFFSET(AA4,A5,A5) -> 220 | AR5: =MINVERSE(AB5:AL15) -> 0.006283498668 | AS5: 0.001319519798 | AT5: 0.0007558014225 | AU5: 0.0008296346027 | AV5: 0.0006077319003 | AW5: 0 | AX5: -0.002582860576 | AY5: 0.0004801178656 | AZ5: -0.0009373395696 | BA5: -0.00200242167 | BB5: -0.001240994717 | BD5: =MMULT(AR5:BB15,TRANSPOSE(OutlierDesignMatrix)) -> 0.006283498668 | BE5: 0.001319519798 | BF5: 0.0007558014225 | BG5: 0.0008296346027 | BH5: 0.0006077319003 | BI5: 0 | BJ5: 0.003700638091 | BK5: -0.001263340778 | BL5: -0.001753225974 | BM5: -0.001975128676 | BN5: 0.004180755957 | BO5: -0.0007832229125 | BP5: -0.001346941288 | BQ5: -0.001273108108 | BR5: 0.003243416387 | BS5: -0.001720562482 | BT5: -0.002284280858 | BU5: 0.001240994717 | BV5: -0.003722984152 | BW5: 1.95156391e-18 | BZ5: =MMULT(F5:Y24,AN5:AN24) -> 432.6183047 | CB5: =MMULT(BD5:BW15,BZ5:BZ24) -> 4.709406168 | CD5: =CB5/$K$1 -> 0.4281278335
A6: 2 | B6: =Data!N15 -> 110 | D6: =IF(B6<0,-LN(-B6),LN(B6)) -> 4.700480366 | F6: 0 | G6: 110 | H6: 0 | I6: 0 | J6: 0 | K6: 0 | L6: 0 | M6: 0 | N6: 0 | O6: 0 | P6: 0 | Q6: 0 | R6: 0 | S6: 0 | T6: 0 | U6: 0 | V6: 0 | W6: 0 | X6: 0 | Y6: 0 | AB6: 0 | AC6: 210 | AD6: 0 | AE6: 0 | AF6: 0 | AG6: 0 | AH6: 100 | AI6: 50 | AJ6: 35 | AK6: 5 | AL6: 0 | AN6: =IF(B6<0,D6+(B6+EXP(-D6))/-EXP(-D6),IF(B6=0,0,D6+(B6-EXP(D6))/EXP(D6))) -> 4.700480366 | AP6: =OFFSET(AA4,A6,A6) -> 210 | AR6: 0.001319519798 | AS6: 0.00590025538 | AT6: 0.000666296156 | AU6: 0.0007107011027 | AV6: 0.0005413253745 | AW6: 0 | AX6: -0.002300632841 | AY6: 0.0006020476899 | AZ6: -0.001175404579 | BA6: 0.0004092860371 | BB6: 0.001145183895 | BD6: 0.001319519798 | BE6: 0.00590025538 | BF6: 0.000666296156 | BG6: 0.0007107011027 | BH6: 0.0005413253745 | BI6: 0 | BJ6: -0.0009811130431 | BK6: 0.003599622538 | BL6: -0.001589931739 | BM6: -0.001759307467 | BN6: -0.0003790653533 | BO6: 0.004201670228 | BP6: -0.001032288996 | BQ6: -0.0009878840489 | BR6: -0.001554469932 | BS6: 0.003026265649 | BT6: -0.002207693575 | BU6: -0.001145183895 | BV6: 0.003435551686 | BW6: 6.505213035e-19 | BZ6: 517.0528402 | CB6: 4.691557925 | CD6: 0.4265052659
A7: 3 | B7: =Data!N16 -> 105 | D7: 4.65396035 | F7: 0 | G7: 0 | H7: 105 | I7: 0 | J7: 0 | K7: 0 | L7: 0 | M7: 0 | N7: 0 | O7: 0 | P7: 0 | Q7: 0 | R7: 0 | S7: 0 | T7: 0 | U7: 0 | V7: 0 | W7: 0 | X7: 0 | Y7: 0 | AB7: 0 | AC7: 0 | AD7: 150 | AE7: 0 | AF7: 0 | AG7: 0 | AH7: 45 | AI7: 45 | AJ7: 20 | AK7: 0 | AL7: 0 | AN7: 4.65396035 | AP7: =OFFSET(AA4,A7,A7) -> 150 | AR7: 0.0007558014225 | AS7: 0.000666296156 | AT7: 0.007401965091 | AU7: 0.0005089848263 | AV7: 0.0001278597999 | AW7: 0 | AX7: -0.0005434041498 | AY7: -0.001961364104 | AZ7: 0.0001209903892 | BA7: 0.001650352759 | BB7: -2.237631662e-05 | BD7: 0.0007558014225 | BE7: 0.000666296156 | BF7: 0.007401965091 | BG7: 0.0005089848263 | BH7: 0.0001278597999 | BI7: 0 | BJ7: 0.0002123972728 | BK7: 0.0001228920063 | BL7: -3.44193235e-05 | BM7: -0.0004155443498 | BN7: -0.001748966831 | BO7: -0.001838472098 | BP7: 0.004897196837 | BQ7: -0.001995783428 | BR7: -0.001627976442 | BS7: -0.001717481709 | BT7: 0.005018187226 | BU7: 2.237631662e-05 | BV7: -6.712894987e-05 | BW7: -7.894347068e-19 | BZ7: 488.6658368 | CB7: 4.637792779 | CD7: 0.4216175254
A8: 4 | B8: =Data!N17 -> 120 | D8: 4.787491743 | F8: 0 | G8: 0 | H8: 0 | I8: 120 | J8: 0 | K8: 0 | L8: 0 | M8: 0 | N8: 0 | O8: 0 | P8: 0 | Q8: 0 | R8: 0 | S8: 0 | T8: 0 | U8: 0 | V8: 0 | W8: 0 | X8: 0 | Y8: 0 | AB8: 0 | AC8: 0 | AD8: 0 | AE8: 185 | AF8: 0 | AG8: 0 | AH8: 65 | AI8: 30 | AJ8: 0 | AK8: 0 | AL8: 0 | AN8: 4.787491743 | AP8: =OFFSET(AA4,A8,A8) -> 185 | AR8: 0.0008296346027 | AS8: 0.0007107011027 | AT8: 0.0005089848263 | AU8: 0.006137439534 | AV8: 0.000408241851 | AW8: 0 | AX8: -0.001735027867 | AY8: -0.000754983414 | AZ8: 0.001785139185 | BA8: -9.502913161e-05 | BB8: -2.9733375e-05 | BD8: 0.0008296346027 | BE8: 0.0007107011027 | BF8: 0.0005089848263 | BG8: 0.006137439534 | BH8: 0.000408241851 | BI8: 0 | BJ8: -0.000905393264 | BK8: -0.001024326764 | BL8: 0.004402411667 | BM8: -0.001326786016 | BN8: -0.001660376678 | BO8: -0.001779310178 | BP8: -0.001981026454 | BQ8: 0.003647428253 | BR8: 0.0001247625066 | BS8: 5.829006608e-06 | BT8: -0.0001958872698 | BU8: 2.9733375e-05 | BV8: -8.9200125e-05 | BW8: 7.081195439e-19 | BZ8: 574.4990091 | CB8: 4.754599448 | CD8: 0.4322363135
A9: 5 | B9: =Data!N18 -> 130 | D9: 4.86753445 | F9: 0 | G9: 0 | H9: 0 | I9: 0 | J9: 130 | K9: 0 | L9: 0 | M9: 0 | N9: 0 | O9: 0 | P9: 0 | Q9: 0 | R9: 0 | S9: 0 | T9: 0 | U9: 0 | V9: 0 | W9: 0 | X9: 0 | Y9: 0 | AB9: 0 | AC9: 0 | AD9: 0 | AE9: 0 | AF9: 170 | AG9: 0 | AH9: 40 | AI9: 0 | AJ9: 0 | AK9: 0 | AL9: 0 | AN9: 4.86753445 | AP9: =OFFSET(AA4,A9,A9) -> 170 | AR9: 0.0006077319003 | AS9: 0.0005413253745 | AT9: 0.0001278597999 | AU9: 0.000408241851 | AV9: 0.006310041363 | AW9: 0 | AX9: -0.001817675792 | AY9: 0.001420806135 | AZ9: -6.599177079e-05 | BA9: -0.0001282688408 | BB9: -1.660163147e-05 | BD9: 0.0006077319003 | BE9: 0.0005413253745 | BF9: 0.0001278597999 | BG9: 0.000408241851 | BH9: 0.006310041363 | BI9: 0 | BJ9: -0.001209943892 | BK9: -0.001276350417 | BL9: -0.001409433941 | BM9: 0.004492365571 | BN9: 0.0002108622431 | BO9: 0.0001444557172 | BP9: -0.0002690098573 | BQ9: 1.137219374e-05 | BR9: 0.0001448704723 | BS9: 7.846394643e-05 | BT9: -0.0003350016281 | BU9: 1.660163147e-05 | BV9: -4.98048944e-05 | BW9: 6.505213035e-19 | BZ9: 632.7794786 | CB9: 4.804848739 | CD9: 0.4368044308
A10: 6 | B10: =Data!N19 -> 125 | D10: 4.828313737 | F10: 0 | G10: 0 | H10: 0 | I10: 0 | J10: 0 | K10: 125 | L10: 0 | M10: 0 | N10: 0 | O10: 0 | P10: 0 | Q10: 0 | R10: 0 | S10: 0 | T10: 0 | U10: 0 | V10: 0 | W10: 0 | X10: 0 | Y10: 0 | AB10: 0 | AC10: 0 | AD10: 0 | AE10: 0 | AF10: 0 | AG10: 125 | AH10: 0 | AI10: 0 | AJ10: 0 | AK10: 0 | AL10: 0 | AN10: 4.828313737 | AP10: =OFFSET(AA4,A10,A10) -> 125 | AR10: 0 | AS10: 0 | AT10: 0 | AU10: 0 | AV10: 0 | AW10: 0.008 | AX10: 0 | AY10: 0 | AZ10: 0 | BA10: 0 | BB10: 0 | BD10: 0 | BE10: 0 | BF10: 0 | BG10: 0 | BH10: 0 | BI10: 0.008 | BJ10: 0 | BK10: 0 | BL10: 0 | BM10: 0 | BN10: 0 | BO10: 0 | BP10: 0 | BQ10: 0 | BR10: 0 | BS10: 0 | BT10: 0 | BU10: 0 | BV10: 0 | BW10: 0 | BZ10: 603.5392172 | CB10: 4.828313737 | CD10: 0.4389376125
A11: 7 | B11: =Data!O14 -> 55 | D11: 4.007333185 | F11: 0 | G11: 0 | H11: 0 | I11: 0 | J11: 0 | K11: 0 | L11: 55 | M11: 0 | N11: 0 | O11: 0 | P11: 0 | Q11: 0 | R11: 0 | S11: 0 | T11: 0 | U11: 0 | V11: 0 | W11: 0 | X11: 0 | Y11: 0 | AB11: 125 | AC11: 100 | AD11: 45 | AE11: 65 | AF11: 40 | AG11: 0 | AH11: 375 | AI11: 195 | AJ11: 105 | AK11: 25 | AL11: 5 | AN11: 4.007333185 | AP11: =OFFSET(AA4,A11,A11) -> 375 | AR11: -0.002582860576 | AS11: -0.002300632841 | AT11: -0.0005434041498 | AU11: -0.001735027867 | AV11: -0.001817675792 | AW11: 0 | AX11: 0.007725122115 | AY11: -0.006038426072 | AZ11: 0.0002804650259 | BA11: 0.0005451425735 | BB11: 7.055693374e-05 | BD11: -0.002582860576 | BE11: -0.002300632841 | BF11: -0.0005434041498 | BG11: -0.001735027867 | BH11: -0.001817675792 | BI11: 0 | BJ11: 0.005142261539 | BK11: 0.005424489274 | BL11: 0.005990094249 | BM11: 0.005907446324 | BN11: -0.0008961645331 | BO11: -0.0006139367982 | BP11: 0.001143291894 | BQ11: -4.833182341e-05 | BR11: -0.0006156995073 | BS11: -0.0003334717723 | BT11: 0.001423756919 | BU11: -7.055693374e-05 | BV11: 0.0002116708012 | BW11: -2.507217524e-18 | BZ11: 220.4033252 | CB11: -0.912240722 | CD11: -0.08293097473
A12: 8 | B12: =Data!O15 -> 50 | D12: 3.912023005 | F12: 0 | G12: 0 | H12: 0 | I12: 0 | J12: 0 | K12: 0 | L12: 0 | M12: 50 | N12: 0 | O12: 0 | P12: 0 | Q12: 0 | R12: 0 | S12: 0 | T12: 0 | U12: 0 | V12: 0 | W12: 0 | X12: 0 | Y12: 0 | AB12: 70 | AC12: 50 | AD12: 45 | AE12: 30 | AF12: 0 | AG12: 0 | AH12: 195 | AI12: 195 | AJ12: 105 | AK12: 25 | AL12: 5 | AN12: 3.912023005 | AP12: =OFFSET(AA4,A12,A12) -> 195 | AR12: 0.0004801178656 | AS12: 0.0006020476899 | AT12: -0.001961364104 | AU12: -0.000754983414 | AV12: 0.001420806135 | AW12: 0 | AX12: -0.006038426072 | AY12: 0.01773898754 | AZ12: -0.01161603253 | BA12: -0.0005951292644 | BB12: 3.048245608e-05 | BD12: 0.0004801178656 | BE12: 0.0006020476899 | BF12: -0.001961364104 | BG12: -0.000754983414 | BH12: 0.001420806135 | BI12: 0 | BJ12: -0.005558308207 | BK12: -0.005436378382 | BL12: -0.006793409486 | BM12: -0.004617619938 | BN12: 0.01218067934 | BO12: 0.01230260916 | BP12: 0.009739197367 | BQ12: 0.01094557806 | BR12: 0.0005646468083 | BS12: 0.0006865766326 | BT12: -0.001876835161 | BU12: -3.048245608e-05 | BV12: 9.144736823e-05 | BW12: 4.357137481e-18 | BZ12: 195.6011503 | CB12: -0.6444379403 | CD12: -0.0585852673
A13: 9 | B13: =Data!O17 -> 35 | D13: 3.555348061 | F13: 0 | G13: 0 | H13: 0 | I13: 0 | J13: 0 | K13: 0 | L13: 0 | M13: 0 | N13: 35 | O13: 0 | P13: 0 | Q13: 0 | R13: 0 | S13: 0 | T13: 0 | U13: 0 | V13: 0 | W13: 0 | X13: 0 | Y13: 0 | AB13: 50 | AC13: 35 | AD13: 20 | AE13: 0 | AF13: 0 | AG13: 0 | AH13: 105 | AI13: 105 | AJ13: 105 | AK13: 25 | AL13: 5 | AN13: 3.555348061 | AP13: =OFFSET(AA4,A13,A13) -> 105 | AR13: -0.0009373395696 | AS13: -0.001175404579 | AT13: 0.0001209903892 | AU13: 0.001785139185 | AV13: -6.599177079e-05 | AW13: 0 | AX13: 0.0002804650259 | AY13: -0.01161603253 | AZ13: 0.02459759896 | BA13: -0.01226517564 | BB13: -5.951625239e-05 | BD13: -0.0009373395696 | BE13: -0.001175404579 | BF13: 0.0001209903892 | BG13: 0.001785139185 | BH13: -6.599177079e-05 | BI13: 0 | BJ13: -0.0006568745437 | BK13: -0.0008949395533 | BL13: 0.002065604211 | BM13: 0.0002144732551 | BN13: -0.01227290707 | BO13: -0.01251097208 | BP13: -0.01121457711 | BQ13: -0.009550428317 | BR13: 0.01232469189 | BS13: 0.01208662688 | BT13: 0.01338302185 | BU13: 5.951625239e-05 | BV13: -0.0001785487572 | BW13: -3.04931861e-18 | BZ13: 124.4371822 | CB13: 0.1717000371 | CD13: 0.01560909428
A14: 10 | B14: =Data!O18 -> 40 | D14: 3.688879454 | F14: 0 | G14: 0 | H14: 0 | I14: 0 | J14: 0 | K14: 0 | L14: 0 | M14: 0 | N14: 0 | O14: 40 | P14: 0 | Q14: 0 | R14: 0 | S14: 0 | T14: 0 | U14: 0 | V14: 0 | W14: 0 | X14: 0 | Y14: 0 | AB14: 20 | AC14: 5 | AD14: 0 | AE14: 0 | AF14: 0 | AG14: 0 | AH14: 25 | AI14: 25 | AJ14: 25 | AK14: 25 | AL14: 5 | AN14: 3.688879454 | AP14: =OFFSET(AA4,A14,A14) -> 25 | AR14: -0.00200242167 | AS14: 0.0004092860371 | AT14: 0.001650352759 | AU14: -9.502913161e-05 | AV14: -0.0001282688408 | AW14: 0 | AX14: 0.0005451425735 | AY14: -0.0005951292644 | AZ14: -0.01226517564 | BA14: 0.06371465707 | BB14: -0.04939707307 | BD14: -0.00200242167 | BE14: 0.0004092860371 | BF14: 0.001650352759 | BG14: -9.502913161e-05 | BH14: -0.0001282688408 | BI14: 0 | BJ14: -0.001457279096 | BK14: 0.0009544286106 | BL14: 0.0004501134419 | BM14: 0.0004168737327 | BN14: -0.002052408361 | BO14: 0.0003592993462 | BP14: 0.001600366068 | BQ14: -0.0001450158225 | BR14: -0.014317584 | BS14: -0.01190587629 | BT14: -0.01066480957 | BU14: 0.04939707307 | BV14: 0.05180878078 | BW14: -1.387778781e-17 | BZ14: 147.5551782 | CB14: -0.8865683534 | CD14: -0.08059712304
A15: 11 | B15: =Data!P14 -> 20 | D15: 2.995732274 | F15: =IF($A15=F$4,IF($B15<0,-(EXP(-$D15)^(2-$H$1)),IF($B15=0,0,EXP($D15)^(2-$H$1))),0) -> 0 | G15: 0 | H15: 0 | I15: 0 | J15: 0 | K15: 0 | L15: 0 | M15: 0 | N15: 0 | O15: 0 | P15: =IF($A15=P$4,IF($B15<0,-(EXP(-$D15)^(2-$H$1)),IF($B15=0,0,EXP($D15)^(2-$H$1))),0) -> 20 | Q15: 0 | R15: 0 | S15: 0 | T15: 0 | U15: 0 | V15: 0 | W15: 0 | X15: 0 | Y15: 0 | AB15: 5 | AC15: 0 | AD15: 0 | AE15: 0 | AF15: 0 | AG15: 0 | AH15: 5 | AI15: 5 | AJ15: 5 | AK15: 5 | AL15: 5 | AN15: 2.995732274 | AP15: =OFFSET(AA4,A15,A15) -> 5 | AR15: -0.001240994717 | AS15: 0.001145183895 | AT15: -2.237631662e-05 | AU15: -2.9733375e-05 | AV15: -1.660163147e-05 | AW15: 0 | AX15: 7.055693374e-05 | AY15: 3.048245608e-05 | AZ15: -5.951625239e-05 | BA15: -0.04939707307 | BB15: 0.2505965447 | BD15: -0.001240994717 | BE15: 0.001145183895 | BF15: -2.237631662e-05 | BG15: -2.9733375e-05 | BH15: -1.660163147e-05 | BI15: 0 | BJ15: -0.001170437784 | BK15: 0.001215740829 | BL15: 4.082355874e-05 | BM15: 5.395530227e-05 | BN15: -0.001139955328 | BO15: 0.001246223285 | BP15: 7.866307319e-05 | BQ15: 7.130601481e-05 | BR15: -0.00119947158 | BS15: 0.001186707033 | BT15: 1.91468208e-05 | BU15: -0.05059654465 | BV15: -0.04821036604 | BW15: 0.2 | BZ15: 59.91464547 | CB15: -0.8284212774 | CD15: -0.07531102522
A16: 12 | B16: =Data!P15 -> 15 | D16: 2.708050201 | F16: 0 | G16: 0 | H16: 0 | I16: 0 | J16: 0 | K16: 0 | L16: 0 | M16: 0 | N16: 0 | O16: 0 | P16: 0 | Q16: 15 | R16: 0 | S16: 0 | T16: 0 | U16: 0 | V16: 0 | W16: 0 | X16: 0 | Y16: 0 | AN16: 2.708050201 | BZ16: 40.62075302
A17: 13 | B17: =Data!P16 -> 25 | D17: 3.218875825 | F17: 0 | G17: 0 | H17: 0 | I17: 0 | J17: 0 | K17: 0 | L17: 0 | M17: 0 | N17: 0 | O17: 0 | P17: 0 | Q17: 0 | R17: 25 | S17: 0 | T17: 0 | U17: 0 | V17: 0 | W17: 0 | X17: 0 | Y17: 0 | AN17: 3.218875825 | BZ17: 80.47189562
A18: 14 | B18: =Data!P17 -> 30 | D18: 3.401197382 | F18: 0 | G18: 0 | H18: 0 | I18: 0 | J18: 0 | K18: 0 | L18: 0 | M18: 0 | N18: 0 | O18: 0 | P18: 0 | Q18: 0 | R18: 0 | S18: 30 | T18: 0 | U18: 0 | V18: 0 | W18: 0 | X18: 0 | Y18: 0 | AN18: 3.401197382 | BZ18: 102.0359214
A19: 15 | B19: =Data!Q14 -> 30 | D19: 3.401197382 | F19: 0 | G19: 0 | H19: 0 | I19: 0 | J19: 0 | K19: 0 | L19: 0 | M19: 0 | N19: 0 | O19: 0 | P19: 0 | Q19: 0 | R19: 0 | S19: 0 | T19: 30 | U19: 0 | V19: 0 | W19: 0 | X19: 0 | Y19: 0 | AN19: 3.401197382 | BZ19: 102.0359214
A20: 16 | B20: =Data!Q15 -> 30 | D20: 3.401197382 | F20: 0 | G20: 0 | H20: 0 | I20: 0 | J20: 0 | K20: 0 | L20: 0 | M20: 0 | N20: 0 | O20: 0 | P20: 0 | Q20: 0 | R20: 0 | S20: 0 | T20: 0 | U20: 30 | V20: 0 | W20: 0 | X20: 0 | Y20: 0 | AN20: 3.401197382 | BZ20: 102.0359214
A21: 17 | B21: =Data!Q16 -> 20 | D21: 2.995732274 | F21: 0 | G21: 0 | H21: 0 | I21: 0 | J21: 0 | K21: 0 | L21: 0 | M21: 0 | N21: 0 | O21: 0 | P21: 0 | Q21: 0 | R21: 0 | S21: 0 | T21: 0 | U21: 0 | V21: 20 | W21: 0 | X21: 0 | Y21: 0 | AN21: 2.995732274 | BZ21: 59.91464547
A22: 18 | B22: =Data!R14 -> 15 | D22: 2.708050201 | F22: 0 | G22: 0 | H22: 0 | I22: 0 | J22: 0 | K22: 0 | L22: 0 | M22: 0 | N22: 0 | O22: 0 | P22: 0 | Q22: 0 | R22: 0 | S22: 0 | T22: 0 | U22: 0 | V22: 0 | W22: 15 | X22: 0 | Y22: 0 | AN22: 2.708050201 | BZ22: 40.62075302
A23: 19 | B23: =Data!R15 -> 5 | D23: 1.609437912 | F23: 0 | G23: 0 | H23: 0 | I23: 0 | J23: 0 | K23: 0 | L23: 0 | M23: 0 | N23: 0 | O23: 0 | P23: 0 | Q23: 0 | R23: 0 | S23: 0 | T23: 0 | U23: 0 | V23: 0 | W23: 0 | X23: 5 | Y23: 0 | AN23: 1.609437912 | BZ23: 8.047189562
A24: 20 | B24: =Data!S14 -> 5 | D24: 1.609437912 | F24: 0 | G24: 0 | H24: 0 | I24: 0 | J24: 0 | K24: 0 | L24: 0 | M24: 0 | N24: 0 | O24: 0 | P24: 0 | Q24: 0 | R24: 0 | S24: 0 | T24: 0 | U24: 0 | V24: 0 | W24: 0 | X24: 0 | Y24: 5 | AN24: 1.609437912 | BZ24: 8.047189562
A25: 21
A27: Newton-Raphson Interation Sequence -- Iteration 2
B28: y(i) | D28: xb(i) | F28: W(i,i) | AB28: XWX | AN28: zz(i) | AP28: factor | AR28: xwx-1 | BD28: aa1(i,j) | BZ28: aa2(j) | CB28: beta(j) | CD28: beta_diff = | CE28: =SUM(CD30:CD40) -> -0.01288475816 | CF28: beta_old = | CG28: =SUM(CB30:CB40) -> 25.31366578
B29: 1 | D29: 1 | F29: 1 | G29: 2 | H29: 3 | I29: 4 | J29: 5 | K29: 6 | L29: 7 | M29: 8 | N29: 9 | O29: 10 | P29: 11 | Q29: 12 | R29: 13 | S29: 14 | T29: 15 | U29: 16 | V29: 17 | W29: 18 | X29: 19 | Y29: 20 | Z29: 21 | AB29: 1 | AC29: 2 | AD29: 3 | AE29: 4 | AF29: 5 | AG29: 6 | AH29: 7 | AI29: 8 | AJ29: 9 | AK29: 10 | AL29: 11 | AN29: 1 | AR29: 1 | AS29: 2 | AT29: 3 | AU29: 4 | AV29: 5 | AW29: 6 | AX29: 7 | AY29: 8 | AZ29: 9 | BA29: 10 | BB29: 11 | BD29: 1 | BE29: 2 | BF29: 3 | BG29: 4 | BH29: 5 | BI29: 6 | BJ29: 7 | BK29: 8 | BL29: 9 | BM29: 10 | BN29: 11 | BO29: 12 | BP29: 13 | BQ29: 14 | BR29: 15 | BS29: 16 | BT29: 17 | BU29: 18 | BV29: 19 | BW29: 20 | BX29: 21
A30: 1 | B30: =B5 -> 95 | D30: =MMULT(OutlierDesignMatrix,CB5:CB15) -> 4.709406168 | F30: =IF($A30=F$4,IF($B30<0,-(EXP(-$D30)^(2-$H$1)),IF($B30=0,0,EXP($D30)^(2-$H$1))),0) -> 110.9862332 | G30: 0 | H30: 0 | I30: 0 | J30: 0 | K30: 0 | L30: 0 | M30: 0 | N30: 0 | O30: 0 | P30: =IF($A30=P$4,IF($B30<0,-(EXP(-$D30)^(2-$H$1)),IF($B30=0,0,EXP($D30)^(2-$H$1))),0) -> 0 | Q30: 0 | R30: 0 | S30: 0 | T30: 0 | U30: 0 | V30: 0 | W30: 0 | X30: 0 | Y30: 0 | AB30: =MMULT(TRANSPOSE(OutlierDesignMatrix),MMULT(F30:Y49,OutlierDesignMatrix)) -> 223.1922848 | AC30: 0 | AD30: 0 | AE30: 0 | AF30: 0 | AG30: 0 | AH30: 112.2060516 | AI30: 67.63139561 | AJ30: 44.23159488 | AK30: 16.44850541 | AL30: 5 | AN30: =IF(B30<0,D30+(B30+EXP(-D30))/-EXP(-D30),IF(B30=0,0,D30+(B30-EXP(D30))/EXP(D30))) -> 4.565368185 | AP30: =OFFSET(AA29,A30,A30) -> 223.1922848 | AR30: =MINVERSE(AB30:AL40) -> 0.005733427404 | AS30: 0.001150313932 | AT30: 0.0007499062601 | AU30: 0.0007780353341 | AV30: 0.0005768775978 | AW30: 0 | AX30: -0.002013242504 | AY30: -0.0001020809852 | AZ30: -0.0004802659174 | BA30: -0.0008667308497 | BB30: -0.002271107147 | BD30: =MMULT(AR30:BB40,TRANSPOSE(OutlierDesignMatrix)) -> 0.005733427404 | BE30: 0.001150313932 | BF30: 0.0007499062601 | BG30: 0.0007780353341 | BH30: 0.0005768775978 | BI30: 0 | BJ30: 0.0037201849 | BK30: -0.0008629285721 | BL30: -0.00123520717 | BM30: -0.001436364906 | BN30: 0.003618103915 | BO30: -0.0009650095573 | BP30: -0.001365417229 | BQ30: -0.001337288155 | BR30: 0.003137837997 | BS30: -0.001445275475 | BT30: -0.001845683147 | BU30: 0.002271107147 | BV30: -0.002312006324 | BW30: 8.67361738e-19 | BZ30: =MMULT(F30:Y49,AN30:AN49) -> 506.6930181 | CB30: =MMULT(BD30:BW40,BZ30:BZ49) -> 4.708494331 | CD30: =CB30-CG3/$K$1 -> 2.406080646
A31: 2 | B31: =B6 -> 110 | D31: 4.691557925 | F31: 0 | G31: 109.0228971 | H31: 0 | I31: 0 | J31: 0 | K31: 0 | L31: 0 | M31: 0 | N31: 0 | O31: 0 | P31: 0 | Q31: 0 | R31: 0 | S31: 0 | T31: 0 | U31: 0 | V31: 0 | W31: 0 | X31: 0 | Y31: 0 | AB31: 0 | AC31: 214.3324836 | AD31: 0 | AE31: 0 | AF31: 0 | AG31: 0 | AH31: 105.3095865 | AI31: 61.52345204 | AJ31: 38.53759162 | AK31: 11.24598242 | AL31: 0 | AN31: =IF(B31<0,D31+(B31+EXP(-D31))/-EXP(-D31),IF(B31=0,0,D31+(B31-EXP(D31))/EXP(D31))) -> 4.700520289 | AP31: =OFFSET(AA29,A31,A31) -> 214.3324836 | AR31: 0.001150313932 | AS31: 0.00581596229 | AT31: 0.0007499062601 | AU31: 0.0007780353341 | AV31: 0.0005768775978 | AW31: 0 | AX31: -0.002013242504 | AY31: -0.0001020809852 | AZ31: -0.0004802659174 | BA31: -0.0008667308497 | BB31: 0.002312006324 | BD31: 0.001150313932 | BE31: 0.00581596229 | BF31: 0.0007499062601 | BG31: 0.0007780353341 | BH31: 0.0005768775978 | BI31: 0 | BJ31: -0.0008629285721 | BK31: 0.003802719786 | BL31: -0.00123520717 | BM31: -0.001436364906 | BN31: -0.0009650095573 | BO31: 0.003700638801 | BP31: -0.001365417229 | BQ31: -0.001337288155 | BR31: -0.001445275475 | BS31: 0.003220372883 | BT31: -0.001845683147 | BU31: -0.002312006324 | BV31: 0.002353642033 | BW31: 8.67361738e-19 | BZ31: 512.4643396 | CB31: 4.685062846 | CD31: =CB31-CG3/$K$1 -> 2.382649161
A32: 3 | B32: 105 | D32: 4.637792779 | F32: 0 | G32: 0 | H32: 103.3160544 | I32: 0 | J32: 0 | K32: 0 | L32: 0 | M32: 0 | N32: 0 | O32: 0 | P32: 0 | Q32: 0 | R32: 0 | S32: 0 | T32: 0 | U32: 0 | V32: 0 | W32: 0 | X32: 0 | Y32: 0 | AB32: 0 | AC32: 0 | AD32: 150.9617319 | AE32: 0 | AF32: 0 | AG32: 0 | AH32: 47.64567744 | AI32: 47.64567744 | AJ32: 25.86302013 | AK32: 0 | AL32: 0 | AN32: 4.654091753 | AP32: =OFFSET(AA29,A32,A32) -> 150.9617319 | AR32: 0.0007499062601 | AS32: 0.0007499062601 | AT32: 0.00744156023 | AU32: 0.000417947109 | AV32: 0.0001445550104 | AW32: 0 | AX32: -0.0005044818731 | AY32: -0.001730964388 | AZ32: -0.0006527261116 | BA32: 0.002138266112 | BB32: 6.138725074e-19 | BD32: 0.0007499062601 | BE32: 0.0007499062601 | BF32: 0.00744156023 | BG32: 0.000417947109 | BH32: 0.0001445550104 | BI32: 0 | BJ32: 0.000245424387 | BK32: 0.000245424387 | BL32: -8.653476408e-05 | BM32: -0.0003599268627 | BN32: -0.001485540001 | BO32: -0.001485540001 | BP32: 0.005206113969 | BQ32: -0.001817499152 | BR32: -0.002138266112 | BS32: -0.002138266112 | BT32: 0.004553387858 | BU32: 1.734723476e-18 | BV32: 2.168404345e-18 | BW32: 2.348595983e-18 | BZ32: 480.8423968 | CB32: 4.636582726 | CD32: =CB32-CG3/$K$1 -> 2.33416904
A33: 4 | B33: 120 | D33: 4.754599448 | F33: 0 | G33: 0 | H33: 0 | I33: 116.1171329 | J33: 0 | K33: 0 | L33: 0 | M33: 0 | N33: 0 | O33: 0 | P33: 0 | Q33: 0 | R33: 0 | S33: 0 | T33: 0 | U33: 0 | V33: 0 | W33: 0 | X33: 0 | Y33: 0 | AB33: 0 | AC33: 0 | AD33: 0 | AE33: 187.2340525 | AF33: 0 | AG33: 0 | AH33: 71.11691961 | AI33: 24.4815748 | AJ33: 0 | AK33: 0 | AL33: 0 | AN33: 4.788038674 | AP33: =OFFSET(AA29,A33,A33) -> 187.2340525 | AR33: 0.0007780353341 | AS33: 0.0007780353341 | AT33: 0.000417947109 | AU33: 0.006136807375 | AV33: 0.0005983242296 | AW33: 0 | AX33: -0.002088089007 | AY33: -2.127543938e-05 | AZ33: 0.001446392511 | BA33: -0.0001150633988 | BB33: -3.568180714e-19 | BD33: 0.0007780353341 | BE33: 0.0007780353341 | BF33: 0.000417947109 | BG33: 0.006136807375 | BH33: 0.0005983242296 | BI33: 0 | BJ33: -0.001310053673 | BK33: -0.001310053673 | BL33: 0.004048718368 | BM33: -0.001489764778 | BN33: -0.001331329112 | BO33: -0.001331329112 | BP33: -0.001691417338 | BQ33: 0.004027442929 | BR33: 0.0001150633988 | BS33: 0.0001150633988 | BT33: -0.0002450248264 | BU33: 1.76182853e-19 | BV33: 1.76182853e-19 | BW33: -1.806352184e-19 | BZ33: 555.9733231 | CB33: 4.750683732 | CD33: =CB33-CG3/$K$1 -> 2.448270046
A34: 5 | B34: 130 | D34: 4.804848739 | F34: 0 | G34: 0 | H34: 0 | I34: 0 | J34: 122.1010205 | K34: 0 | L34: 0 | M34: 0 | N34: 0 | O34: 0 | P34: 0 | Q34: 0 | R34: 0 | S34: 0 | T34: 0 | U34: 0 | V34: 0 | W34: 0 | X34: 0 | Y34: 0 | AB34: 0 | AC34: 0 | AD34: 0 | AE34: 0 | AF34: 171.1396339 | AG34: 0 | AH34: 49.03861342 | AI34: 0 | AJ34: 0 | AK34: 0 | AL34: 0 | AN34: 4.869540905 | AP34: =OFFSET(AA29,A34,A34) -> 171.1396339 | AR34: 0.0005768775978 | AS34: 0.0005768775978 | AT34: 0.0001445550104 | AU34: 0.0005983242296 | AV34: 0.006459168899 | AW34: 0 | AX34: -0.002149730454 | AY34: 0.001668828007 | AZ34: 4.217017836e-05 | BA34: -0.0001381453289 | BB34: -1.439068604e-19 | BD34: 0.0005768775978 | BE34: 0.0005768775978 | BF34: 0.0001445550104 | BG34: 0.0005983242296 | BH34: 0.006459168899 | BI34: 0 | BJ34: -0.001572852857 | BK34: -0.001572852857 | BL34: -0.001551406225 | BM34: 0.004309438445 | BN34: 9.59751505e-05 | BO34: 9.59751505e-05 | BP34: -0.0003363474369 | BQ34: 0.0001174217823 | BR34: 0.0001381453289 | BS34: 0.0001381453289 | BT34: -0.0002941772585 | BU34: -5.963111949e-19 | BV34: -5.963111949e-19 | BW34: -7.402180553e-19 | BZ34: 594.5759138 | CB34: 4.803584829 | CD34: =CB34-CG3/$K$1 -> 2.501171144
A35: 6 | B35: 125 | D35: 4.828313737 | F35: 0 | G35: 0 | H35: 0 | I35: 0 | J35: 0 | K35: 125 | L35: 0 | M35: 0 | N35: 0 | O35: 0 | P35: 0 | Q35: 0 | R35: 0 | S35: 0 | T35: 0 | U35: 0 | V35: 0 | W35: 0 | X35: 0 | Y35: 0 | AB35: 0 | AC35: 0 | AD35: 0 | AE35: 0 | AF35: 0 | AG35: 125 | AH35: 0 | AI35: 0 | AJ35: 0 | AK35: 0 | AL35: 0 | AN35: 4.828313737 | AP35: =OFFSET(AA29,A35,A35) -> 125 | AR35: 0 | AS35: 0 | AT35: 0 | AU35: 0 | AV35: 0 | AW35: 0.008 | AX35: 0 | AY35: 0 | AZ35: 0 | BA35: 0 | BB35: 0 | BD35: 0 | BE35: 0 | BF35: 0 | BG35: 0 | BH35: 0 | BI35: 0.008 | BJ35: 0 | BK35: 0 | BL35: 0 | BM35: 0 | BN35: 0 | BO35: 0 | BP35: 0 | BQ35: 0 | BR35: 0 | BS35: 0 | BT35: 0 | BU35: 0 | BV35: 0 | BW35: 0 | BZ35: 603.5392172 | CB35: 4.828313737 | CD35: =CB35-CG3/$K$1 -> 2.525900052
A36: 7 | B36: 55 | D36: 3.797165446 | F36: 0 | G36: 0 | H36: 0 | I36: 0 | J36: 0 | K36: 0 | L36: 44.574656 | M36: 0 | N36: 0 | O36: 0 | P36: 0 | Q36: 0 | R36: 0 | S36: 0 | T36: 0 | U36: 0 | V36: 0 | W36: 0 | X36: 0 | Y36: 0 | AB36: 112.2060516 | AC36: 105.3095865 | AD36: 47.64567744 | AE36: 71.11691961 | AF36: 49.03861342 | AG36: 0 | AH36: 385.3168486 | AI36: 201.2820999 | AJ36: 108.6322066 | AK36: 27.69448783 | AL36: 5 | AN36: 4.031050459 | AP36: =OFFSET(AA29,A36,A36) -> 385.3168486 | AR36: -0.002013242504 | AS36: -0.002013242504 | AT36: -0.0005044818731 | AU36: -0.002088089007 | AV36: -0.002149730454 | AW36: 0 | AX36: 0.007502334534 | AY36: -0.005824035271 | AZ36: -0.0001471695136 | BA36: 0.0004821127547 | BB36: 5.022198975e-19 | BD36: -0.002013242504 | BE36: -0.002013242504 | BF36: -0.0005044818731 | BG36: -0.002088089007 | BH36: -0.002149730454 | BI36: 0 | BJ36: 0.005489092029 | BK36: 0.005489092029 | BL36: 0.005414245527 | BM36: 0.005352604079 | BN36: -0.0003349432411 | BO36: -0.0003349432411 | BP36: 0.00117381739 | BQ36: -0.000409789744 | BR36: -0.0004821127547 | BS36: -0.0004821127547 | BT36: 0.001026647876 | BU36: 1.19262239e-18 | BV36: 1.19262239e-18 | BW36: 1.694842287e-18 | BZ36: 179.6826876 | CB36: -0.9310693311 | CD36: =CB36-CG3/$K$1 -> -3.233483017
A37: 8 | B37: 50 | D37: 3.779317203 | F37: 0 | G37: 0 | H37: 0 | I37: 0 | J37: 0 | K37: 0 | L37: 0 | M37: 43.78613448 | N37: 0 | O37: 0 | P37: 0 | Q37: 0 | R37: 0 | S37: 0 | T37: 0 | U37: 0 | V37: 0 | W37: 0 | X37: 0 | Y37: 0 | AB37: 67.63139561 | AC37: 61.52345204 | AD37: 47.64567744 | AE37: 24.4815748 | AF37: 0 | AG37: 0 | AH37: 201.2820999 | AI37: 201.2820999 | AJ37: 108.6322066 | AK37: 27.69448783 | AL37: 5 | AN37: 3.921231204 | AP37: =OFFSET(AA29,A37,A37) -> 201.2820999 | AR37: -0.0001020809852 | AS37: -0.0001020809852 | AT37: -0.001730964388 | AU37: -2.127543938e-05 | AV37: 0.001668828007 | AW37: 0 | AX37: -0.005824035271 | AY37: 0.01708104721 | AZ37: -0.0106344339 | BA37: -0.0005204970545 | BB37: 1.270022933e-18 | BD37: -0.0001020809852 | BE37: -0.0001020809852 | BF37: -0.001730964388 | BG37: -2.127543938e-05 | BH37: 0.001668828007 | BI37: 0 | BJ37: -0.005926116256 | BK37: -0.005926116256 | BL37: -0.00584531071 | BM37: -0.004155207263 | BN37: 0.01115493095 | BO37: 0.01115493095 | BP37: 0.009526047549 | BQ37: 0.0112357365 | BR37: 0.0005204970545 | BS37: 0.0005204970545 | BT37: -0.001108386348 | BU37: -4.553649124e-18 | BV37: -4.553649124e-18 | BW37: -3.283626191e-18 | BZ37: 171.6955568 | CB37: -0.6510496238 | CD37: =CB37-CG3/$K$1 -> -2.953463309
A38: 9 | B38: 35 | D38: 3.842358726 | F38: 0 | G38: 0 | H38: 0 | I38: 0 | J38: 0 | K38: 0 | L38: 0 | M38: 0 | N38: 46.63534481 | O38: 0 | P38: 0 | Q38: 0 | R38: 0 | S38: 0 | T38: 0 | U38: 0 | V38: 0 | W38: 0 | X38: 0 | Y38: 0 | AB38: 44.23159488 | AC38: 38.53759162 | AD38: 25.86302013 | AE38: 0 | AF38: 0 | AG38: 0 | AH38: 108.6322066 | AI38: 108.6322066 | AJ38: 108.6322066 | AK38: 27.69448783 | AL38: 5 | AN38: 3.592862451 | AP38: =OFFSET(AA29,A38,A38) -> 108.6322066 | AR38: -0.0004802659174 | AS38: -0.0004802659174 | AT38: -0.0006527261116 | AU38: 0.001446392511 | AV38: 4.217017836e-05 | AW38: 0 | AX38: -0.0001471695136 | AY38: -0.0106344339 | AZ38: 0.0236721566 | BA38: -0.01241028727 | BB38: -6.848038869e-18 | BD38: -0.0004802659174 | BE38: -0.0004802659174 | BF38: -0.0006527261116 | BG38: 0.001446392511 | BH38: 4.217017836e-05 | BI38: 0 | BJ38: -0.0006274354311 | BK38: -0.0006274354311 | BL38: 0.001299222998 | BM38: -0.0001049993353 | BN38: -0.01126186933 | BO38: -0.01126186933 | BP38: -0.01143432952 | BQ38: -0.0093352109 | BR38: 0.01241028727 | BS38: 0.01241028727 | BT38: 0.01223782708 | BU38: 1.734723476e-18 | BV38: 1.734723476e-18 | BW38: -5.113315393e-18 | BZ38: 167.5543793 | CB38: 0.1884444044 | CD38: =CB38-CG3/$K$1 -> -2.113969281
A39: 10 | B39: 40 | D39: 3.892608017 | F39: 0 | G39: 0 | H39: 0 | I39: 0 | J39: 0 | K39: 0 | L39: 0 | M39: 0 | N39: 0 | O39: 49.03861342 | P39: 0 | Q39: 0 | R39: 0 | S39: 0 | T39: 0 | U39: 0 | V39: 0 | W39: 0 | X39: 0 | Y39: 0 | AB39: 16.44850541 | AC39: 11.24598242 | AD39: 0 | AE39: 0 | AF39: 0 | AG39: 0 | AH39: 27.69448783 | AI39: 27.69448783 | AJ39: 27.69448783 | AK39: 27.69448783 | AL39: 5 | AN39: 3.708291765 | AP39: =OFFSET(AA29,A39,A39) -> 27.69448783 | AR39: -0.0008667308497 | AS39: -0.0008667308497 | AT39: 0.002138266112 | AU39: -0.0001150633988 | AV39: -0.0001381453289 | AW39: 0 | AX39: 0.0004821127547 | AY39: -0.0005204970545 | AZ39: -0.01241028727 | BA39: 0.05737896568 | BB39: -0.04406356326 | BD39: -0.0008667308497 | BE39: -0.0008667308497 | BF39: 0.002138266112 | BG39: -0.0001150633988 | BH39: -0.0001381453289 | BI39: 0 | BJ39: -0.000384618095 | BK39: -0.000384618095 | BL39: 0.000367049356 | BM39: 0.0003439674259 | BN39: -0.0009051151495 | BO39: -0.0009051151495 | BP39: 0.002099881813 | BQ39: -0.0001534476985 | BR39: -0.01331540242 | BS39: -0.01331540242 | BT39: -0.01031040546 | BU39: 0.04406356326 | BV39: 0.04406356326 | BW39: 6.938893904e-18 | BZ39: 181.8494863 | CB39: -0.9929226171 | CD39: =CB39-CG3/$K$1 -> -3.295336303
A40: 11 | B40: 20 | D40: 3.152727506 | F40: =IF($A40=F$4,IF($B40<0,-(EXP(-$D40)^(2-$H$1)),IF($B40=0,0,EXP($D40)^(2-$H$1))),0) -> 0 | G40: 0 | H40: 0 | I40: 0 | J40: 0 | K40: 0 | L40: 0 | M40: 0 | N40: 0 | O40: 0 | P40: =IF($A40=P$4,IF($B40<0,-(EXP(-$D40)^(2-$H$1)),IF($B40=0,0,EXP($D40)^(2-$H$1))),0) -> 23.39980072 | Q40: 0 | R40: 0 | S40: 0 | T40: 0 | U40: 0 | V40: 0 | W40: 0 | X40: 0 | Y40: 0 | AB40: 5 | AC40: 0 | AD40: 0 | AE40: 0 | AF40: 0 | AG40: 0 | AH40: 5 | AI40: 5 | AJ40: 5 | AK40: 5 | AL40: 5 | AN40: 3.00743564 | AP40: =OFFSET(AA29,A40,A40) -> 5 | AR40: -0.002271107147 | AS40: 0.002312006324 | AT40: 4.273225357e-19 | AU40: -1.068306339e-19 | AV40: 5.341531696e-20 | AW40: 0 | AX40: -4.807378527e-19 | AY40: 3.151503701e-18 | AZ40: -6.837160571e-18 | BA40: -0.04406356326 | BB40: 0.2463346704 | BD40: -0.002271107147 | BE40: 0.002312006324 | BF40: 4.273225357e-19 | BG40: -1.068306339e-19 | BH40: 5.341531696e-20 | BI40: 0 | BJ40: -0.002271107147 | BK40: 0.002312006324 | BL40: -5.875684866e-19 | BM40: -4.273225357e-19 | BN40: -0.002271107147 | BO40: 0.002312006324 | BP40: 3.098088384e-18 | BQ40: 2.563935214e-18 | BR40: -0.002271107147 | BS40: 0.002312006324 | BT40: -3.739072187e-18 | BU40: -0.0463346704 | BV40: -0.04175155693 | BW40: 0.2 | BZ40: 70.37339465 | CB40: -0.7124592511 | CD40: =CB40-CG3/$K$1 -> -3.014872937
A41: 12 | B41: 15 | D41: 3.134879263 | F41: 0 | G41: 0 | H41: 0 | I41: 0 | J41: 0 | K41: 0 | L41: 0 | M41: 0 | N41: 0 | O41: 0 | P41: 0 | Q41: 22.98586042 | R41: 0 | S41: 0 | T41: 0 | U41: 0 | V41: 0 | W41: 0 | X41: 0 | Y41: 0 | AN41: 2.787454355 | BZ41: 64.07203674
A42: 13 | B42: 25 | D42: 3.081114117 | F42: 0 | G42: 0 | H42: 0 | I42: 0 | J42: 0 | K42: 0 | L42: 0 | M42: 0 | N42: 0 | O42: 0 | P42: 0 | Q42: 0 | R42: 21.78265731 | S42: 0 | T42: 0 | U42: 0 | V42: 0 | W42: 0 | X42: 0 | Y42: 0 | AN42: 3.228816146 | BZ42: 70.33219565
A43: 14 | B43: 30 | D43: 3.197920786 | F43: 0 | G43: 0 | H43: 0 | I43: 0 | J43: 0 | K43: 0 | L43: 0 | M43: 0 | N43: 0 | O43: 0 | P43: 0 | Q43: 0 | R43: 0 | S43: 24.4815748 | T43: 0 | U43: 0 | V43: 0 | W43: 0 | X43: 0 | Y43: 0 | AN43: 3.423332151 | BZ43: 83.80856212
A44: 15 | B44: 30 | D44: 3.324427543 | F44: 0 | G44: 0 | H44: 0 | I44: 0 | J44: 0 | K44: 0 | L44: 0 | M44: 0 | N44: 0 | O44: 0 | P44: 0 | Q44: 0 | R44: 0 | S44: 0 | T44: 27.78308947 | U44: 0 | V44: 0 | W44: 0 | X44: 0 | Y44: 0 | AN44: 3.404221064 | BZ44: 94.5797784
A45: 16 | B45: 30 | D45: 3.3065793 | F45: 0 | G45: 0 | H45: 0 | I45: 0 | J45: 0 | K45: 0 | L45: 0 | M45: 0 | N45: 0 | O45: 0 | P45: 0 | Q45: 0 | R45: 0 | S45: 0 | T45: 0 | U45: 27.2916092 | V45: 0 | W45: 0 | X45: 0 | Y45: 0 | AN45: 3.405818255 | BZ45: 92.95026083
A46: 17 | B46: 20 | D46: 3.252814154 | F46: 0 | G46: 0 | H46: 0 | I46: 0 | J46: 0 | K46: 0 | L46: 0 | M46: 0 | N46: 0 | O46: 0 | P46: 0 | Q46: 0 | R46: 0 | S46: 0 | T46: 0 | U46: 0 | V46: 25.86302013 | W46: 0 | X46: 0 | Y46: 0 | AN46: 3.026119047 | BZ46: 78.26457782
A47: 18 | B47: 15 | D47: 2.43785919 | F47: 0 | G47: 0 | H47: 0 | I47: 0 | J47: 0 | K47: 0 | L47: 0 | M47: 0 | N47: 0 | O47: 0 | P47: 0 | Q47: 0 | R47: 0 | S47: 0 | T47: 0 | U47: 0 | V47: 0 | W47: 11.44850541 | X47: 0 | Y47: 0 | AN47: 2.748073882 | BZ47: 31.46133872
A48: 19 | B48: 5 | D48: 2.420010946 | F48: 0 | G48: 0 | H48: 0 | I48: 0 | J48: 0 | K48: 0 | L48: 0 | M48: 0 | N48: 0 | O48: 0 | P48: 0 | Q48: 0 | R48: 0 | S48: 0 | T48: 0 | U48: 0 | V48: 0 | W48: 0 | X48: 11.24598242 | Y48: 0 | AN48: 1.864614167 | BZ48: 20.96941813
A49: 20 | B49: 5 | D49: 1.609437912 | F49: 0 | G49: 0 | H49: 0 | I49: 0 | J49: 0 | K49: 0 | L49: 0 | M49: 0 | N49: 0 | O49: 0 | P49: 0 | Q49: 0 | R49: 0 | S49: 0 | T49: 0 | U49: 0 | V49: 0 | W49: 0 | X49: 0 | Y49: 5 | AN49: 1.609437912 | BZ49: 8.047189562
A50: 21
A52: Newton-Raphson Interation Sequence -- Iteration 3
B53: y(i) | D53: xb(i) | F53: W(i,i) | AB53: XWX | AN53: zz(i) | AP53: factor | AR53: xwx-1 | BD53: aa1(i,j) | BZ53: aa2(j) | CB53: beta(j) | CD53: beta_diff = | CE53: =SUM(CD55:CD65) -> -6.436176549e-05 | CF53: beta_old = | CG53: =SUM(CB55:CB65) -> 25.31360142
B54: 1 | D54: 1 | F54: 1 | G54: 2 | H54: 3 | I54: 4 | J54: 5 | K54: 6 | L54: 7 | M54: 8 | N54: 9 | O54: 10 | P54: 11 | Q54: 12 | R54: 13 | S54: 14 | T54: 15 | U54: 16 | V54: 17 | W54: 18 | X54: 19 | Y54: 20 | Z54: 21 | AB54: 1 | AC54: 2 | AD54: 3 | AE54: 4 | AF54: 5 | AG54: 6 | AH54: 7 | AI54: 8 | AJ54: 9 | AK54: 10 | AL54: 11 | AN54: 1 | AR54: 1 | AS54: 2 | AT54: 3 | AU54: 4 | AV54: 5 | AW54: 6 | AX54: 7 | AY54: 8 | AZ54: 9 | BA54: 10 | BB54: 11 | BD54: 1 | BE54: 2 | BF54: 3 | BG54: 4 | BH54: 5 | BI54: 6 | BJ54: 7 | BK54: 8 | BL54: 9 | BM54: 10 | BN54: 11 | BO54: 12 | BP54: 13 | BQ54: 14 | BR54: 15 | BS54: 16 | BT54: 17 | BU54: 18 | BV54: 19 | BW54: 20 | BX54: 21
A55: 1 | B55: =B30 -> 95 | D55: =MMULT(OutlierDesignMatrix,CB30:CB40) -> 4.708494331 | F55: =IF($A55=F$4,IF($B55<0,-(EXP(-$D55)^(2-$H$1)),IF($B55=0,0,EXP($D55)^(2-$H$1))),0) -> 110.8850779 | G55: 0 | H55: 0 | I55: 0 | J55: 0 | K55: 0 | L55: 0 | M55: 0 | N55: 0 | O55: 0 | P55: =IF($A55=P$4,IF($B55<0,-(EXP(-$D55)^(2-$H$1)),IF($B55=0,0,EXP($D55)^(2-$H$1))),0) -> 0 | Q55: 0 | R55: 0 | S55: 0 | T55: 0 | U55: 0 | V55: 0 | W55: 0 | X55: 0 | Y55: 0 | AB55: =MMULT(TRANSPOSE(OutlierDesignMatrix),MMULT(F55:Y74,OutlierDesignMatrix)) -> 220.0920905 | AC55: 0 | AD55: 0 | AE55: 0 | AF55: 0 | AG55: 0 | AH55: 109.2070125 | AI55: 65.50365196 | AJ55: 42.71243191 | AK55: 15.19499755 | AL55: 5 | AN55: =IF(B55<0,D55+(B55+EXP(-D55))/-EXP(-D55),IF(B55=0,0,D55+(B55-EXP(D55))/EXP(D55))) -> 4.565237202 | AP55: =OFFSET(AA54,A55,A55) -> 220.0920905 | AR55: =MINVERSE(AB55:AL65) -> 0.005783827577 | AS55: 0.001134656155 | AT55: 0.0007457020142 | AU55: 0.0007707316717 | AV55: 0.0005712488697 | AW55: 0 | AX55: -0.002020633416 | AY55: -0.0001031515279 | AZ55: -0.000485427817 | BA55: -0.0008772621065 | BB55: -0.002297352709 | BD55: =MMULT(AR55:BB65,TRANSPOSE(OutlierDesignMatrix)) -> 0.005783827577 | BE55: 0.001134656155 | BF55: 0.0007457020142 | BG55: 0.0007707316717 | BH55: 0.0005712488697 | BI55: 0 | BJ55: 0.003763194161 | BK55: -0.0008859772611 | BL55: -0.001249901745 | BM55: -0.001449384547 | BN55: 0.003660042633 | BO55: -0.0009891287889 | BP55: -0.00137808293 | BQ55: -0.001353053272 | BR55: 0.003174614816 | BS55: -0.001474556606 | BT55: -0.001863510747 | BU55: 0.002297352709 | BV55: -0.002351818712 | BW55: 8.67361738e-19 | BZ55: =MMULT(F55:Y74,AN55:AN74) -> 506.2166829 | CB55: =MMULT(BD55:BW65,BZ55:BZ74) -> 4.708526844 | CD55: =CB55-CG28/$K$1 -> 2.4072845
A56: 2 | B56: =B31 -> 110 | D56: 4.685062846 | F56: 0 | G56: 108.3170794 | H56: 0 | I56: 0 | J56: 0 | K56: 0 | L56: 0 | M56: 0 | N56: 0 | O56: 0 | P56: 0 | Q56: 0 | R56: 0 | S56: 0 | T56: 0 | U56: 0 | V56: 0 | W56: 0 | X56: 0 | Y56: 0 | AB56: 0 | AC56: 210.1107514 | AD56: 0 | AE56: 0 | AF56: 0 | AG56: 0 | AH56: 101.793672 | AI56: 59.10244188 | AJ56: 36.83904596 | AK56: 9.958890588 | AL56: 0 | AN56: =IF(B56<0,D56+(B56+EXP(-D56))/-EXP(-D56),IF(B56=0,0,D56+(B56-EXP(D56))/EXP(D56))) -> 4.700599829 | AP56: =OFFSET(AA54,A56,A56) -> 210.1107514 | AR56: 0.001134656155 | AS56: 0.005894050872 | AT56: 0.0007457020142 | AU56: 0.0007707316717 | AV56: 0.0005712488697 | AW56: 0 | AX56: -0.002020633416 | AY56: -0.0001031515279 | AZ56: -0.000485427817 | BA56: -0.0008772621065 | BB56: 0.002351818712 | BD56: 0.001134656155 | BE56: 0.005894050872 | BF56: 0.0007457020142 | BG56: 0.0007707316717 | BH56: 0.0005712488697 | BI56: 0 | BJ56: -0.0008859772611 | BK56: 0.003873417455 | BL56: -0.001249901745 | BM56: -0.001449384547 | BN56: -0.0009891287889 | BO56: 0.003770265927 | BP56: -0.00137808293 | BQ56: -0.001353053272 | BR56: -0.001474556606 | BS56: 0.003284838111 | BT56: -0.001863510747 | BU56: -0.002351818712 | BV56: 0.002407576004 | BW56: -4.33680869e-19 | BZ56: 509.1552449 | CB56: 4.684996394 | CD56: =CB56-CG28/$K$1 -> 2.38375405
A57: 3 | B57: 105 | D57: 4.636582726 | F57: 0 | G57: 0 | H57: 103.1911121 | I57: 0 | J57: 0 | K57: 0 | L57: 0 | M57: 0 | N57: 0 | O57: 0 | P57: 0 | Q57: 0 | R57: 0 | S57: 0 | T57: 0 | U57: 0 | V57: 0 | W57: 0 | X57: 0 | Y57: 0 | AB57: 0 | AC57: 0 | AD57: 150.0090076 | AE57: 0 | AF57: 0 | AG57: 0 | AH57: 46.81789553 | AI57: 46.81789553 | AJ57: 25.60808637 | AK57: 0 | AL57: 0 | AN57: 4.65411222 | AP57: =OFFSET(AA54,A57,A57) -> 150.0090076 | AR57: 0.0007457020142 | AS57: 0.0007457020142 | AT57: 0.007478665779 | AU57: 0.0004113786502 | AV57: 0.0001412685162 | AW57: 0 | AX57: -0.0004996979419 | AY57: -0.001743785516 | AZ57: -0.0006572946207 | BA57: 0.002155076065 | BB57: -3.287758272e-19 | BD57: 0.0007457020142 | BE57: 0.0007457020142 | BF57: 0.007478665779 | BG57: 0.0004113786502 | BH57: 0.0001412685162 | BI57: 0 | BJ57: 0.0002460040724 | BK57: 0.0002460040724 | BL57: -8.83192917e-05 | BM57: -0.0003584294257 | BN57: -0.001497781444 | BO57: -0.001497781444 | BP57: 0.005235182321 | BQ57: -0.001832104808 | BR57: -0.002155076065 | BS57: -0.002155076065 | BT57: 0.0045778877 | BU57: 8.67361738e-19 | BV57: 8.67361738e-19 | BW57: 5.385859108e-19 | BZ57: 480.2630156 | CB57: 4.636591219 | CD57: =CB57-CG28/$K$1 -> 2.335348876
A58: 4 | B58: 120 | D58: 4.750683732 | F58: 0 | G58: 0 | H58: 0 | I58: 115.6633402 | J58: 0 | K58: 0 | L58: 0 | M58: 0 | N58: 0 | O58: 0 | P58: 0 | Q58: 0 | R58: 0 | S58: 0 | T58: 0 | U58: 0 | V58: 0 | W58: 0 | X58: 0 | Y58: 0 | AB58: 0 | AC58: 0 | AD58: 0 | AE58: 185.0233068 | AF58: 0 | AG58: 0 | AH58: 69.35996658 | AI58: 23.77333981 | AJ58: 0 | AK58: 0 | AL58: 0 | AN58: 4.788177546 | AP58: =OFFSET(AA54,A58,A58) -> 185.0233068 | AR58: 0.0007707316717 | AS58: 0.0007707316717 | AT58: 0.0004113786502 | AU58: 0.006193299746 | AV58: 0.0005925994195 | AW58: 0 | AX58: -0.002096155026 | AY58: -2.168632273e-05 | AZ58: 0.001462130807 | BA58: -0.0001150211293 | BB58: -7.173314732e-19 | BD58: 0.0007707316717 | BE58: 0.0007707316717 | BF58: 0.0004113786502 | BG58: 0.006193299746 | BH58: 0.0005925994195 | BI58: 0 | BJ58: -0.001325423355 | BK58: -0.001325423355 | BL58: 0.00409714472 | BM58: -0.001503555607 | BN58: -0.001347109677 | BO58: -0.001347109677 | BP58: -0.001706462699 | BQ58: 0.004075458397 | BR58: 0.0001150211293 | BS58: 0.0001150211293 | BT58: -0.0002443318923 | BU58: -2.303929617e-19 | BV58: -4.472333962e-19 | BW58: -9.477244348e-19 | BZ58: 553.8166085 | CB58: 4.750668741 | CD58: =CB58-CG28/$K$1 -> 2.449426397
A59: 5 | B59: 130 | D59: 4.803584829 | F59: 0 | G59: 0 | H59: 0 | I59: 0 | J59: 121.9467933 | K59: 0 | L59: 0 | M59: 0 | N59: 0 | O59: 0 | P59: 0 | Q59: 0 | R59: 0 | S59: 0 | T59: 0 | U59: 0 | V59: 0 | W59: 0 | X59: 0 | Y59: 0 | AB59: 0 | AC59: 0 | AD59: 0 | AE59: 0 | AF59: 170.0099302 | AG59: 0 | AH59: 48.06313688 | AI59: 0 | AJ59: 0 | AK59: 0 | AL59: 0 | AN59: 4.869623521 | AP59: =OFFSET(AA54,A59,A59) -> 170.0099302 | AR59: 0.0005712488697 | AS59: 0.0005712488697 | AT59: 0.0001412685162 | AU59: 0.0005925994195 | AV59: 0.006491858542 | AW59: 0 | AX59: -0.002157171259 | AY59: 0.001681573668 | AZ59: 4.197613165e-05 | BA59: -0.0001376274105 | BB59: -2.885657232e-19 | BD59: 0.0005712488697 | BE59: 0.0005712488697 | BF59: 0.0001412685162 | BG59: 0.0005925994195 | BH59: 0.006491858542 | BI59: 0 | BJ59: -0.00158592239 | BK59: -0.00158592239 | BL59: -0.00156457184 | BM59: 0.004334687282 | BN59: 9.565127889e-05 | BO59: 9.565127889e-05 | BP59: -0.0003343290746 | BQ59: 0.0001170018287 | BR59: 0.0001376274105 | BS59: 0.0001376274105 | BT59: -0.000292352943 | BU59: 2.981555974e-19 | BV59: 8.131516294e-20 | BW59: 9.589874239e-21 | BZ59: 593.834973 | CB59: 4.803593417 | CD59: =CB59-CG28/$K$1 -> 2.502351073
A60: 6 | B60: 125 | D60: 4.828313737 | F60: 0 | G60: 0 | H60: 0 | I60: 0 | J60: 0 | K60: 125 | L60: 0 | M60: 0 | N60: 0 | O60: 0 | P60: 0 | Q60: 0 | R60: 0 | S60: 0 | T60: 0 | U60: 0 | V60: 0 | W60: 0 | X60: 0 | Y60: 0 | AB60: 0 | AC60: 0 | AD60: 0 | AE60: 0 | AF60: 0 | AG60: 125 | AH60: 0 | AI60: 0 | AJ60: 0 | AK60: 0 | AL60: 0 | AN60: 4.828313737 | AP60: =OFFSET(AA54,A60,A60) -> 125 | AR60: 0 | AS60: 0 | AT60: 0 | AU60: 0 | AV60: 0 | AW60: 0.008 | AX60: 0 | AY60: 0 | AZ60: 0 | BA60: 0 | BB60: 0 | BD60: 0 | BE60: 0 | BF60: 0 | BG60: 0 | BH60: 0 | BI60: 0.008 | BJ60: 0 | BK60: 0 | BL60: 0 | BM60: 0 | BN60: 0 | BO60: 0 | BP60: 0 | BQ60: 0 | BR60: 0 | BS60: 0 | BT60: 0 | BU60: 0 | BV60: 0 | BW60: 0 | BZ60: 603.5392172 | CB60: 4.828313737 | CD60: =CB60-CG28/$K$1 -> 2.527071393
A61: 7 | B61: 55 | D61: 3.777425 | F61: 0 | G61: 0 | H61: 0 | I61: 0 | J61: 0 | K61: 0 | L61: 43.70336057 | M61: 0 | N61: 0 | O61: 0 | P61: 0 | Q61: 0 | R61: 0 | S61: 0 | T61: 0 | U61: 0 | V61: 0 | W61: 0 | X61: 0 | Y61: 0 | AB61: 109.2070125 | AC61: 101.793672 | AD61: 46.81789553 | AE61: 69.35996658 | AF61: 48.06313688 | AG61: 0 | AH61: 375.2416835 | AI61: 195.1973292 | AJ61: 105.1595642 | AK61: 25.15388814 | AL61: 5 | AN61: 4.035909457 | AP61: =OFFSET(AA54,A61,A61) -> 375.2416835 | AR61: -0.002020633416 | AS61: -0.002020633416 | AT61: -0.0004996979419 | AU61: -0.002096155026 | AV61: -0.002157171259 | AW61: 0 | AX61: 0.00763039117 | AY61: -0.005948097452 | AZ61: -0.0001484788483 | BA61: 0.000486818547 | BB61: 1.020720695e-18 | BD61: -0.002020633416 | BE61: -0.002020633416 | BF61: -0.0004996979419 | BG61: -0.002096155026 | BH61: -0.002157171259 | BI61: 0 | BJ61: 0.005609757753 | BK61: 0.005609757753 | BL61: 0.005534236143 | BM61: 0.00547321991 | BN61: -0.0003383396987 | BO61: -0.0003383396987 | BP61: 0.001182595776 | BQ61: -0.0004138613088 | BR61: -0.000486818547 | BS61: -0.000486818547 | BT61: 0.001034116927 | BU61: 4.33680869e-19 | BV61: 1.301042607e-18 | BW61: 1.454401564e-18 | BZ61: 176.3828062 | CB61: -0.9313063153 | CD61: =CB61-CG28/$K$1 -> -3.232548659
A62: 8 | B62: 50 | D62: 3.753993515 | F62: 0 | G62: 0 | H62: 0 | I62: 0 | J62: 0 | K62: 0 | L62: 0 | M62: 42.6912301 | N62: 0 | O62: 0 | P62: 0 | Q62: 0 | R62: 0 | S62: 0 | T62: 0 | U62: 0 | V62: 0 | W62: 0 | X62: 0 | Y62: 0 | AB62: 65.50365196 | AC62: 59.10244188 | AD62: 46.81789553 | AE62: 23.77333981 | AF62: 0 | AG62: 0 | AH62: 195.1973292 | AI62: 195.1973292 | AJ62: 105.1595642 | AK62: 25.15388814 | AL62: 5 | AN62: 3.925194248 | AP62: =OFFSET(AA54,A62,A62) -> 195.1973292 | AR62: -0.0001031515279 | AS62: -0.0001031515279 | AT62: -0.001743785516 | AU62: -2.168632273e-05 | AV62: 0.001681573668 | AW62: 0 | AX62: -0.005948097452 | AY62: 0.01752266694 | AZ62: -0.01094628651 | BA62: -0.0005251314523 | BB62: 2.604845951e-18 | BD62: -0.0001031515279 | BE62: -0.0001031515279 | BF62: -0.001743785516 | BG62: -2.168632273e-05 | BH62: 0.001681573668 | BI62: 0 | BJ62: -0.00605124898 | BK62: -0.00605124898 | BL62: -0.005969783775 | BM62: -0.004266523784 | BN62: 0.01147141796 | BO62: 0.01147141796 | BP62: 0.009830783971 | BQ62: 0.01155288316 | BR62: 0.0005251314523 | BS62: 0.0005251314523 | BT62: -0.001115502536 | BU62: 3.252606517e-19 | BV62: 3.252606517e-19 | BW62: 2.930106603e-18 | BZ62: 167.5713708 | CB62: -0.6512219152 | CD62: =CB62-CG28/$K$1 -> -2.952464259
A63: 9 | B63: 35 | D63: 3.819614401 | F63: 0 | G63: 0 | H63: 0 | I63: 0 | J63: 0 | K63: 0 | L63: 0 | M63: 0 | N63: 45.58662676 | O63: 0 | P63: 0 | Q63: 0 | R63: 0 | S63: 0 | T63: 0 | U63: 0 | V63: 0 | W63: 0 | X63: 0 | Y63: 0 | AB63: 42.71243191 | AC63: 36.83904596 | AD63: 25.60808637 | AE63: 0 | AF63: 0 | AG63: 0 | AH63: 105.1595642 | AI63: 105.1595642 | AJ63: 105.1595642 | AK63: 25.15388814 | AL63: 5 | AN63: 3.587383426 | AP63: =OFFSET(AA54,A63,A63) -> 105.1595642 | AR63: -0.000485427817 | AS63: -0.000485427817 | AT63: -0.0006572946207 | AU63: 0.001462130807 | AV63: 4.197613165e-05 | AW63: 0 | AX63: -0.0001484788483 | AY63: -0.01094628651 | AZ63: 0.02413431719 | BA63: -0.01255412402 | BB63: -4.702501513e-18 | BD63: -0.000485427817 | BE63: -0.000485427817 | BF63: -0.0006572946207 | BG63: 0.001462130807 | BH63: 4.197613165e-05 | BI63: 0 | BJ63: -0.0006339066653 | BK63: -0.0006339066653 | BL63: 0.001313651958 | BM63: -0.0001065027167 | BN63: -0.01158019317 | BO63: -0.01158019317 | BP63: -0.01175205998 | BQ63: -0.009632634549 | BR63: 0.01255412402 | BS63: 0.01255412402 | BT63: 0.01238225722 | BU63: 0 | BV63: 0 | BW63: -4.702501513e-18 | BZ63: 163.5367093 | CB63: 0.1887911592 | CD63: =CB63-CG28/$K$1 -> -2.112451185
A64: 10 | B64: 40 | D64: 3.872515498 | F64: 0 | G64: 0 | H64: 0 | I64: 0 | J64: 0 | K64: 0 | L64: 0 | M64: 0 | N64: 0 | O64: 48.06313688 | P64: 0 | Q64: 0 | R64: 0 | S64: 0 | T64: 0 | U64: 0 | V64: 0 | W64: 0 | X64: 0 | Y64: 0 | AB64: 15.19499755 | AC64: 9.958890588 | AD64: 0 | AE64: 0 | AF64: 0 | AG64: 0 | AH64: 25.15388814 | AI64: 25.15388814 | AJ64: 25.15388814 | AK64: 25.15388814 | AL64: 5 | AN64: 3.704754145 | AP64: =OFFSET(AA54,A64,A64) -> 25.15388814 | AR64: -0.0008772621065 | AS64: -0.0008772621065 | AT64: 0.002155076065 | AU64: -0.0001150211293 | AV64: -0.0001376274105 | AW64: 0 | AX64: 0.000486818547 | AY64: -0.0005251314523 | AZ64: -0.01255412402 | BA64: 0.06308791628 | BB64: -0.04961821725 | BD64: -0.0008772621065 | BE64: -0.0008772621065 | BF64: 0.002155076065 | BG64: -0.0001150211293 | BH64: -0.0001376274105 | BI64: 0 | BJ64: -0.0003904435595 | BK64: -0.0003904435595 | BL64: 0.0003717974177 | BM64: 0.0003491911365 | BN64: -0.0009155750118 | BO64: -0.0009155750118 | BP64: 0.00211676316 | BQ64: -0.0001533340345 | BR64: -0.01346969903 | BS64: -0.01346969903 | BT64: -0.01043736086 | BU64: 0.04961821725 | BV64: 0.04961821725 | BW64: 1.387778781e-17 | BZ64: 178.0621056 | CB64: -1.000479361 | CD64: =CB64-CG28/$K$1 -> -3.301721705
A65: 11 | B65: 20 | D65: 3.126375376 | F65: =IF($A65=F$4,IF($B65<0,-(EXP(-$D65)^(2-$H$1)),IF($B65=0,0,EXP($D65)^(2-$H$1))),0) -> 0 | G65: 0 | H65: 0 | I65: 0 | J65: 0 | K65: 0 | L65: 0 | M65: 0 | N65: 0 | O65: 0 | P65: =IF($A65=P$4,IF($B65<0,-(EXP(-$D65)^(2-$H$1)),IF($B65=0,0,EXP($D65)^(2-$H$1))),0) -> 22.79122005 | Q65: 0 | R65: 0 | S65: 0 | T65: 0 | U65: 0 | V65: 0 | W65: 0 | X65: 0 | Y65: 0 | AB65: 5 | AC65: 0 | AD65: 0 | AE65: 0 | AF65: 0 | AG65: 0 | AH65: 5 | AI65: 5 | AJ65: 5 | AK65: 5 | AL65: 5 | AN65: 3.003906283 | AP65: =OFFSET(AA54,A65,A65) -> 5 | AR65: -0.002297352709 | AS65: 0.002351818712 | AT65: -4.370038532e-19 | AU65: -6.281930389e-19 | AV65: -6.281930389e-19 | AW65: 0 | AX65: 1.966517339e-18 | AY65: -8.193822247e-19 | AZ65: -1.748015413e-18 | BA65: -0.04961821725 | BB65: 0.25191557 | BD65: -0.002297352709 | BE65: 0.002351818712 | BF65: -4.370038532e-19 | BG65: -6.281930389e-19 | BH65: -6.281930389e-19 | BI65: 0 | BJ65: -0.002297352709 | BK65: 0.002351818712 | BL65: 1.3383243e-18 | BM65: 1.3383243e-18 | BN65: -0.002297352709 | BO65: 0.002351818712 | BP65: 7.101312614e-19 | BQ65: 5.189420756e-19 | BR65: -0.002297352709 | BS65: 0.002351818712 | BT65: -1.037884151e-18 | BU65: -0.05191556996 | BV65: -0.04726639854 | BW65: 0.2 | BZ65: 68.4626891 | CB65: -0.704872499 | CD65: =CB65-CG28/$K$1 -> -3.006114843
A66: 12 | B66: 15 | D66: 3.102943891 | F66: 0 | G66: 0 | H66: 0 | I66: 0 | J66: 0 | K66: 0 | L66: 0 | M66: 0 | N66: 0 | O66: 0 | P66: 0 | Q66: 22.26339592 | R66: 0 | S66: 0 | T66: 0 | U66: 0 | V66: 0 | W66: 0 | X66: 0 | Y66: 0 | AN66: 2.776695553 | BZ66: 61.81867245
A67: 13 | B67: 25 | D67: 3.054463771 | F67: 0 | G67: 0 | H67: 0 | I67: 0 | J67: 0 | K67: 0 | L67: 0 | M67: 0 | N67: 0 | O67: 0 | P67: 0 | Q67: 0 | R67: 21.20980916 | S67: 0 | T67: 0 | U67: 0 | V67: 0 | W67: 0 | X67: 0 | Y67: 0 | AN67: 3.233163674 | BZ67: 68.57478451
A68: 14 | B68: 30 | D68: 3.168564777 | F68: 0 | G68: 0 | H68: 0 | I68: 0 | J68: 0 | K68: 0 | L68: 0 | M68: 0 | N68: 0 | O68: 0 | P68: 0 | Q68: 0 | R68: 0 | S68: 23.77333981 | T68: 0 | U68: 0 | V68: 0 | W68: 0 | X68: 0 | Y68: 0 | AN68: 3.430482548 | BZ68: 81.55402735
A69: 15 | B69: 30 | D69: 3.314819781 | F69: 0 | G69: 0 | H69: 0 | I69: 0 | J69: 0 | K69: 0 | L69: 0 | M69: 0 | N69: 0 | O69: 0 | P69: 0 | Q69: 0 | R69: 0 | S69: 0 | T69: 27.51743436 | U69: 0 | V69: 0 | W69: 0 | X69: 0 | Y69: 0 | AN69: 3.405037699 | BZ69: 93.69790137
A70: 16 | B70: 30 | D70: 3.291388296 | F70: 0 | G70: 0 | H70: 0 | I70: 0 | J70: 0 | K70: 0 | L70: 0 | M70: 0 | N70: 0 | O70: 0 | P70: 0 | Q70: 0 | R70: 0 | S70: 0 | T70: 0 | U70: 26.88015537 | V70: 0 | W70: 0 | X70: 0 | Y70: 0 | AN70: 3.407453273 | BZ70: 91.5928734
A71: 17 | B71: 20 | D71: 3.242908175 | F71: 0 | G71: 0 | H71: 0 | I71: 0 | J71: 0 | K71: 0 | L71: 0 | M71: 0 | N71: 0 | O71: 0 | P71: 0 | Q71: 0 | R71: 0 | S71: 0 | T71: 0 | U71: 0 | V71: 25.60808637 | W71: 0 | X71: 0 | Y71: 0 | AN71: 3.023911477 | BZ71: 77.43658627
A72: 18 | B72: 15 | D72: 2.321897164 | F72: 0 | G72: 0 | H72: 0 | I72: 0 | J72: 0 | K72: 0 | L72: 0 | M72: 0 | N72: 0 | O72: 0 | P72: 0 | Q72: 0 | R72: 0 | S72: 0 | T72: 0 | U72: 0 | V72: 0 | W72: 10.19499755 | X72: 0 | Y72: 0 | AN72: 2.793206983 | BZ72: 28.47673834
A73: 19 | B73: 5 | D73: 2.298465679 | F73: 0 | G73: 0 | H73: 0 | I73: 0 | J73: 0 | K73: 0 | L73: 0 | M73: 0 | N73: 0 | O73: 0 | P73: 0 | Q73: 0 | R73: 0 | S73: 0 | T73: 0 | U73: 0 | V73: 0 | W73: 0 | X73: 9.958890588 | Y73: 0 | AN73: 1.800529634 | BZ73: 17.93127763
A74: 20 | B74: 5 | D74: 1.609437912 | F74: 0 | G74: 0 | H74: 0 | I74: 0 | J74: 0 | K74: 0 | L74: 0 | M74: 0 | N74: 0 | O74: 0 | P74: 0 | Q74: 0 | R74: 0 | S74: 0 | T74: 0 | U74: 0 | V74: 0 | W74: 0 | X74: 0 | Y74: 5 | AN74: 1.609437912 | BZ74: 8.047189562
A75: 21
A77: Newton-Raphson Interation Sequence -- Iteration 4
B78: y(i) | D78: xb(i) | F78: W(i,i) | AB78: XWX | AN78: zz(i) | AP78: factor | AR78: xwx-1 | BD78: aa1(i,j) | BZ78: aa2(j) | CB78: beta(j) | CD78: beta_diff = | CE78: =SUM(CD80:CD90) -> -2.466539728e-08 | CF78: beta_old = | CG78: =SUM(CB80:CB90) -> 25.3136014
B79: 1 | D79: 1 | F79: 1 | G79: 2 | H79: 3 | I79: 4 | J79: 5 | K79: 6 | L79: 7 | M79: 8 | N79: 9 | O79: 10 | P79: 11 | Q79: 12 | R79: 13 | S79: 14 | T79: 15 | U79: 16 | V79: 17 | W79: 18 | X79: 19 | Y79: 20 | Z79: 21 | AB79: 1 | AC79: 2 | AD79: 3 | AE79: 4 | AF79: 5 | AG79: 6 | AH79: 7 | AI79: 8 | AJ79: 9 | AK79: 10 | AL79: 11 | AN79: 1 | AR79: 1 | AS79: 2 | AT79: 3 | AU79: 4 | AV79: 5 | AW79: 6 | AX79: 7 | AY79: 8 | AZ79: 9 | BA79: 10 | BB79: 11 | BD79: 1 | BE79: 2 | BF79: 3 | BG79: 4 | BH79: 5 | BI79: 6 | BJ79: 7 | BK79: 8 | BL79: 9 | BM79: 10 | BN79: 11 | BO79: 12 | BP79: 13 | BQ79: 14 | BR79: 15 | BS79: 16 | BT79: 17 | BU79: 18 | BV79: 19 | BW79: 20 | BX79: 21
A80: 1 | B80: =B55 -> 95 | D80: =MMULT(OutlierDesignMatrix,CB55:CB65) -> 4.708526844 | F80: =IF($A80=F$4,IF($B80<0,-(EXP(-$D80)^(2-$H$1)),IF($B80=0,0,EXP($D80)^(2-$H$1))),0) -> 110.8886832 | G80: 0 | H80: 0 | I80: 0 | J80: 0 | K80: 0 | L80: 0 | M80: 0 | N80: 0 | O80: 0 | P80: =IF($A80=P$4,IF($B80<0,-(EXP(-$D80)^(2-$H$1)),IF($B80=0,0,EXP($D80)^(2-$H$1))),0) -> 0 | Q80: 0 | R80: 0 | S80: 0 | T80: 0 | U80: 0 | V80: 0 | W80: 0 | X80: 0 | Y80: 0 | AB80: =MMULT(TRANSPOSE(OutlierDesignMatrix),MMULT(F80:Y99,OutlierDesignMatrix)) -> 220.0002953 | AC80: 0 | AD80: 0 | AE80: 0 | AF80: 0 | AG80: 0 | AH80: 109.1116121 | AI80: 65.41718671 | AJ80: 42.63455193 | AK80: 15.11794329 | AL80: 5 | AN80: =IF(B80<0,D80+(B80+EXP(-D80))/-EXP(-D80),IF(B80=0,0,D80+(B80-EXP(D80))/EXP(D80))) -> 4.56524186 | AP80: =OFFSET(AA79,A80,A80) -> 220.0002953 | AR80: =MINVERSE(AB80:AL90) -> 0.005784903615 | AS80: 0.001133747212 | AT80: 0.0007456264187 | AU80: 0.0007706017812 | AV80: 0.0005711615426 | AW80: 0 | AX80: -0.00202066799 | AY80: -0.0001031614729 | AZ80: -0.0004854872012 | BA80: -0.0008773684378 | BB80: -0.002298218513 | BD80: =MMULT(AR80:BB90,TRANSPOSE(OutlierDesignMatrix)) -> 0.005784903615 | BE80: 0.001133747212 | BF80: 0.0007456264187 | BG80: 0.0007706017812 | BH80: 0.0005711615426 | BI80: 0 | BJ80: 0.003764235625 | BK80: -0.0008869207783 | BL80: -0.001250066209 | BM80: -0.001449506448 | BN80: 0.003661074152 | BO80: -0.0009900822512 | BP80: -0.001378203044 | BQ80: -0.001353227682 | BR80: 0.003175586951 | BS80: -0.001475569452 | BT80: -0.001863690246 | BU80: 0.002298218513 | BV80: -0.00235293789 | BW80: 4.33680869e-19 | BZ80: =MMULT(F80:Y99,AN80:AN99) -> 506.2336582 | CB80: =MMULT(BD80:BW90,BZ80:BZ99) -> 4.708526865 | CD80: =CB80-CG53/$K$1 -> 2.407290372
A81: 2 | B81: =B56 -> 110 | D81: 4.684996394 | F81: 0 | G81: 108.3098817 | H81: 0 | I81: 0 | J81: 0 | K81: 0 | L81: 0 | M81: 0 | N81: 0 | O81: 0 | P81: 0 | Q81: 0 | R81: 0 | S81: 0 | T81: 0 | U81: 0 | V81: 0 | W81: 0 | X81: 0 | Y81: 0 | AB81: 0 | AC81: 210.0002983 | AD81: 0 | AE81: 0 | AF81: 0 | AG81: 0 | AH81: 101.6904166 | AI81: 59.01213864 | AJ81: 36.75933153 | AK81: 9.882642755 | AL81: 0 | AN81: =IF(B81<0,D81+(B81+EXP(-D81))/-EXP(-D81),IF(B81=0,0,D81+(B81-EXP(D81))/EXP(D81))) -> 4.700600864 | AP81: =OFFSET(AA79,A81,A81) -> 210.0002983 | AR81: 0.001133747212 | AS81: 0.005895645209 | AT81: 0.0007456264187 | AU81: 0.0007706017812 | AV81: 0.0005711615426 | AW81: 0 | AX81: -0.00202066799 | AY81: -0.0001031614729 | AZ81: -0.0004854872012 | BA81: -0.0008773684378 | BB81: 0.00235293789 | BD81: 0.001133747212 | BE81: 0.005895645209 | BF81: 0.0007456264187 | BG81: 0.0007706017812 | BH81: 0.0005711615426 | BI81: 0 | BJ81: -0.0008869207783 | BK81: 0.003874977219 | BL81: -0.001250066209 | BM81: -0.001449506448 | BN81: -0.0009900822512 | BO81: 0.003771815746 | BP81: -0.001378203044 | BQ81: -0.001353227682 | BR81: -0.001475569452 | BS81: 0.003286328545 | BT81: -0.001863690246 | BU81: -0.00235293789 | BV81: 0.002408960107 | BW81: 4.33680869e-19 | BZ81: 509.1215235 | CB81: 4.684996368 | CD81: =CB81-CG53/$K$1 -> 2.383759875
A82: 3 | B82: 105 | D82: 4.636591219 | F82: 0 | G82: 0 | H82: 103.1919885 | I82: 0 | J82: 0 | K82: 0 | L82: 0 | M82: 0 | N82: 0 | O82: 0 | P82: 0 | Q82: 0 | R82: 0 | S82: 0 | T82: 0 | U82: 0 | V82: 0 | W82: 0 | X82: 0 | Y82: 0 | AB82: 0 | AC82: 0 | AD82: 150.0000017 | AE82: 0 | AF82: 0 | AG82: 0 | AH82: 46.80801323 | AI82: 46.80801323 | AJ82: 25.60670287 | AK82: 0 | AL82: 0 | AN82: 4.654112071 | AP82: =OFFSET(AA79,A82,A82) -> 150.0000017 | AR82: 0.0007456264187 | AS82: 0.0007456264187 | AT82: 0.007478980591 | AU82: 0.0004112618151 | AV82: 0.0001412216693 | AW82: 0 | AX82: -0.0004996171582 | AY82: -0.001743901794 | AZ82: -0.0006573449546 | BA82: 0.002155237488 | BB82: 5.649070631e-20 | BD82: 0.0007456264187 | BE82: 0.0007456264187 | BF82: 0.007478980591 | BG82: 0.0004112618151 | BH82: 0.0001412216693 | BI82: 0 | BJ82: 0.0002460092605 | BK82: 0.0002460092605 | BL82: -8.835534308e-05 | BM82: -0.0003583954889 | BN82: -0.001497892533 | BO82: -0.001497892533 | BP82: 0.005235461639 | BQ82: -0.001832257137 | BR82: -0.002155237488 | BS82: -0.002155237488 | BT82: 0.004578116684 | BU82: -8.67361738e-19 | BV82: -8.67361738e-19 | BW82: -8.108710317e-19 | BZ82: 480.2670794 | CB82: 4.636591221 | CD82: =CB82-CG53/$K$1 -> 2.335354728
A83: 4 | B83: 120 | D83: 4.750668741 | F83: 0 | G83: 0 | H83: 0 | I83: 115.6616063 | J83: 0 | K83: 0 | L83: 0 | M83: 0 | N83: 0 | O83: 0 | P83: 0 | Q83: 0 | R83: 0 | S83: 0 | T83: 0 | U83: 0 | V83: 0 | W83: 0 | X83: 0 | Y83: 0 | AB83: 0 | AC83: 0 | AD83: 0 | AE83: 185.0000036 | AF83: 0 | AG83: 0 | AH83: 69.33839725 | AI83: 23.76325573 | AJ83: 0 | AK83: 0 | AL83: 0 | AN83: 4.788178108 | AP83: =OFFSET(AA79,A83,A83) -> 185.0000036 | AR83: 0.0007706017812 | AS83: 0.0007706017812 | AT83: 0.0004112618151 | AU83: 0.00619385117 | AV83: 0.0005925114778 | AW83: 0 | AX83: -0.002096200265 | AY83: -2.168566259e-05 | AZ83: 0.001462303043 | BA83: -0.0001150188964 | BB83: -9.554175137e-20 | BD83: 0.0007706017812 | BE83: 0.0007706017812 | BF83: 0.0004112618151 | BG83: 0.00619385117 | BH83: 0.0005925114778 | BI83: 0 | BJ83: -0.001325598484 | BK83: -0.001325598484 | BL83: 0.004097650904 | BM83: -0.001503688787 | BN83: -0.001347284147 | BO83: -0.001347284147 | BP83: -0.001706624113 | BQ83: 0.004075965242 | BR83: 0.0001150188964 | BS83: 0.0001150188964 | BT83: -0.0002443210697 | BU83: -1.897353802e-19 | BV83: 2.439454888e-19 | BW83: -2.852771316e-19 | BZ83: 553.8083715 | CB83: 4.75066874 | CD83: =CB83-CG53/$K$1 -> 2.449432248
A84: 5 | B84: 130 | D84: 4.803593417 | F84: 0 | G84: 0 | H84: 0 | I84: 0 | J84: 121.9478406 | K84: 0 | L84: 0 | M84: 0 | N84: 0 | O84: 0 | P84: 0 | Q84: 0 | R84: 0 | S84: 0 | T84: 0 | U84: 0 | V84: 0 | W84: 0 | X84: 0 | Y84: 0 | AB84: 0 | AC84: 0 | AD84: 0 | AE84: 0 | AF84: 170.0000013 | AG84: 0 | AH84: 48.05216068 | AI84: 0 | AJ84: 0 | AK84: 0 | AL84: 0 | AN84: 4.869622954 | AP84: =OFFSET(AA79,A84,A84) -> 170.0000013 | AR84: 0.0005711615426 | AS84: 0.0005711615426 | AT84: 0.0001412216693 | AU84: 0.0005925114778 | AV84: 0.006492107049 | AW84: 0 | AX84: -0.002157201778 | AY84: 0.001681684057 | AZ84: 4.197296017e-05 | BA84: -0.0001376167819 | BB84: 4.32916924e-19 | BD84: 0.0005711615426 | BE84: 0.0005711615426 | BF84: 0.0001412216693 | BG84: 0.0005925114778 | BH84: 0.006492107049 | BI84: 0 | BJ84: -0.001586040235 | BK84: -0.001586040235 | BL84: -0.0015646903 | BM84: 0.004334905271 | BN84: 9.56438217e-05 | BO84: 9.56438217e-05 | BP84: -0.0003342960515 | BQ84: 0.0001169937569 | BR84: 0.0001376167819 | BS84: 0.0001376167819 | BT84: -0.0002923230914 | BU84: -1.626303259e-19 | BV84: 5.421010862e-20 | BW84: 2.702865981e-19 | BZ84: 593.8400036 | CB84: 4.803593418 | CD84: =CB84-CG53/$K$1 -> 2.502356925
A85: 6 | B85: 125 | D85: 4.828313737 | F85: 0 | G85: 0 | H85: 0 | I85: 0 | J85: 0 | K85: 125 | L85: 0 | M85: 0 | N85: 0 | O85: 0 | P85: 0 | Q85: 0 | R85: 0 | S85: 0 | T85: 0 | U85: 0 | V85: 0 | W85: 0 | X85: 0 | Y85: 0 | AB85: 0 | AC85: 0 | AD85: 0 | AE85: 0 | AF85: 0 | AG85: 125 | AH85: 0 | AI85: 0 | AJ85: 0 | AK85: 0 | AL85: 0 | AN85: 4.828313737 | AP85: =OFFSET(AA79,A85,A85) -> 125 | AR85: 0 | AS85: 0 | AT85: 0 | AU85: 0 | AV85: 0 | AW85: 0.008 | AX85: 0 | AY85: 0 | AZ85: 0 | BA85: 0 | BB85: 0 | BD85: 0 | BE85: 0 | BF85: 0 | BG85: 0 | BH85: 0 | BI85: 0.008 | BJ85: 0 | BK85: 0 | BL85: 0 | BM85: 0 | BN85: 0 | BO85: 0 | BP85: 0 | BQ85: 0 | BR85: 0 | BS85: 0 | BT85: 0 | BU85: 0 | BV85: 0 | BW85: 0 | BZ85: 603.5392172 | CB85: 4.828313737 | CD85: =CB85-CG53/$K$1 -> 2.527077244
A86: 7 | B86: 55 | D86: 3.777220529 | F86: 0 | G86: 0 | H86: 0 | I86: 0 | J86: 0 | K86: 0 | L86: 43.69442539 | M86: 0 | N86: 0 | O86: 0 | P86: 0 | Q86: 0 | R86: 0 | S86: 0 | T86: 0 | U86: 0 | V86: 0 | W86: 0 | X86: 0 | Y86: 0 | AB86: 109.1116121 | AC86: 101.6904166 | AD86: 46.80801323 | AE86: 69.33839725 | AF86: 48.05216068 | AG86: 0 | AH86: 375.0005999 | AI86: 195.0005943 | AJ86: 105.0005863 | AK86: 25.00058605 | AL86: 5 | AN86: 4.035962336 | AP86: =OFFSET(AA79,A86,A86) -> 375.0005999 | AR86: -0.00202066799 | AS86: -0.00202066799 | AT86: -0.0004996171582 | AU86: -0.002096200265 | AV86: -0.002157201778 | AW86: 0 | AX86: 0.007631796359 | AY86: -0.005949499205 | AZ86: -0.0001484928707 | BA86: 0.0004868637072 | BB86: -1.531583108e-18 | BD86: -0.00202066799 | BE86: -0.00202066799 | BF86: -0.0004996171582 | BG86: -0.002096200265 | BH86: -0.002157201778 | BI86: 0 | BJ86: 0.005611128368 | BK86: 0.005611128368 | BL86: 0.005535596093 | BM86: 0.005474594581 | BN86: -0.0003383708366 | BO86: -0.0003383708366 | BP86: 0.001182679996 | BQ86: -0.0004139031115 | BR86: -0.0004868637072 | BS86: -0.0004868637072 | BT86: 0.001034187125 | BU86: 1.246832498e-18 | BV86: 3.794707604e-19 | BW86: -2.8475061e-19 | BZ86: 176.3490552 | CB86: -0.9313063453 | CD86: =CB86-CG53/$K$1 -> -3.232542838
A87: 8 | B87: 50 | D87: 3.753690078 | F87: 0 | G87: 0 | H87: 0 | I87: 0 | J87: 0 | K87: 0 | L87: 0 | M87: 42.67827798 | N87: 0 | O87: 0 | P87: 0 | Q87: 0 | R87: 0 | S87: 0 | T87: 0 | U87: 0 | V87: 0 | W87: 0 | X87: 0 | Y87: 0 | AB87: 65.41718671 | AC87: 59.01213864 | AD87: 46.80801323 | AE87: 23.76325573 | AF87: 0 | AG87: 0 | AH87: 195.0005943 | AI87: 195.0005943 | AJ87: 105.0005863 | AK87: 25.00058605 | AL87: 5 | AN87: 3.925246251 | AP87: =OFFSET(AA79,A87,A87) -> 195.0005943 | AR87: -0.0001031614729 | AS87: -0.0001031614729 | AT87: -0.001743901794 | AU87: -2.168566259e-05 | AV87: 0.001681684057 | AW87: 0 | AX87: -0.005949499205 | AY87: 0.0175287676 | AZ87: -0.01095093255 | BA87: -0.0005251743718 | BB87: 5.212784972e-18 | BD87: -0.0001031614729 | BE87: -0.0001031614729 | BF87: -0.001743901794 | BG87: -2.168566259e-05 | BH87: 0.001681684057 | BI87: 0 | BJ87: -0.006052660678 | BK87: -0.006052660678 | BL87: -0.005971184868 | BM87: -0.004267815148 | BN87: 0.01147610692 | BO87: 0.01147610692 | BP87: 0.009835366598 | BQ87: 0.01155758273 | BR87: 0.0005251743718 | BS87: 0.0005251743718 | BT87: -0.001115565949 | BU87: -4.770489559e-18 | BV87: -3.035766083e-18 | BW87: 4.422954129e-19 | BZ87: 167.5227506 | CB87: -0.6512219728 | CD87: =CB87-CG53/$K$1 -> -2.952458466
A88: 9 | B88: 35 | D88: 3.819362426 | F88: 0 | G88: 0 | H88: 0 | I88: 0 | J88: 0 | K88: 0 | L88: 0 | M88: 0 | N88: 45.57514153 | O88: 0 | P88: 0 | Q88: 0 | R88: 0 | S88: 0 | T88: 0 | U88: 0 | V88: 0 | W88: 0 | X88: 0 | Y88: 0 | AB88: 42.63455193 | AC88: 36.75933153 | AD88: 25.60670287 | AE88: 0 | AF88: 0 | AG88: 0 | AH88: 105.0005863 | AI88: 105.0005863 | AJ88: 105.0005863 | AK88: 25.00058605 | AL88: 5 | AN88: 3.587324934 | AP88: =OFFSET(AA79,A88,A88) -> 105.0005863 | AR88: -0.0004854872012 | AS88: -0.0004854872012 | AT88: -0.0006573449546 | AU88: 0.001462303043 | AV88: 4.197296017e-05 | AW88: 0 | AX88: -0.0001484928707 | AY88: -0.01095093255 | AZ88: 0.02413992146 | BA88: -0.01255500884 | BB88: -7.060001144e-18 | BD88: -0.0004854872012 | BE88: -0.0004854872012 | BF88: -0.0006573449546 | BG88: 0.001462303043 | BH88: 4.197296017e-05 | BI88: 0 | BJ88: -0.0006339800718 | BK88: -0.0006339800718 | BL88: 0.001313810172 | BM88: -0.0001065199105 | BN88: -0.01158491262 | BO88: -0.01158491262 | BP88: -0.01175677037 | BQ88: -0.009637122374 | BR88: 0.01255500884 | BS88: 0.01255500884 | BT88: 0.01238315108 | BU88: 1.734723476e-18 | BV88: 3.469446952e-18 | BW88: -5.325277668e-18 | BZ88: 163.4928416 | CB88: 0.1887912446 | CD88: =CB88-CG53/$K$1 -> -2.112445248
A89: 10 | B89: 40 | D89: 3.872287102 | F89: 0 | G89: 0 | H89: 0 | I89: 0 | J89: 0 | K89: 0 | L89: 0 | M89: 0 | N89: 0 | O89: 48.05216068 | P89: 0 | Q89: 0 | R89: 0 | S89: 0 | T89: 0 | U89: 0 | V89: 0 | W89: 0 | X89: 0 | Y89: 0 | AB89: 15.11794329 | AC89: 9.882642755 | AD89: 0 | AE89: 0 | AF89: 0 | AG89: 0 | AH89: 25.00058605 | AI89: 25.00058605 | AJ89: 25.00058605 | AK89: 25.00058605 | AL89: 5 | AN89: 3.704715851 | AP89: =OFFSET(AA79,A89,A89) -> 25.00058605 | AR89: -0.0008773684378 | AS89: -0.0008773684378 | AT89: 0.002155237488 | AU89: -0.0001150188964 | AV89: -0.0001376167819 | AW89: 0 | AX89: 0.0004868637072 | AY89: -0.0005251743718 | AZ89: -0.01255500884 | BA89: 0.06346922286 | BB89: -0.04999853492 | BD89: -0.0008773684378 | BE89: -0.0008773684378 | BF89: 0.002155237488 | BG89: -0.0001150188964 | BH89: -0.0001376167819 | BI89: 0 | BJ89: -0.0003905047305 | BK89: -0.0003905047305 | BL89: 0.0003718448109 | BM89: 0.0003492469254 | BN89: -0.0009156791024 | BO89: -0.0009156791024 | BP89: 0.002116926823 | BQ89: -0.000153329561 | BR89: -0.01347068794 | BS89: -0.01347068794 | BT89: -0.01043808201 | BU89: 0.04999853492 | BV89: 0.04999853492 | BW89: 6.938893904e-18 | BZ89: 178.0196013 | CB89: -1.000508658 | CD89: =CB89-CG53/$K$1 -> -3.301745151
A90: 11 | B90: 20 | D90: 3.125998613 | F90: =IF($A90=F$4,IF($B90<0,-(EXP(-$D90)^(2-$H$1)),IF($B90=0,0,EXP($D90)^(2-$H$1))),0) -> 0 | G90: 0 | H90: 0 | I90: 0 | J90: 0 | K90: 0 | L90: 0 | M90: 0 | N90: 0 | O90: 0 | P90: =IF($A90=P$4,IF($B90<0,-(EXP(-$D90)^(2-$H$1)),IF($B90=0,0,EXP($D90)^(2-$H$1))),0) -> 22.78263478 | Q90: 0 | R90: 0 | S90: 0 | T90: 0 | U90: 0 | V90: 0 | W90: 0 | X90: 0 | Y90: 0 | AB90: 5 | AC90: 0 | AD90: 0 | AE90: 0 | AF90: 0 | AG90: 0 | AH90: 5 | AI90: 5 | AJ90: 5 | AK90: 5 | AL90: 5 | AN90: 3.003860204 | AP90: =OFFSET(AA79,A90,A90) -> 5 | AR90: -0.002298218513 | AS90: 0.00235293789 | AT90: 4.376651011e-19 | AU90: 1.367703441e-19 | AV90: 2.188325505e-19 | AW90: 0 | AX90: -9.300383398e-19 | AY90: 1.258287166e-18 | AZ90: -1.750660404e-18 | BA90: -0.04999853492 | BB90: 0.2522967534 | BD90: -0.002298218513 | BE90: 0.00235293789 | BF90: 4.376651011e-19 | BG90: 1.367703441e-19 | BH90: 2.188325505e-19 | BI90: 0 | BJ90: -0.002298218513 | BK90: 0.00235293789 | BL90: -7.932679957e-19 | BM90: -7.112057893e-19 | BN90: -0.002298218513 | BO90: 0.00235293789 | BP90: 7.659139269e-19 | BQ90: 4.650191699e-19 | BR90: -0.002298218513 | BS90: 0.00235293789 | BT90: -9.847464774e-19 | BU90: -0.05229675343 | BV90: -0.04764559703 | BW90: 0.2 | BZ90: 68.43584995 | CB90: -0.7048432208 | CD90: =CB90-CG53/$K$1 -> -3.006079714
A91: 12 | B91: 15 | D91: 3.102468163 | F91: 0 | G91: 0 | H91: 0 | I91: 0 | J91: 0 | K91: 0 | L91: 0 | M91: 0 | N91: 0 | O91: 0 | P91: 0 | Q91: 22.25280712 | R91: 0 | S91: 0 | T91: 0 | U91: 0 | V91: 0 | W91: 0 | X91: 0 | Y91: 0 | AN91: 2.776540424 | BZ91: 61.78581851
A92: 13 | B92: 25 | D92: 3.054062989 | F92: 0 | G92: 0 | H92: 0 | I92: 0 | J92: 0 | K92: 0 | L92: 0 | M92: 0 | N92: 0 | O92: 0 | P92: 0 | Q92: 0 | R92: 21.20131035 | S92: 0 | T92: 0 | U92: 0 | V92: 0 | W92: 0 | X92: 0 | Y92: 0 | AN92: 3.233235388 | BZ92: 68.54882691
A93: 14 | B93: 30 | D93: 3.168140511 | F93: 0 | G93: 0 | H93: 0 | I93: 0 | J93: 0 | K93: 0 | L93: 0 | M93: 0 | N93: 0 | O93: 0 | P93: 0 | Q93: 0 | R93: 0 | S93: 23.76325573 | T93: 0 | U93: 0 | V93: 0 | W93: 0 | X93: 0 | Y93: 0 | AN93: 3.430593785 | BZ93: 81.52207741
A94: 15 | B94: 30 | D94: 3.314789773 | F94: 0 | G94: 0 | H94: 0 | I94: 0 | J94: 0 | K94: 0 | L94: 0 | M94: 0 | N94: 0 | O94: 0 | P94: 0 | Q94: 0 | R94: 0 | S94: 0 | T94: 27.51660863 | U94: 0 | V94: 0 | W94: 0 | X94: 0 | Y94: 0 | AN94: 3.405040406 | BZ94: 93.69516423
A95: 16 | B95: 30 | D95: 3.291259322 | F95: 0 | G95: 0 | H95: 0 | I95: 0 | J95: 0 | K95: 0 | L95: 0 | M95: 0 | N95: 0 | O95: 0 | P95: 0 | Q95: 0 | R95: 0 | S95: 0 | T95: 0 | U95: 26.87668877 | V95: 0 | W95: 0 | X95: 0 | Y95: 0 | AN95: 3.407468252 | BZ95: 91.5814637
A96: 17 | B96: 20 | D96: 3.242854148 | F96: 0 | G96: 0 | H96: 0 | I96: 0 | J96: 0 | K96: 0 | L96: 0 | M96: 0 | N96: 0 | O96: 0 | P96: 0 | Q96: 0 | R96: 0 | S96: 0 | T96: 0 | U96: 0 | V96: 25.60670287 | W96: 0 | X96: 0 | Y96: 0 | AN96: 3.023899646 | BZ96: 77.43209976
A97: 18 | B97: 15 | D97: 2.314310411 | F97: 0 | G97: 0 | H97: 0 | I97: 0 | J97: 0 | K97: 0 | L97: 0 | M97: 0 | N97: 0 | O97: 0 | P97: 0 | Q97: 0 | R97: 0 | S97: 0 | T97: 0 | U97: 0 | V97: 0 | W97: 10.11794329 | X97: 0 | Y97: 0 | AN97: 2.796825144 | BZ97: 28.29811822
A98: 19 | B98: 5 | D98: 2.290779961 | F98: 0 | G98: 0 | H98: 0 | I98: 0 | J98: 0 | K98: 0 | L98: 0 | M98: 0 | N98: 0 | O98: 0 | P98: 0 | Q98: 0 | R98: 0 | S98: 0 | T98: 0 | U98: 0 | V98: 0 | W98: 0 | X98: 9.882642755 | Y98: 0 | AN98: 1.796717505 | BZ98: 17.75631723
A99: 20 | B99: 5 | D99: 1.609437912 | F99: 0 | G99: 0 | H99: 0 | I99: 0 | J99: 0 | K99: 0 | L99: 0 | M99: 0 | N99: 0 | O99: 0 | P99: 0 | Q99: 0 | R99: 0 | S99: 0 | T99: 0 | U99: 0 | V99: 0 | W99: 0 | X99: 0 | Y99: 5 | AN99: 1.609437912 | BZ99: 8.047189562
A100: 21
A102: Newton-Raphson Interation Sequence -- Iteration 5
B103: y(i) | D103: xb(i) | F103: W(i,i) | AB103: XWX | AN103: zz(i) | AP103: factor | AR103: xwx-1 | BD103: aa1(i,j) | BZ103: aa2(j) | CB103: beta(j) | CD103: beta_diff = | CE103: =SUM(CD105:CD115) -> -3.508304758e-14 | CF103: beta_old = | CG103: =SUM(CB105:CB115) -> 25.3136014
B104: 1 | D104: 1 | F104: 1 | G104: 2 | H104: 3 | I104: 4 | J104: 5 | K104: 6 | L104: 7 | M104: 8 | N104: 9 | O104: 10 | P104: 11 | Q104: 12 | R104: 13 | S104: 14 | T104: 15 | U104: 16 | V104: 17 | W104: 18 | X104: 19 | Y104: 20 | Z104: 21 | AB104: 1 | AC104: 2 | AD104: 3 | AE104: 4 | AF104: 5 | AG104: 6 | AH104: 7 | AI104: 8 | AJ104: 9 | AK104: 10 | AL104: 11 | AN104: 1 | AR104: 1 | AS104: 2 | AT104: 3 | AU104: 4 | AV104: 5 | AW104: 6 | AX104: 7 | AY104: 8 | AZ104: 9 | BA104: 10 | BB104: 11 | BD104: 1 | BE104: 2 | BF104: 3 | BG104: 4 | BH104: 5 | BI104: 6 | BJ104: 7 | BK104: 8 | BL104: 9 | BM104: 10 | BN104: 11 | BO104: 12 | BP104: 13 | BQ104: 14 | BR104: 15 | BS104: 16 | BT104: 17 | BU104: 18 | BV104: 19 | BW104: 20 | BX104: 21
A105: 1 | B105: =B80 -> 95 | D105: =MMULT(OutlierDesignMatrix,CB80:CB90) -> 4.708526865 | F105: =IF($A105=F$4,IF($B105<0,-(EXP(-$D105)^(2-$H$1)),IF($B105=0,0,EXP($D105)^(2-$H$1))),0) -> 110.8886855 | G105: 0 | H105: 0 | I105: 0 | J105: 0 | K105: 0 | L105: 0 | M105: 0 | N105: 0 | O105: 0 | P105: =IF($A105=P$4,IF($B105<0,-(EXP(-$D105)^(2-$H$1)),IF($B105=0,0,EXP($D105)^(2-$H$1))),0) -> 0 | Q105: 0 | R105: 0 | S105: 0 | T105: 0 | U105: 0 | V105: 0 | W105: 0 | X105: 0 | Y105: 0 | AB105: =MMULT(TRANSPOSE(OutlierDesignMatrix),MMULT(F105:Y124,OutlierDesignMatrix)) -> 220 | AC105: 0 | AD105: 0 | AE105: 0 | AF105: 0 | AG105: 0 | AH105: 109.1113145 | AI105: 65.41688948 | AJ105: 42.63425621 | AK105: 15.11764706 | AL105: 5 | AN105: =IF(B105<0,D105+(B105+EXP(-D105))/-EXP(-D105),IF(B105=0,0,D105+(B105-EXP(D105))/EXP(D105))) -> 4.565241863 | AP105: =OFFSET(AA104,A105,A105) -> 220 | AR105: =MINVERSE(AB105:AL115) -> 0.005784906748 | AS105: 0.001133743958 | AT105: 0.0007456264042 | AU105: 0.0007706017586 | AV105: 0.0005711615317 | AW105: 0 | AX105: -0.002020667995 | AY105: -0.0001031614729 | AZ105: -0.0004854872112 | BA105: -0.0008773684546 | BB105: -0.002298221614 | BD105: =MMULT(AR105:BB115,TRANSPOSE(OutlierDesignMatrix)) -> 0.005784906748 | BE105: 0.001133743958 | BF105: 0.0007456264042 | BG105: 0.0007706017586 | BH105: 0.0005711615317 | BI105: 0 | BJ105: 0.003764238753 | BK105: -0.0008869240377 | BL105: -0.001250066237 | BM105: -0.001449506464 | BN105: 0.00366107728 | BO105: -0.0009900855106 | BP105: -0.001378203064 | BQ105: -0.00135322771 | BR105: 0.003175590069 | BS105: -0.001475572722 | BT105: -0.001863690275 | BU105: 0.002298221614 | BV105: -0.002352941176 | BW105: 0 | BZ105: =MMULT(F105:Y124,AN105:AN124) -> 506.2336693 | CB105: =MMULT(BD105:BW115,BZ105:BZ124) -> 4.708526865 | CD105: =CB105-CG78/$K$1 -> 2.407290374
A106: 2 | B106: =B81 -> 110 | D106: 4.684996368 | F106: 0 | G106: 108.3098789 | H106: 0 | I106: 0 | J106: 0 | K106: 0 | L106: 0 | M106: 0 | N106: 0 | O106: 0 | P106: 0 | Q106: 0 | R106: 0 | S106: 0 | T106: 0 | U106: 0 | V106: 0 | W106: 0 | X106: 0 | Y106: 0 | AB106: 0 | AC106: 210 | AD106: 0 | AE106: 0 | AF106: 0 | AG106: 0 | AH106: 101.6901211 | AI106: 59.01184554 | AJ106: 36.75904095 | AK106: 9.882352945 | AL106: 0 | AN106: =IF(B106<0,D106+(B106+EXP(-D106))/-EXP(-D106),IF(B106=0,0,D106+(B106-EXP(D106))/EXP(D106))) -> 4.700600864 | AP106: =OFFSET(AA104,A106,A106) -> 210 | AR106: 0.001133743958 | AS106: 0.005895648719 | AT106: 0.0007456264042 | AU106: 0.0007706017586 | AV106: 0.0005711615317 | AW106: 0 | AX106: -0.002020667995 | AY106: -0.0001031614729 | AZ106: -0.0004854872112 | BA106: -0.0008773684546 | BB106: 0.002352941176 | BD106: 0.001133743958 | BE106: 0.005895648719 | BF106: 0.0007456264042 | BG106: 0.0007706017586 | BH106: 0.0005711615317 | BI106: 0 | BJ106: -0.0008869240377 | BK106: 0.003874980724 | BL106: -0.001250066237 | BM106: -0.001449506464 | BN106: -0.0009900855106 | BO106: 0.003771819251 | BP106: -0.001378203064 | BQ106: -0.00135322771 | BR106: -0.001475572722 | BS106: 0.00328633204 | BT106: -0.001863690275 | BU106: -0.002352941176 | BV106: 0.002408963585 | BW106: 0 | BZ106: 509.1215102 | CB106: 4.684996368 | CD106: =CB106-CG78/$K$1 -> 2.383759877
A107: 3 | B107: 105 | D107: 4.636591221 | F107: 0 | G107: 0 | H107: 103.1919886 | I107: 0 | J107: 0 | K107: 0 | L107: 0 | M107: 0 | N107: 0 | O107: 0 | P107: 0 | Q107: 0 | R107: 0 | S107: 0 | T107: 0 | U107: 0 | V107: 0 | W107: 0 | X107: 0 | Y107: 0 | AB107: 0 | AC107: 0 | AD107: 150 | AE107: 0 | AF107: 0 | AG107: 0 | AH107: 46.80801136 | AI107: 46.80801136 | AJ107: 25.60670284 | AK107: 0 | AL107: 0 | AN107: 4.654112071 | AP107: =OFFSET(AA104,A107,A107) -> 150 | AR107: 0.0007456264042 | AS107: 0.0007456264042 | AT107: 0.007478980653 | AU107: 0.0004112617906 | AV107: 0.0001412216619 | AW107: 0 | AX107: -0.0004996171427 | AY107: -0.001743901814 | AZ107: -0.0006573449652 | BA107: 0.002155237517 | BB107: 3.55101294e-19 | BD107: 0.0007456264042 | BE107: 0.0007456264042 | BF107: 0.007478980653 | BG107: 0.0004112617906 | BH107: 0.0001412216619 | BI107: 0 | BJ107: 0.0002460092615 | BK107: 0.0002460092615 | BL107: -8.835535212e-05 | BM107: -0.0003583954808 | BN107: -0.001497892552 | BO107: -0.001497892552 | BP107: 0.005235461697 | BQ107: -0.001832257166 | BR107: -0.002155237517 | BS107: -0.002155237517 | BT107: 0.004578116732 | BU107: -1.301042607e-18 | BV107: -1.301042607e-18 | BW107: -9.45941313e-19 | BZ107: 480.2670799 | CB107: 4.636591221 | CD107: =CB107-CG78/$K$1 -> 2.33535473
A108: 4 | B108: 120 | D108: 4.75066874 | F108: 0 | G108: 0 | H108: 0 | I108: 115.6616063 | J108: 0 | K108: 0 | L108: 0 | M108: 0 | N108: 0 | O108: 0 | P108: 0 | Q108: 0 | R108: 0 | S108: 0 | T108: 0 | U108: 0 | V108: 0 | W108: 0 | X108: 0 | Y108: 0 | AB108: 0 | AC108: 0 | AD108: 0 | AE108: 185 | AF108: 0 | AG108: 0 | AH108: 69.33839375 | AI108: 23.76325363 | AJ108: 0 | AK108: 0 | AL108: 0 | AN108: 4.788178108 | AP108: =OFFSET(AA104,A108,A108) -> 185 | AR108: 0.0007706017586 | AS108: 0.0007706017586 | AT108: 0.0004112617906 | AU108: 0.006193851253 | AV108: 0.0005925114671 | AW108: 0 | AX108: -0.002096200273 | AY108: -2.168566012e-05 | AZ108: 0.001462303071 | BA108: -0.0001150188972 | BB108: 4.303339197e-19 | BD108: 0.0007706017586 | BE108: 0.0007706017586 | BF108: 0.0004112617906 | BG108: 0.006193851253 | BH108: 0.0005925114671 | BI108: 0 | BJ108: -0.001325598514 | BK108: -0.001325598514 | BL108: 0.00409765098 | BM108: -0.001503688806 | BN108: -0.001347284174 | BO108: -0.001347284174 | BP108: -0.001706624142 | BQ108: 0.00407596532 | BR108: 0.0001150188972 | BS108: 0.0001150188972 | BT108: -0.0002443210707 | BU108: -1.260385026e-18 | BV108: -1.47722546e-18 | BW108: -8.300511058e-19 | BZ108: 553.808371 | CB108: 4.75066874 | CD108: =CB108-CG78/$K$1 -> 2.44943225
A109: 5 | B109: 130 | D109: 4.803593418 | F109: 0 | G109: 0 | H109: 0 | I109: 0 | J109: 121.9478407 | K109: 0 | L109: 0 | M109: 0 | N109: 0 | O109: 0 | P109: 0 | Q109: 0 | R109: 0 | S109: 0 | T109: 0 | U109: 0 | V109: 0 | W109: 0 | X109: 0 | Y109: 0 | AB109: 0 | AC109: 0 | AD109: 0 | AE109: 0 | AF109: 170 | AG109: 0 | AH109: 48.05215929 | AI109: 0 | AJ109: 0 | AK109: 0 | AL109: 0 | AN109: 4.869622954 | AP109: =OFFSET(AA104,A109,A109) -> 170 | AR109: 0.0005711615317 | AS109: 0.0005711615317 | AT109: 0.0001412216619 | AU109: 0.0005925114671 | AV109: 0.00649210708 | AW109: 0 | AX109: -0.002157201781 | AY109: 0.001681684071 | AZ109: 4.197296002e-05 | BA109: -0.0001376167811 | BB109: -4.329172277e-19 | BD109: 0.0005711615317 | BE109: 0.0005711615317 | BF109: 0.0001412216619 | BG109: 0.0005925114671 | BH109: 0.00649210708 | BI109: 0 | BJ109: -0.00158604025 | BK109: -0.00158604025 | BL109: -0.001564690314 | BM109: 0.004334905299 | BN109: 9.564382104e-05 | BO109: 9.564382104e-05 | BP109: -0.0003342960487 | BQ109: 0.0001169937565 | BR109: 0.0001376167811 | BS109: 0.0001376167811 | BT109: -0.0002923230887 | BU109: 5.421010862e-20 | BV109: -3.794707604e-19 | BW109: -3.787071191e-19 | BZ109: 593.8400043 | CB109: 4.803593418 | CD109: =CB109-CG78/$K$1 -> 2.502356928
A110: 6 | B110: 125 | D110: 4.828313737 | F110: 0 | G110: 0 | H110: 0 | I110: 0 | J110: 0 | K110: 125 | L110: 0 | M110: 0 | N110: 0 | O110: 0 | P110: 0 | Q110: 0 | R110: 0 | S110: 0 | T110: 0 | U110: 0 | V110: 0 | W110: 0 | X110: 0 | Y110: 0 | AB110: 0 | AC110: 0 | AD110: 0 | AE110: 0 | AF110: 0 | AG110: 125 | AH110: 0 | AI110: 0 | AJ110: 0 | AK110: 0 | AL110: 0 | AN110: 4.828313737 | AP110: =OFFSET(AA104,A110,A110) -> 125 | AR110: 0 | AS110: 0 | AT110: 0 | AU110: 0 | AV110: 0 | AW110: 0.008 | AX110: 0 | AY110: 0 | AZ110: 0 | BA110: 0 | BB110: 0 | BD110: 0 | BE110: 0 | BF110: 0 | BG110: 0 | BH110: 0 | BI110: 0.008 | BJ110: 0 | BK110: 0 | BL110: 0 | BM110: 0 | BN110: 0 | BO110: 0 | BP110: 0 | BQ110: 0 | BR110: 0 | BS110: 0 | BT110: 0 | BU110: 0 | BV110: 0 | BW110: 0 | BZ110: 603.5392172 | CB110: 4.828313737 | CD110: =CB110-CG78/$K$1 -> 2.527077247
A111: 7 | B111: 55 | D111: 3.77722052 | F111: 0 | G111: 0 | H111: 0 | I111: 0 | J111: 0 | K111: 0 | L111: 43.694425 | M111: 0 | N111: 0 | O111: 0 | P111: 0 | Q111: 0 | R111: 0 | S111: 0 | T111: 0 | U111: 0 | V111: 0 | W111: 0 | X111: 0 | Y111: 0 | AB111: 109.1113145 | AC111: 101.6901211 | AD111: 46.80801136 | AE111: 69.33839375 | AF111: 48.05215929 | AG111: 0 | AH111: 375 | AI111: 195 | AJ111: 105 | AK111: 25.00000001 | AL111: 5 | AN111: 4.035962338 | AP111: =OFFSET(AA104,A111,A111) -> 375 | AR111: -0.002020667995 | AS111: -0.002020667995 | AT111: -0.0004996171427 | AU111: -0.002096200273 | AV111: -0.002157201781 | AW111: 0 | AX111: 0.007631796536 | AY111: -0.005949499382 | AZ111: -0.0001484928734 | BA111: 0.0004868637149 | BB111: 1.531584216e-18 | BD111: -0.002020667995 | BE111: -0.002020667995 | BF111: -0.0004996171427 | BG111: -0.002096200273 | BH111: -0.002157201781 | BI111: 0 | BJ111: 0.005611128541 | BK111: 0.005611128541 | BL111: 0.005535596264 | BM111: 0.005474594755 | BN111: -0.0003383708415 | BO111: -0.0003383708415 | BP111: 0.001182680011 | BQ111: -0.0004139031189 | BR111: -0.0004868637149 | BS111: -0.0004868637149 | BT111: 0.001034187138 | BU111: 1.626303259e-19 | BV111: 1.029992064e-18 | BW111: 1.694214542e-18 | BZ111: 176.3490537 | CB111: -0.9313063453 | CD111: =CB111-CG78/$K$1 -> -3.232542836
A112: 8 | B112: 50 | D112: 3.753690022 | F112: 0 | G112: 0 | H112: 0 | I112: 0 | J112: 0 | K112: 0 | L112: 0 | M112: 42.67827559 | N112: 0 | O112: 0 | P112: 0 | Q112: 0 | R112: 0 | S112: 0 | T112: 0 | U112: 0 | V112: 0 | W112: 0 | X112: 0 | Y112: 0 | AB112: 65.41688948 | AC112: 59.01184554 | AD112: 46.80801136 | AE112: 23.76325363 | AF112: 0 | AG112: 0 | AH112: 195 | AI112: 195 | AJ112: 105 | AK112: 25.00000001 | AL112: 5 | AN112: 3.925246261 | AP112: =OFFSET(AA104,A112,A112) -> 195 | AR112: -0.0001031614729 | AS112: -0.0001031614729 | AT112: -0.001743901814 | AU112: -2.168566012e-05 | AV112: 0.001681684071 | AW112: 0 | AX112: -0.005949499382 | AY112: 0.01752876876 | AZ112: -0.01095093353 | BA112: -0.0005251743794 | BB112: -7.819188714e-18 | BD112: -0.0001031614729 | BE112: -0.0001031614729 | BF112: -0.001743901814 | BG112: -2.168566012e-05 | BH112: 0.001681684071 | BI112: 0 | BJ112: -0.006052660855 | BK112: -0.006052660855 | BL112: -0.005971185043 | BM112: -0.004267815312 | BN112: 0.01147610791 | BO112: 0.01147610791 | BP112: 0.009835367568 | BQ112: 0.01155758372 | BR112: 0.0005251743794 | BS112: 0.0005251743794 | BT112: -0.001115565961 | BU112: 7.372574773e-18 | BV112: 5.637851297e-18 | BW112: -4.466139411e-19 | BZ112: 167.5227416 | CB112: -0.6512219728 | CD112: =CB112-CG78/$K$1 -> -2.952458463
A113: 9 | B113: 35 | D113: 3.819362395 | F113: 0 | G113: 0 | H113: 0 | I113: 0 | J113: 0 | K113: 0 | L113: 0 | M113: 0 | N113: 45.57514012 | O113: 0 | P113: 0 | Q113: 0 | R113: 0 | S113: 0 | T113: 0 | U113: 0 | V113: 0 | W113: 0 | X113: 0 | Y113: 0 | AB113: 42.63425621 | AC113: 36.75904095 | AD113: 25.60670284 | AE113: 0 | AF113: 0 | AG113: 0 | AH113: 105 | AI113: 105 | AJ113: 105 | AK113: 25.00000001 | AL113: 5 | AN113: 3.587324927 | AP113: =OFFSET(AA104,A113,A113) -> 105 | AR113: -0.0004854872112 | AS113: -0.0004854872112 | AT113: -0.0006573449652 | AU113: 0.001462303071 | AV113: 4.197296002e-05 | AW113: 0 | AX113: -0.0001484928734 | AY113: -0.01095093353 | AZ113: 0.02413992249 | BA113: -0.01255500888 | BB113: 9.413358298e-18 | BD113: -0.0004854872112 | BE113: -0.0004854872112 | BF113: -0.0006573449652 | BG113: 0.001462303071 | BH113: 4.197296002e-05 | BI113: 0 | BJ113: -0.0006339800846 | BK113: -0.0006339800846 | BL113: 0.001313810198 | BM113: -0.0001065199133 | BN113: -0.01158491361 | BO113: -0.01158491361 | BP113: -0.01175677137 | BQ113: -0.009637123331 | BR113: 0.01255500888 | BS113: 0.01255500888 | BT113: 0.01238315113 | BU113: -8.67361738e-18 | BV113: -6.938893904e-18 | BW113: 7.397409181e-19 | BZ113: 163.4928362 | CB113: 0.1887912446 | CD113: =CB113-CG78/$K$1 -> -2.112445246
A114: 10 | B114: 40 | D114: 3.872287073 | F114: 0 | G114: 0 | H114: 0 | I114: 0 | J114: 0 | K114: 0 | L114: 0 | M114: 0 | N114: 0 | O114: 48.05215929 | P114: 0 | Q114: 0 | R114: 0 | S114: 0 | T114: 0 | U114: 0 | V114: 0 | W114: 0 | X114: 0 | Y114: 0 | AB114: 15.11764706 | AC114: 9.882352945 | AD114: 0 | AE114: 0 | AF114: 0 | AG114: 0 | AH114: 25.00000001 | AI114: 25.00000001 | AJ114: 25.00000001 | AK114: 25.00000001 | AL114: 5 | AN114: 3.704715846 | AP114: =OFFSET(AA104,A114,A114) -> 25.00000001 | AR114: -0.0008773684546 | AS114: -0.0008773684546 | AT114: 0.002155237517 | AU114: -0.0001150188972 | AV114: -0.0001376167811 | AW114: 0 | AX114: 0.0004868637149 | AY114: -0.0005251743794 | AZ114: -0.01255500888 | BA114: 0.06347068798 | BB114: -0.04999999998 | BD114: -0.0008773684546 | BE114: -0.0008773684546 | BF114: 0.002155237517 | BG114: -0.0001150188972 | BH114: -0.0001376167811 | BI114: 0 | BJ114: -0.0003905047397 | BK114: -0.0003905047397 | BL114: 0.0003718448177 | BM114: 0.0003492469338 | BN114: -0.0009156791191 | BO114: -0.0009156791191 | BP114: 0.002116926853 | BQ114: -0.0001533295617 | BR114: -0.013470688 | BS114: -0.013470688 | BT114: -0.01043808203 | BU114: 0.04999999998 | BV114: 0.04999999998 | BW114: -6.938893904e-18 | BZ114: 178.019596 | CB114: -1.000508659 | CD114: =CB114-CG78/$K$1 -> -3.301745149
A115: 11 | B115: 20 | D115: 3.125998547 | F115: =IF($A115=F$4,IF($B115<0,-(EXP(-$D115)^(2-$H$1)),IF($B115=0,0,EXP($D115)^(2-$H$1))),0) -> 0 | G115: 0 | H115: 0 | I115: 0 | J115: 0 | K115: 0 | L115: 0 | M115: 0 | N115: 0 | O115: 0 | P115: =IF($A115=P$4,IF($B115<0,-(EXP(-$D115)^(2-$H$1)),IF($B115=0,0,EXP($D115)^(2-$H$1))),0) -> 22.78263327 | Q115: 0 | R115: 0 | S115: 0 | T115: 0 | U115: 0 | V115: 0 | W115: 0 | X115: 0 | Y115: 0 | AB115: 5 | AC115: 0 | AD115: 0 | AE115: 0 | AF115: 0 | AG115: 0 | AH115: 5 | AI115: 5 | AJ115: 5 | AK115: 5 | AL115: 5 | AN115: 3.003860196 | AP115: =OFFSET(AA104,A115,A115) -> 5 | AR115: -0.002298221614 | AS115: 0.002352941176 | AT115: 0 | AU115: 2.87219394e-19 | AV115: -4.376676479e-19 | AW115: 0 | AX115: 1.203586032e-18 | AY115: -5.416137143e-18 | AZ115: 7.002682367e-18 | BA115: -0.04999999998 | BB115: 0.2522982216 | BD115: -0.002298221614 | BE115: 0.002352941176 | BF115: 0 | BG115: 2.87219394e-19 | BH115: -4.376676479e-19 | BI115: 0 | BJ115: -0.002298221614 | BK115: 0.002352941176 | BL115: 1.490805426e-18 | BM115: 7.659183839e-19 | BN115: -0.002298221614 | BO115: 0.002352941176 | BP115: -4.212551111e-18 | BQ115: -3.925331717e-18 | BR115: -0.002298221614 | BS115: 0.002352941176 | BT115: 2.790131256e-18 | BU115: -0.05229822159 | BV115: -0.0476470588 | BW115: 0.2 | BZ115: 68.43584522 | CB115: -0.7048432203 | CD115: =CB115-CG78/$K$1 -> -3.006079711
A116: 12 | B116: 15 | D116: 3.102468049 | F116: 0 | G116: 0 | H116: 0 | I116: 0 | J116: 0 | K116: 0 | L116: 0 | M116: 0 | N116: 0 | O116: 0 | P116: 0 | Q116: 22.25280459 | R116: 0 | S116: 0 | T116: 0 | U116: 0 | V116: 0 | W116: 0 | X116: 0 | Y116: 0 | AN116: 2.776540387 | BZ116: 61.78581065
A117: 13 | B117: 25 | D117: 3.054062902 | F117: 0 | G117: 0 | H117: 0 | I117: 0 | J117: 0 | K117: 0 | L117: 0 | M117: 0 | N117: 0 | O117: 0 | P117: 0 | Q117: 0 | R117: 21.20130852 | S117: 0 | T117: 0 | U117: 0 | V117: 0 | W117: 0 | X117: 0 | Y117: 0 | AN117: 3.233235404 | BZ117: 68.54882132
A118: 14 | B118: 30 | D118: 3.168140422 | F118: 0 | G118: 0 | H118: 0 | I118: 0 | J118: 0 | K118: 0 | L118: 0 | M118: 0 | N118: 0 | O118: 0 | P118: 0 | Q118: 0 | R118: 0 | S118: 23.76325363 | T118: 0 | U118: 0 | V118: 0 | W118: 0 | X118: 0 | Y118: 0 | AN118: 3.430593808 | BZ118: 81.52207075
A119: 15 | B119: 30 | D119: 3.314789791 | F119: 0 | G119: 0 | H119: 0 | I119: 0 | J119: 0 | K119: 0 | L119: 0 | M119: 0 | N119: 0 | O119: 0 | P119: 0 | Q119: 0 | R119: 0 | S119: 0 | T119: 27.51660915 | U119: 0 | V119: 0 | W119: 0 | X119: 0 | Y119: 0 | AN119: 3.405040405 | BZ119: 93.69516596
A120: 16 | B120: 30 | D120: 3.291259294 | F120: 0 | G120: 0 | H120: 0 | I120: 0 | J120: 0 | K120: 0 | L120: 0 | M120: 0 | N120: 0 | O120: 0 | P120: 0 | Q120: 0 | R120: 0 | S120: 0 | T120: 0 | U120: 26.87668801 | V120: 0 | W120: 0 | X120: 0 | Y120: 0 | AN120: 3.407468255 | BZ120: 91.58146119
A121: 17 | B121: 20 | D121: 3.242854147 | F121: 0 | G121: 0 | H121: 0 | I121: 0 | J121: 0 | K121: 0 | L121: 0 | M121: 0 | N121: 0 | O121: 0 | P121: 0 | Q121: 0 | R121: 0 | S121: 0 | T121: 0 | U121: 0 | V121: 25.60670284 | W121: 0 | X121: 0 | Y121: 0 | AN121: 3.023899646 | BZ121: 77.43209966
A122: 18 | B122: 15 | D122: 2.314281133 | F122: 0 | G122: 0 | H122: 0 | I122: 0 | J122: 0 | K122: 0 | L122: 0 | M122: 0 | N122: 0 | O122: 0 | P122: 0 | Q122: 0 | R122: 0 | S122: 0 | T122: 0 | U122: 0 | V122: 0 | W122: 10.11764706 | X122: 0 | Y122: 0 | AN122: 2.796839272 | BZ122: 28.29743265
A123: 19 | B123: 5 | D123: 2.290750636 | F123: 0 | G123: 0 | H123: 0 | I123: 0 | J123: 0 | K123: 0 | L123: 0 | M123: 0 | N123: 0 | O123: 0 | P123: 0 | Q123: 0 | R123: 0 | S123: 0 | T123: 0 | U123: 0 | V123: 0 | W123: 0 | X123: 9.882352945 | Y123: 0 | AN123: 1.796703017 | BZ123: 17.75565335
A124: 20 | B124: 5 | D124: 1.609437912 | F124: 0 | G124: 0 | H124: 0 | I124: 0 | J124: 0 | K124: 0 | L124: 0 | M124: 0 | N124: 0 | O124: 0 | P124: 0 | Q124: 0 | R124: 0 | S124: 0 | T124: 0 | U124: 0 | V124: 0 | W124: 0 | X124: 0 | Y124: 5 | AN124: 1.609437912 | BZ124: 8.047189562
A125: 21
A127: Newton-Raphson Interation Sequence -- Iteration 6
B128: y(i) | D128: xb(i) | F128: W(i,i) | AB128: XWX | AN128: zz(i) | AP128: factor | AR128: xwx-1 | BD128: aa1(i,j) | BZ128: aa2(j) | CB128: beta(j) | CD128: beta_diff = | CE128: =SUM(CD130:CD140) -> 3.552713679e-15 | CF128: beta_old = | CG128: =SUM(CB130:CB140) -> 25.3136014
B129: 1 | D129: 1 | F129: 1 | G129: 2 | H129: 3 | I129: 4 | J129: 5 | K129: 6 | L129: 7 | M129: 8 | N129: 9 | O129: 10 | P129: 11 | Q129: 12 | R129: 13 | S129: 14 | T129: 15 | U129: 16 | V129: 17 | W129: 18 | X129: 19 | Y129: 20 | Z129: 21 | AB129: 1 | AC129: 2 | AD129: 3 | AE129: 4 | AF129: 5 | AG129: 6 | AH129: 7 | AI129: 8 | AJ129: 9 | AK129: 10 | AL129: 11 | AN129: 1 | AR129: 1 | AS129: 2 | AT129: 3 | AU129: 4 | AV129: 5 | AW129: 6 | AX129: 7 | AY129: 8 | AZ129: 9 | BA129: 10 | BB129: 11 | BD129: 1 | BE129: 2 | BF129: 3 | BG129: 4 | BH129: 5 | BI129: 6 | BJ129: 7 | BK129: 8 | BL129: 9 | BM129: 10 | BN129: 11 | BO129: 12 | BP129: 13 | BQ129: 14 | BR129: 15 | BS129: 16 | BT129: 17 | BU129: 18 | BV129: 19 | BW129: 20 | BX129: 21
A130: 1 | B130: =B105 -> 95 | D130: =MMULT(OutlierDesignMatrix,CB105:CB115) -> 4.708526865 | F130: =IF($A130=F$4,IF($B130<0,-(EXP(-$D130)^(2-$H$1)),IF($B130=0,0,EXP($D130)^(2-$H$1))),0) -> 110.8886855 | G130: 0 | H130: 0 | I130: 0 | J130: 0 | K130: 0 | L130: 0 | M130: 0 | N130: 0 | O130: 0 | P130: =IF($A130=P$4,IF($B130<0,-(EXP(-$D130)^(2-$H$1)),IF($B130=0,0,EXP($D130)^(2-$H$1))),0) -> 0 | Q130: 0 | R130: 0 | S130: 0 | T130: 0 | U130: 0 | V130: 0 | W130: 0 | X130: 0 | Y130: 0 | AB130: =MMULT(TRANSPOSE(OutlierDesignMatrix),MMULT(F130:Y149,OutlierDesignMatrix)) -> 220 | AC130: 0 | AD130: 0 | AE130: 0 | AF130: 0 | AG130: 0 | AH130: 109.1113145 | AI130: 65.41688948 | AJ130: 42.63425621 | AK130: 15.11764706 | AL130: 5 | AN130: =IF(B130<0,D130+(B130+EXP(-D130))/-EXP(-D130),IF(B130=0,0,D130+(B130-EXP(D130))/EXP(D130))) -> 4.565241863 | AP130: =OFFSET(AA129,A130,A130) -> 220 | AR130: =MINVERSE(AB130:AL140) -> 0.005784906748 | AS130: 0.001133743958 | AT130: 0.0007456264042 | AU130: 0.0007706017586 | AV130: 0.0005711615317 | AW130: 0 | AX130: -0.002020667995 | AY130: -0.0001031614729 | AZ130: -0.0004854872112 | BA130: -0.0008773684546 | BB130: -0.002298221614 | BD130: =MMULT(AR130:BB140,TRANSPOSE(OutlierDesignMatrix)) -> 0.005784906748 | BE130: 0.001133743958 | BF130: 0.0007456264042 | BG130: 0.0007706017586 | BH130: 0.0005711615317 | BI130: 0 | BJ130: 0.003764238753 | BK130: -0.0008869240377 | BL130: -0.001250066237 | BM130: -0.001449506464 | BN130: 0.00366107728 | BO130: -0.0009900855106 | BP130: -0.001378203064 | BQ130: -0.00135322771 | BR130: 0.003175590069 | BS130: -0.001475572722 | BT130: -0.001863690275 | BU130: 0.002298221614 | BV130: -0.002352941176 | BW130: 1.734723476e-18 | BZ130: =MMULT(F130:Y149,AN130:AN149) -> 506.2336693 | CB130: =MMULT(BD130:BW140,BZ130:BZ149) -> 4.708526865 | CD130: =CB130-CG103/$K$1 -> 2.407290374
A131: 2 | B131: =B106 -> 110 | D131: 4.684996368 | F131: 0 | G131: 108.3098789 | H131: 0 | I131: 0 | J131: 0 | K131: 0 | L131: 0 | M131: 0 | N131: 0 | O131: 0 | P131: 0 | Q131: 0 | R131: 0 | S131: 0 | T131: 0 | U131: 0 | V131: 0 | W131: 0 | X131: 0 | Y131: 0 | AB131: 0 | AC131: 210 | AD131: 0 | AE131: 0 | AF131: 0 | AG131: 0 | AH131: 101.6901211 | AI131: 59.01184553 | AJ131: 36.75904095 | AK131: 9.882352941 | AL131: 0 | AN131: =IF(B131<0,D131+(B131+EXP(-D131))/-EXP(-D131),IF(B131=0,0,D131+(B131-EXP(D131))/EXP(D131))) -> 4.700600864 | AP131: =OFFSET(AA129,A131,A131) -> 210 | AR131: 0.001133743958 | AS131: 0.00589564872 | AT131: 0.0007456264042 | AU131: 0.0007706017586 | AV131: 0.0005711615317 | AW131: 0 | AX131: -0.002020667995 | AY131: -0.0001031614729 | AZ131: -0.0004854872112 | BA131: -0.0008773684546 | BB131: 0.002352941176 | BD131: 0.001133743958 | BE131: 0.00589564872 | BF131: 0.0007456264042 | BG131: 0.0007706017586 | BH131: 0.0005711615317 | BI131: 0 | BJ131: -0.0008869240377 | BK131: 0.003874980724 | BL131: -0.001250066237 | BM131: -0.001449506464 | BN131: -0.0009900855106 | BO131: 0.003771819251 | BP131: -0.001378203064 | BQ131: -0.00135322771 | BR131: -0.001475572722 | BS131: 0.00328633204 | BT131: -0.001863690275 | BU131: -0.002352941176 | BV131: 0.002408963585 | BW131: 4.33680869e-19 | BZ131: 509.1215102 | CB131: 4.684996368 | CD131: =CB131-CG103/$K$1 -> 2.383759877
A132: 3 | B132: 105 | D132: 4.636591221 | F132: 0 | G132: 0 | H132: 103.1919886 | I132: 0 | J132: 0 | K132: 0 | L132: 0 | M132: 0 | N132: 0 | O132: 0 | P132: 0 | Q132: 0 | R132: 0 | S132: 0 | T132: 0 | U132: 0 | V132: 0 | W132: 0 | X132: 0 | Y132: 0 | AB132: 0 | AC132: 0 | AD132: 150 | AE132: 0 | AF132: 0 | AG132: 0 | AH132: 46.80801136 | AI132: 46.80801136 | AJ132: 25.60670284 | AK132: 0 | AL132: 0 | AN132: 4.654112071 | AP132: =OFFSET(AA129,A132,A132) -> 150 | AR132: 0.0007456264042 | AS132: 0.0007456264042 | AT132: 0.007478980653 | AU132: 0.0004112617906 | AV132: 0.0001412216619 | AW132: 0 | AX132: -0.0004996171427 | AY132: -0.001743901814 | AZ132: -0.0006573449652 | BA132: 0.002155237517 | BB132: -7.985579277e-19 | BD132: 0.0007456264042 | BE132: 0.0007456264042 | BF132: 0.007478980653 | BG132: 0.0004112617906 | BH132: 0.0001412216619 | BI132: 0 | BJ132: 0.0002460092615 | BK132: 0.0002460092615 | BL132: -8.835535212e-05 | BM132: -0.0003583954808 | BN132: -0.001497892552 | BO132: -0.001497892552 | BP132: 0.005235461697 | BQ132: -0.001832257166 | BR132: -0.002155237517 | BS132: -0.002155237517 | BT132: 0.004578116732 | BU132: 1.301042607e-18 | BV132: 1.301042607e-18 | BW132: 5.024846793e-19 | BZ132: 480.2670799 | CB132: 4.636591221 | CD132: =CB132-CG103/$K$1 -> 2.33535473
A133: 4 | B133: 120 | D133: 4.75066874 | F133: 0 | G133: 0 | H133: 0 | I133: 115.6616063 | J133: 0 | K133: 0 | L133: 0 | M133: 0 | N133: 0 | O133: 0 | P133: 0 | Q133: 0 | R133: 0 | S133: 0 | T133: 0 | U133: 0 | V133: 0 | W133: 0 | X133: 0 | Y133: 0 | AB133: 0 | AC133: 0 | AD133: 0 | AE133: 185 | AF133: 0 | AG133: 0 | AH133: 69.33839375 | AI133: 23.76325363 | AJ133: 0 | AK133: 0 | AL133: 0 | AN133: 4.788178108 | AP133: =OFFSET(AA129,A133,A133) -> 185 | AR133: 0.0007706017586 | AS133: 0.0007706017586 | AT133: 0.0004112617906 | AU133: 0.006193851253 | AV133: 0.0005925114671 | AW133: 0 | AX133: -0.002096200273 | AY133: -2.168566012e-05 | AZ133: 0.001462303071 | BA133: -0.0001150188972 | BB133: 1.673958239e-19 | BD133: 0.0007706017586 | BE133: 0.0007706017586 | BF133: 0.0004112617906 | BG133: 0.006193851253 | BH133: 0.0005925114671 | BI133: 0 | BJ133: -0.001325598514 | BK133: -0.001325598514 | BL133: 0.00409765098 | BM133: -0.001503688806 | BN133: -0.001347284174 | BO133: -0.001347284174 | BP133: -0.001706624142 | BQ133: 0.00407596532 | BR133: 0.0001150188972 | BS133: 0.0001150188972 | BT133: -0.0002443210707 | BU133: 2.981555974e-19 | BV133: 5.149960319e-19 | BW133: 4.655514214e-19 | BZ133: 553.808371 | CB133: 4.75066874 | CD133: =CB133-CG103/$K$1 -> 2.44943225
A134: 5 | B134: 130 | D134: 4.803593418 | F134: 0 | G134: 0 | H134: 0 | I134: 0 | J134: 121.9478407 | K134: 0 | L134: 0 | M134: 0 | N134: 0 | O134: 0 | P134: 0 | Q134: 0 | R134: 0 | S134: 0 | T134: 0 | U134: 0 | V134: 0 | W134: 0 | X134: 0 | Y134: 0 | AB134: 0 | AC134: 0 | AD134: 0 | AE134: 0 | AF134: 170 | AG134: 0 | AH134: 48.05215929 | AI134: 0 | AJ134: 0 | AK134: 0 | AL134: 0 | AN134: 4.869622954 | AP134: =OFFSET(AA129,A134,A134) -> 170 | AR134: 0.0005711615317 | AS134: 0.0005711615317 | AT134: 0.0001412216619 | AU134: 0.0005925114671 | AV134: 0.00649210708 | AW134: 0 | AX134: -0.002157201781 | AY134: 0.001681684071 | AZ134: 4.197296002e-05 | BA134: -0.0001376167811 | BB134: 0 | BD134: 0.0005711615317 | BE134: 0.0005711615317 | BF134: 0.0001412216619 | BG134: 0.0005925114671 | BH134: 0.00649210708 | BI134: 0 | BJ134: -0.00158604025 | BK134: -0.00158604025 | BL134: -0.001564690314 | BM134: 0.004334905299 | BN134: 9.564382104e-05 | BO134: 9.564382104e-05 | BP134: -0.0003342960487 | BQ134: 0.0001169937565 | BR134: 0.0001376167811 | BS134: 0.0001376167811 | BT134: -0.0002923230887 | BU134: -4.33680869e-19 | BV134: 0 | BW134: -4.33680869e-19 | BZ134: 593.8400043 | CB134: 4.803593418 | CD134: =CB134-CG103/$K$1 -> 2.502356928
A135: 6 | B135: 125 | D135: 4.828313737 | F135: 0 | G135: 0 | H135: 0 | I135: 0 | J135: 0 | K135: 125 | L135: 0 | M135: 0 | N135: 0 | O135: 0 | P135: 0 | Q135: 0 | R135: 0 | S135: 0 | T135: 0 | U135: 0 | V135: 0 | W135: 0 | X135: 0 | Y135: 0 | AB135: 0 | AC135: 0 | AD135: 0 | AE135: 0 | AF135: 0 | AG135: 125 | AH135: 0 | AI135: 0 | AJ135: 0 | AK135: 0 | AL135: 0 | AN135: 4.828313737 | AP135: =OFFSET(AA129,A135,A135) -> 125 | AR135: 0 | AS135: 0 | AT135: 0 | AU135: 0 | AV135: 0 | AW135: 0.008 | AX135: 0 | AY135: 0 | AZ135: 0 | BA135: 0 | BB135: 0 | BD135: 0 | BE135: 0 | BF135: 0 | BG135: 0 | BH135: 0 | BI135: 0.008 | BJ135: 0 | BK135: 0 | BL135: 0 | BM135: 0 | BN135: 0 | BO135: 0 | BP135: 0 | BQ135: 0 | BR135: 0 | BS135: 0 | BT135: 0 | BU135: 0 | BV135: 0 | BW135: 0 | BZ135: 603.5392172 | CB135: 4.828313737 | CD135: =CB135-CG103/$K$1 -> 2.527077247
A136: 7 | B136: 55 | D136: 3.77722052 | F136: 0 | G136: 0 | H136: 0 | I136: 0 | J136: 0 | K136: 0 | L136: 43.694425 | M136: 0 | N136: 0 | O136: 0 | P136: 0 | Q136: 0 | R136: 0 | S136: 0 | T136: 0 | U136: 0 | V136: 0 | W136: 0 | X136: 0 | Y136: 0 | AB136: 109.1113145 | AC136: 101.6901211 | AD136: 46.80801136 | AE136: 69.33839375 | AF136: 48.05215929 | AG136: 0 | AH136: 375 | AI136: 195 | AJ136: 105 | AK136: 25 | AL136: 5 | AN136: 4.035962338 | AP136: =OFFSET(AA129,A136,A136) -> 375 | AR136: -0.002020667995 | AS136: -0.002020667995 | AT136: -0.0004996171427 | AU136: -0.002096200273 | AV136: -0.002157201781 | AW136: 0 | AX136: 0.007631796536 | AY136: -0.005949499382 | AZ136: -0.0001484928734 | BA136: 0.0004868637149 | BB136: 0 | BD136: -0.002020667995 | BE136: -0.002020667995 | BF136: -0.0004996171427 | BG136: -0.002096200273 | BH136: -0.002157201781 | BI136: 0 | BJ136: 0.005611128541 | BK136: 0.005611128541 | BL136: 0.005535596264 | BM136: 0.005474594755 | BN136: -0.0003383708415 | BO136: -0.0003383708415 | BP136: 0.001182680011 | BQ136: -0.0004139031189 | BR136: -0.0004868637149 | BS136: -0.0004868637149 | BT136: 0.001034187138 | BU136: 2.168404345e-18 | BV136: 4.33680869e-19 | BW136: 2.168404345e-18 | BZ136: 176.3490537 | CB136: -0.9313063453 | CD136: =CB136-CG103/$K$1 -> -3.232542836
A137: 8 | B137: 50 | D137: 3.753690022 | F137: 0 | G137: 0 | H137: 0 | I137: 0 | J137: 0 | K137: 0 | L137: 0 | M137: 42.67827559 | N137: 0 | O137: 0 | P137: 0 | Q137: 0 | R137: 0 | S137: 0 | T137: 0 | U137: 0 | V137: 0 | W137: 0 | X137: 0 | Y137: 0 | AB137: 65.41688948 | AC137: 59.01184553 | AD137: 46.80801136 | AE137: 23.76325363 | AF137: 0 | AG137: 0 | AH137: 195 | AI137: 195 | AJ137: 105 | AK137: 25 | AL137: 5 | AN137: 3.925246261 | AP137: =OFFSET(AA129,A137,A137) -> 195 | AR137: -0.0001031614729 | AS137: -0.0001031614729 | AT137: -0.001743901814 | AU137: -2.168566012e-05 | AV137: 0.001681684071 | AW137: 0 | AX137: -0.005949499382 | AY137: 0.01752876876 | AZ137: -0.01095093353 | BA137: -0.0005251743794 | BB137: -1.303198119e-18 | BD137: -0.0001031614729 | BE137: -0.0001031614729 | BF137: -0.001743901814 | BG137: -2.168566012e-05 | BH137: 0.001681684071 | BI137: 0 | BJ137: -0.006052660855 | BK137: -0.006052660855 | BL137: -0.005971185043 | BM137: -0.004267815312 | BN137: 0.01147610791 | BO137: 0.01147610791 | BP137: 0.009835367568 | BQ137: 0.01155758372 | BR137: 0.0005251743794 | BS137: 0.0005251743794 | BT137: -0.001115565961 | BU137: -5.095750211e-18 | BV137: -5.095750211e-18 | BW137: -6.39894833e-18 | BZ137: 167.5227416 | CB137: -0.6512219728 | CD137: =CB137-CG103/$K$1 -> -2.952458463
A138: 9 | B138: 35 | D138: 3.819362395 | F138: 0 | G138: 0 | H138: 0 | I138: 0 | J138: 0 | K138: 0 | L138: 0 | M138: 0 | N138: 45.57514012 | O138: 0 | P138: 0 | Q138: 0 | R138: 0 | S138: 0 | T138: 0 | U138: 0 | V138: 0 | W138: 0 | X138: 0 | Y138: 0 | AB138: 42.63425621 | AC138: 36.75904095 | AD138: 25.60670284 | AE138: 0 | AF138: 0 | AG138: 0 | AH138: 105 | AI138: 105 | AJ138: 105 | AK138: 25 | AL138: 5 | AN138: 3.587324927 | AP138: =OFFSET(AA129,A138,A138) -> 105 | AR138: -0.0004854872112 | AS138: -0.0004854872112 | AT138: -0.0006573449652 | AU138: 0.001462303071 | AV138: 4.197296002e-05 | AW138: 0 | AX138: -0.0001484928734 | AY138: -0.01095093353 | AZ138: 0.02413992249 | BA138: -0.01255500888 | BB138: 7.060018724e-18 | BD138: -0.0004854872112 | BE138: -0.0004854872112 | BF138: -0.0006573449652 | BG138: 0.001462303071 | BH138: 4.197296002e-05 | BI138: 0 | BJ138: -0.0006339800846 | BK138: -0.0006339800846 | BL138: 0.001313810198 | BM138: -0.0001065199133 | BN138: -0.01158491361 | BO138: -0.01158491361 | BP138: -0.01175677137 | BQ138: -0.009637123331 | BR138: 0.01255500888 | BS138: 0.01255500888 | BT138: 0.01238315113 | BU138: 0 | BV138: 0 | BW138: 7.060018724e-18 | BZ138: 163.4928362 | CB138: 0.1887912446 | CD138: =CB138-CG103/$K$1 -> -2.112445246
A139: 10 | B139: 40 | D139: 3.872287073 | F139: 0 | G139: 0 | H139: 0 | I139: 0 | J139: 0 | K139: 0 | L139: 0 | M139: 0 | N139: 0 | O139: 48.05215929 | P139: 0 | Q139: 0 | R139: 0 | S139: 0 | T139: 0 | U139: 0 | V139: 0 | W139: 0 | X139: 0 | Y139: 0 | AB139: 15.11764706 | AC139: 9.882352941 | AD139: 0 | AE139: 0 | AF139: 0 | AG139: 0 | AH139: 25 | AI139: 25 | AJ139: 25 | AK139: 25 | AL139: 5 | AN139: 3.704715846 | AP139: =OFFSET(AA129,A139,A139) -> 25 | AR139: -0.0008773684546 | AS139: -0.0008773684546 | AT139: 0.002155237517 | AU139: -0.0001150188972 | AV139: -0.0001376167811 | AW139: 0 | AX139: 0.0004868637149 | AY139: -0.0005251743794 | AZ139: -0.01255500888 | BA139: 0.063470688 | BB139: -0.05 | BD139: -0.0008773684546 | BE139: -0.0008773684546 | BF139: 0.002155237517 | BG139: -0.0001150188972 | BH139: -0.0001376167811 | BI139: 0 | BJ139: -0.0003905047397 | BK139: -0.0003905047397 | BL139: 0.0003718448177 | BM139: 0.0003492469338 | BN139: -0.0009156791191 | BO139: -0.0009156791191 | BP139: 0.002116926853 | BQ139: -0.0001533295617 | BR139: -0.013470688 | BS139: -0.013470688 | BT139: -0.01043808203 | BU139: 0.05 | BV139: 0.05 | BW139: -2.081668171e-17 | BZ139: 178.019596 | CB139: -1.000508659 | CD139: =CB139-CG103/$K$1 -> -3.301745149
A140: 11 | B140: 20 | D140: 3.125998547 | F140: =IF($A140=F$4,IF($B140<0,-(EXP(-$D140)^(2-$H$1)),IF($B140=0,0,EXP($D140)^(2-$H$1))),0) -> 0 | G140: 0 | H140: 0 | I140: 0 | J140: 0 | K140: 0 | L140: 0 | M140: 0 | N140: 0 | O140: 0 | P140: =IF($A140=P$4,IF($B140<0,-(EXP(-$D140)^(2-$H$1)),IF($B140=0,0,EXP($D140)^(2-$H$1))),0) -> 22.78263327 | Q140: 0 | R140: 0 | S140: 0 | T140: 0 | U140: 0 | V140: 0 | W140: 0 | X140: 0 | Y140: 0 | AB140: 5 | AC140: 0 | AD140: 0 | AE140: 0 | AF140: 0 | AG140: 0 | AH140: 5 | AI140: 5 | AJ140: 5 | AK140: 5 | AL140: 5 | AN140: 3.003860196 | AP140: =OFFSET(AA129,A140,A140) -> 5 | AR140: -0.002298221614 | AS140: 0.002352941176 | AT140: -1.750670592e-18 | AU140: 3.14573622e-19 | AV140: 5.4708456e-19 | AW140: 0 | AX140: -1.91479596e-18 | AY140: 4.704927216e-18 | AZ140: 1.750670592e-18 | BA140: -0.05 | BB140: 0.2522982216 | BD140: -0.002298221614 | BE140: 0.002352941176 | BF140: -1.750670592e-18 | BG140: 3.14573622e-19 | BH140: 5.4708456e-19 | BI140: 0 | BJ140: -0.002298221614 | BK140: 0.002352941176 | BL140: -1.600222338e-18 | BM140: -1.3677114e-18 | BN140: -0.002298221614 | BO140: 0.002352941176 | BP140: 1.039460664e-18 | BQ140: 3.104704878e-18 | BR140: -0.002298221614 | BS140: 0.002352941176 | BT140: 2.790131256e-18 | BU140: -0.05229822161 | BV140: -0.04764705882 | BW140: 0.2 | BZ140: 68.43584522 | CB140: -0.7048432203 | CD140: =CB140-CG103/$K$1 -> -3.006079711
A141: 12 | B141: 15 | D141: 3.102468049 | F141: 0 | G141: 0 | H141: 0 | I141: 0 | J141: 0 | K141: 0 | L141: 0 | M141: 0 | N141: 0 | O141: 0 | P141: 0 | Q141: 22.25280459 | R141: 0 | S141: 0 | T141: 0 | U141: 0 | V141: 0 | W141: 0 | X141: 0 | Y141: 0 | AN141: 2.776540387 | BZ141: 61.78581065
A142: 13 | B142: 25 | D142: 3.054062902 | F142: 0 | G142: 0 | H142: 0 | I142: 0 | J142: 0 | K142: 0 | L142: 0 | M142: 0 | N142: 0 | O142: 0 | P142: 0 | Q142: 0 | R142: 21.20130852 | S142: 0 | T142: 0 | U142: 0 | V142: 0 | W142: 0 | X142: 0 | Y142: 0 | AN142: 3.233235404 | BZ142: 68.54882132
A143: 14 | B143: 30 | D143: 3.168140422 | F143: 0 | G143: 0 | H143: 0 | I143: 0 | J143: 0 | K143: 0 | L143: 0 | M143: 0 | N143: 0 | O143: 0 | P143: 0 | Q143: 0 | R143: 0 | S143: 23.76325363 | T143: 0 | U143: 0 | V143: 0 | W143: 0 | X143: 0 | Y143: 0 | AN143: 3.430593808 | BZ143: 81.52207075
A144: 15 | B144: 30 | D144: 3.314789791 | F144: 0 | G144: 0 | H144: 0 | I144: 0 | J144: 0 | K144: 0 | L144: 0 | M144: 0 | N144: 0 | O144: 0 | P144: 0 | Q144: 0 | R144: 0 | S144: 0 | T144: 27.51660915 | U144: 0 | V144: 0 | W144: 0 | X144: 0 | Y144: 0 | AN144: 3.405040405 | BZ144: 93.69516596
A145: 16 | B145: 30 | D145: 3.291259294 | F145: 0 | G145: 0 | H145: 0 | I145: 0 | J145: 0 | K145: 0 | L145: 0 | M145: 0 | N145: 0 | O145: 0 | P145: 0 | Q145: 0 | R145: 0 | S145: 0 | T145: 0 | U145: 26.87668801 | V145: 0 | W145: 0 | X145: 0 | Y145: 0 | AN145: 3.407468255 | BZ145: 91.58146119
A146: 17 | B146: 20 | D146: 3.242854147 | F146: 0 | G146: 0 | H146: 0 | I146: 0 | J146: 0 | K146: 0 | L146: 0 | M146: 0 | N146: 0 | O146: 0 | P146: 0 | Q146: 0 | R146: 0 | S146: 0 | T146: 0 | U146: 0 | V146: 25.60670284 | W146: 0 | X146: 0 | Y146: 0 | AN146: 3.023899646 | BZ146: 77.43209966
A147: 18 | B147: 15 | D147: 2.314281133 | F147: 0 | G147: 0 | H147: 0 | I147: 0 | J147: 0 | K147: 0 | L147: 0 | M147: 0 | N147: 0 | O147: 0 | P147: 0 | Q147: 0 | R147: 0 | S147: 0 | T147: 0 | U147: 0 | V147: 0 | W147: 10.11764706 | X147: 0 | Y147: 0 | AN147: 2.796839272 | BZ147: 28.29743264
A148: 19 | B148: 5 | D148: 2.290750635 | F148: 0 | G148: 0 | H148: 0 | I148: 0 | J148: 0 | K148: 0 | L148: 0 | M148: 0 | N148: 0 | O148: 0 | P148: 0 | Q148: 0 | R148: 0 | S148: 0 | T148: 0 | U148: 0 | V148: 0 | W148: 0 | X148: 9.882352941 | Y148: 0 | AN148: 1.796703016 | BZ148: 17.75565334
A149: 20 | B149: 5 | D149: 1.609437912 | F149: 0 | G149: 0 | H149: 0 | I149: 0 | J149: 0 | K149: 0 | L149: 0 | M149: 0 | N149: 0 | O149: 0 | P149: 0 | Q149: 0 | R149: 0 | S149: 0 | T149: 0 | U149: 0 | V149: 0 | W149: 0 | X149: 0 | Y149: 5 | AN149: 1.609437912 | BZ149: 8.047189562
A150: 21

Sheet Diagnostics
A1: Residual Graphs | AC1: =AVERAGE(AJ5:AJ25) -> 0.02227648743 | AD1: =STDEV(AJ5:AJ25) -> 1.530773684
AC2: Normal RSS Calc | AF2: Normality for Pearson Residuals
W3: Exposure | X3: Develop | Y3: Calendar | Z3: Fitted | AC3: Scaled
W4: Offset | X4: Offset | Y4: Period | Z4: Values | AA4: Residual | AC4: Normal | AD4: Difference | AF4: Rank | AG4: Order | AH4: Percentile | AI4: PhiInv | AJ4: Sort | AK4: R2
V5: 1 | W5: 1 | X5: 0 | Y5: =IF(W5="","",W5+X5-1) -> 0 | Z5: =IF(W5="","",OFFSET(Data!$N$77,W5,X5)) -> 110.8886855 | AA5: =IF(W5="","",OFFSET(Data!$N$104,W5,X5)) -> -2.519927725 | AC5: =IF(AH5="","",NORMINV(AH5,$AC$1,$AD$1)) -> -2.837578673 | AD5: =IF(AC5="","",AJ5-AC5) -> 0.3176509477 | AF5: =IF(AA5="","",RANK(AA5,ResidY1Values,1)) -> 1 | AG5: =IF(W5="","",V5) -> 1 | AH5: =IF(W5="","",(AG5-0.375)/(Data!$P$113+0.25)) -> 0.03086419753 | AI5: =IF(W5="","",NORMINV(AH5,0,1)) -> -1.868241655 | AJ5: =IF(AA5="","",IF(ISERROR(MATCH(AG5,AF$5:AF$25,0)),0,OFFSET(AA$4,MATCH(AG5,AF$5:AF$25,0),0))) -> -2.519927725 | AK5: =CORREL(NormXValues,NormYValues)^2 -> 0.9486040262 | AM5: u | AN5: =LN(Data!$P$113) -> 2.995732274
V6: 2 | W6: 2 | X6: 0 | Y6: =IF(W6="","",W6+X6-1) -> 1 | Z6: =IF(W6="","",OFFSET(Data!$N$77,W6,X6)) -> 108.3098789 | AA6: =IF(W6="","",OFFSET(Data!$N$104,W6,X6)) -> 0.2701244426 | AC6: =IF(AH6="","",NORMINV(AH6,$AC$1,$AD$1)) -> -2.126030643 | AD6: =IF(AC6="","",AJ6-AC6) -> -0.110841594 | AF6: 10 | AG6: =IF(W6="","",V6) -> 2 | AH6: =IF(W6="","",(AG6-0.375)/(Data!$P$113+0.25)) -> 0.08024691358 | AI6: =IF(W6="","",NORMINV(AH6,0,1)) -> -1.403412636 | AJ6: =IF(AA6="","",IF(ISERROR(MATCH(AG6,AF$5:AF$25,0)),0,OFFSET(AA$4,MATCH(AG6,AF$5:AF$25,0),0))) -> -2.236872237 | AM6: v | AN6: =LN(AN5) -> 1.0971887
V7: 3 | W7: 3 | X7: 0 | Y7: 2 | Z7: =IF(W7="","",OFFSET(Data!$N$77,W7,X7)) -> 103.1919886 | AA7: =IF(W7="","",OFFSET(Data!$N$104,W7,X7)) -> 0.3725569274 | AC7: -1.704656116 | AD7: -0.386829384 | AF7: 11 | AG7: 3 | AH7: =IF(W7="","",(AG7-0.375)/(Data!$P$113+0.25)) -> 0.1296296296 | AI7: -1.128143645 | AJ7: -2.0914855 | AM7: Mu | AN7: =-1.2725+1.0521*(AN6-AN5) -> -3.269957693
V8: 4 | W8: 4 | X8: 0 | Y8: 3 | Z8: =IF(W8="","",OFFSET(Data!$N$77,W8,X8)) -> 115.6616063 | AA8: =IF(W8="","",OFFSET(Data!$N$104,W8,X8)) -> 0.7574852607 | AC8: -1.384711982 | AD8: -0.4961359476 | AF8: 13 | AG8: 4 | AH8: =IF(W8="","",(AG8-0.375)/(Data!$P$113+0.25)) -> 0.1790123457 | AI8: -0.919135522 | AJ8: -1.880847929 | AM8: Sigma | AN8: =1.0308-0.26758*(AN6+2/AN5) -> 0.5585734509
V9: 5 | W9: 5 | X9: 0 | Y9: 4 | Z9: =IF(W9="","",OFFSET(Data!$N$77,W9,X9)) -> 121.9478407 | AA9: =IF(W9="","",OFFSET(Data!$N$104,W9,X9)) -> 1.597640418 | AC9: -1.116837639 | AD9: -0.4808027791 | AF9: 17 | AG9: 5 | AH9: =IF(W9="","",(AG9-0.375)/(Data!$P$113+0.25)) -> 0.2283950617 | AI9: -0.7441427422 | AJ9: -1.597640418 | AM9: z | AN9: =(LN(1-AK5)-AN7)/AN8 -> 0.5402373704
V10: 6 | W10: 6 | X10: 0 | Y10: 5 | Z10: =IF(W10="","",OFFSET(Data!$N$77,W10,X10)) -> 125 | AA10: =IF(W10="","",OFFSET(Data!$N$104,W10,X10)) -> 0 | AC10: -0.8800469357 | AD10: -0.5903942648 | AF10: 8 | AG10: 6 | AH10: =IF(W10="","",(AG10-0.375)/(Data!$P$113+0.25)) -> 0.2777777778 | AI10: -0.5894557978 | AJ10: -1.470441201 | AM10: p-Value | AN10: =1-NORMSDIST(AN9) -> 0.2945166719
V11: 7 | W11: 1 | X11: 1 | Y11: 1 | Z11: =IF(W11="","",OFFSET(Data!$N$77,W11,X11)) -> 43.694425 | AA11: =IF(W11="","",OFFSET(Data!$N$104,W11,X11)) -> 2.226000867 | AC11: -0.6631542463 | AD11: -0.05290397497 | AF11: 19 | AG11: 7 | AH11: =IF(W11="","",(AG11-0.375)/(Data!$P$113+0.25)) -> 0.3271604938 | AI11: -0.4477675185 | AJ11: -0.7160582213
V12: 8 | W12: 2 | X12: 1 | Y12: 2 | Z12: =IF(W12="","",OFFSET(Data!$N$77,W12,X12)) -> 42.67827559 | AA12: =IF(W12="","",OFFSET(Data!$N$104,W12,X12)) -> 1.452770506 | AC12: -0.4592624986 | AD12: 0.4592624986 | AF12: 16 | AG12: 8 | AH12: =IF(W12="","",(AG12-0.375)/(Data!$P$113+0.25)) -> 0.3765432099 | AI12: -0.3145722918 | AJ12: 0
U13: ==> | V13: 9 | W13: 4 | X13: 1 | Y13: 4 | Z13: =IF(W13="","",OFFSET(Data!$N$77,W13,X13)) -> 45.57514012 | AA13: =IF(W13="","",OFFSET(Data!$N$104,W13,X13)) -> -2.0914855 | AC13: -0.263604868 | AD13: 0.263604868 | AF13: 3 | AG13: 9 | AH13: =IF(W13="","",(AG13-0.375)/(Data!$P$113+0.25)) -> 0.4259259259 | AI13: -0.1867561211 | AJ13: 0
V14: 10 | W14: 5 | X14: 1 | Y14: 5 | Z14: =IF(W14="","",OFFSET(Data!$N$77,W14,X14)) -> 48.05215929 | AA14: =IF(W14="","",OFFSET(Data!$N$104,W14,X14)) -> -1.597640418 | AC14: -0.07252681195 | AD14: 0.3426512545 | AF14: 5 | AG14: 10 | AH14: =IF(W14="","",(AG14-0.375)/(Data!$P$113+0.25)) -> 0.475308642 | AI14: -0.06193162346 | AJ14: 0.2701244426
V15: 11 | W15: 1 | X15: 2 | Y15: 2 | Z15: =IF(W15="","",OFFSET(Data!$N$77,W15,X15)) -> 22.78263327 | AA15: =IF(W15="","",OFFSET(Data!$N$104,W15,X15)) -> -0.7160582213 | AC15: 0.1170797868 | AD15: 0.2554771406 | AF15: 7 | AG15: 11 | AH15: =IF(W15="","",(AG15-0.375)/(Data!$P$113+0.25)) -> 0.524691358 | AI15: 0.06193162346 | AJ15: 0.3725569274
V16: 12 | W16: 2 | X16: 2 | Y16: 3 | Z16: =IF(W16="","",OFFSET(Data!$N$77,W16,X16)) -> 22.25280459 | AA16: =IF(W16="","",OFFSET(Data!$N$104,W16,X16)) -> -1.880847929 | AC16: 0.3081578428 | AD16: 0.3210638648 | AF16: 4 | AG16: 12 | AH16: =IF(W16="","",(AG16-0.375)/(Data!$P$113+0.25)) -> 0.5740740741 | AI16: 0.1867561211 | AJ16: 0.6292217077
V17: 13 | W17: 3 | X17: 2 | Y17: 4 | Z17: =IF(W17="","",OFFSET(Data!$N$77,W17,X17)) -> 21.20130852 | AA17: =IF(W17="","",OFFSET(Data!$N$104,W17,X17)) -> 1.019055963 | AC17: 0.5038154734 | AD17: 0.2536697873 | AF17: 15 | AG17: 13 | AH17: =IF(W17="","",(AG17-0.375)/(Data!$P$113+0.25)) -> 0.6234567901 | AI17: 0.3145722918 | AJ17: 0.7574852607
V18: 14 | W18: 4 | X18: 2 | Y18: 5 | Z18: =IF(W18="","",OFFSET(Data!$N$77,W18,X18)) -> 23.76325363 | AA18: =IF(W18="","",OFFSET(Data!$N$104,W18,X18)) -> 1.60133401 | AC18: 0.7077072212 | AD18: 0.08803341998 | AF18: 18 | AG18: 14 | AH18: =IF(W18="","",(AG18-0.375)/(Data!$P$113+0.25)) -> 0.6728395062 | AI18: 0.4477675185 | AJ18: 0.7957406412
V19: 15 | W19: 1 | X19: 3 | Y19: 3 | Z19: =IF(W19="","",OFFSET(Data!$N$77,W19,X19)) -> 27.51660915 | AA19: =IF(W19="","",OFFSET(Data!$N$104,W19,X19)) -> 0.6292217077 | AC19: 0.9245999105 | AD19: 0.09445605285 | AF19: 12 | AG19: 15 | AH19: =IF(W19="","",(AG19-0.375)/(Data!$P$113+0.25)) -> 0.7222222222 | AI19: 0.5894557978 | AJ19: 1.019055963
V20: 16 | W20: 2 | X20: 3 | Y20: 4 | Z20: =IF(W20="","",OFFSET(Data!$N$77,W20,X20)) -> 26.87668801 | AA20: =IF(W20="","",OFFSET(Data!$N$104,W20,X20)) -> 0.7957406412 | AC20: 1.161390614 | AD20: 0.2913798915 | AF20: 14 | AG20: 16 | AH20: =IF(W20="","",(AG20-0.375)/(Data!$P$113+0.25)) -> 0.7716049383 | AI20: 0.7441427422 | AJ20: 1.452770506
V21: 17 | W21: 3 | X21: 3 | Y21: 5 | Z21: =IF(W21="","",OFFSET(Data!$N$77,W21,X21)) -> 25.60670284 | AA21: =IF(W21="","",OFFSET(Data!$N$104,W21,X21)) -> -1.470441201 | AC21: 1.429264956 | AD21: 0.168375462 | AF21: 6 | AG21: 17 | AH21: =IF(W21="","",(AG21-0.375)/(Data!$P$113+0.25)) -> 0.8209876543 | AI21: 0.919135522 | AJ21: 1.597640418
V22: 18 | W22: 1 | X22: 4 | Y22: 4 | Z22: =IF(W22="","",OFFSET(Data!$N$77,W22,X22)) -> 10.11764706 | AA22: =IF(W22="","",OFFSET(Data!$N$104,W22,X22)) -> 2.236872237 | AC22: 1.749209091 | AD22: -0.1478750814 | AF22: 20 | AG22: 18 | AH22: =IF(W22="","",(AG22-0.375)/(Data!$P$113+0.25)) -> 0.8703703704 | AI22: 1.128143645 | AJ22: 1.60133401
V23: 19 | W23: 2 | X23: 4 | Y23: 5 | Z23: =IF(W23="","",OFFSET(Data!$N$77,W23,X23)) -> 9.882352941 | AA23: =IF(W23="","",OFFSET(Data!$N$104,W23,X23)) -> -2.236872237 | AC23: 2.170583618 | AD23: 0.05541724888 | AF23: 2 | AG23: 19 | AH23: =IF(W23="","",(AG23-0.375)/(Data!$P$113+0.25)) -> 0.9197530864 | AI23: 1.403412636 | AJ23: 2.226000867
V24: 20 | W24: 1 | X24: 5 | Y24: 5 | Z24: =IF(W24="","",OFFSET(Data!$N$77,W24,X24)) -> 5 | AA24: =IF(W24="","",OFFSET(Data!$N$104,W24,X24)) -> 0 | AC24: 2.882131648 | AD24: -0.6452594106 | AF24: 8 | AG24: 20 | AH24: =IF(W24="","",(AG24-0.375)/(Data!$P$113+0.25)) -> 0.9691358025 | AI24: 1.868241655 | AJ24: 2.236872237
V25: 21 | Z25: =IF(W25="","",OFFSET(Data!$N$77,W25,X25)) ->  | AA25: =IF(W25="","",OFFSET(Data!$N$104,W25,X25)) ->  | AH25: =IF(W25="","",(AG25-0.375)/(Data!$P$113+0.25)) -> 
AC27: RSS | AD27: =SUMSQ(AD5:AD25) -> 2.293251937 | AI27: Linear Regression
V28: Mean Residuals | AC28: AIC | AD28: =2*(Data!R113)+Data!P113*(LN(2*PI()*AD27/Data!P113)+1) -> 35.44231326 | AI28: =LINEST(NormYValues,NormXValues,TRUE,TRUE) -> 1.547605211 | AJ28: 0.02227648743
A29: Normality Plot | V29: Exposure | W29: Residual | X29: Develop | Y29: Residual | Z29: Calendar | AA29: Residual | AC29: BIC | AD29: =Data!P113*LN(AD27/Data!P113)+(Data!R113*LN(Data!P113)) -> -10.36217306 | AI29: 0.08490748917 | AJ29: 0.07972620407
V30: 1 | W30: =IF(V30="","",SUMIF(ResidX2Values,V30,ResidY1Values)/COUNTIF(ResidX2Values,V30)) -> 0.3093514775 | X30: 0 | Y30: =IF(X30="","",SUMIF(ResidX1Values,X30,ResidY1Values)/COUNTIF(ResidX1Values,X30)) -> 0.07964655399 | Z30: 0 | AA30: =IF(Z30="","",SUMIF(ResidX3Values,Z30,ResidY1Values)/COUNTIF(ResidX3Values,Z30)) -> -2.519927725 | AI30: 0.9486040262 | AJ30: 0.3565464238
V31: 2 | W31: =IF(V31="","",SUMIF(ResidX2Values,V31,ResidY1Values)/COUNTIF(ResidX2Values,V31)) -> -0.3198169154 | X31: 1 | Y31: =IF(X31="","",SUMIF(ResidX1Values,X31,ResidY1Values)/COUNTIF(ResidX1Values,X31)) -> -0.00258863658 | Z31: 1 | AA31: 1.248062655 | AI31: 332.2219859 | AJ31: 18
V32: 3 | W32: =IF(V32="","",SUMIF(ResidX2Values,V32,ResidY1Values)/COUNTIF(ResidX2Values,V32)) -> -0.02627610325 | X32: 2 | Y32: =IF(X32="","",SUMIF(ResidX1Values,X32,ResidY1Values)/COUNTIF(ResidX1Values,X32)) -> 0.005870955665 | Z32: 2 | AA32: 0.3697564039 | AI32: 42.23383701 | AJ32: 2.288256342
V33: 4 | W33: =IF(V33="","",SUMIF(ResidX2Values,V33,ResidY1Values)/COUNTIF(ResidX2Values,V33)) -> 0.08911125671 | X33: 3 | Y33: =IF(X33="","",SUMIF(ResidX1Values,X33,ResidY1Values)/COUNTIF(ResidX1Values,X33)) -> -0.01515961724 | Z33: 3 | AA33: -0.1647136536
V34: 5 | W34: =IF(V34="","",SUMIF(ResidX2Values,V34,ResidY1Values)/COUNTIF(ResidX2Values,V34)) -> 2.331468352e-15 | X34: 4 | Y34: =IF(X34="","",SUMIF(ResidX1Values,X34,ResidY1Values)/COUNTIF(ResidX1Values,X34)) -> -4.662936703e-15 | Z34: 4 | AA34: 0.711564752 | AI34: Line of best fit
Z35: 5 | AA35: -0.6172699744 | AI35: -3 | AJ35: =AI35*AI$28+AJ$28 -> -4.620539145
AI36: 3 | AJ36: =AI36*AI$28+AJ$28 -> 4.66509212
A45: ="N = "&TEXT(Data!$P$113,"0") -> N = 20 | C45: ="p-Value = "&TEXT(AN10,"0.0%") -> p-Value = 29.5% | F45: R2 = | G45: =AK5 -> 0.9486040262
A46: ="Normal: MU = "&TEXT(AC1,"0.00")&", Sigma = "&TEXT(AD1,"0.00") -> Normal: MU = 0.02, Sigma = 1.53 | G46: ="AIC = "&TEXT(AD28,"0.0")&", BIC = "&TEXT(AD29,"0.0") -> AIC = 35.4, BIC = -10.4

Sheet Hat Matrix
A1: Weight Matrix
A2: =Data!N78 -> 110.8886855 | B2: 0 | C2: 0 | D2: 0 | E2: 0 | F2: 0 | G2: 0 | H2: 0 | I2: 0 | J2: 0 | K2: 0 | L2: 0 | M2: 0 | N2: 0 | O2: 0 | P2: 0 | Q2: 0 | R2: 0 | S2: 0 | T2: 0 | U2: 0 | W2: =Data!N78 -> 110.8886855 | X2: 0 | Y2: 0 | Z2: 0 | AA2: 0 | AB2: 0 | AC2: 0 | AD2: 0 | AE2: 0 | AF2: 0 | AG2: 0 | AH2: 0 | AI2: 0 | AJ2: 0 | AK2: 0 | AL2: 0 | AM2: 0 | AN2: 0 | AO2: 0 | AP2: 0
A3: 0 | B3: =Data!N79 -> 108.3098789 | C3: 0 | D3: 0 | E3: 0 | F3: 0 | G3: 0 | H3: 0 | I3: 0 | J3: 0 | K3: 0 | L3: 0 | M3: 0 | N3: 0 | O3: 0 | P3: 0 | Q3: 0 | R3: 0 | S3: 0 | T3: 0 | U3: 0 | W3: 0 | X3: =Data!N79 -> 108.3098789 | Y3: 0 | Z3: 0 | AA3: 0 | AB3: 0 | AC3: 0 | AD3: 0 | AE3: 0 | AF3: 0 | AG3: 0 | AH3: 0 | AI3: 0 | AJ3: 0 | AK3: 0 | AL3: 0 | AM3: 0 | AN3: 0 | AO3: 0 | AP3: 0
A4: 0 | B4: 0 | C4: =Data!N80 -> 103.1919886 | D4: 0 | E4: 0 | F4: 0 | G4: 0 | H4: 0 | I4: 0 | J4: 0 | K4: 0 | L4: 0 | M4: 0 | N4: 0 | O4: 0 | P4: 0 | Q4: 0 | R4: 0 | S4: 0 | T4: 0 | U4: 0 | W4: 0 | X4: 0 | Y4: =Data!N80 -> 103.1919886 | Z4: 0 | AA4: 0 | AB4: 0 | AC4: 0 | AD4: 0 | AE4: 0 | AF4: 0 | AG4: 0 | AH4: 0 | AI4: 0 | AJ4: 0 | AK4: 0 | AL4: 0 | AM4: 0 | AN4: 0 | AO4: 0 | AP4: 0
A5: 0 | B5: 0 | C5: 0 | D5: =Data!N81 -> 115.6616063 | E5: 0 | F5: 0 | G5: 0 | H5: 0 | I5: 0 | J5: 0 | K5: 0 | L5: 0 | M5: 0 | N5: 0 | O5: 0 | P5: 0 | Q5: 0 | R5: 0 | S5: 0 | T5: 0 | U5: 0 | W5: 0 | X5: 0 | Y5: 0 | Z5: =Data!N81 -> 115.6616063 | AA5: 0 | AB5: 0 | AC5: 0 | AD5: 0 | AE5: 0 | AF5: 0 | AG5: 0 | AH5: 0 | AI5: 0 | AJ5: 0 | AK5: 0 | AL5: 0 | AM5: 0 | AN5: 0 | AO5: 0 | AP5: 0
A6: 0 | B6: 0 | C6: 0 | D6: 0 | E6: =Data!N82 -> 121.9478407 | F6: 0 | G6: 0 | H6: 0 | I6: 0 | J6: 0 | K6: 0 | L6: 0 | M6: 0 | N6: 0 | O6: 0 | P6: 0 | Q6: 0 | R6: 0 | S6: 0 | T6: 0 | U6: 0 | W6: 0 | X6: 0 | Y6: 0 | Z6: 0 | AA6: =Data!N82 -> 121.9478407 | AB6: 0 | AC6: 0 | AD6: 0 | AE6: 0 | AF6: 0 | AG6: 0 | AH6: 0 | AI6: 0 | AJ6: 0 | AK6: 0 | AL6: 0 | AM6: 0 | AN6: 0 | AO6: 0 | AP6: 0
A7: 0 | B7: 0 | C7: 0 | D7: 0 | E7: 0 | F7: =Data!N83 -> 125 | G7: 0 | H7: 0 | I7: 0 | J7: 0 | K7: 0 | L7: 0 | M7: 0 | N7: 0 | O7: 0 | P7: 0 | Q7: 0 | R7: 0 | S7: 0 | T7: 0 | U7: 0 | W7: 0 | X7: 0 | Y7: 0 | Z7: 0 | AA7: 0 | AB7: =Data!N83 -> 125 | AC7: 0 | AD7: 0 | AE7: 0 | AF7: 0 | AG7: 0 | AH7: 0 | AI7: 0 | AJ7: 0 | AK7: 0 | AL7: 0 | AM7: 0 | AN7: 0 | AO7: 0 | AP7: 0
A8: 0 | B8: 0 | C8: 0 | D8: 0 | E8: 0 | F8: 0 | G8: =Data!O78 -> 43.694425 | H8: 0 | I8: 0 | J8: 0 | K8: 0 | L8: 0 | M8: 0 | N8: 0 | O8: 0 | P8: 0 | Q8: 0 | R8: 0 | S8: 0 | T8: 0 | U8: 0 | W8: 0 | X8: 0 | Y8: 0 | Z8: 0 | AA8: 0 | AB8: 0 | AC8: =Data!O78 -> 43.694425 | AD8: 0 | AE8: 0 | AF8: 0 | AG8: 0 | AH8: 0 | AI8: 0 | AJ8: 0 | AK8: 0 | AL8: 0 | AM8: 0 | AN8: 0 | AO8: 0 | AP8: 0
A9: 0 | B9: 0 | C9: 0 | D9: 0 | E9: 0 | F9: 0 | G9: 0 | H9: =Data!O79 -> 42.67827559 | I9: 0 | J9: 0 | K9: 0 | L9: 0 | M9: 0 | N9: 0 | O9: 0 | P9: 0 | Q9: 0 | R9: 0 | S9: 0 | T9: 0 | U9: 0 | W9: 0 | X9: 0 | Y9: 0 | Z9: 0 | AA9: 0 | AB9: 0 | AC9: 0 | AD9: =Data!O79 -> 42.67827559 | AE9: 0 | AF9: 0 | AG9: 0 | AH9: 0 | AI9: 0 | AJ9: 0 | AK9: 0 | AL9: 0 | AM9: 0 | AN9: 0 | AO9: 0 | AP9: 0
A10: 0 | B10: 0 | C10: 0 | D10: 0 | E10: 0 | F10: 0 | G10: 0 | H10: 0 | I10: =Data!O80 -> 40.66162916 | J10: 0 | K10: 0 | L10: 0 | M10: 0 | N10: 0 | O10: 0 | P10: 0 | Q10: 0 | R10: 0 | S10: 0 | T10: 0 | U10: 0 | W10: 0 | X10: 0 | Y10: 0 | Z10: 0 | AA10: 0 | AB10: 0 | AC10: 0 | AD10: 0 | AE10: =Data!O81 -> 45.57514012 | AF10: 0 | AG10: 0 | AH10: 0 | AI10: 0 | AJ10: 0 | AK10: 0 | AL10: 0 | AM10: 0 | AN10: 0 | AO10: 0 | AP10: 0
A11: 0 | B11: 0 | C11: 0 | D11: 0 | E11: 0 | F11: 0 | G11: 0 | H11: 0 | I11: 0 | J11: =Data!O81 -> 45.57514012 | K11: 0 | L11: 0 | M11: 0 | N11: 0 | O11: 0 | P11: 0 | Q11: 0 | R11: 0 | S11: 0 | T11: 0 | U11: 0 | V11: ==> | W11: 0 | X11: 0 | Y11: 0 | Z11: 0 | AA11: 0 | AB11: 0 | AC11: 0 | AD11: 0 | AE11: 0 | AF11: =Data!O82 -> 48.05215929 | AG11: 0 | AH11: 0 | AI11: 0 | AJ11: 0 | AK11: 0 | AL11: 0 | AM11: 0 | AN11: 0 | AO11: 0 | AP11: 0
A12: 0 | B12: 0 | C12: 0 | D12: 0 | E12: 0 | F12: 0 | G12: 0 | H12: 0 | I12: 0 | J12: 0 | K12: =Data!O82 -> 48.05215929 | L12: 0 | M12: 0 | N12: 0 | O12: 0 | P12: 0 | Q12: 0 | R12: 0 | S12: 0 | T12: 0 | U12: 0 | W12: 0 | X12: 0 | Y12: 0 | Z12: 0 | AA12: 0 | AB12: 0 | AC12: 0 | AD12: 0 | AE12: 0 | AF12: 0 | AG12: =Data!P78 -> 22.78263327 | AH12: 0 | AI12: 0 | AJ12: 0 | AK12: 0 | AL12: 0 | AM12: 0 | AN12: 0 | AO12: 0 | AP12: 0
A13: 0 | B13: 0 | C13: 0 | D13: 0 | E13: 0 | F13: 0 | G13: 0 | H13: 0 | I13: 0 | J13: 0 | K13: 0 | L13: =Data!P78 -> 22.78263327 | M13: 0 | N13: 0 | O13: 0 | P13: 0 | Q13: 0 | R13: 0 | S13: 0 | T13: 0 | U13: 0 | W13: 0 | X13: 0 | Y13: 0 | Z13: 0 | AA13: 0 | AB13: 0 | AC13: 0 | AD13: 0 | AE13: 0 | AF13: 0 | AG13: 0 | AH13: =Data!P79 -> 22.25280459 | AI13: 0 | AJ13: 0 | AK13: 0 | AL13: 0 | AM13: 0 | AN13: 0 | AO13: 0 | AP13: 0
A14: 0 | B14: 0 | C14: 0 | D14: 0 | E14: 0 | F14: 0 | G14: 0 | H14: 0 | I14: 0 | J14: 0 | K14: 0 | L14: 0 | M14: =Data!P79 -> 22.25280459 | N14: 0 | O14: 0 | P14: 0 | Q14: 0 | R14: 0 | S14: 0 | T14: 0 | U14: 0 | W14: 0 | X14: 0 | Y14: 0 | Z14: 0 | AA14: 0 | AB14: 0 | AC14: 0 | AD14: 0 | AE14: 0 | AF14: 0 | AG14: 0 | AH14: 0 | AI14: =Data!P80 -> 21.20130852 | AJ14: 0 | AK14: 0 | AL14: 0 | AM14: 0 | AN14: 0 | AO14: 0 | AP14: 0
A15: 0 | B15: 0 | C15: 0 | D15: 0 | E15: 0 | F15: 0 | G15: 0 | H15: 0 | I15: 0 | J15: 0 | K15: 0 | L15: 0 | M15: 0 | N15: =Data!P80 -> 21.20130852 | O15: 0 | P15: 0 | Q15: 0 | R15: 0 | S15: 0 | T15: 0 | U15: 0 | W15: 0 | X15: 0 | Y15: 0 | Z15: 0 | AA15: 0 | AB15: 0 | AC15: 0 | AD15: 0 | AE15: 0 | AF15: 0 | AG15: 0 | AH15: 0 | AI15: 0 | AJ15: =Data!P81 -> 23.76325363 | AK15: 0 | AL15: 0 | AM15: 0 | AN15: 0 | AO15: 0 | AP15: 0
A16: 0 | B16: 0 | C16: 0 | D16: 0 | E16: 0 | F16: 0 | G16: 0 | H16: 0 | I16: 0 | J16: 0 | K16: 0 | L16: 0 | M16: 0 | N16: 0 | O16: =Data!P81 -> 23.76325363 | P16: 0 | Q16: 0 | R16: 0 | S16: 0 | T16: 0 | U16: 0 | W16: 0 | X16: 0 | Y16: 0 | Z16: 0 | AA16: 0 | AB16: 0 | AC16: 0 | AD16: 0 | AE16: 0 | AF16: 0 | AG16: 0 | AH16: 0 | AI16: 0 | AJ16: 0 | AK16: =Data!Q78 -> 27.51660915 | AL16: 0 | AM16: 0 | AN16: 0 | AO16: 0 | AP16: 0
A17: 0 | B17: 0 | C17: 0 | D17: 0 | E17: 0 | F17: 0 | G17: 0 | H17: 0 | I17: 0 | J17: 0 | K17: 0 | L17: 0 | M17: 0 | N17: 0 | O17: 0 | P17: =Data!Q78 -> 27.51660915 | Q17: 0 | R17: 0 | S17: 0 | T17: 0 | U17: 0 | W17: 0 | X17: 0 | Y17: 0 | Z17: 0 | AA17: 0 | AB17: 0 | AC17: 0 | AD17: 0 | AE17: 0 | AF17: 0 | AG17: 0 | AH17: 0 | AI17: 0 | AJ17: 0 | AK17: 0 | AL17: =Data!Q79 -> 26.87668801 | AM17: 0 | AN17: 0 | AO17: 0 | AP17: 0
A18: 0 | B18: 0 | C18: 0 | D18: 0 | E18: 0 | F18: 0 | G18: 0 | H18: 0 | I18: 0 | J18: 0 | K18: 0 | L18: 0 | M18: 0 | N18: 0 | O18: 0 | P18: 0 | Q18: =Data!Q79 -> 26.87668801 | R18: 0 | S18: 0 | T18: 0 | U18: 0 | W18: 0 | X18: 0 | Y18: 0 | Z18: 0 | AA18: 0 | AB18: 0 | AC18: 0 | AD18: 0 | AE18: 0 | AF18: 0 | AG18: 0 | AH18: 0 | AI18: 0 | AJ18: 0 | AK18: 0 | AL18: 0 | AM18: =Data!Q80 -> 25.60670284 | AN18: 0 | AO18: 0 | AP18: 0
A19: 0 | B19: 0 | C19: 0 | D19: 0 | E19: 0 | F19: 0 | G19: 0 | H19: 0 | I19: 0 | J19: 0 | K19: 0 | L19: 0 | M19: 0 | N19: 0 | O19: 0 | P19: 0 | Q19: 0 | R19: =Data!Q80 -> 25.60670284 | S19: 0 | T19: 0 | U19: 0 | W19: 0 | X19: 0 | Y19: 0 | Z19: 0 | AA19: 0 | AB19: 0 | AC19: 0 | AD19: 0 | AE19: 0 | AF19: 0 | AG19: 0 | AH19: 0 | AI19: 0 | AJ19: 0 | AK19: 0 | AL19: 0 | AM19: 0 | AN19: =Data!R78 -> 10.11764706 | AO19: 0 | AP19: 0
A20: 0 | B20: 0 | C20: 0 | D20: 0 | E20: 0 | F20: 0 | G20: 0 | H20: 0 | I20: 0 | J20: 0 | K20: 0 | L20: 0 | M20: 0 | N20: 0 | O20: 0 | P20: 0 | Q20: 0 | R20: 0 | S20: =Data!R78 -> 10.11764706 | T20: 0 | U20: 0 | W20: 0 | X20: 0 | Y20: 0 | Z20: 0 | AA20: 0 | AB20: 0 | AC20: 0 | AD20: 0 | AE20: 0 | AF20: 0 | AG20: 0 | AH20: 0 | AI20: 0 | AJ20: 0 | AK20: 0 | AL20: 0 | AM20: 0 | AN20: 0 | AO20: =Data!R79 -> 9.882352941 | AP20: 0
A21: 0 | B21: 0 | C21: 0 | D21: 0 | E21: 0 | F21: 0 | G21: 0 | H21: 0 | I21: 0 | J21: 0 | K21: 0 | L21: 0 | M21: 0 | N21: 0 | O21: 0 | P21: 0 | Q21: 0 | R21: 0 | S21: 0 | T21: =Data!R79 -> 9.882352941 | U21: 0 | W21: 0 | X21: 0 | Y21: 0 | Z21: 0 | AA21: 0 | AB21: 0 | AC21: 0 | AD21: 0 | AE21: 0 | AF21: 0 | AG21: 0 | AH21: 0 | AI21: 0 | AJ21: 0 | AK21: 0 | AL21: 0 | AM21: 0 | AN21: 0 | AO21: 0 | AP21: =Data!S78 -> 5
A22: 0 | B22: 0 | C22: 0 | D22: 0 | E22: 0 | F22: 0 | G22: 0 | H22: 0 | I22: 0 | J22: 0 | K22: 0 | L22: 0 | M22: 0 | N22: 0 | O22: 0 | P22: 0 | Q22: 0 | R22: 0 | S22: 0 | T22: 0 | U22: =Data!S78 -> 5
A24: Hat Matrix
A25: =MMULT(MMULT(MMULT(OutlierDesignMatrix,MINVERSE(MMULT(MMULT(TRANSPOSE(OutlierDesignMatrix),WeightMatrix),OutlierDesignMatrix))),TRANSPOSE(OutlierDesignMatrix)),WeightMatrix) -> 0.6414807052 | B25: 0.1227956707 | C25: 0.07694267143 | D25: 0.08912903718 | E25: 0.06965191548 | F25: 0 | G25: 0.1644762479 | H25: -0.0378523885 | I25: -0.0569719439 | J25: -0.06965191548 | K25: 0.08340898103 | L25: -0.02203217939 | M25: -0.02921970836 | N25: -0.03215709328 | O25: 0.08738147075 | P25: -0.03965850768 | Q25: -0.04772296307 | R25: 0.02325259516 | S25: -0.02325259516 | T25: -8.67361738e-18
A26: 0.1257193772 | B26: 0.6385569987 | C26: 0.07694267143 | D26: 0.08912903718 | E26: 0.06965191548 | F26: 0 | G26: -0.03875363585 | H26: 0.1653774952 | I26: -0.0569719439 | J26: -0.06965191548 | K26: -0.02255675509 | L26: 0.08393355673 | M26: -0.02921970836 | N26: -0.03215709328 | O26: -0.04060275786 | P26: 0.08832572093 | Q26: -0.04772296307 | R26: -0.02380622837 | S26: 0.02380622837 | T26: -2.168404345e-18
A27: 0.08268153185 | B27: 0.08075870553 | C27: 0.7717708866 | D27: 0.04756719929 | E27: 0.01722167673 | F27: 0 | G27: 0.01074923323 | H27: 0.01049925106 | I27: -0.004026807553 | J27: -0.01722167673 | K27: -0.03412593669 | L27: -0.03333231025 | M27: 0.1109986387 | N27: -0.04354039174 | O27: -0.05930482839 | P27: -0.05792564634 | Q27: 0.1172304747 | R27: 4.387829969e-18 | S27: 4.285787411e-18 | T27: 2.915708125e-18
A28: 0.08545101607 | B28: 0.08346378314 | C28: 0.04243892202 | D28: 0.7163907848 | E28: 0.07225549401 | F28: 0 | G28: -0.05792126486 | H28: -0.0565742587 | I28: 0.1867510176 | J28: -0.07225549401 | K28: -0.03069468125 | L28: -0.02998085145 | M28: -0.03618266497 | N28: 0.09685819767 | O28: 0.00316493004 | P28: 0.003091327016 | Q28: -0.006256257056 | R28: -2.879513417e-18 | S28: 1.473239423e-18 | T28: -2.140238551e-18
A29: 0.06333535147 | B29: 0.06186243632 | C29: 0.01457294413 | D29: 0.06853082801 | E29: 0.7916984401 | F29: 0 | G29: -0.06930111674 | H29: -0.06768946287 | I29: -0.07131098032 | J29: 0.2083015599 | K29: 0.002179018099 | L29: 0.002128343259 | M29: -0.007087513666 | N29: 0.002780152308 | O29: 0.003786747177 | P29: 0.003698683289 | Q29: -0.007485430466 | R29: -4.113590596e-18 | S29: 2.678617132e-19 | T29: -1.311350361e-18
A30: 0 | B30: 0 | C30: 0 | D30: 0 | E30: 0 | F30: 1 | G30: 0 | H30: 0 | I30: 0 | J30: 0 | K30: 0 | L30: 0 | M30: 0 | N30: 0 | O30: 0 | P30: 0 | Q30: 0 | R30: 0 | S30: 0 | T30: 0
A31: 0.4174114873 | B31: -0.0960626351 | C31: 0.02538618492 | D31: -0.1533208534 | E31: -0.1934141837 | F31: 0 | G31: 0.4096512831 | H31: 0.2016209017 | I31: 0.1953136315 | J31: 0.1934141837 | K31: 0.07570000224 | L31: -0.02956187961 | M31: -0.004145344568 | N31: -0.04199277807 | O31: 0.07398463219 | P31: -0.05274379184 | Q31: -0.02124084035 | R31: 0.02325259516 | S31: -0.02325259516 | T31: 2.168404345e-18
A32: -0.0983498407 | B32: 0.4196986929 | C32: 0.02538618492 | D32: -0.1533208534 | E32: -0.1934141837 | F32: 0 | G32: 0.2064213994 | H32: 0.4048507854 | I32: 0.1953136315 | J32: 0.1934141837 | K32: -0.03026573388 | L32: 0.07640385652 | M32: -0.004145344568 | N32: -0.04199277807 | O32: -0.05399959641 | P32: 0.07524043676 | Q32: -0.02124084035 | R32: -0.02380622837 | S32: 0.02380622837 | T32: 4.33680869e-18
A33: -0.1386182018 | B33: -0.1353945227 | C33: -0.009117564491 | D33: 0.4739408942 | E33: -0.1908106052 | F33: 0 | G33: 0.1872537704 | H33: 0.1828990315 | I33: 0.4390365929 | J33: 0.1908106052 | K33: -0.03840366004 | L33: -0.03751055167 | M33: -0.01110830117 | N33: 0.08702251287 | O33: -0.01023190851 | P33: -0.009993957151 | Q33: 0.02022586566 | R33: 9.872617429e-18 | S33: 1.071446853e-18 | T33: 1.609046217e-18
A34: -0.1607338664 | B34: -0.1569958695 | C34: -0.03698354238 | D34: -0.1739190626 | E34: 0.5286323409 | F34: 0 | G34: 0.1758739185 | H34: 0.1717838273 | I34: 0.180974595 | J34: 0.4713676591 | K34: -0.005529960692 | L34: -0.005401356955 | M34: 0.01798685013 | N34: -0.007055532483 | O34: -0.009610091375 | P34: -0.009386600878 | Q34: 0.01899669225 | R34: 1.096957492e-17 | S34: 1.071446853e-17 | T34: 3.589899215e-18
A35: 0.4059720472 | B35: -0.1072360417 | C35: -0.1545705112 | D35: -0.1558290517 | E35: 0.01166355745 | F35: 0 | G35: 0.1451837473 | H35: -0.0566962263 | I35: -0.07682396354 | J35: -0.01166355745 | K35: 0.3371559601 | L35: 0.2258137071 | M35: 0.2043773176 | N35: 0.2326530152 | O35: 0.08843565033 | P35: -0.0386288439 | Q35: -0.04980680643 | R35: 0.02325259516 | S35: -0.02325259516 | T35: -1.734723476e-17
A36: -0.1097892808 | B36: 0.4085252863 | C36: -0.1545705112 | D36: -0.1558290517 | E36: 0.01166355745 | F36: 0 | G36: -0.05804613645 | H36: 0.1465336574 | I36: -0.07682396354 | J36: -0.01166355745 | K36: 0.2311902239 | L36: 0.3317794432 | M36: 0.2043773176 | N36: 0.2326530152 | O36: -0.03954857828 | P36: 0.0893553847 | Q36: -0.04980680643 | R36: -0.02380622837 | S36: 0.02380622837 | T36: -1.084202172e-17
A37: -0.1528271261 | B37: -0.1492730069 | C37: 0.5402577039 | D37: -0.1973908896 | E37: -0.0407666813 | F37: 0 | G37: -0.008543267372 | H37: -0.008344586736 | I37: -0.02387882719 | J37: 0.0407666813 | K37: 0.2196210423 | L37: 0.2145135762 | M37: 0.3445956647 | N37: 0.2212697167 | O37: -0.05825064881 | P37: -0.05689598256 | Q37: 0.1151466314 | R37: -4.387829969e-18 | S37: -4.285787411e-18 | T37: 9.058240266e-18
A38: -0.1500576419 | B38: -0.1465679293 | C38: -0.1890742606 | D38: 0.4714326959 | E38: 0.01426713598 | F38: 0 | G38: -0.07721376546 | H38: -0.07541809649 | I38: 0.1668989979 | J38: -0.01426713598 | K38: 0.2230522978 | L38: 0.217865035 | M38: 0.197414361 | N38: 0.3616683062 | O38: 0.004219109621 | P38: 0.004120990792 | Q38: -0.008340100413 | R38: -2.632697981e-17 | S38: -2.571472447e-17 | T38: -3.248308439e-18
A39: 0.3521370085 | B39: -0.1598191028 | C39: -0.2224032454 | D39: 0.0133032704 | E39: 0.0167820693 | F39: 0 | G39: 0.117482352 | H39: -0.08375340307 | I39: -0.01694687967 | J39: -0.0167820693 | K39: 0.07322112176 | L39: -0.0319831117 | M39: -0.04488161932 | N39: 0.003643609263 | O39: 0.4339069226 | P39: 0.2988082127 | Q39: 0.2672848647 | R39: 0.02325259516 | S39: -0.02325259516 | T39: -1.95156391e-17
A40: -0.1636243195 | B40: 0.3559422252 | C40: -0.2224032454 | D40: 0.0133032704 | E40: 0.0167820693 | F40: 0 | G40: -0.08574753171 | H40: 0.1194764807 | I40: -0.01694687967 | J40: -0.0167820693 | K40: -0.03274461436 | L40: 0.07398262442 | M40: -0.04488161932 | N40: 0.003643609263 | O40: 0.305922694 | P40: 0.4267924413 | Q40: 0.2672848647 | R40: -0.02380622837 | S40: 0.02380622837 | T40: -1.301042607e-17
A41: -0.2066621648 | B41: -0.201856068 | C41: 0.4724249698 | D41: -0.02825856748 | E41: -0.03564816946 | F41: 0 | G41: -0.03624466263 | H41: -0.0354017635 | I41: 0.03599825668 | J41: 0.03564816946 | K41: -0.04431379596 | L41: -0.04328324257 | M41: 0.09533672772 | N41: -0.007739689198 | O41: 0.2872206234 | P41: 0.280541074 | Q41: 0.4322383025 | R41: 5.265395962e-17 | S41: 3.428629929e-17 | T41: 1.3714101e-17
A42: 0.2548467738 | B42: -0.2548467738 | C42: -4.475239131e-17 | D42: 1.410756354e-17 | E42: 1.652701423e-17 | F42: 0 | G42: 0.100419472 | H42: -0.100419472 | I42: 3.088291621e-18 | J42: 3.907369162e-18 | K42: 0.0523595402 | L42: -0.0523595402 | M42: -6.321288808e-17 | N42: -5.764733308e-17 | O42: 0.0632392659 | P42: -0.0632392659 | Q42: 5.691382785e-17 | R42: 0.5291349481 | S42: 0.4708650519 | T42: 0
A43: -0.2609145542 | B43: 0.2609145542 | C43: -4.475239131e-17 | D43: 1.410756354e-17 | E43: 1.652701423e-17 | F43: 0 | G43: -0.1028104118 | H43: 0.1028104118 | I43: 3.088291621e-18 | J43: 3.907369162e-18 | K43: -0.05360619592 | L43: 0.05360619592 | M43: -6.321288808e-17 | N43: -5.764733308e-17 | O43: -0.06474496271 | P43: 0.06474496271 | Q43: 5.691382785e-17 | R43: 0.4820761246 | S43: 0.5179238754 | T43: 3.469446952e-17
A44: -4.80903015e-17 | B44: -4.697192239e-17 | C44: -4.475239131e-17 | D44: 4.616061692e-18 | E44: 2.319859231e-17 | F44: 0 | G44: -4.761311554e-17 | H44: -4.650583378e-17 | I44: -2.807852773e-17 | J44: -2.238122526e-17 | K44: -6.044928019e-17 | L44: -5.904348298e-17 | M44: -5.625354296e-17 | N44: -5.179710396e-17 | O44: 2.201864199e-17 | P44: 2.150658055e-17 | Q44: 2.049034528e-17 | R44: 7.830136602e-17 | S44: 7.648040402e-17 | T44: 1
A48: Hat Matrix Factors
A49: =IF(A25=1,0,1/SQRT(1-A25)) -> 1.670104835
B50: =IF(B26=1,0,1/SQRT(1-B26)) -> 1.663336394
C51: =IF(C27=1,0,1/SQRT(1-C27)) -> 2.093218086
D52: =IF(D28=1,0,1/SQRT(1-D28)) -> 1.877758908
E53: =IF(E29=1,0,1/SQRT(1-E29)) -> 2.191057318
F54: =IF(F30=1,0,1/SQRT(1-F30)) -> 0
G55: =IF(G31=1,0,1/SQRT(1-G31)) -> 1.301504542
H56: =IF(H32=1,0,1/SQRT(1-H32)) -> 1.296244921
I57: =IF(I33=1,0,1/SQRT(1-I33)) -> 1.33515822
J58: =IF(J34=1,0,1/SQRT(1-J34)) -> 1.375381364
K59: =IF(K35=1,0,1/SQRT(1-K35)) -> 1.228271351
L60: =IF(L36=1,0,1/SQRT(1-L36)) -> 1.223320023
M61: =IF(M37=1,0,1/SQRT(1-M37)) -> 1.23522293
N62: =IF(N38=1,0,1/SQRT(1-N38)) -> 1.251632397
O63: =IF(O39=1,0,1/SQRT(1-O39)) -> 1.329095165
P64: =IF(P40=1,0,1/SQRT(1-P40)) -> 1.320821245
Q65: =IF(Q41=1,0,1/SQRT(1-Q41)) -> 1.327140659
R66: =IF(R42=1,0,1/SQRT(1-R42)) -> 1.457309416
S67: =IF(S43=1,0,1/SQRT(1-S43)) -> 1.440264275
T68: =IF(T44=1,0,1/SQRT(1-T44)) -> 0
U69: =IF(U45=1,0,1/SQRT(1-U45)) -> 

Sheet GLM 2
A1: GLM Estimation of Sample Data Parameters | G1: rho = | H1: =Data!F55 -> 1 | J1: parameters = | K1: =2*6-1 -> 11
A2: Newton-Raphson Interation Sequence -- Iteration 1
B3: y(i) | D3: xb(i) | F3: W(i,i) | AB3: XWX | AN3: zz(i) | AP3: factor | AR3: xwx-1 | BD3: aa1(i,j) | BZ3: aa2(j) | CB3: beta(j) | CD3: beta_diff = | CE3: =SUM(CD5:CD15) -> 2.389351996 | CF3: beta_old = | CG3: =SUM(CB5:CB15) -> 26.28287196
B4: 1 | D4: 1 | F4: 1 | G4: 2 | H4: 3 | I4: 4 | J4: 5 | K4: 6 | L4: 7 | M4: 8 | N4: 9 | O4: 10 | P4: 11 | Q4: 12 | R4: 13 | S4: 14 | T4: 15 | U4: 16 | V4: 17 | W4: 18 | X4: 19 | Y4: 20 | Z4: 21 | AB4: 1 | AC4: 2 | AD4: 3 | AE4: 4 | AF4: 5 | AG4: 6 | AH4: 7 | AI4: 8 | AJ4: 9 | AK4: 10 | AL4: 11 | AN4: 1 | AR4: 1 | AS4: 2 | AT4: 3 | AU4: 4 | AV4: 5 | AW4: 6 | AX4: 7 | AY4: 8 | AZ4: 9 | BA4: 10 | BB4: 11 | BD4: 1 | BE4: 2 | BF4: 3 | BG4: 4 | BH4: 5 | BI4: 6 | BJ4: 7 | BK4: 8 | BL4: 9 | BM4: 10 | BN4: 11 | BO4: 12 | BP4: 13 | BQ4: 14 | BR4: 15 | BS4: 16 | BT4: 17 | BU4: 18 | BV4: 19 | BW4: 20 | BX4: 21
A5: 1 | B5: =Data!N138 -> 127.7513246 | D5: =IF(B5<0,-LN(-B5),LN(B5)) -> 4.850085598 | F5: =IF($A5=F$4,IF($B5<0,-(EXP(-$D5)^(2-$H$1)),IF($B5=0,0,EXP($D5)^(2-$H$1))),0) -> 127.7513246 | G5: 0 | H5: 0 | I5: 0 | J5: 0 | K5: 0 | L5: 0 | M5: 0 | N5: 0 | O5: 0 | P5: =IF($A5=P$4,IF($B5<0,-(EXP(-$D5)^(2-$H$1)),IF($B5=0,0,EXP($D5)^(2-$H$1))),0) -> 0 | Q5: 0 | R5: 0 | S5: 0 | T5: 0 | U5: 0 | V5: 0 | W5: 0 | X5: 0 | Y5: 0 | Z5: 0 | AB5: =MMULT(TRANSPOSE(DesignMatrix),MMULT(F5:Z25,DesignMatrix)) -> 221.4748646 | AC5: 0 | AD5: 0 | AE5: 0 | AF5: 0 | AG5: 0 | AH5: 93.72353996 | AI5: 63.85420194 | AJ5: 51.0544709 | AK5: 22.12088951 | AL5: 10.00179838 | AN5: =IF(B5<0,D5+(B5+EXP(-D5))/-EXP(-D5),IF(B5=0,0,D5+(B5-EXP(D5))/EXP(D5))) -> 4.850085598 | AP5: =OFFSET(AA4,A5,A5) -> 221.4748646 | AR5: =MINVERSE(AB5:AL15) -> 0.005579159615 | AS5: 0.0007614695217 | AT5: 0.0008352972861 | AU5: 0.0004695454889 | AV5: 0.000524240855 | AW5: 0 | AX5: -0.001386086301 | AY5: 0.0001012739124 | AZ5: -0.001374402103 | BA5: -0.00105844535 | BB5: -0.001861499774 | BD5: =MMULT(AR5:BB15,TRANSPOSE(DesignMatrix)) -> 0.005579159615 | BE5: 0.0007614695217 | BF5: 0.0008352972861 | BG5: 0.0004695454889 | BH5: 0.000524240855 | BI5: 0 | BJ5: 0.004193073314 | BK5: -0.0006246167791 | BL5: -0.0005507890147 | BM5: -0.0009165408119 | BN5: -0.0008618454459 | BO5: 0.004294347226 | BP5: -0.0005233428667 | BQ5: -0.0004495151023 | BR5: -0.0008152668995 | BS5: 0.002919945124 | BT5: -0.001897744969 | BU5: -0.001823917205 | BV5: 0.001861499774 | BW5: -0.002956190319 | BX5: -1.084202172e-18 | BZ5: =MMULT(F5:Z25,AN5:AN25) -> 619.6048596 | CB5: =MMULT(BD5:BX15,BZ5:BZ25) -> 4.745010911 | CD5: =CB5/$K$1 -> 0.4313646282
A6: 2 | B6: =Data!N139 -> 118.9154014 | D6: =IF(B6<0,-LN(-B6),LN(B6)) -> 4.778412328 | F6: 0 | G6: 118.9154014 | H6: 0 | I6: 0 | J6: 0 | K6: 0 | L6: 0 | M6: 0 | N6: 0 | O6: 0 | P6: 0 | Q6: 0 | R6: 0 | S6: 0 | T6: 0 | U6: 0 | V6: 0 | W6: 0 | X6: 0 | Y6: 0 | Z6: 0 | AB6: 0 | AC6: 201.3921977 | AD6: 0 | AE6: 0 | AF6: 0 | AG6: 0 | AH6: 82.4767963 | AI6: 50.23568383 | AJ6: 26.22542098 | AK6: 7.631337285 | AL6: 0 | AN6: =IF(B6<0,D6+(B6+EXP(-D6))/-EXP(-D6),IF(B6=0,0,D6+(B6-EXP(D6))/EXP(D6))) -> 4.778412328 | AP6: =OFFSET(AA4,A6,A6) -> 201.3921977 | AR6: 0.0007614695217 | AS6: 0.005723991873 | AT6: 0.000870249194 | AU6: 0.0005926398273 | AV6: 0.0005735477898 | AW6: 0 | AX6: -0.001516453223 | AY6: -0.0003790068729 | AZ6: -0.0001439436628 | BA6: -0.0006395270471 | BB6: 0.001917461284 | BD6: 0.0007614695217 | BE6: 0.005723991873 | BF6: 0.000870249194 | BG6: 0.0005926398273 | BH6: 0.0005735477898 | BI6: 0 | BJ6: -0.0007549837017 | BK6: 0.004207538649 | BL6: -0.0006462040294 | BM6: -0.000923813396 | BN6: -0.0009429054335 | BO6: -0.001133990575 | BP6: 0.003828531777 | BQ6: -0.001025210902 | BR6: -0.001302820269 | BS6: -0.001277934237 | BT6: 0.003684588114 | BU6: -0.001169154565 | BV6: -0.001917461284 | BW6: 0.003045061067 | BX6: -1.301042607e-18 | BZ6: 568.2268199 | CB6: 4.67475864 | CD6: 0.4249780582
A7: 3 | B7: =Data!N140 -> 95.91802164 | D7: 4.563493885 | F7: 0 | G7: 0 | H7: 95.91802164 | I7: 0 | J7: 0 | K7: 0 | L7: 0 | M7: 0 | N7: 0 | O7: 0 | P7: 0 | Q7: 0 | R7: 0 | S7: 0 | T7: 0 | U7: 0 | V7: 0 | W7: 0 | X7: 0 | Y7: 0 | Z7: 0 | AB7: 0 | AC7: 0 | AD7: 184.8165794 | AE7: 0 | AF7: 0 | AG7: 0 | AH7: 88.89855775 | AI7: 58.42451785 | AJ7: 26.97361534 | AK7: 0 | AL7: 0 | AN7: 4.563493885 | AP7: =OFFSET(AA4,A7,A7) -> 184.8165794 | AR7: 0.0008352972861 | AS7: 0.000870249194 | AT7: 0.00654280547 | AU7: 0.0007248395076 | AV7: 0.000626836067 | AW7: 0 | AX7: -0.001657346765 | AY7: -0.0008928928394 | AZ7: -0.000360217036 | BA7: 0.002061654341 | BB7: 1.350501325e-05 | BD7: 0.0008352972861 | BE7: 0.000870249194 | BF7: 0.00654280547 | BG7: 0.0007248395076 | BH7: 0.000626836067 | BI7: 0 | BJ7: -0.0008220494792 | BK7: -0.0007870975714 | BL7: 0.004885458704 | BM7: -0.0009325072578 | BN7: -0.001030510698 | BO7: -0.001714942319 | BP7: -0.001679990411 | BQ7: 0.003992565865 | BR7: -0.001825400097 | BS7: -0.002075159355 | BT7: -0.002040207447 | BU7: 0.003632348829 | BV7: -1.350501325e-05 | BW7: 2.14468946e-05 | BX7: 4.573977915e-20 | BZ7: 437.7213052 | CB7: 4.637134782 | CD7: 0.4215577074
A8: 4 | B8: =Data!N141 -> 139.7182917 | D8: 4.939628193 | F8: 0 | G8: 0 | H8: 0 | I8: 139.7182917 | J8: 0 | K8: 0 | L8: 0 | M8: 0 | N8: 0 | O8: 0 | P8: 0 | Q8: 0 | R8: 0 | S8: 0 | T8: 0 | U8: 0 | V8: 0 | W8: 0 | X8: 0 | Y8: 0 | Z8: 0 | AB8: 0 | AC8: 0 | AD8: 0 | AE8: 215.1268301 | AF8: 0 | AG8: 0 | AH8: 75.40853844 | AI8: 34.66746172 | AJ8: 0 | AK8: 0 | AL8: 0 | AN8: 4.939628193 | AP8: =OFFSET(AA4,A8,A8) -> 215.1268301 | AR8: 0.0004695454889 | AS8: 0.0005926398273 | AT8: 0.0007248395076 | AU8: 0.005305933439 | AV8: 0.0006034158163 | AW8: 0 | AX8: -0.001595423914 | AY8: -0.0006097953205 | AZ8: 0.001612521109 | BA8: 7.559040651e-05 | BB8: 4.756222976e-05 | BD8: 0.0004695454889 | BE8: 0.0005926398273 | BF8: 0.0007248395076 | BG8: 0.005305933439 | BH8: 0.0006034158163 | BI8: 0 | BJ8: -0.001125878425 | BK8: -0.001002784087 | BL8: -0.0008705844063 | BM8: 0.003710509525 | BN8: -0.0009920080976 | BO8: -0.001735673745 | BP8: -0.001612579407 | BQ8: -0.001480379727 | BR8: 0.003100714205 | BS8: -0.0001231526363 | BT8: -5.829784848e-08 | BU8: 0.0001321413824 | BV8: -4.756222976e-05 | BW8: 7.553210866e-05 | BX8: -1.260385026e-18 | BZ8: 690.1564126 | CB8: 4.919681874 | CD8: 0.4472438067
A9: 5 | B9: =Data!N142 -> 97.24606143 | D9: 4.577244482 | F9: 0 | G9: 0 | H9: 0 | I9: 0 | J9: 97.24606143 | K9: 0 | L9: 0 | M9: 0 | N9: 0 | O9: 0 | P9: 0 | Q9: 0 | R9: 0 | S9: 0 | T9: 0 | U9: 0 | V9: 0 | W9: 0 | X9: 0 | Y9: 0 | Z9: 0 | AB9: 0 | AC9: 0 | AD9: 0 | AE9: 0 | AF9: 156.3986144 | AG9: 0 | AH9: 59.15255297 | AI9: 0 | AJ9: 0 | AK9: 0 | AL9: 0 | AN9: 4.577244482 | AP9: =OFFSET(AA4,A9,A9) -> 156.3986144 | AR9: 0.000524240855 | AS9: 0.0005735477898 | AT9: 0.000626836067 | AU9: 0.0006034158163 | AV9: 0.007407917171 | AW9: 0 | AX9: -0.002680999773 | AY9: 0.002087240862 | AZ9: 2.00668117e-05 | BA9: 3.039961503e-05 | BB9: 1.905162978e-05 | BD9: 0.000524240855 | BE9: 0.0005735477898 | BF9: 0.000626836067 | BG9: 0.0006034158163 | BH9: 0.007407917171 | BI9: 0 | BJ9: -0.002156758918 | BK9: -0.002107451984 | BL9: -0.002054163706 | BM9: -0.002077583957 | BN9: 0.004726917397 | BO9: -6.951805651e-05 | BP9: -2.021112167e-05 | BQ9: 3.307715546e-05 | BR9: 9.656904804e-06 | BS9: -4.945124481e-05 | BT9: -1.443099664e-07 | BU9: 5.314396716e-05 | BV9: -1.905162978e-05 | BW9: 3.025530506e-05 | BX9: -6.708500942e-19 | BZ9: 445.1189981 | CB9: 4.798053701 | CD9: 0.4361867001
A10: 6 | B10: =Data!N143 -> 141.242468 | D10: 4.950478045 | F10: 0 | G10: 0 | H10: 0 | I10: 0 | J10: 0 | K10: 141.242468 | L10: 0 | M10: 0 | N10: 0 | O10: 0 | P10: 0 | Q10: 0 | R10: 0 | S10: 0 | T10: 0 | U10: 0 | V10: 0 | W10: 0 | X10: 0 | Y10: 0 | Z10: 0 | AB10: 0 | AC10: 0 | AD10: 0 | AE10: 0 | AF10: 0 | AG10: 141.242468 | AH10: 0 | AI10: 0 | AJ10: 0 | AK10: 0 | AL10: 0 | AN10: 4.950478045 | AP10: =OFFSET(AA4,A10,A10) -> 141.242468 | AR10: 0 | AS10: 0 | AT10: 0 | AU10: 0 | AV10: 0 | AW10: 0.007080023551 | AX10: 0 | AY10: 0 | AZ10: 0 | BA10: 0 | BB10: 0 | BD10: 0 | BE10: 0 | BF10: 0 | BG10: 0 | BH10: 0 | BI10: 0.007080023551 | BJ10: 0 | BK10: 0 | BL10: 0 | BM10: 0 | BN10: 0 | BO10: 0 | BP10: 0 | BQ10: 0 | BR10: 0 | BS10: 0 | BT10: 0 | BU10: 0 | BV10: 0 | BW10: 0 | BX10: 0 | BZ10: 699.217737 | CB10: 4.950478045 | CD10: 0.4500434586
A11: 7 | B11: =Data!O138 -> 29.86933802 | D11: 3.39683247 | F11: 0 | G11: 0 | H11: 0 | I11: 0 | J11: 0 | K11: 0 | L11: 29.86933802 | M11: 0 | N11: 0 | O11: 0 | P11: 0 | Q11: 0 | R11: 0 | S11: 0 | T11: 0 | U11: 0 | V11: 0 | W11: 0 | X11: 0 | Y11: 0 | Z11: 0 | AB11: 93.72353996 | AC11: 82.4767963 | AD11: 88.89855775 | AE11: 75.40853844 | AF11: 59.15255297 | AG11: 0 | AH11: 399.6599854 | AI11: 207.1818653 | AJ11: 104.2535072 | AK11: 29.7522268 | AL11: 10.00179838 | AN11: 3.39683247 | AP11: =OFFSET(AA4,A11,A11) -> 399.6599854 | AR11: -0.001386086301 | AS11: -0.001516453223 | AT11: -0.001657346765 | AU11: -0.001595423914 | AV11: -0.002680999773 | AW11: 0 | AX11: 0.007088530058 | AY11: -0.005518638881 | AZ11: -5.305640058e-05 | BA11: -8.037620407e-05 | BB11: -5.037227221e-05 | BD11: -0.001386086301 | BE11: -0.001516453223 | BF11: -0.001657346765 | BG11: -0.001595423914 | BH11: -0.002680999773 | BI11: 0 | BJ11: 0.005702443758 | BK11: 0.005572076835 | BL11: 0.005431183293 | BM11: 0.005493106145 | BN11: 0.004407530285 | BO11: 0.0001838048769 | BP11: 5.343795433e-05 | BQ11: -8.745558768e-05 | BR11: -2.55327362e-05 | BS11: 0.0001307484763 | BT11: 3.815537565e-07 | BU11: -0.0001405119883 | BV11: 5.037227221e-05 | BW11: -7.999465031e-05 | BX11: 1.660184577e-18 | BZ11: 101.4611372 | CB11: -1.08094156 | CD11: -0.09826741452
A12: 8 | B12: =Data!O139 -> 32.24111247 | D12: 3.473242423 | F12: 0 | G12: 0 | H12: 0 | I12: 0 | J12: 0 | K12: 0 | L12: 0 | M12: 32.24111247 | N12: 0 | O12: 0 | P12: 0 | Q12: 0 | R12: 0 | S12: 0 | T12: 0 | U12: 0 | V12: 0 | W12: 0 | X12: 0 | Y12: 0 | Z12: 0 | AB12: 63.85420194 | AC12: 50.23568383 | AD12: 58.42451785 | AE12: 34.66746172 | AF12: 0 | AG12: 0 | AH12: 207.1818653 | AI12: 207.1818653 | AJ12: 104.2535072 | AK12: 29.7522268 | AL12: 10.00179838 | AN12: 3.473242423 | AP12: =OFFSET(AA4,A12,A12) -> 207.1818653 | AR12: 0.0001012739124 | AS12: -0.0003790068729 | AT12: -0.0008928928394 | AU12: -0.0006097953205 | AV12: 0.002087240862 | AW12: 0 | AX12: -0.005518638881 | AY12: 0.01578817137 | AZ12: -0.009890993804 | BA12: -0.0002942376499 | BB12: -0.0001855749448 | BD12: 0.0001012739124 | BE12: -0.0003790068729 | BF12: -0.0008928928394 | BG12: -0.0006097953205 | BH12: 0.002087240862 | BI12: 0 | BJ12: -0.005417364968 | BK12: -0.005897645754 | BL12: -0.00641153172 | BM12: -0.006128434201 | BN12: -0.003431398019 | BO12: 0.0103708064 | BP12: 0.009890525613 | BQ12: 0.009376639647 | BR12: 0.009659737165 | BS12: 0.0004798125947 | BT12: -4.681906019e-07 | BU12: -0.0005143541571 | BV12: 0.0001855749448 | BW12: -0.0002947058405 | BX12: 2.981555974e-19 | BZ12: 111.9811996 | CB12: -0.3670926692 | CD12: -0.03337206083
A13: 9 | B13: =Data!O140 -> 30.4740399 | D13: 3.41687517 | F13: 0 | G13: 0 | H13: 0 | I13: 0 | J13: 0 | K13: 0 | L13: 0 | M13: 0 | N13: 30.4740399 | O13: 0 | P13: 0 | Q13: 0 | R13: 0 | S13: 0 | T13: 0 | U13: 0 | V13: 0 | W13: 0 | X13: 0 | Y13: 0 | Z13: 0 | AB13: 51.0544709 | AC13: 26.22542098 | AD13: 26.97361534 | AE13: 0 | AF13: 0 | AG13: 0 | AH13: 104.2535072 | AI13: 104.2535072 | AJ13: 104.2535072 | AK13: 29.7522268 | AL13: 10.00179838 | AN13: 3.41687517 | AP13: =OFFSET(AA4,A13,A13) -> 104.2535072 | AR13: -0.001374402103 | AS13: -0.0001439436628 | AT13: -0.000360217036 | AU13: 0.001612521109 | AV13: 2.00668117e-05 | AW13: 0 | AX13: -5.305640058e-05 | AY13: -0.009890993804 | AZ13: 0.02406675018 | BA13: -0.0132237328 | BB13: 0.0004754349207 | BD13: -0.001374402103 | BE13: -0.0001439436628 | BF13: -0.000360217036 | BG13: 0.001612521109 | BH13: 2.00668117e-05 | BI13: 0 | BJ13: -0.001427458503 | BK13: -0.0001970000633 | BL13: -0.0004132734366 | BM13: 0.001559464709 | BN13: -3.298958888e-05 | BO13: -0.01131845231 | BP13: -0.01008799387 | BQ13: -0.01030426724 | BR13: -0.008331529095 | BS13: 0.01274829787 | BT13: 0.01397875631 | BU13: 0.01376248294 | BV13: -0.0004754349207 | BW13: 0.0007550235191 | BX13: 9.215718466e-19 | BZ13: 104.1259903 | CB13: -0.0111334094 | CD13: -0.001012128127
A14: 10 | B14: =Data!O141 -> 40.74107672 | D14: 3.70723684 | F14: 0 | G14: 0 | H14: 0 | I14: 0 | J14: 0 | K14: 0 | L14: 0 | M14: 0 | N14: 0 | O14: 40.74107672 | P14: 0 | Q14: 0 | R14: 0 | S14: 0 | T14: 0 | U14: 0 | V14: 0 | W14: 0 | X14: 0 | Y14: 0 | Z14: 0 | AB14: 22.12088951 | AC14: 7.631337285 | AD14: 0 | AE14: 0 | AF14: 0 | AG14: 0 | AH14: 29.7522268 | AI14: 29.7522268 | AJ14: 29.7522268 | AK14: 29.7522268 | AL14: 10.00179838 | AN14: 3.70723684 | AP14: =OFFSET(AA4,A14,A14) -> 29.7522268 | AR14: -0.00105844535 | AS14: -0.0006395270471 | AT14: 0.002061654341 | AU14: 7.559040651e-05 | AV14: 3.039961503e-05 | AW14: 0 | AX14: -8.037620407e-05 | AY14: -0.0002942376499 | AZ14: -0.0132237328 | BA14: 0.06512673989 | BB14: -0.05046994789 | BD14: -0.00105844535 | BE14: -0.0006395270471 | BF14: 0.002061654341 | BG14: 7.559040651e-05 | BH14: 3.039961503e-05 | BI14: 0 | BJ14: -0.001138821554 | BK14: -0.0007199032512 | BL14: 0.001981278137 | BM14: -4.785797561e-06 | BN14: -4.997658904e-05 | BO14: -0.001433059204 | BP14: -0.001014140901 | BQ14: 0.001687040487 | BR14: -0.0002990234474 | BS14: -0.014656792 | BT14: -0.0142378737 | BU14: -0.01153669231 | BV14: 0.05046994789 | BW14: 0.05088886619 | BX14: 0 | BZ14: 151.0368205 | CB14: -0.9426285727 | CD14: -0.08569350661
A15: 11 | B15: =Data!O142 -> 59.15255297 | D15: 4.08011975 | F15: =IF($A15=F$4,IF($B15<0,-(EXP(-$D15)^(2-$H$1)),IF($B15=0,0,EXP($D15)^(2-$H$1))),0) -> 0 | G15: 0 | H15: 0 | I15: 0 | J15: 0 | K15: 0 | L15: 0 | M15: 0 | N15: 0 | O15: 0 | P15: =IF($A15=P$4,IF($B15<0,-(EXP(-$D15)^(2-$H$1)),IF($B15=0,0,EXP($D15)^(2-$H$1))),0) -> 59.15255297 | Q15: 0 | R15: 0 | S15: 0 | T15: 0 | U15: 0 | V15: 0 | W15: 0 | X15: 0 | Y15: 0 | Z15: 0 | AB15: 10.00179838 | AC15: 0 | AD15: 0 | AE15: 0 | AF15: 0 | AG15: 0 | AH15: 10.00179838 | AI15: 10.00179838 | AJ15: 10.00179838 | AK15: 10.00179838 | AL15: 10.00179838 | AN15: 4.08011975 | AP15: =OFFSET(AA4,A15,A15) -> 10.00179838 | AR15: -0.001861499774 | AS15: 0.001917461284 | AT15: 1.350501325e-05 | AU15: 4.756222976e-05 | AV15: 1.905162978e-05 | AW15: 0 | AX15: -5.037227221e-05 | AY15: -0.0001855749448 | AZ15: 0.0004754349207 | BA15: -0.05046994789 | BB15: 0.1520739794 | BD15: -0.001861499774 | BE15: 0.001917461284 | BF15: 1.350501325e-05 | BG15: 4.756222976e-05 | BH15: 1.905162978e-05 | BI15: 0 | BJ15: -0.001911872046 | BK15: 0.001867089012 | BL15: -3.686725895e-05 | BM15: -2.810042447e-06 | BN15: -3.132064242e-05 | BO15: -0.002097446991 | BP15: 0.001681514067 | BQ15: -0.0002224422038 | BR15: -0.0001883849873 | BS15: -0.00162201207 | BT15: 0.002156948988 | BU15: 0.0002529927169 | BV15: -0.05209195996 | BW15: -0.0483129989 | BX15: 0.09998201944 | BZ15: 241.3494997 | CB15: -0.04044978493 | CD15: -0.003677253176
A16: 12 | B16: =Data!P138 -> 12.79973104 | D16: 2.549424158 | F16: 0 | G16: 0 | H16: 0 | I16: 0 | J16: 0 | K16: 0 | L16: 0 | M16: 0 | N16: 0 | O16: 0 | P16: 0 | Q16: 12.79973104 | R16: 0 | S16: 0 | T16: 0 | U16: 0 | V16: 0 | W16: 0 | X16: 0 | Y16: 0 | Z16: 0 | AN16: 2.549424158 | BZ16: 32.63194352
A17: 13 | B17: =Data!P139 -> 24.01026285 | D17: 3.178481358 | F17: 0 | G17: 0 | H17: 0 | I17: 0 | J17: 0 | K17: 0 | L17: 0 | M17: 0 | N17: 0 | O17: 0 | P17: 0 | Q17: 0 | R17: 24.01026285 | S17: 0 | T17: 0 | U17: 0 | V17: 0 | W17: 0 | X17: 0 | Y17: 0 | Z17: 0 | AN17: 3.178481358 | BZ17: 76.31617286
A18: 14 | B18: =Data!P140 -> 31.4509025 | D18: 3.448427679 | F18: 0 | G18: 0 | H18: 0 | I18: 0 | J18: 0 | K18: 0 | L18: 0 | M18: 0 | N18: 0 | O18: 0 | P18: 0 | Q18: 0 | R18: 0 | S18: 31.4509025 | T18: 0 | U18: 0 | V18: 0 | W18: 0 | X18: 0 | Y18: 0 | Z18: 0 | AN18: 3.448427679 | BZ18: 108.4561627
A19: 15 | B19: =Data!P141 -> 34.66746172 | D19: 3.545801544 | F19: 0 | G19: 0 | H19: 0 | I19: 0 | J19: 0 | K19: 0 | L19: 0 | M19: 0 | N19: 0 | O19: 0 | P19: 0 | Q19: 0 | R19: 0 | S19: 0 | T19: 34.66746172 | U19: 0 | V19: 0 | W19: 0 | X19: 0 | Y19: 0 | Z19: 0 | AN19: 3.545801544 | BZ19: 122.9239393
A20: 16 | B20: =Data!Q138 -> 28.93358139 | D20: 3.365002906 | F20: 0 | G20: 0 | H20: 0 | I20: 0 | J20: 0 | K20: 0 | L20: 0 | M20: 0 | N20: 0 | O20: 0 | P20: 0 | Q20: 0 | R20: 0 | S20: 0 | T20: 0 | U20: 28.93358139 | V20: 0 | W20: 0 | X20: 0 | Y20: 0 | Z20: 0 | AN20: 3.365002906 | BZ20: 97.36158546
A21: 17 | B21: =Data!Q139 -> 18.5940837 | D21: 2.922843449 | F21: 0 | G21: 0 | H21: 0 | I21: 0 | J21: 0 | K21: 0 | L21: 0 | M21: 0 | N21: 0 | O21: 0 | P21: 0 | Q21: 0 | R21: 0 | S21: 0 | T21: 0 | U21: 0 | V21: 18.5940837 | W21: 0 | X21: 0 | Y21: 0 | Z21: 0 | AN21: 2.922843449 | BZ21: 54.34759572
A22: 18 | B22: =Data!Q140 -> 26.97361534 | D22: 3.294859179 | F22: 0 | G22: 0 | H22: 0 | I22: 0 | J22: 0 | K22: 0 | L22: 0 | M22: 0 | N22: 0 | O22: 0 | P22: 0 | Q22: 0 | R22: 0 | S22: 0 | T22: 0 | U22: 0 | V22: 0 | W22: 26.97361534 | X22: 0 | Y22: 0 | Z22: 0 | AN22: 3.294859179 | BZ22: 88.87426409
A23: 19 | B23: =Data!R138 -> 12.11909114 | D23: 2.494781989 | F23: 0 | G23: 0 | H23: 0 | I23: 0 | J23: 0 | K23: 0 | L23: 0 | M23: 0 | N23: 0 | O23: 0 | P23: 0 | Q23: 0 | R23: 0 | S23: 0 | T23: 0 | U23: 0 | V23: 0 | W23: 0 | X23: 12.11909114 | Y23: 0 | Z23: 0 | AN23: 2.494781989 | BZ23: 30.23449029
A24: 20 | B24: =Data!R139 -> 7.631337285 | D24: 2.032263097 | F24: 0 | G24: 0 | H24: 0 | I24: 0 | J24: 0 | K24: 0 | L24: 0 | M24: 0 | N24: 0 | O24: 0 | P24: 0 | Q24: 0 | R24: 0 | S24: 0 | T24: 0 | U24: 0 | V24: 0 | W24: 0 | X24: 0 | Y24: 7.631337285 | Z24: 0 | AN24: 2.032263097 | BZ24: 15.50888514
A25: 21 | B25: =Data!S138 -> 10.00179838 | D25: =IF(B25<0,-LN(-B25),LN(B25)) -> 2.302764915 | F25: 0 | G25: 0 | H25: 0 | I25: 0 | J25: 0 | K25: 0 | L25: 0 | M25: 0 | N25: 0 | O25: 0 | P25: 0 | Q25: 0 | R25: 0 | S25: 0 | T25: 0 | U25: 0 | V25: 0 | W25: 0 | X25: 0 | Y25: 0 | Z25: 10.00179838 | AN25: =IF(B25<0,D25+(B25+EXP(-D25))/-EXP(-D25),IF(B25=0,0,D25+(B25-EXP(D25))/EXP(D25))) -> 2.302764915 | BZ25: 23.03179039
A27: Newton-Raphson Interation Sequence -- Iteration 2
B28: y(i) | D28: xb(i) | F28: W(i,i) | AB28: XWX | AN28: zz(i) | AP28: factor | AR28: xwx-1 | BD28: aa1(i,j) | BZ28: aa2(j) | CB28: beta(j) | CD28: beta_diff = | CE28: =SUM(CD30:CD40) -> -0.01689438735 | CF28: beta_old = | CG28: =SUM(CB30:CB40) -> 26.26597757
B29: 1 | D29: 1 | F29: 1 | G29: 2 | H29: 3 | I29: 4 | J29: 5 | K29: 6 | L29: 7 | M29: 8 | N29: 9 | O29: 10 | P29: 11 | Q29: 12 | R29: 13 | S29: 14 | T29: 15 | U29: 16 | V29: 17 | W29: 18 | X29: 19 | Y29: 20 | Z29: 21 | AB29: 1 | AC29: 2 | AD29: 3 | AE29: 4 | AF29: 5 | AG29: 6 | AH29: 7 | AI29: 8 | AJ29: 9 | AK29: 10 | AL29: 11 | AN29: 1 | AR29: 1 | AS29: 2 | AT29: 3 | AU29: 4 | AV29: 5 | AW29: 6 | AX29: 7 | AY29: 8 | AZ29: 9 | BA29: 10 | BB29: 11 | BD29: 1 | BE29: 2 | BF29: 3 | BG29: 4 | BH29: 5 | BI29: 6 | BJ29: 7 | BK29: 8 | BL29: 9 | BM29: 10 | BN29: 11 | BO29: 12 | BP29: 13 | BQ29: 14 | BR29: 15 | BS29: 16 | BT29: 17 | BU29: 18 | BV29: 19 | BW29: 20 | BX29: 21
A30: 1 | B30: =B5 -> 127.7513246 | D30: =MMULT(DesignMatrix,CB5:CB15) -> 4.745010911 | F30: =IF($A30=F$4,IF($B30<0,-(EXP(-$D30)^(2-$H$1)),IF($B30=0,0,EXP($D30)^(2-$H$1))),0) -> 115.0090603 | G30: 0 | H30: 0 | I30: 0 | J30: 0 | K30: 0 | L30: 0 | M30: 0 | N30: 0 | O30: 0 | P30: =IF($A30=P$4,IF($B30<0,-(EXP(-$D30)^(2-$H$1)),IF($B30=0,0,EXP($D30)^(2-$H$1))),0) -> 0 | Q30: 0 | R30: 0 | S30: 0 | T30: 0 | U30: 0 | V30: 0 | W30: 0 | X30: 0 | Y30: 0 | Z30: 0 | AB30: =MMULT(TRANSPOSE(DesignMatrix),MMULT(F30:Z50,DesignMatrix)) -> 228.2076364 | AC30: 0 | AD30: 0 | AE30: 0 | AF30: 0 | AG30: 0 | AH30: 113.1985761 | AI30: 74.17877053 | AJ30: 47.14797796 | AK30: 20.4164612 | AL30: 10.00179838 | AN30: =IF(B30<0,D30+(B30+EXP(-D30))/-EXP(-D30),IF(B30=0,0,D30+(B30-EXP(D30))/EXP(D30))) -> 4.85580448 | AP30: =OFFSET(AA29,A30,A30) -> 228.2076364 | AR30: =MINVERSE(AB30:AL40) -> 0.005627851405 | AS30: 0.001045022599 | AT30: 0.0009261425522 | AU30: 0.0006750671823 | AV30: 0.0004340057645 | AW30: 0 | AX30: -0.001713217552 | AY30: -0.0003354836694 | AZ30: -0.0005780414545 | BA30: -0.0007901497713 | BB30: -0.002210958958 | BD30: =MMULT(AR30:BB40,TRANSPOSE(DesignMatrix)) -> 0.005627851405 | BE30: 0.001045022599 | BF30: 0.0009261425522 | BG30: 0.0006750671823 | BH30: 0.0004340057645 | BI30: 0 | BJ30: 0.003914633854 | BK30: -0.0006681949524 | BL30: -0.0007870749997 | BM30: -0.00103815037 | BN30: -0.001279211787 | BO30: 0.003579150184 | BP30: -0.001003678622 | BQ30: -0.001122558669 | BR30: -0.001373634039 | BS30: 0.00300110873 | BT30: -0.001581720076 | BU30: -0.001700600124 | BV30: 0.002210958958 | BW30: -0.002371869848 | BX30: -8.67361738e-19 | BZ30: =MMULT(F30:Z50,AN30:AN50) -> 558.4615104 | CB30: =MMULT(BD30:BX40,BZ30:BZ50) -> 4.726071634 | CD30: =CB30-CG3/$K$1 -> 2.336719638
A31: 2 | B31: =B6 -> 118.9154014 | D31: 4.67475864 | F31: 0 | G31: 107.2066886 | H31: 0 | I31: 0 | J31: 0 | K31: 0 | L31: 0 | M31: 0 | N31: 0 | O31: 0 | P31: 0 | Q31: 0 | R31: 0 | S31: 0 | T31: 0 | U31: 0 | V31: 0 | W31: 0 | X31: 0 | Y31: 0 | Z31: 0 | AB31: 0 | AC31: 203.402456 | AD31: 0 | AE31: 0 | AF31: 0 | AG31: 0 | AH31: 96.19576735 | AI31: 59.82311872 | AJ31: 34.62613203 | AK31: 9.708117871 | AL31: 0 | AN31: =IF(B31<0,D31+(B31+EXP(-D31))/-EXP(-D31),IF(B31=0,0,D31+(B31-EXP(D31))/EXP(D31))) -> 4.783974893 | AP31: =OFFSET(AA29,A31,A31) -> 203.402456 | AR31: 0.001045022599 | AS31: 0.005961384082 | AT31: 0.0009261425522 | AU31: 0.0006750671823 | AV31: 0.0004340057645 | AW31: 0 | AX31: -0.001713217552 | AY31: -0.0003354836694 | AZ31: -0.0005780414545 | BA31: -0.0007901497713 | BB31: 0.002371869848 | BD31: 0.001045022599 | BE31: 0.005961384082 | BF31: 0.0009261425522 | BG31: 0.0006750671823 | BH31: 0.0004340057645 | BI31: 0 | BJ31: -0.0006681949524 | BK31: 0.00424816653 | BL31: -0.0007870749997 | BM31: -0.00103815037 | BN31: -0.001279211787 | BO31: -0.001003678622 | BP31: 0.003912682861 | BQ31: -0.001122558669 | BR31: -0.001373634039 | BS31: -0.001581720076 | BT31: 0.003334641406 | BU31: -0.001700600124 | BV31: -0.002371869848 | BW31: 0.002544491635 | BX31: 4.33680869e-19 | BZ31: 512.8741067 | CB31: 4.676791348 | CD31: =CB31-CG3/$K$1 -> 2.287439352
A32: 3 | B32: 95.91802164 | D32: 4.637134782 | F32: 0 | G32: 0 | H32: 103.248095 | I32: 0 | J32: 0 | K32: 0 | L32: 0 | M32: 0 | N32: 0 | O32: 0 | P32: 0 | Q32: 0 | R32: 0 | S32: 0 | T32: 0 | U32: 0 | V32: 0 | W32: 0 | X32: 0 | Y32: 0 | Z32: 0 | AB32: 0 | AC32: 0 | AD32: 186.5421989 | AE32: 0 | AF32: 0 | AG32: 0 | AH32: 83.29410384 | AI32: 48.26451071 | AJ32: 23.99791961 | AK32: 0 | AL32: 0 | AN32: 4.566140025 | AP32: =OFFSET(AA29,A32,A32) -> 186.5421989 | AR32: 0.0009261425522 | AS32: 0.0009261425522 | AT32: 0.006286859891 | AU32: 0.0006750671823 | AV32: 0.0004340057645 | AW32: 0 | AX32: -0.001713217552 | AY32: -0.0003354836694 | AZ32: -0.0005780414545 | BA32: 0.001700600124 | BB32: -9.521848986e-20 | BD32: 0.0009261425522 | BE32: 0.0009261425522 | BF32: 0.006286859891 | BG32: 0.0006750671823 | BH32: 0.0004340057645 | BI32: 0 | BJ32: -0.0007870749997 | BK32: -0.0007870749997 | BL32: 0.004573642339 | BM32: -0.00103815037 | BN32: -0.001279211787 | BO32: -0.001122558669 | BP32: -0.001122558669 | BQ32: 0.00423815867 | BR32: -0.001373634039 | BS32: -0.001700600124 | BT32: -0.001700600124 | BU32: 0.003660117215 | BV32: -2.168404345e-19 | BW32: -6.505213035e-19 | BX32: -3.120589244e-19 | BZ32: 471.4452593 | CB32: 4.639912023 | CD32: =CB32-CG3/$K$1 -> 2.250560027
A33: 4 | B33: 139.7182917 | D33: 4.919681874 | F33: 0 | G33: 0 | H33: 0 | I33: 136.959036 | J33: 0 | K33: 0 | L33: 0 | M33: 0 | N33: 0 | O33: 0 | P33: 0 | Q33: 0 | R33: 0 | S33: 0 | T33: 0 | U33: 0 | V33: 0 | W33: 0 | X33: 0 | Y33: 0 | Z33: 0 | AB33: 0 | AC33: 0 | AD33: 0 | AE33: 215.6156759 | AF33: 0 | AG33: 0 | AH33: 78.65663987 | AI33: 32.18973603 | AJ33: 0 | AK33: 0 | AL33: 0 | AN33: 4.93982845 | AP33: =OFFSET(AA29,A33,A33) -> 215.6156759 | AR33: 0.0006750671823 | AS33: 0.0006750671823 | AT33: 0.0006750671823 | AU33: 0.005312948895 | AV33: 0.0004340057645 | AW33: 0 | AX33: -0.001713217552 | AY33: -0.0003354836694 | AZ33: 0.001373634039 | BA33: -7.027212052e-20 | BB33: 1.619713947e-19 | BD33: 0.0006750671823 | BE33: 0.0006750671823 | BF33: 0.0006750671823 | BG33: 0.005312948895 | BH33: 0.0004340057645 | BI33: 0 | BJ33: -0.00103815037 | BK33: -0.00103815037 | BL33: -0.00103815037 | BM33: 0.003599731343 | BN33: -0.001279211787 | BO33: -0.001373634039 | BP33: -0.001373634039 | BQ33: -0.001373634039 | BR33: 0.003264247674 | BS33: -4.33680869e-19 | BT33: -4.33680869e-19 | BU33: -2.168404345e-19 | BV33: -5.039529895e-19 | BW33: -5.039529895e-19 | BX33: -3.419815948e-19 | BZ33: 676.5541424 | CB33: 4.929740444 | CD33: =CB33-CG3/$K$1 -> 2.540388448
A34: 5 | B34: 97.24606143 | D34: 4.798053701 | F34: 0 | G34: 0 | H34: 0 | I34: 0 | J34: 121.2741519 | K34: 0 | L34: 0 | M34: 0 | N34: 0 | O34: 0 | P34: 0 | Q34: 0 | R34: 0 | S34: 0 | T34: 0 | U34: 0 | V34: 0 | W34: 0 | X34: 0 | Y34: 0 | Z34: 0 | AB34: 0 | AC34: 0 | AD34: 0 | AE34: 0 | AF34: 162.4195522 | AG34: 0 | AH34: 41.14540027 | AI34: 0 | AJ34: 0 | AK34: 0 | AL34: 0 | AN34: 4.599923348 | AP34: =OFFSET(AA29,A34,A34) -> 162.4195522 | AR34: 0.0004340057645 | AS34: 0.0004340057645 | AT34: 0.0004340057645 | AU34: 0.0004340057645 | AV34: 0.006590899973 | AW34: 0 | AX34: -0.001713217552 | AY34: 0.001279211787 | AZ34: -9.778430184e-19 | BA34: 4.796698924e-19 | BB34: -2.398349462e-19 | BD34: 0.0004340057645 | BE34: 0.0004340057645 | BF34: 0.0004340057645 | BG34: 0.0004340057645 | BH34: 0.006590899973 | BI34: 0 | BJ34: -0.001279211787 | BK34: -0.001279211787 | BL34: -0.001279211787 | BM34: -0.001279211787 | BN34: 0.004877682421 | BO34: 8.67361738e-19 | BP34: 6.505213035e-19 | BQ34: 8.67361738e-19 | BR34: 8.67361738e-19 | BS34: -1.104812804e-19 | BT34: -3.273217149e-19 | BU34: -1.104812804e-19 | BV34: 3.69188612e-19 | BW34: 1.523481775e-19 | BX34: 1.293536658e-19 | BZ34: 557.8518029 | CB34: 4.766290795 | CD34: =CB34-CG3/$K$1 -> 2.376938799
A35: 6 | B35: 141.242468 | D35: 4.950478045 | F35: 0 | G35: 0 | H35: 0 | I35: 0 | J35: 0 | K35: 141.242468 | L35: 0 | M35: 0 | N35: 0 | O35: 0 | P35: 0 | Q35: 0 | R35: 0 | S35: 0 | T35: 0 | U35: 0 | V35: 0 | W35: 0 | X35: 0 | Y35: 0 | Z35: 0 | AB35: 0 | AC35: 0 | AD35: 0 | AE35: 0 | AF35: 0 | AG35: 141.242468 | AH35: 0 | AI35: 0 | AJ35: 0 | AK35: 0 | AL35: 0 | AN35: 4.950478045 | AP35: =OFFSET(AA29,A35,A35) -> 141.242468 | AR35: 0 | AS35: 0 | AT35: 0 | AU35: 0 | AV35: 0 | AW35: 0.007080023551 | AX35: 0 | AY35: 0 | AZ35: 0 | BA35: 0 | BB35: 0 | BD35: 0 | BE35: 0 | BF35: 0 | BG35: 0 | BH35: 0 | BI35: 0.007080023551 | BJ35: 0 | BK35: 0 | BL35: 0 | BM35: 0 | BN35: 0 | BO35: 0 | BP35: 0 | BQ35: 0 | BR35: 0 | BS35: 0 | BT35: 0 | BU35: 0 | BV35: 0 | BW35: 0 | BX35: 0 | BZ35: 699.217737 | CB35: 4.950478045 | CD35: =CB35-CG3/$K$1 -> 2.561126049
A36: 7 | B36: 29.86933802 | D36: 3.664069351 | F36: 0 | G36: 0 | H36: 0 | I36: 0 | J36: 0 | K36: 0 | L36: 39.01980552 | M36: 0 | N36: 0 | O36: 0 | P36: 0 | Q36: 0 | R36: 0 | S36: 0 | T36: 0 | U36: 0 | V36: 0 | W36: 0 | X36: 0 | Y36: 0 | Z36: 0 | AB36: 113.1985761 | AC36: 96.19576735 | AD36: 83.29410384 | AE36: 78.65663987 | AF36: 41.14540027 | AG36: 0 | AH36: 412.4904874 | AI36: 214.456136 | AJ36: 105.7720296 | AK36: 30.12457907 | AL36: 10.00179838 | AN36: 3.429561071 | AP36: =OFFSET(AA29,A36,A36) -> 412.4904874 | AR36: -0.001713217552 | AS36: -0.001713217552 | AT36: -0.001713217552 | AU36: -0.001713217552 | AV36: -0.001713217552 | AW36: 0 | AX36: 0.006762846533 | AY36: -0.005049628981 | AZ36: 3.859989795e-18 | BA36: -1.893474571e-18 | BB36: 9.467372854e-19 | BD36: -0.001713217552 | BE36: -0.001713217552 | BF36: -0.001713217552 | BG36: -0.001713217552 | BH36: -0.001713217552 | BI36: 0 | BJ36: 0.005049628981 | BK36: 0.005049628981 | BL36: 0.005049628981 | BM36: 0.005049628981 | BN36: 0.005049628981 | BO36: -3.469446952e-18 | BP36: -2.602085214e-18 | BQ36: -4.33680869e-18 | BR36: -3.469446952e-18 | BS36: 3.905428431e-19 | BT36: 1.257904581e-18 | BU36: -4.768188949e-19 | BV36: -1.502931728e-18 | BW36: -6.355699898e-19 | BX36: -5.561944424e-19 | BZ36: 133.820806 | CB36: -1.101892158 | CD36: =CB36-CG3/$K$1 -> -3.491244154
A37: 8 | B37: 32.24111247 | D37: 3.593817081 | F37: 0 | G37: 0 | H37: 0 | I37: 0 | J37: 0 | K37: 0 | L37: 0 | M37: 36.37264862 | N37: 0 | O37: 0 | P37: 0 | Q37: 0 | R37: 0 | S37: 0 | T37: 0 | U37: 0 | V37: 0 | W37: 0 | X37: 0 | Y37: 0 | Z37: 0 | AB37: 74.17877053 | AC37: 59.82311872 | AD37: 48.26451071 | AE37: 32.18973603 | AF37: 0 | AG37: 0 | AH37: 214.456136 | AI37: 214.456136 | AJ37: 105.7720296 | AK37: 30.12457907 | AL37: 10.00179838 | AN37: 3.480227988 | AP37: =OFFSET(AA29,A37,A37) -> 214.456136 | AR37: -0.0003354836694 | AS37: -0.0003354836694 | AT37: -0.0003354836694 | AU37: -0.0003354836694 | AV37: 0.001279211787 | AW37: 0 | AX37: -0.005049628981 | AY37: 0.01458608999 | AZ37: -0.009200977338 | BA37: 5.097467033e-18 | BB37: -3.398311355e-18 | BD37: -0.0003354836694 | BE37: -0.0003354836694 | BF37: -0.0003354836694 | BG37: -0.0003354836694 | BH37: 0.001279211787 | BI37: 0 | BJ37: -0.005385112651 | BK37: -0.005385112651 | BL37: -0.005385112651 | BM37: -0.005385112651 | BN37: -0.003770417194 | BO37: 0.009200977338 | BP37: 0.009200977338 | BQ37: 0.009200977338 | BR37: 0.009200977338 | BS37: 0 | BT37: -1.734723476e-18 | BU37: 0 | BV37: 5.097467033e-18 | BW37: 3.362743557e-18 | BX37: 1.699155678e-18 | BZ37: 126.5851097 | CB37: -0.398460665 | CD37: =CB37-CG3/$K$1 -> -2.787812661
A38: 9 | B38: 30.4740399 | D38: 3.556193222 | F38: 0 | G38: 0 | H38: 0 | I38: 0 | J38: 0 | K38: 0 | L38: 0 | M38: 0 | N38: 35.02959312 | O38: 0 | P38: 0 | Q38: 0 | R38: 0 | S38: 0 | T38: 0 | U38: 0 | V38: 0 | W38: 0 | X38: 0 | Y38: 0 | Z38: 0 | AB38: 47.14797796 | AC38: 34.62613203 | AD38: 23.99791961 | AE38: 0 | AF38: 0 | AG38: 0 | AH38: 105.7720296 | AI38: 105.7720296 | AJ38: 105.7720296 | AK38: 30.12457907 | AL38: 10.00179838 | AN38: 3.426144517 | AP38: =OFFSET(AA29,A38,A38) -> 105.7720296 | AR38: -0.0005780414545 | AS38: -0.0005780414545 | AT38: -0.0005780414545 | AU38: 0.001373634039 | AV38: -1.025349447e-18 | AW38: 0 | AX38: 4.10139779e-18 | AY38: -0.009200977338 | AZ38: 0.02299823495 | BA38: -0.01321921615 | BB38: 4.288807914e-18 | BD38: -0.0005780414545 | BE38: -0.0005780414545 | BF38: -0.0005780414545 | BG38: 0.001373634039 | BH38: -1.025349447e-18 | BI38: 0 | BJ38: -0.0005780414545 | BK38: -0.0005780414545 | BL38: -0.0005780414545 | BM38: 0.001373634039 | BN38: 3.076048342e-18 | BO38: -0.009779018793 | BP38: -0.009779018793 | BQ38: -0.009779018793 | BR38: -0.007827343299 | BS38: 0.01321921615 | BT38: 0.01321921615 | BU38: 0.01321921615 | BV38: -3.469446952e-18 | BW38: -3.469446952e-18 | BX38: 8.193609622e-19 | BZ38: 120.0164484 | CB38: 0.03117567915 | CD38: =CB38-CG3/$K$1 -> -2.358176317
A39: 10 | B39: 40.74107672 | D39: 3.838740314 | F39: 0 | G39: 0 | H39: 0 | I39: 0 | J39: 0 | K39: 0 | L39: 0 | M39: 0 | N39: 0 | O39: 46.46690385 | P39: 0 | Q39: 0 | R39: 0 | S39: 0 | T39: 0 | U39: 0 | V39: 0 | W39: 0 | X39: 0 | Y39: 0 | Z39: 0 | AB39: 20.4164612 | AC39: 9.708117871 | AD39: 0 | AE39: 0 | AF39: 0 | AG39: 0 | AH39: 30.12457907 | AI39: 30.12457907 | AJ39: 30.12457907 | AK39: 30.12457907 | AL39: 10.00179838 | AN39: 3.715516543 | AP39: =OFFSET(AA29,A39,A39) -> 30.12457907 | AR39: -0.0007901497713 | AS39: -0.0007901497713 | AT39: 0.001700600124 | AU39: 1.779151715e-19 | AV39: 3.724637721e-19 | AW39: 0 | AX39: -1.317441196e-18 | AY39: 3.191470529e-18 | AZ39: -0.01321921615 | BA39: 0.06370428709 | BB39: -0.04969492116 | BD39: -0.0007901497713 | BE39: -0.0007901497713 | BF39: 0.001700600124 | BG39: 1.779151715e-19 | BH39: 3.724637721e-19 | BI39: 0 | BJ39: -0.0007901497713 | BK39: -0.0007901497713 | BL39: 0.001700600124 | BM39: -1.139526024e-18 | BN39: -9.449774235e-19 | BO39: -0.0007901497713 | BP39: -0.0007901497713 | BQ39: 0.001700600124 | BR39: 2.051944505e-18 | BS39: -0.01400936592 | BT39: -0.01400936592 | BU39: -0.01151861603 | BV39: 0.04969492116 | BW39: 0.04969492116 | BX39: 6.938893904e-18 | BZ39: 172.6485499 | CB39: -0.9423016186 | CD39: =CB39-CG3/$K$1 -> -3.331653615
A40: 11 | B40: 59.15255297 | D40: 3.717112141 | F40: =IF($A40=F$4,IF($B40<0,-(EXP(-$D40)^(2-$H$1)),IF($B40=0,0,EXP($D40)^(2-$H$1))),0) -> 0 | G40: 0 | H40: 0 | I40: 0 | J40: 0 | K40: 0 | L40: 0 | M40: 0 | N40: 0 | O40: 0 | P40: =IF($A40=P$4,IF($B40<0,-(EXP(-$D40)^(2-$H$1)),IF($B40=0,0,EXP($D40)^(2-$H$1))),0) -> 41.14540027 | Q40: 0 | R40: 0 | S40: 0 | T40: 0 | U40: 0 | V40: 0 | W40: 0 | X40: 0 | Y40: 0 | Z40: 0 | AB40: 10.00179838 | AC40: 0 | AD40: 0 | AE40: 0 | AF40: 0 | AG40: 0 | AH40: 10.00179838 | AI40: 10.00179838 | AJ40: 10.00179838 | AK40: 10.00179838 | AL40: 10.00179838 | AN40: 4.15475894 | AP40: =OFFSET(AA29,A40,A40) -> 10.00179838 | AR40: -0.002210958958 | AS40: 0.002371869848 | AT40: -2.634835051e-19 | AU40: -4.067214021e-20 | AV40: -1.821392247e-19 | AW40: 0 | AX40: 2.015898885e-19 | AY40: -1.704688264e-18 | AZ40: 2.107868041e-18 | BA40: -0.04969492116 | BB40: 0.1518878996 | BD40: -0.002210958958 | BE40: 0.002371869848 | BF40: -2.634835051e-19 | BG40: -4.067214021e-20 | BH40: -1.821392247e-19 | BI40: 0 | BJ40: -0.002210958958 | BK40: 0.002371869848 | BL40: -6.18936166e-20 | BM40: 1.609177483e-19 | BN40: 1.945066382e-20 | BO40: -0.002210958958 | BP40: 0.002371869848 | BQ40: -1.76658188e-18 | BR40: -1.543770515e-18 | BS40: -0.002210958958 | BT40: 0.002371869848 | BU40: 3.412861604e-19 | BV40: -0.05190588012 | BW40: -0.04732305132 | BX40: 0.09998201944 | BZ40: 170.9492196 | CB40: -0.01182795711 | CD40: =CB40-CG3/$K$1 -> -2.401179953
A41: 12 | B41: 12.79973104 | D41: 3.296976682 | F41: 0 | G41: 0 | H41: 0 | I41: 0 | J41: 0 | K41: 0 | L41: 0 | M41: 0 | N41: 0 | O41: 0 | P41: 0 | Q41: 27.03079257 | R41: 0 | S41: 0 | T41: 0 | U41: 0 | V41: 0 | W41: 0 | X41: 0 | Y41: 0 | Z41: 0 | AN41: 2.770500756 | BZ41: 74.88883127
A42: 13 | B42: 24.01026285 | D42: 3.226724412 | F42: 0 | G42: 0 | H42: 0 | I42: 0 | J42: 0 | K42: 0 | L42: 0 | M42: 0 | N42: 0 | O42: 0 | P42: 0 | Q42: 0 | R42: 25.19698669 | S42: 0 | T42: 0 | U42: 0 | V42: 0 | W42: 0 | X42: 0 | Y42: 0 | Z42: 0 | AN42: 3.179626564 | BZ42: 80.11700821
A43: 14 | B43: 31.4509025 | D43: 3.189100553 | F43: 0 | G43: 0 | H43: 0 | I43: 0 | J43: 0 | K43: 0 | L43: 0 | M43: 0 | N43: 0 | O43: 0 | P43: 0 | Q43: 0 | R43: 0 | S43: 24.26659111 | T43: 0 | U43: 0 | V43: 0 | W43: 0 | X43: 0 | Y43: 0 | Z43: 0 | AN43: 3.485158263 | BZ43: 84.57291052
A44: 15 | B44: 34.66746172 | D44: 3.471647645 | F44: 0 | G44: 0 | H44: 0 | I44: 0 | J44: 0 | K44: 0 | L44: 0 | M44: 0 | N44: 0 | O44: 0 | P44: 0 | Q44: 0 | R44: 0 | S44: 0 | T44: 32.18973603 | U44: 0 | V44: 0 | W44: 0 | X44: 0 | Y44: 0 | Z44: 0 | AN44: 3.548620183 | BZ44: 114.229147
A45: 16 | B45: 28.93358139 | D45: 3.285843272 | F45: 0 | G45: 0 | H45: 0 | I45: 0 | J45: 0 | K45: 0 | L45: 0 | M45: 0 | N45: 0 | O45: 0 | P45: 0 | Q45: 0 | R45: 0 | S45: 0 | T45: 0 | U45: 26.73151676 | V45: 0 | W45: 0 | X45: 0 | Y45: 0 | Z45: 0 | AN45: 3.368220365 | BZ45: 90.03763914
A46: 17 | B46: 18.5940837 | D46: 3.215591002 | F46: 0 | G46: 0 | H46: 0 | I46: 0 | J46: 0 | K46: 0 | L46: 0 | M46: 0 | N46: 0 | O46: 0 | P46: 0 | Q46: 0 | R46: 0 | S46: 0 | T46: 0 | U46: 0 | V46: 24.91801416 | W46: 0 | X46: 0 | Y46: 0 | Z46: 0 | AN46: 2.961801498 | BZ46: 73.80221166
A47: 18 | B47: 26.97361534 | D47: 3.177967143 | F47: 0 | G47: 0 | H47: 0 | I47: 0 | J47: 0 | K47: 0 | L47: 0 | M47: 0 | N47: 0 | O47: 0 | P47: 0 | Q47: 0 | R47: 0 | S47: 0 | T47: 0 | U47: 0 | V47: 0 | W47: 23.99791961 | X47: 0 | Y47: 0 | Z47: 0 | AN47: 3.301965214 | BZ47: 79.24029575
A48: 19 | B48: 12.11909114 | D48: 2.3432147 | F48: 0 | G48: 0 | H48: 0 | I48: 0 | J48: 0 | K48: 0 | L48: 0 | M48: 0 | N48: 0 | O48: 0 | P48: 0 | Q48: 0 | R48: 0 | S48: 0 | T48: 0 | U48: 0 | V48: 0 | W48: 0 | X48: 10.41466282 | Y48: 0 | Z48: 0 | AN48: 2.506871301 | BZ48: 26.10821933
A49: 20 | B49: 7.631337285 | D49: 2.272962429 | F49: 0 | G49: 0 | H49: 0 | I49: 0 | J49: 0 | K49: 0 | L49: 0 | M49: 0 | N49: 0 | O49: 0 | P49: 0 | Q49: 0 | R49: 0 | S49: 0 | T49: 0 | U49: 0 | V49: 0 | W49: 0 | X49: 0 | Y49: 9.708117871 | Z49: 0 | AN49: 2.059040368 | BZ49: 19.9894066
A50: 21 | B50: 10.00179838 | D50: 2.302764915 | F50: 0 | G50: 0 | H50: 0 | I50: 0 | J50: 0 | K50: 0 | L50: 0 | M50: 0 | N50: 0 | O50: 0 | P50: 0 | Q50: 0 | R50: 0 | S50: 0 | T50: 0 | U50: 0 | V50: 0 | W50: 0 | X50: 0 | Y50: 0 | Z50: 10.00179838 | AN50: 2.302764915 | BZ50: 23.03179039
A52: Newton-Raphson Interation Sequence -- Iteration 3
B53: y(i) | D53: xb(i) | F53: W(i,i) | AB53: XWX | AN53: zz(i) | AP53: factor | AR53: xwx-1 | BD53: aa1(i,j) | BZ53: aa2(j) | CB53: beta(j) | CD53: beta_diff = | CE53: =SUM(CD55:CD65) -> -0.0004016981228 | CF53: beta_old = | CG53: =SUM(CB55:CB65) -> 26.26557587
B54: 1 | D54: 1 | F54: 1 | G54: 2 | H54: 3 | I54: 4 | J54: 5 | K54: 6 | L54: 7 | M54: 8 | N54: 9 | O54: 10 | P54: 11 | Q54: 12 | R54: 13 | S54: 14 | T54: 15 | U54: 16 | V54: 17 | W54: 18 | X54: 19 | Y54: 20 | Z54: 21 | AB54: 1 | AC54: 2 | AD54: 3 | AE54: 4 | AF54: 5 | AG54: 6 | AH54: 7 | AI54: 8 | AJ54: 9 | AK54: 10 | AL54: 11 | AN54: 1 | AR54: 1 | AS54: 2 | AT54: 3 | AU54: 4 | AV54: 5 | AW54: 6 | AX54: 7 | AY54: 8 | AZ54: 9 | BA54: 10 | BB54: 11 | BD54: 1 | BE54: 2 | BF54: 3 | BG54: 4 | BH54: 5 | BI54: 6 | BJ54: 7 | BK54: 8 | BL54: 9 | BM54: 10 | BN54: 11 | BO54: 12 | BP54: 13 | BQ54: 14 | BR54: 15 | BS54: 16 | BT54: 17 | BU54: 18 | BV54: 19 | BW54: 20 | BX54: 21
A55: 1 | B55: =B30 -> 127.7513246 | D55: =MMULT(DesignMatrix,CB30:CB40) -> 4.726071634 | F55: =IF($A55=F$4,IF($B55<0,-(EXP(-$D55)^(2-$H$1)),IF($B55=0,0,EXP($D55)^(2-$H$1))),0) -> 112.851369 | G55: 0 | H55: 0 | I55: 0 | J55: 0 | K55: 0 | L55: 0 | M55: 0 | N55: 0 | O55: 0 | P55: =IF($A55=P$4,IF($B55<0,-(EXP(-$D55)^(2-$H$1)),IF($B55=0,0,EXP($D55)^(2-$H$1))),0) -> 0 | Q55: 0 | R55: 0 | S55: 0 | T55: 0 | U55: 0 | V55: 0 | W55: 0 | X55: 0 | Y55: 0 | Z55: 0 | AB55: =MMULT(TRANSPOSE(DesignMatrix),MMULT(F55:Z75,DesignMatrix)) -> 221.6083417 | AC55: 0 | AD55: 0 | AE55: 0 | AF55: 0 | AG55: 0 | AH55: 108.7569727 | AI55: 71.26302687 | AJ55: 46.09136554 | AK55: 20.1226 | AL55: 10.00179838 | AN55: =IF(B55<0,D55+(B55+EXP(-D55))/-EXP(-D55),IF(B55=0,0,D55+(B55-EXP(D55))/EXP(D55))) -> 4.858103312 | AP55: =OFFSET(AA54,A55,A55) -> 221.6083417 | AR55: =MINVERSE(AB55:AL65) -> 0.005766455944 | AS55: 0.001040704158 | AT55: 0.0009190909463 | AU55: 0.0006631719606 | AV55: 0.0004302438019 | AW55: 0 | AX55: -0.001725215588 | AY55: -0.0003291898277 | AZ55: -0.000594383712 | BA55: -0.0008130007435 | BB55: -0.002304666073 | BD55: =MMULT(AR55:BB65,TRANSPOSE(DesignMatrix)) -> 0.005766455944 | BE55: 0.001040704158 | BF55: 0.0009190909463 | BG55: 0.0006631719606 | BH55: 0.0004302438019 | BI55: 0 | BJ55: 0.004041240356 | BK55: -0.0006845114296 | BL55: -0.0008061246414 | BM55: -0.001062043627 | BN55: -0.001294971786 | BO55: 0.003712050528 | BP55: -0.001013701257 | BQ55: -0.001135314469 | BR55: -0.001391233455 | BS55: 0.003117666816 | BT55: -0.001608084969 | BU55: -0.001729698181 | BV55: 0.002304666073 | BW55: -0.002421085713 | BX55: 0 | BZ55: =MMULT(F55:Z75,AN55:AN75) -> 548.2436095 | CB55: =MMULT(BD55:BX65,BZ55:BZ75) -> 4.725697468 | CD55: =CB55-CG28/$K$1 -> 2.337881326
A56: 2 | B56: =B31 -> 118.9154014 | D56: 4.676791348 | F56: 0 | G56: 107.4248301 | H56: 0 | I56: 0 | J56: 0 | K56: 0 | L56: 0 | M56: 0 | N56: 0 | O56: 0 | P56: 0 | Q56: 0 | R56: 0 | S56: 0 | T56: 0 | U56: 0 | V56: 0 | W56: 0 | X56: 0 | Y56: 0 | Z56: 0 | AB56: 0 | AC56: 201.4312912 | AD56: 0 | AE56: 0 | AF56: 0 | AG56: 0 | AH56: 94.00646109 | AI56: 58.31543845 | AJ56: 34.35417448 | AK56: 9.634135625 | AL56: 0 | AN56: =IF(B56<0,D56+(B56+EXP(-D56))/-EXP(-D56),IF(B56=0,0,D56+(B56-EXP(D56))/EXP(D56))) -> 4.783755178 | AP56: =OFFSET(AA54,A56,A56) -> 201.4312912 | AR56: 0.001040704158 | AS56: 0.006005176133 | AT56: 0.0009190909463 | AU56: 0.0006631719606 | AV56: 0.0004302438019 | AW56: 0 | AX56: -0.001725215588 | AY56: -0.0003291898277 | AZ56: -0.000594383712 | BA56: -0.0008130007435 | BB56: 0.002421085713 | BD56: 0.001040704158 | BE56: 0.006005176133 | BF56: 0.0009190909463 | BG56: 0.0006631719606 | BH56: 0.0004302438019 | BI56: 0 | BJ56: -0.0006845114296 | BK56: 0.004279960545 | BL56: -0.0008061246414 | BM56: -0.001062043627 | BN56: -0.001294971786 | BO56: -0.001013701257 | BP56: 0.003950770718 | BQ56: -0.001135314469 | BR56: -0.001391233455 | BS56: -0.001608084969 | BT56: 0.003356387006 | BU56: -0.001729698181 | BV56: -0.002421085713 | BW56: 0.002543386262 | BX56: 8.67361738e-19 | BZ56: 513.8940873 | CB56: 4.676853883 | CD56: =CB56-CG28/$K$1 -> 2.289037741
A57: 3 | B57: 95.91802164 | D57: 4.639912023 | F57: 0 | G57: 0 | H57: 103.5352384 | I57: 0 | J57: 0 | K57: 0 | L57: 0 | M57: 0 | N57: 0 | O57: 0 | P57: 0 | Q57: 0 | R57: 0 | S57: 0 | T57: 0 | U57: 0 | V57: 0 | W57: 0 | X57: 0 | Y57: 0 | Z57: 0 | AB57: 0 | AC57: 0 | AD57: 184.8526473 | AE57: 0 | AF57: 0 | AG57: 0 | AH57: 81.3174089 | AI57: 46.91867133 | AJ57: 23.82498641 | AK57: 0 | AL57: 0 | AN57: 4.566340774 | AP57: =OFFSET(AA54,A57,A57) -> 184.8526473 | AR57: 0.0009190909463 | AS57: 0.0009190909463 | AT57: 0.006328805194 | AU57: 0.0006631719606 | AV57: 0.0004302438019 | AW57: 0 | AX57: -0.001725215588 | AY57: -0.0003291898277 | AZ57: -0.000594383712 | BA57: 0.001729698181 | BB57: -2.08218127e-20 | BD57: 0.0009190909463 | BE57: 0.0009190909463 | BF57: 0.006328805194 | BG57: 0.0006631719606 | BH57: 0.0004302438019 | BI57: 0 | BJ57: -0.0008061246414 | BK57: -0.0008061246414 | BL57: 0.004603589606 | BM57: -0.001062043627 | BN57: -0.001294971786 | BO57: -0.001135314469 | BP57: -0.001135314469 | BQ57: 0.004274399778 | BR57: -0.001391233455 | BS57: -0.001729698181 | BT57: -0.001729698181 | BU57: 0.003680016066 | BV57: 8.67361738e-19 | BW57: 8.67361738e-19 | BX57: 8.465399253e-19 | BZ57: 472.7771809 | CB57: 4.639983042 | CD57: =CB57-CG28/$K$1 -> 2.252166899
A58: 4 | B58: 139.7182917 | D58: 4.929740444 | F58: 0 | G58: 0 | H58: 0 | I58: 138.3435998 | J58: 0 | K58: 0 | L58: 0 | M58: 0 | N58: 0 | O58: 0 | P58: 0 | Q58: 0 | R58: 0 | S58: 0 | T58: 0 | U58: 0 | V58: 0 | W58: 0 | X58: 0 | Y58: 0 | Z58: 0 | AB58: 0 | AC58: 0 | AD58: 0 | AE58: 215.1648715 | AF58: 0 | AG58: 0 | AH58: 76.82127171 | AI58: 30.85774033 | AJ58: 0 | AK58: 0 | AL58: 0 | AN58: 4.939677238 | AP58: =OFFSET(AA54,A58,A58) -> 215.1648715 | AR58: 0.0006631719606 | AS58: 0.0006631719606 | AT58: 0.0006631719606 | AU58: 0.005310770768 | AV58: 0.0004302438019 | AW58: 0 | AX58: -0.001725215588 | AY58: -0.0003291898277 | AZ58: 0.001391233455 | BA58: 5.490636102e-19 | BB58: -3.346998036e-19 | BD58: 0.0006631719606 | BE58: 0.0006631719606 | BF58: 0.0006631719606 | BG58: 0.005310770768 | BH58: 0.0004302438019 | BI58: 0 | BJ58: -0.001062043627 | BK58: -0.001062043627 | BL58: -0.001062043627 | BM58: 0.00358555518 | BN58: -0.001294971786 | BO58: -0.001391233455 | BP58: -0.001391233455 | BQ58: -0.001391233455 | BR58: 0.003256365352 | BS58: 4.33680869e-19 | BT58: 4.33680869e-19 | BU58: 4.33680869e-19 | BV58: 9.827444792e-19 | BW58: 9.827444792e-19 | BX58: 6.480446756e-19 | BZ58: 683.3727308 | CB58: 4.929857179 | CD58: =CB58-CG28/$K$1 -> 2.542041036
A59: 5 | B59: 97.24606143 | D59: 4.766290795 | F59: 0 | G59: 0 | H59: 0 | I59: 0 | J59: 117.4826655 | K59: 0 | L59: 0 | M59: 0 | N59: 0 | O59: 0 | P59: 0 | Q59: 0 | R59: 0 | S59: 0 | T59: 0 | U59: 0 | V59: 0 | W59: 0 | X59: 0 | Y59: 0 | Z59: 0 | AB59: 0 | AC59: 0 | AD59: 0 | AE59: 0 | AF59: 156.5153218 | AG59: 0 | AH59: 39.0326563 | AI59: 0 | AJ59: 0 | AK59: 0 | AL59: 0 | AN59: 4.594038965 | AP59: =OFFSET(AA54,A59,A59) -> 156.5153218 | AR59: 0.0004302438019 | AS59: 0.0004302438019 | AT59: 0.0004302438019 | AU59: 0.0004302438019 | AV59: 0.006819394645 | AW59: 0 | AX59: -0.001725215588 | AY59: 0.001294971786 | AZ59: -5.84145308e-19 | BA59: 1.205081757e-19 | BB59: 0 | BD59: 0.0004302438019 | BE59: 0.0004302438019 | BF59: 0.0004302438019 | BG59: 0.0004302438019 | BH59: 0.006819394645 | BI59: 0 | BJ59: -0.001294971786 | BK59: -0.001294971786 | BL59: -0.001294971786 | BM59: -0.001294971786 | BN59: 0.005094179058 | BO59: 6.505213035e-19 | BP59: 6.505213035e-19 | BQ59: 6.505213035e-19 | BR59: 4.33680869e-19 | BS59: 6.637599551e-20 | BT59: 6.637599551e-20 | BU59: 6.637599551e-20 | BV59: 1.868841713e-19 | BW59: 1.868841713e-19 | BX59: 1.868841713e-19 | BZ59: 539.7199429 | CB59: 4.765638807 | CD59: =CB59-CG28/$K$1 -> 2.377822665
A60: 6 | B60: 141.242468 | D60: 4.950478045 | F60: 0 | G60: 0 | H60: 0 | I60: 0 | J60: 0 | K60: 141.242468 | L60: 0 | M60: 0 | N60: 0 | O60: 0 | P60: 0 | Q60: 0 | R60: 0 | S60: 0 | T60: 0 | U60: 0 | V60: 0 | W60: 0 | X60: 0 | Y60: 0 | Z60: 0 | AB60: 0 | AC60: 0 | AD60: 0 | AE60: 0 | AF60: 0 | AG60: 141.242468 | AH60: 0 | AI60: 0 | AJ60: 0 | AK60: 0 | AL60: 0 | AN60: 4.950478045 | AP60: =OFFSET(AA54,A60,A60) -> 141.242468 | AR60: 0 | AS60: 0 | AT60: 0 | AU60: 0 | AV60: 0 | AW60: 0.007080023551 | AX60: 0 | AY60: 0 | AZ60: 0 | BA60: 0 | BB60: 0 | BD60: 0 | BE60: 0 | BF60: 0 | BG60: 0 | BH60: 0 | BI60: 0.007080023551 | BJ60: 0 | BK60: 0 | BL60: 0 | BM60: 0 | BN60: 0 | BO60: 0 | BP60: 0 | BQ60: 0 | BR60: 0 | BS60: 0 | BT60: 0 | BU60: 0 | BV60: 0 | BW60: 0 | BX60: 0 | BZ60: 699.217737 | CB60: 4.950478045 | CD60: =CB60-CG28/$K$1 -> 2.562661902
A61: 7 | B61: 29.86933802 | D61: 3.624179476 | F61: 0 | G61: 0 | H61: 0 | I61: 0 | J61: 0 | K61: 0 | L61: 37.49394586 | M61: 0 | N61: 0 | O61: 0 | P61: 0 | Q61: 0 | R61: 0 | S61: 0 | T61: 0 | U61: 0 | V61: 0 | W61: 0 | X61: 0 | Y61: 0 | Z61: 0 | AB61: 108.7569727 | AC61: 94.00646109 | AD61: 81.3174089 | AE61: 76.82127171 | AF61: 39.0326563 | AG61: 0 | AH61: 399.9347707 | AI61: 207.354877 | AJ61: 104.2705264 | AK61: 29.75673562 | AL61: 10.00179838 | AN61: 3.42082377 | AP61: =OFFSET(AA54,A61,A61) -> 399.9347707 | AR61: -0.001725215588 | AS61: -0.001725215588 | AT61: -0.001725215588 | AU61: -0.001725215588 | AV61: -0.001725215588 | AW61: 0 | AX61: 0.006917865664 | AY61: -0.005192650077 | AZ61: 2.342338429e-18 | BA61: -4.832204028e-19 | BB61: 0 | BD61: -0.001725215588 | BE61: -0.001725215588 | BF61: -0.001725215588 | BG61: -0.001725215588 | BH61: -0.001725215588 | BI61: 0 | BJ61: 0.005192650077 | BK61: 0.005192650077 | BL61: 0.005192650077 | BM61: 0.005192650077 | BN61: 0.005192650077 | BO61: -2.602085214e-18 | BP61: -2.602085214e-18 | BQ61: -2.602085214e-18 | BR61: -1.734723476e-18 | BS61: -2.597467852e-19 | BT61: -2.597467852e-19 | BU61: -2.597467852e-19 | BV61: -7.42967188e-19 | BW61: -7.42967188e-19 | BX61: -7.42967188e-19 | BZ61: 128.2601812 | CB61: -1.102267775 | CD61: =CB61-CG28/$K$1 -> -3.490083918
A62: 8 | B62: 32.24111247 | D62: 3.57489919 | F62: 0 | G62: 0 | H62: 0 | I62: 0 | J62: 0 | K62: 0 | L62: 0 | M62: 35.69102263 | N62: 0 | O62: 0 | P62: 0 | Q62: 0 | R62: 0 | S62: 0 | T62: 0 | U62: 0 | V62: 0 | W62: 0 | X62: 0 | Y62: 0 | Z62: 0 | AB62: 71.26302687 | AC62: 58.31543845 | AD62: 46.91867133 | AE62: 30.85774033 | AF62: 0 | AG62: 0 | AH62: 207.354877 | AI62: 207.354877 | AJ62: 104.2705264 | AK62: 29.75673562 | AL62: 10.00179838 | AN62: 3.478238744 | AP62: =OFFSET(AA54,A62,A62) -> 207.354877 | AR62: -0.0003291898277 | AS62: -0.0003291898277 | AT62: -0.0003291898277 | AU62: -0.0003291898277 | AV62: 0.001294971786 | AW62: 0 | AX62: -0.005192650077 | AY62: 0.01522263343 | AZ62: -0.009700793521 | BA62: -2.625519379e-18 | BB62: 2.333795004e-18 | BD62: -0.0003291898277 | BE62: -0.0003291898277 | BF62: -0.0003291898277 | BG62: -0.0003291898277 | BH62: 0.001294971786 | BI62: 0 | BJ62: -0.005521839904 | BK62: -0.005521839904 | BL62: -0.005521839904 | BM62: -0.005521839904 | BN62: -0.003897678291 | BO62: 0.009700793521 | BP62: 0.009700793521 | BQ62: 0.009700793521 | BR62: 0.009700793521 | BS62: 0 | BT62: 0 | BU62: 0 | BV62: -2.625519379e-18 | BW62: -2.625519379e-18 | BX62: -2.917243755e-19 | BZ62: 124.1418977 | CB62: -0.3995723223 | CD62: =CB62-CG28/$K$1 -> -2.787388465
A63: 9 | B63: 30.4740399 | D63: 3.538019865 | F63: 0 | G63: 0 | H63: 0 | I63: 0 | J63: 0 | K63: 0 | L63: 0 | M63: 0 | N63: 34.39873757 | O63: 0 | P63: 0 | Q63: 0 | R63: 0 | S63: 0 | T63: 0 | U63: 0 | V63: 0 | W63: 0 | X63: 0 | Y63: 0 | Z63: 0 | AB63: 46.09136554 | AC63: 34.35417448 | AD63: 23.82498641 | AE63: 0 | AF63: 0 | AG63: 0 | AH63: 104.2705264 | AI63: 104.2705264 | AJ63: 104.2705264 | AK63: 29.75673562 | AL63: 10.00179838 | AN63: 3.42392563 | AP63: =OFFSET(AA54,A63,A63) -> 104.2705264 | AR63: -0.000594383712 | AS63: -0.000594383712 | AT63: -0.000594383712 | AU63: 0.001391233455 | AV63: -4.656113874e-20 | AW63: 0 | AX63: 0 | AY63: -0.009700793521 | AZ63: 0.02371551177 | BA63: -0.01342033453 | BB63: -4.434403098e-18 | BD63: -0.000594383712 | BE63: -0.000594383712 | BF63: -0.000594383712 | BG63: 0.001391233455 | BH63: -4.656113874e-20 | BI63: 0 | BJ63: -0.000594383712 | BK63: -0.000594383712 | BL63: -0.000594383712 | BM63: 0.001391233455 | BN63: -4.656113874e-20 | BO63: -0.01029517723 | BP63: -0.01029517723 | BQ63: -0.01029517723 | BR63: -0.008309560066 | BS63: 0.01342033453 | BT63: 0.01342033453 | BU63: 0.01342033453 | BV63: 3.469446952e-18 | BW63: 5.204170428e-18 | BX63: -9.649561456e-19 | BZ63: 117.7787192 | CB63: 0.03258200711 | CD63: =CB63-CG28/$K$1 -> -2.355234136
A64: 10 | B64: 40.74107672 | D64: 3.827848286 | F64: 0 | G64: 0 | H64: 0 | I64: 0 | J64: 0 | K64: 0 | L64: 0 | M64: 0 | N64: 0 | O64: 45.96353138 | P64: 0 | Q64: 0 | R64: 0 | S64: 0 | T64: 0 | U64: 0 | V64: 0 | W64: 0 | X64: 0 | Y64: 0 | Z64: 0 | AB64: 20.1226 | AC64: 9.634135625 | AD64: 0 | AE64: 0 | AF64: 0 | AG64: 0 | AH64: 29.75673562 | AI64: 29.75673562 | AJ64: 29.75673562 | AK64: 29.75673562 | AL64: 10.00179838 | AN64: 3.714226584 | AP64: =OFFSET(AA54,A64,A64) -> 29.75673562 | AR64: -0.0008130007435 | AS64: -0.0008130007435 | AT64: 0.001729698181 | AU64: 4.50012196e-19 | AV64: 2.25006098e-19 | AW64: 0 | AX64: 0 | AY64: -1.448800192e-18 | AZ64: -0.01342033453 | BA64: 0.06485359227 | BB64: -0.05062025699 | BD64: -0.0008130007435 | BE64: -0.0008130007435 | BF64: 0.001729698181 | BG64: 4.50012196e-19 | BH64: 2.25006098e-19 | BI64: 0 | BJ64: -0.0008130007435 | BK64: -0.0008130007435 | BL64: 0.001729698181 | BM64: 4.50012196e-19 | BN64: 2.25006098e-19 | BO64: -0.0008130007435 | BP64: -0.0008130007435 | BQ64: 0.001729698181 | BR64: -9.987879955e-19 | BS64: -0.01423333528 | BT64: -0.01423333528 | BU64: -0.01169063635 | BV64: 0.05062025699 | BW64: 0.05062025699 | BX64: -6.938893904e-18 | BZ64: 170.7189702 | CB64: -0.9422877151 | CD64: =CB64-CG28/$K$1 -> -3.330103858
A65: 11 | B65: 59.15255297 | D65: 3.664398637 | F65: =IF($A65=F$4,IF($B65<0,-(EXP(-$D65)^(2-$H$1)),IF($B65=0,0,EXP($D65)^(2-$H$1))),0) -> 0 | G65: 0 | H65: 0 | I65: 0 | J65: 0 | K65: 0 | L65: 0 | M65: 0 | N65: 0 | O65: 0 | P65: =IF($A65=P$4,IF($B65<0,-(EXP(-$D65)^(2-$H$1)),IF($B65=0,0,EXP($D65)^(2-$H$1))),0) -> 39.0326563 | Q65: 0 | R65: 0 | S65: 0 | T65: 0 | U65: 0 | V65: 0 | W65: 0 | X65: 0 | Y65: 0 | Z65: 0 | AB65: 10.00179838 | AC65: 0 | AD65: 0 | AE65: 0 | AF65: 0 | AG65: 0 | AH65: 10.00179838 | AI65: 10.00179838 | AJ65: 10.00179838 | AK65: 10.00179838 | AL65: 10.00179838 | AN65: 4.179861805 | AP65: =OFFSET(AA54,A65,A65) -> 10.00179838 | AR65: -0.002304666073 | AS65: 0.002421085713 | AT65: 2.652512628e-19 | AU65: -3.512485927e-19 | AV65: -1.756242963e-19 | AW65: 0 | AX65: 0 | AY65: 3.439893194e-19 | AZ65: -2.122010102e-18 | BA65: -0.05062025699 | BB65: 0.1529069425 | BD65: -0.002304666073 | BE65: 0.002421085713 | BF65: 2.652512628e-19 | BG65: -3.512485927e-19 | BH65: -1.756242963e-19 | BI65: 0 | BJ65: -0.002304666073 | BK65: 0.002421085713 | BL65: 2.652512628e-19 | BM65: -3.512485927e-19 | BN65: -1.756242963e-19 | BO65: -0.002304666073 | BP65: 0.002421085713 | BQ65: 6.092405822e-19 | BR65: -7.259273264e-21 | BS65: -0.002304666073 | BT65: 0.002421085713 | BU65: -1.51276952e-18 | BV65: -0.05292492306 | BW65: -0.04819917128 | BX65: 0.09998201944 | BZ65: 163.1511092 | CB65: -0.01138674797 | CD65: =CB65-CG28/$K$1 -> -2.399202891
A66: 12 | B66: 12.79973104 | D66: 3.225718811 | F66: 0 | G66: 0 | H66: 0 | I66: 0 | J66: 0 | K66: 0 | L66: 0 | M66: 0 | N66: 0 | O66: 0 | P66: 0 | Q66: 25.17166133 | R66: 0 | S66: 0 | T66: 0 | U66: 0 | V66: 0 | W66: 0 | X66: 0 | Y66: 0 | Z66: 0 | AN66: 2.734216477 | BZ66: 68.82477117
A67: 13 | B67: 24.01026285 | D67: 3.176438525 | F67: 0 | G67: 0 | H67: 0 | I67: 0 | J67: 0 | K67: 0 | L67: 0 | M67: 0 | N67: 0 | O67: 0 | P67: 0 | Q67: 0 | R67: 23.96126397 | S67: 0 | T67: 0 | U67: 0 | V67: 0 | W67: 0 | X67: 0 | Y67: 0 | Z67: 0 | AN67: 3.178483446 | BZ67: 76.16048087
A68: 14 | B68: 31.4509025 | D68: 3.1395592 | F68: 0 | G68: 0 | H68: 0 | I68: 0 | J68: 0 | K68: 0 | L68: 0 | M68: 0 | N68: 0 | O68: 0 | P68: 0 | Q68: 0 | R68: 0 | S68: 23.09368492 | T68: 0 | U68: 0 | V68: 0 | W68: 0 | X68: 0 | Y68: 0 | Z68: 0 | AN68: 3.501442443 | BZ68: 80.86120854
A69: 15 | B69: 34.66746172 | D69: 3.429387621 | F69: 0 | G69: 0 | H69: 0 | I69: 0 | J69: 0 | K69: 0 | L69: 0 | M69: 0 | N69: 0 | O69: 0 | P69: 0 | Q69: 0 | R69: 0 | S69: 0 | T69: 30.85774033 | U69: 0 | V69: 0 | W69: 0 | X69: 0 | Y69: 0 | Z69: 0 | AN69: 3.552848424 | BZ69: 109.6328741
A70: 16 | B70: 28.93358139 | D70: 3.25689449 | F70: 0 | G70: 0 | H70: 0 | I70: 0 | J70: 0 | K70: 0 | L70: 0 | M70: 0 | N70: 0 | O70: 0 | P70: 0 | Q70: 0 | R70: 0 | S70: 0 | T70: 0 | U70: 25.96876554 | V70: 0 | W70: 0 | X70: 0 | Y70: 0 | Z70: 0 | AN70: 3.371063023 | BZ70: 87.54234526
A71: 17 | B71: 18.5940837 | D71: 3.207614204 | F71: 0 | G71: 0 | H71: 0 | I71: 0 | J71: 0 | K71: 0 | L71: 0 | M71: 0 | N71: 0 | O71: 0 | P71: 0 | Q71: 0 | R71: 0 | S71: 0 | T71: 0 | U71: 0 | V71: 24.72003886 | W71: 0 | X71: 0 | Y71: 0 | Z71: 0 | AN71: 2.959800874 | BZ71: 73.16639261
A72: 18 | B72: 26.97361534 | D72: 3.170734879 | F72: 0 | G72: 0 | H72: 0 | I72: 0 | J72: 0 | K72: 0 | L72: 0 | M72: 0 | N72: 0 | O72: 0 | P72: 0 | Q72: 0 | R72: 0 | S72: 0 | T72: 0 | U72: 0 | V72: 0 | W72: 23.82498641 | X72: 0 | Y72: 0 | Z72: 0 | AN72: 3.302891468 | BZ72: 78.69134434
A73: 19 | B73: 12.11909114 | D73: 2.314592872 | F73: 0 | G73: 0 | H73: 0 | I73: 0 | J73: 0 | K73: 0 | L73: 0 | M73: 0 | N73: 0 | O73: 0 | P73: 0 | Q73: 0 | R73: 0 | S73: 0 | T73: 0 | U73: 0 | V73: 0 | W73: 0 | X73: 10.12080162 | Y73: 0 | Z73: 0 | AN73: 2.512036671 | BZ73: 25.4238248
A74: 20 | B74: 7.631337285 | D74: 2.265312586 | F74: 0 | G74: 0 | H74: 0 | I74: 0 | J74: 0 | K74: 0 | L74: 0 | M74: 0 | N74: 0 | O74: 0 | P74: 0 | Q74: 0 | R74: 0 | S74: 0 | T74: 0 | U74: 0 | V74: 0 | W74: 0 | X74: 0 | Y74: 9.634135625 | Z74: 0 | AN74: 2.057426957 | BZ74: 19.82153034
A75: 21 | B75: 10.00179838 | D75: 2.302764915 | F75: 0 | G75: 0 | H75: 0 | I75: 0 | J75: 0 | K75: 0 | L75: 0 | M75: 0 | N75: 0 | O75: 0 | P75: 0 | Q75: 0 | R75: 0 | S75: 0 | T75: 0 | U75: 0 | V75: 0 | W75: 0 | X75: 0 | Y75: 0 | Z75: 10.00179838 | AN75: 2.302764915 | BZ75: 23.03179039
A77: Newton-Raphson Interation Sequence -- Iteration 4
B78: y(i) | D78: xb(i) | F78: W(i,i) | AB78: XWX | AN78: zz(i) | AP78: factor | AR78: xwx-1 | BD78: aa1(i,j) | BZ78: aa2(j) | CB78: beta(j) | CD78: beta_diff = | CE78: =SUM(CD80:CD90) -> -1.492523563e-07 | CF78: beta_old = | CG78: =SUM(CB80:CB90) -> 26.26557572
B79: 1 | D79: 1 | F79: 1 | G79: 2 | H79: 3 | I79: 4 | J79: 5 | K79: 6 | L79: 7 | M79: 8 | N79: 9 | O79: 10 | P79: 11 | Q79: 12 | R79: 13 | S79: 14 | T79: 15 | U79: 16 | V79: 17 | W79: 18 | X79: 19 | Y79: 20 | Z79: 21 | AB79: 1 | AC79: 2 | AD79: 3 | AE79: 4 | AF79: 5 | AG79: 6 | AH79: 7 | AI79: 8 | AJ79: 9 | AK79: 10 | AL79: 11 | AN79: 1 | AR79: 1 | AS79: 2 | AT79: 3 | AU79: 4 | AV79: 5 | AW79: 6 | AX79: 7 | AY79: 8 | AZ79: 9 | BA79: 10 | BB79: 11 | BD79: 1 | BE79: 2 | BF79: 3 | BG79: 4 | BH79: 5 | BI79: 6 | BJ79: 7 | BK79: 8 | BL79: 9 | BM79: 10 | BN79: 11 | BO79: 12 | BP79: 13 | BQ79: 14 | BR79: 15 | BS79: 16 | BT79: 17 | BU79: 18 | BV79: 19 | BW79: 20 | BX79: 21
A80: 1 | B80: =B55 -> 127.7513246 | D80: =MMULT(DesignMatrix,CB55:CB65) -> 4.725697468 | F80: =IF($A80=F$4,IF($B80<0,-(EXP(-$D80)^(2-$H$1)),IF($B80=0,0,EXP($D80)^(2-$H$1))),0) -> 112.8091517 | G80: 0 | H80: 0 | I80: 0 | J80: 0 | K80: 0 | L80: 0 | M80: 0 | N80: 0 | O80: 0 | P80: =IF($A80=P$4,IF($B80<0,-(EXP(-$D80)^(2-$H$1)),IF($B80=0,0,EXP($D80)^(2-$H$1))),0) -> 0 | Q80: 0 | R80: 0 | S80: 0 | T80: 0 | U80: 0 | V80: 0 | W80: 0 | X80: 0 | Y80: 0 | Z80: 0 | AB80: =MMULT(TRANSPOSE(DesignMatrix),MMULT(F80:Z100,DesignMatrix)) -> 221.4749303 | AC80: 0 | AD80: 0 | AE80: 0 | AF80: 0 | AG80: 0 | AH80: 108.6657785 | AI80: 71.19993446 | AJ80: 46.0750851 | AK80: 20.11813559 | AL80: 10.00179838 | AN80: =IF(B80<0,D80+(B80+EXP(-D80))/-EXP(-D80),IF(B80=0,0,D80+(B80-EXP(D80))/EXP(D80))) -> 4.858152793 | AP80: =OFFSET(AA79,A80,A80) -> 221.4749303 | AR80: =MINVERSE(AB80:AL90) -> 0.005769351369 | AS80: 0.001040618262 | AT80: 0.0009189300341 | AU80: 0.00066286631 | AV80: 0.0004301882407 | AW80: 0 | AX80: -0.001725479238 | AY80: -0.0003290649038 | AZ80: -0.0005946946685 | BA80: -0.0008134765971 | BB80: -0.002306635961 | BD80: =MMULT(AR80:BB90,TRANSPOSE(DesignMatrix)) -> 0.005769351369 | BE80: 0.001040618262 | BF80: 0.0009189300341 | BG80: 0.00066286631 | BH80: 0.0004301882407 | BI80: 0 | BJ80: 0.004043872131 | BK80: -0.0006848609764 | BL80: -0.0008065492041 | BM80: -0.001062612928 | BN80: -0.001295290997 | BO80: 0.003714807227 | BP80: -0.00101392588 | BQ80: -0.001135614108 | BR80: -0.001391677832 | BS80: 0.003120112558 | BT80: -0.001608620549 | BU80: -0.001730308776 | BV80: 0.002306635961 | BW80: -0.002422097146 | BX80: -1.301042607e-18 | BZ80: =MMULT(F80:Z100,AN80:AN100) -> 548.0440957 | CB80: =MMULT(BD80:BX90,BZ80:BZ100) -> 4.725697318 | CD80: =CB80-CG53/$K$1 -> 2.337917693
A81: 2 | B81: =B56 -> 118.9154014 | D81: 4.676853883 | F81: 0 | G81: 107.4315482 | H81: 0 | I81: 0 | J81: 0 | K81: 0 | L81: 0 | M81: 0 | N81: 0 | O81: 0 | P81: 0 | Q81: 0 | R81: 0 | S81: 0 | T81: 0 | U81: 0 | V81: 0 | W81: 0 | X81: 0 | Y81: 0 | Z81: 0 | AB81: 0 | AC81: 201.392224 | AD81: 0 | AE81: 0 | AF81: 0 | AG81: 0 | AH81: 93.9606758 | AI81: 58.28082564 | AJ81: 34.35367592 | AK81: 9.634092194 | AL81: 0 | AN81: =IF(B81<0,D81+(B81+EXP(-D81))/-EXP(-D81),IF(B81=0,0,D81+(B81-EXP(D81))/EXP(D81))) -> 4.783748491 | AP81: =OFFSET(AA79,A81,A81) -> 201.392224 | AR81: 0.001040618262 | AS81: 0.006006053274 | AT81: 0.0009189300341 | AU81: 0.00066286631 | AV81: 0.0004301882407 | AW81: 0 | AX81: -0.001725479238 | AY81: -0.0003290649038 | AZ81: -0.0005946946685 | BA81: -0.0008134765971 | BB81: 0.002422097146 | BD81: 0.001040618262 | BE81: 0.006006053274 | BF81: 0.0009189300341 | BG81: 0.00066286631 | BH81: 0.0004301882407 | BI81: 0 | BJ81: -0.0006848609764 | BK81: 0.004280574036 | BL81: -0.0008065492041 | BM81: -0.001062612928 | BN81: -0.001295290997 | BO81: -0.00101392588 | BP81: 0.003951509132 | BQ81: -0.001135614108 | BR81: -0.001391677832 | BS81: -0.001608620549 | BT81: 0.003356814463 | BU81: -0.001730308776 | BV81: -0.002422097146 | BW81: 0.002543337866 | BX81: -2.168404345e-18 | BZ81: 513.9255064 | CB81: 4.676853913 | CD81: =CB81-CG53/$K$1 -> 2.289074288
A82: 3 | B82: 95.91802164 | D82: 4.639983042 | F82: 0 | G82: 0 | H82: 103.5425917 | I82: 0 | J82: 0 | K82: 0 | L82: 0 | M82: 0 | N82: 0 | O82: 0 | P82: 0 | Q82: 0 | R82: 0 | S82: 0 | T82: 0 | U82: 0 | V82: 0 | W82: 0 | X82: 0 | Y82: 0 | Z82: 0 | AB82: 0 | AC82: 0 | AD82: 184.8166044 | AE82: 0 | AF82: 0 | AG82: 0 | AH82: 81.27401273 | AI82: 46.88575138 | AJ82: 23.82474988 | AK82: 0 | AL82: 0 | AN82: 4.566346001 | AP82: =OFFSET(AA79,A82,A82) -> 184.8166044 | AR82: 0.0009189300341 | AS82: 0.0009189300341 | AT82: 0.006329699284 | AU82: 0.00066286631 | AV82: 0.0004301882407 | AW82: 0 | AX82: -0.001725479238 | AY82: -0.0003290649038 | AZ82: -0.0005946946685 | BA82: 0.001730308776 | BB82: -1.922640465e-19 | BD82: 0.0009189300341 | BE82: 0.0009189300341 | BF82: 0.006329699284 | BG82: 0.00066286631 | BH82: 0.0004301882407 | BI82: 0 | BJ82: -0.0008065492041 | BK82: -0.0008065492041 | BL82: 0.004604220046 | BM82: -0.001062612928 | BN82: -0.001295290997 | BO82: -0.001135614108 | BP82: -0.001135614108 | BQ82: 0.004275155142 | BR82: -0.001391677832 | BS82: -0.001730308776 | BT82: -0.001730308776 | BU82: 0.003680460474 | BV82: -1.301042607e-18 | BW82: -1.301042607e-18 | BX82: -1.493306653e-18 | BZ82: 472.8112994 | CB82: 4.639983075 | CD82: =CB82-CG53/$K$1 -> 2.252203451
A83: 4 | B83: 139.7182917 | D83: 4.929857179 | F83: 0 | G83: 0 | H83: 0 | I83: 138.3597502 | J83: 0 | K83: 0 | L83: 0 | M83: 0 | N83: 0 | O83: 0 | P83: 0 | Q83: 0 | R83: 0 | S83: 0 | T83: 0 | U83: 0 | V83: 0 | W83: 0 | X83: 0 | Y83: 0 | Z83: 0 | AB83: 0 | AC83: 0 | AD83: 0 | AE83: 215.1268616 | AF83: 0 | AG83: 0 | AH83: 76.76711132 | AI83: 30.81547754 | AJ83: 0 | AK83: 0 | AL83: 0 | AN83: 4.939676085 | AP83: =OFFSET(AA79,A83,A83) -> 215.1268616 | AR83: 0.00066286631 | AS83: 0.00066286631 | AT83: 0.00066286631 | AU83: 0.005311286283 | AV83: 0.0004301882407 | AW83: 0 | AX83: -0.001725479238 | AY83: -0.0003290649038 | AZ83: 0.001391677832 | BA83: 2.248360007e-19 | BB83: 1.620076256e-19 | BD83: 0.00066286631 | BE83: 0.00066286631 | BF83: 0.00066286631 | BG83: 0.005311286283 | BH83: 0.0004301882407 | BI83: 0 | BJ83: -0.001062612928 | BK83: -0.001062612928 | BL83: -0.001062612928 | BM83: 0.003585807045 | BN83: -0.001295290997 | BO83: -0.001391677832 | BP83: -0.001391677832 | BQ83: -0.001391677832 | BR83: 0.003256742141 | BS83: -8.67361738e-19 | BT83: -4.33680869e-19 | BU83: -4.33680869e-19 | BV83: -6.425257373e-19 | BW83: -2.088448683e-19 | BX83: -4.805181117e-19 | BZ83: 683.4523494 | CB83: 4.929857226 | CD83: =CB83-CG53/$K$1 -> 2.542077601
A84: 5 | B84: 97.24606143 | D84: 4.765638807 | F84: 0 | G84: 0 | H84: 0 | I84: 0 | J84: 117.4060932 | K84: 0 | L84: 0 | M84: 0 | N84: 0 | O84: 0 | P84: 0 | Q84: 0 | R84: 0 | S84: 0 | T84: 0 | U84: 0 | V84: 0 | W84: 0 | X84: 0 | Y84: 0 | Z84: 0 | AB84: 0 | AC84: 0 | AD84: 0 | AE84: 0 | AF84: 156.39866 | AG84: 0 | AH84: 38.99256676 | AI84: 0 | AJ84: 0 | AK84: 0 | AL84: 0 | AN84: 4.593926835 | AP84: =OFFSET(AA79,A84,A84) -> 156.39866 | AR84: 0.0004301882407 | AS84: 0.0004301882407 | AT84: 0.0004301882407 | AU84: 0.0004301882407 | AV84: 0.006824104916 | AW84: 0 | AX84: -0.001725479238 | AY84: 0.001295290997 | AZ84: -8.253108762e-19 | BA84: 3.615882758e-19 | BB84: -1.205294253e-19 | BD84: 0.0004301882407 | BE84: 0.0004301882407 | BF84: 0.0004301882407 | BG84: 0.0004301882407 | BH84: 0.006824104916 | BI84: 0 | BJ84: -0.001295290997 | BK84: -0.001295290997 | BL84: -0.001295290997 | BM84: -0.001295290997 | BN84: 0.005098625678 | BO84: 0 | BP84: 0 | BQ84: 0 | BR84: 0 | BS84: -8.253108762e-19 | BT84: -8.253108762e-19 | BU84: -8.253108762e-19 | BV84: -4.637226004e-19 | BW84: -4.637226004e-19 | BX84: -5.842520257e-19 | BZ84: 539.3550023 | CB84: 4.765638548 | CD84: =CB84-CG53/$K$1 -> 2.377858923
A85: 6 | B85: 141.242468 | D85: 4.950478045 | F85: 0 | G85: 0 | H85: 0 | I85: 0 | J85: 0 | K85: 141.242468 | L85: 0 | M85: 0 | N85: 0 | O85: 0 | P85: 0 | Q85: 0 | R85: 0 | S85: 0 | T85: 0 | U85: 0 | V85: 0 | W85: 0 | X85: 0 | Y85: 0 | Z85: 0 | AB85: 0 | AC85: 0 | AD85: 0 | AE85: 0 | AF85: 0 | AG85: 141.242468 | AH85: 0 | AI85: 0 | AJ85: 0 | AK85: 0 | AL85: 0 | AN85: 4.950478045 | AP85: =OFFSET(AA79,A85,A85) -> 141.242468 | AR85: 0 | AS85: 0 | AT85: 0 | AU85: 0 | AV85: 0 | AW85: 0.007080023551 | AX85: 0 | AY85: 0 | AZ85: 0 | BA85: 0 | BB85: 0 | BD85: 0 | BE85: 0 | BF85: 0 | BG85: 0 | BH85: 0 | BI85: 0.007080023551 | BJ85: 0 | BK85: 0 | BL85: 0 | BM85: 0 | BN85: 0 | BO85: 0 | BP85: 0 | BQ85: 0 | BR85: 0 | BS85: 0 | BT85: 0 | BU85: 0 | BV85: 0 | BW85: 0 | BX85: 0 | BZ85: 699.217737 | CB85: 4.950478045 | CD85: =CB85-CG53/$K$1 -> 2.56269842
A86: 7 | B86: 29.86933802 | D86: 3.623429693 | F86: 0 | G86: 0 | H86: 0 | I86: 0 | J86: 0 | K86: 0 | L86: 37.46584406 | M86: 0 | N86: 0 | O86: 0 | P86: 0 | Q86: 0 | R86: 0 | S86: 0 | T86: 0 | U86: 0 | V86: 0 | W86: 0 | X86: 0 | Y86: 0 | Z86: 0 | AB86: 108.6657785 | AC86: 93.9606758 | AD86: 81.27401273 | AE86: 76.76711132 | AF86: 38.99256676 | AG86: 0 | AH86: 399.6601451 | AI86: 207.181989 | AJ86: 104.2535109 | AK86: 29.75222778 | AL86: 10.00179838 | AN86: 3.420671521 | AP86: =OFFSET(AA79,A86,A86) -> 399.6601451 | AR86: -0.001725479238 | AS86: -0.001725479238 | AT86: -0.001725479238 | AU86: -0.001725479238 | AV86: -0.001725479238 | AW86: 0 | AX86: 0.006920873979 | AY86: -0.005195394741 | AZ86: 3.310310806e-18 | BA86: -1.450325703e-18 | BB86: 4.834419009e-19 | BD86: -0.001725479238 | BE86: -0.001725479238 | BF86: -0.001725479238 | BG86: -0.001725479238 | BH86: -0.001725479238 | BI86: 0 | BJ86: 0.005195394741 | BK86: 0.005195394741 | BL86: 0.005195394741 | BM86: 0.005195394741 | BN86: 0.005195394741 | BO86: 0 | BP86: -8.67361738e-19 | BQ86: -8.67361738e-19 | BR86: -8.67361738e-19 | BS86: 3.310310806e-18 | BT86: 2.442949068e-18 | BU86: 2.442949068e-18 | BV86: 1.859985103e-18 | BW86: 9.926233652e-19 | BX86: 2.343427004e-18 | BZ86: 128.1583458 | CB86: -1.102267903 | CD86: =CB86-CG53/$K$1 -> -3.490047528
A87: 8 | B87: 32.24111247 | D87: 3.574586108 | F87: 0 | G87: 0 | H87: 0 | I87: 0 | J87: 0 | K87: 0 | L87: 0 | M87: 35.67985016 | N87: 0 | O87: 0 | P87: 0 | Q87: 0 | R87: 0 | S87: 0 | T87: 0 | U87: 0 | V87: 0 | W87: 0 | X87: 0 | Y87: 0 | Z87: 0 | AB87: 71.19993446 | AC87: 58.28082564 | AD87: 46.88575138 | AE87: 30.81547754 | AF87: 0 | AG87: 0 | AH87: 207.181989 | AI87: 207.181989 | AJ87: 104.2535109 | AK87: 29.75222778 | AL87: 10.00179838 | AN87: 3.478208526 | AP87: =OFFSET(AA79,A87,A87) -> 207.181989 | AR87: -0.0003290649038 | AS87: -0.0003290649038 | AT87: -0.0003290649038 | AU87: -0.0003290649038 | AV87: 0.001295290997 | AW87: 0 | AX87: -0.005195394741 | AY87: 0.01523994382 | AZ87: -0.009715484172 | BA87: 2.043422867e-18 | BB87: -2.33534042e-18 | BD87: -0.0003290649038 | BE87: -0.0003290649038 | BF87: -0.0003290649038 | BG87: -0.0003290649038 | BH87: 0.001295290997 | BI87: 0 | BJ87: -0.005524459645 | BK87: -0.005524459645 | BL87: -0.005524459645 | BM87: -0.005524459645 | BN87: -0.003900103743 | BO87: 0.009715484172 | BP87: 0.009715484172 | BQ87: 0.009715484172 | BR87: 0.009715484172 | BS87: -1.734723476e-18 | BT87: -1.734723476e-18 | BU87: -1.734723476e-18 | BV87: 3.086993914e-19 | BW87: 3.086993914e-19 | BX87: -2.026641028e-18 | BZ87: 124.101959 | CB87: -0.399573352 | CD87: =CB87-CG53/$K$1 -> -2.787352977
A88: 9 | B88: 30.4740399 | D88: 3.537715266 | F88: 0 | G88: 0 | H88: 0 | I88: 0 | J88: 0 | K88: 0 | L88: 0 | M88: 0 | N88: 34.38826135 | O88: 0 | P88: 0 | Q88: 0 | R88: 0 | S88: 0 | T88: 0 | U88: 0 | V88: 0 | W88: 0 | X88: 0 | Y88: 0 | Z88: 0 | AB88: 46.0750851 | AC88: 34.35367592 | AD88: 23.82474988 | AE88: 0 | AF88: 0 | AG88: 0 | AH88: 104.2535109 | AI88: 104.2535109 | AJ88: 104.2535109 | AK88: 29.75222778 | AL88: 10.00179838 | AN88: 3.423890918 | AP88: =OFFSET(AA79,A88,A88) -> 104.2535109 | AR88: -0.0005946946685 | AS88: -0.0005946946685 | AT88: -0.0005946946685 | AU88: 0.001391677832 | AV88: -1.034643847e-18 | AW88: 0 | AX88: 4.138575386e-18 | AY88: -0.009715484172 | AZ88: 0.02373276645 | BA88: -0.01342258761 | BB88: 4.438095504e-18 | BD88: -0.0005946946685 | BE88: -0.0005946946685 | BF88: -0.0005946946685 | BG88: 0.001391677832 | BH88: -1.034643847e-18 | BI88: 0 | BJ88: -0.0005946946685 | BK88: -0.0005946946685 | BL88: -0.0005946946685 | BM88: 0.001391677832 | BN88: 3.10393154e-18 | BO88: -0.01031017884 | BP88: -0.01031017884 | BQ88: -0.01031017884 | BR88: -0.00832380634 | BS88: 0.01342258761 | BT88: 0.01342258761 | BU88: 0.01342258761 | BV88: 0 | BW88: 0 | BX88: 4.438095504e-18 | BZ88: 117.7416557 | CB88: 0.03258316048 | CD88: =CB88-CG53/$K$1 -> -2.355196464
A89: 10 | B89: 40.74107672 | D89: 3.827589404 | F89: 0 | G89: 0 | H89: 0 | I89: 0 | J89: 0 | K89: 0 | L89: 0 | M89: 0 | N89: 0 | O89: 45.95163377 | P89: 0 | Q89: 0 | R89: 0 | S89: 0 | T89: 0 | U89: 0 | V89: 0 | W89: 0 | X89: 0 | Y89: 0 | Z89: 0 | AB89: 20.11813559 | AC89: 9.634092194 | AD89: 0 | AE89: 0 | AF89: 0 | AG89: 0 | AH89: 29.75222778 | AI89: 29.75222778 | AJ89: 29.75222778 | AK89: 29.75222778 | AL89: 10.00179838 | AN89: 3.714197199 | AP89: =OFFSET(AA79,A89,A89) -> 29.75222778 | AR89: -0.0008134765971 | AS89: -0.0008134765971 | AT89: 0.001730308776 | AU89: 7.684743159e-19 | AV89: 8.71715309e-19 | AW89: 0 | AX89: -3.486861236e-18 | AY89: 1.800445203e-18 | AZ89: -0.01342258761 | BA89: 0.06486787476 | BB89: -0.05063181055 | BD89: -0.0008134765971 | BE89: -0.0008134765971 | BF89: 0.001730308776 | BG89: 7.684743159e-19 | BH89: 8.71715309e-19 | BI89: 0 | BJ89: -0.0008134765971 | BK89: -0.0008134765971 | BL89: 0.001730308776 | BM89: -2.71838692e-18 | BN89: -2.615145927e-18 | BO89: -0.0008134765971 | BP89: -0.0008134765971 | BQ89: 0.001730308776 | BR89: -9.17941717e-19 | BS89: -0.01423606421 | BT89: -0.01423606421 | BU89: -0.01169227884 | BV89: 0.05063181055 | BW89: 0.05063181055 | BX89: 6.938893904e-18 | BZ89: 170.6734295 | CB89: -0.942287698 | CD89: =CB89-CG53/$K$1 -> -3.330067323
A90: 11 | B90: 59.15255297 | D90: 3.663371032 | F90: =IF($A90=F$4,IF($B90<0,-(EXP(-$D90)^(2-$H$1)),IF($B90=0,0,EXP($D90)^(2-$H$1))),0) -> 0 | G90: 0 | H90: 0 | I90: 0 | J90: 0 | K90: 0 | L90: 0 | M90: 0 | N90: 0 | O90: 0 | P90: =IF($A90=P$4,IF($B90<0,-(EXP(-$D90)^(2-$H$1)),IF($B90=0,0,EXP($D90)^(2-$H$1))),0) -> 38.99256676 | Q90: 0 | R90: 0 | S90: 0 | T90: 0 | U90: 0 | V90: 0 | W90: 0 | X90: 0 | Y90: 0 | Z90: 0 | AB90: 10.00179838 | AC90: 0 | AD90: 0 | AE90: 0 | AF90: 0 | AG90: 0 | AH90: 10.00179838 | AI90: 10.00179838 | AJ90: 10.00179838 | AK90: 10.00179838 | AL90: 10.00179838 | AN90: 4.180392298 | AP90: =OFFSET(AA79,A90,A90) -> 10.00179838 | AR90: -0.002306635961 | AS90: 0.002422097146 | AT90: 0 | AU90: -3.047454398e-19 | AV90: -4.40939103e-19 | AW90: 0 | AX90: 1.763756412e-18 | AY90: -1.405315046e-18 | AZ90: -2.122197778e-18 | BA90: -0.05063181055 | BB90: 0.152920466 | BD90: -0.002306635961 | BE90: 0.002422097146 | BF90: 0 | BG90: -3.047454398e-19 | BH90: -4.40939103e-19 | BI90: 0 | BJ90: -0.002306635961 | BK90: 0.002422097146 | BL90: 1.763756412e-18 | BM90: 1.459010972e-18 | BN90: 1.322817309e-18 | BO90: -0.002306635961 | BP90: 0.002422097146 | BQ90: 3.584413658e-19 | BR90: 5.369592604e-20 | BS90: -0.002306635961 | BT90: 0.002422097146 | BU90: -1.763756412e-18 | BV90: -0.05293844651 | BW90: -0.04820971341 | BX90: 0.09998201944 | BZ90: 163.0042257 | CB90: -0.0113866102 | CD90: =CB90-CG53/$K$1 -> -2.399166235
A91: 12 | B91: 12.79973104 | D91: 3.223857371 | F91: 0 | G91: 0 | H91: 0 | I91: 0 | J91: 0 | K91: 0 | L91: 0 | M91: 0 | N91: 0 | O91: 0 | P91: 0 | Q91: 25.12484936 | R91: 0 | S91: 0 | T91: 0 | U91: 0 | V91: 0 | W91: 0 | X91: 0 | Y91: 0 | Z91: 0 | AN91: 2.733302456 | BZ91: 68.67381247
A92: 13 | B92: 24.01026285 | D92: 3.175013786 | F92: 0 | G92: 0 | H92: 0 | I92: 0 | J92: 0 | K92: 0 | L92: 0 | M92: 0 | N92: 0 | O92: 0 | P92: 0 | Q92: 0 | R92: 23.92714972 | S92: 0 | T92: 0 | U92: 0 | V92: 0 | W92: 0 | X92: 0 | Y92: 0 | Z92: 0 | AN92: 3.178487377 | BZ92: 76.05214335
A93: 14 | B93: 31.4509025 | D93: 3.138142944 | F93: 0 | G93: 0 | H93: 0 | I93: 0 | J93: 0 | K93: 0 | L93: 0 | M93: 0 | N93: 0 | O93: 0 | P93: 0 | Q93: 0 | R93: 0 | S93: 23.0610015 | T93: 0 | U93: 0 | V93: 0 | W93: 0 | X93: 0 | Y93: 0 | Z93: 0 | AN93: 3.501956329 | BZ93: 80.75862015
A94: 15 | B94: 34.66746172 | D94: 3.428017081 | F94: 0 | G94: 0 | H94: 0 | I94: 0 | J94: 0 | K94: 0 | L94: 0 | M94: 0 | N94: 0 | O94: 0 | P94: 0 | Q94: 0 | R94: 0 | S94: 0 | T94: 30.81547754 | U94: 0 | V94: 0 | W94: 0 | X94: 0 | Y94: 0 | Z94: 0 | AN94: 3.553018687 | BZ94: 109.4879676
A95: 16 | B95: 28.93358139 | D95: 3.256439378 | F95: 0 | G95: 0 | H95: 0 | I95: 0 | J95: 0 | K95: 0 | L95: 0 | M95: 0 | N95: 0 | O95: 0 | P95: 0 | Q95: 0 | R95: 0 | S95: 0 | T95: 0 | U95: 25.95694951 | V95: 0 | W95: 0 | X95: 0 | Y95: 0 | Z95: 0 | AN95: 3.371115098 | BZ95: 87.5038644
A96: 17 | B96: 18.5940837 | D96: 3.207595793 | F96: 0 | G96: 0 | H96: 0 | I96: 0 | J96: 0 | K96: 0 | L96: 0 | M96: 0 | N96: 0 | O96: 0 | P96: 0 | Q96: 0 | R96: 0 | S96: 0 | T96: 0 | U96: 0 | V96: 24.71958373 | W96: 0 | X96: 0 | Y96: 0 | Z96: 0 | AN96: 2.959796311 | BZ96: 73.16493273
A97: 18 | B97: 26.97361534 | D97: 3.170724951 | F97: 0 | G97: 0 | H97: 0 | I97: 0 | J97: 0 | K97: 0 | L97: 0 | M97: 0 | N97: 0 | O97: 0 | P97: 0 | Q97: 0 | R97: 0 | S97: 0 | T97: 0 | U97: 0 | V97: 0 | W97: 23.82474988 | X97: 0 | Y97: 0 | Z97: 0 | AN97: 3.30289278 | BZ97: 78.69059436
A98: 19 | B98: 12.11909114 | D98: 2.314151663 | F98: 0 | G98: 0 | H98: 0 | I98: 0 | J98: 0 | K98: 0 | L98: 0 | M98: 0 | N98: 0 | O98: 0 | P98: 0 | Q98: 0 | R98: 0 | S98: 0 | T98: 0 | U98: 0 | V98: 0 | W98: 0 | X98: 10.11633721 | Y98: 0 | Z98: 0 | AN98: 2.512123901 | BZ98: 25.4134925
A99: 20 | B99: 7.631337285 | D99: 2.265308078 | F99: 0 | G99: 0 | H99: 0 | I99: 0 | J99: 0 | K99: 0 | L99: 0 | M99: 0 | N99: 0 | O99: 0 | P99: 0 | Q99: 0 | R99: 0 | S99: 0 | T99: 0 | U99: 0 | V99: 0 | W99: 0 | X99: 0 | Y99: 9.634092194 | Z99: 0 | AN99: 2.05742602 | BZ99: 19.82143196
A100: 21 | B100: 10.00179838 | D100: 2.302764915 | F100: 0 | G100: 0 | H100: 0 | I100: 0 | J100: 0 | K100: 0 | L100: 0 | M100: 0 | N100: 0 | O100: 0 | P100: 0 | Q100: 0 | R100: 0 | S100: 0 | T100: 0 | U100: 0 | V100: 0 | W100: 0 | X100: 0 | Y100: 0 | Z100: 10.00179838 | AN100: 2.302764915 | BZ100: 23.03179039
A102: Newton-Raphson Interation Sequence -- Iteration 5
B103: y(i) | D103: xb(i) | F103: W(i,i) | AB103: XWX | AN103: zz(i) | AP103: factor | AR103: xwx-1 | BD103: aa1(i,j) | BZ103: aa2(j) | CB103: beta(j) | CD103: beta_diff = | CE103: =SUM(CD105:CD115) -> -1.110223025e-14 | CF103: beta_old = | CG103: =SUM(CB105:CB115) -> 26.26557572
B104: 1 | D104: 1 | F104: 1 | G104: 2 | H104: 3 | I104: 4 | J104: 5 | K104: 6 | L104: 7 | M104: 8 | N104: 9 | O104: 10 | P104: 11 | Q104: 12 | R104: 13 | S104: 14 | T104: 15 | U104: 16 | V104: 17 | W104: 18 | X104: 19 | Y104: 20 | Z104: 21 | AB104: 1 | AC104: 2 | AD104: 3 | AE104: 4 | AF104: 5 | AG104: 6 | AH104: 7 | AI104: 8 | AJ104: 9 | AK104: 10 | AL104: 11 | AN104: 1 | AR104: 1 | AS104: 2 | AT104: 3 | AU104: 4 | AV104: 5 | AW104: 6 | AX104: 7 | AY104: 8 | AZ104: 9 | BA104: 10 | BB104: 11 | BD104: 1 | BE104: 2 | BF104: 3 | BG104: 4 | BH104: 5 | BI104: 6 | BJ104: 7 | BK104: 8 | BL104: 9 | BM104: 10 | BN104: 11 | BO104: 12 | BP104: 13 | BQ104: 14 | BR104: 15 | BS104: 16 | BT104: 17 | BU104: 18 | BV104: 19 | BW104: 20 | BX104: 21
A105: 1 | B105: =B80 -> 127.7513246 | D105: =MMULT(DesignMatrix,CB80:CB90) -> 4.725697318 | F105: =IF($A105=F$4,IF($B105<0,-(EXP(-$D105)^(2-$H$1)),IF($B105=0,0,EXP($D105)^(2-$H$1))),0) -> 112.8091348 | G105: 0 | H105: 0 | I105: 0 | J105: 0 | K105: 0 | L105: 0 | M105: 0 | N105: 0 | O105: 0 | P105: =IF($A105=P$4,IF($B105<0,-(EXP(-$D105)^(2-$H$1)),IF($B105=0,0,EXP($D105)^(2-$H$1))),0) -> 0 | Q105: 0 | R105: 0 | S105: 0 | T105: 0 | U105: 0 | V105: 0 | W105: 0 | X105: 0 | Y105: 0 | Z105: 0 | AB105: =MMULT(TRANSPOSE(DesignMatrix),MMULT(F105:Z125,DesignMatrix)) -> 221.4748646 | AC105: 0 | AD105: 0 | AE105: 0 | AF105: 0 | AG105: 0 | AH105: 108.6657298 | AI105: 71.19989618 | AJ105: 46.07507969 | AK105: 20.1181342 | AL105: 10.00179838 | AN105: =IF(B105<0,D105+(B105+EXP(-D105))/-EXP(-D105),IF(B105=0,0,D105+(B105-EXP(D105))/EXP(D105))) -> 4.858152813 | AP105: =OFFSET(AA104,A105,A105) -> 221.4748646 | AR105: =MINVERSE(AB105:AL115) -> 0.005769352756 | AS105: 0.00104061818 | AT105: 0.0009189299029 | AU105: 0.000662866079 | AV105: 0.0004301882249 | AW105: 0 | AX105: -0.00172547934 | AY105: -0.0003290648511 | AZ105: -0.0005946948352 | BA105: -0.0008134768385 | BB105: -0.002306636891 | BD105: =MMULT(AR105:BB115,TRANSPOSE(DesignMatrix)) -> 0.005769352756 | BE105: 0.00104061818 | BF105: 0.0009189299029 | BG105: 0.000662866079 | BH105: 0.0004301882249 | BI105: 0 | BJ105: 0.004043873415 | BK105: -0.0006848611605 | BL105: -0.0008065494374 | BM105: -0.001062613261 | BN105: -0.001295291115 | BO105: 0.003714808564 | BP105: -0.001013926012 | BQ105: -0.001135614289 | BR105: -0.001391678112 | BS105: 0.003120113729 | BT105: -0.001608620847 | BU105: -0.001730309124 | BV105: 0.002306636891 | BW105: -0.002422097685 | BX105: -4.33680869e-19 | BZ105: =MMULT(F105:Z125,AN105:AN125) -> 548.0440154 | CB105: =MMULT(BD105:BX115,BZ105:BZ125) -> 4.725697318 | CD105: =CB105-CG78/$K$1 -> 2.337917707
A106: 2 | B106: =B81 -> 118.9154014 | D106: 4.676853913 | F106: 0 | G106: 107.4315513 | H106: 0 | I106: 0 | J106: 0 | K106: 0 | L106: 0 | M106: 0 | N106: 0 | O106: 0 | P106: 0 | Q106: 0 | R106: 0 | S106: 0 | T106: 0 | U106: 0 | V106: 0 | W106: 0 | X106: 0 | Y106: 0 | Z106: 0 | AB106: 0 | AC106: 201.3921977 | AD106: 0 | AE106: 0 | AF106: 0 | AG106: 0 | AH106: 93.96064634 | AI106: 58.28079969 | AJ106: 34.35367696 | AK106: 9.634092603 | AL106: 0 | AN106: =IF(B106<0,D106+(B106+EXP(-D106))/-EXP(-D106),IF(B106=0,0,D106+(B106-EXP(D106))/EXP(D106))) -> 4.783748488 | AP106: =OFFSET(AA104,A106,A106) -> 201.3921977 | AR106: 0.00104061818 | AS106: 0.00600605384 | AT106: 0.0009189299029 | AU106: 0.000662866079 | AV106: 0.0004301882249 | AW106: 0 | AX106: -0.00172547934 | AY106: -0.0003290648511 | AZ106: -0.0005946948352 | BA106: -0.0008134768385 | BB106: 0.002422097685 | BD106: 0.00104061818 | BE106: 0.00600605384 | BF106: 0.0009189299029 | BG106: 0.000662866079 | BH106: 0.0004301882249 | BI106: 0 | BJ106: -0.0006848611605 | BK106: 0.004280574499 | BL106: -0.0008065494374 | BM106: -0.001062613261 | BN106: -0.001295291115 | BO106: -0.001013926012 | BP106: 0.003951509648 | BQ106: -0.001135614289 | BR106: -0.001391678112 | BS106: -0.001608620847 | BT106: 0.003356814813 | BU106: -0.001730309124 | BV106: -0.002422097685 | BW106: 0.002543337975 | BX106: 8.67361738e-19 | BZ106: 513.9255213 | CB106: 4.676853913 | CD106: =CB106-CG78/$K$1 -> 2.289074302
A107: 3 | B107: 95.91802164 | D107: 4.639983075 | F107: 0 | G107: 0 | H107: 103.5425951 | I107: 0 | J107: 0 | K107: 0 | L107: 0 | M107: 0 | N107: 0 | O107: 0 | P107: 0 | Q107: 0 | R107: 0 | S107: 0 | T107: 0 | U107: 0 | V107: 0 | W107: 0 | X107: 0 | Y107: 0 | Z107: 0 | AB107: 0 | AC107: 0 | AD107: 184.8165794 | AE107: 0 | AF107: 0 | AG107: 0 | AH107: 81.27398425 | AI107: 46.88572615 | AJ107: 23.82475057 | AK107: 0 | AL107: 0 | AN107: 4.566346004 | AP107: =OFFSET(AA104,A107,A107) -> 184.8165794 | AR107: 0.0009189299029 | AS107: 0.0009189299029 | AT107: 0.006329699885 | AU107: 0.000662866079 | AV107: 0.0004301882249 | AW107: 0 | AX107: -0.00172547934 | AY107: -0.0003290648511 | AZ107: -0.0005946948352 | BA107: 0.001730309124 | BB107: 5.721163193e-19 | BD107: 0.0009189299029 | BE107: 0.0009189299029 | BF107: 0.006329699885 | BG107: 0.000662866079 | BH107: 0.0004301882249 | BI107: 0 | BJ107: -0.0008065494374 | BK107: -0.0008065494374 | BL107: 0.004604220545 | BM107: -0.001062613261 | BN107: -0.001295291115 | BO107: -0.001135614289 | BP107: -0.001135614289 | BQ107: 0.004275155694 | BR107: -0.001391678112 | BS107: -0.001730309124 | BT107: -0.001730309124 | BU107: 0.003680460859 | BV107: -1.084202172e-18 | BW107: -1.084202172e-18 | BX107: -5.120858532e-19 | BZ107: 472.8113155 | CB107: 4.639983075 | CD107: =CB107-CG78/$K$1 -> 2.252203464
A108: 4 | B108: 139.7182917 | D108: 4.929857226 | F108: 0 | G108: 0 | H108: 0 | I108: 138.3597567 | J108: 0 | K108: 0 | L108: 0 | M108: 0 | N108: 0 | O108: 0 | P108: 0 | Q108: 0 | R108: 0 | S108: 0 | T108: 0 | U108: 0 | V108: 0 | W108: 0 | X108: 0 | Y108: 0 | Z108: 0 | AB108: 0 | AC108: 0 | AD108: 0 | AE108: 215.1268301 | AF108: 0 | AG108: 0 | AH108: 76.76707337 | AI108: 30.81544331 | AJ108: 0 | AK108: 0 | AL108: 0 | AN108: 4.939676085 | AP108: =OFFSET(AA104,A108,A108) -> 215.1268301 | AR108: 0.000662866079 | AS108: 0.000662866079 | AT108: 0.000662866079 | AU108: 0.005311286732 | AV108: 0.0004301882249 | AW108: 0 | AX108: -0.00172547934 | AY108: -0.0003290648511 | AZ108: 0.001391678112 | BA108: 1.593807642e-19 | BB108: 0 | BD108: 0.000662866079 | BE108: 0.000662866079 | BF108: 0.000662866079 | BG108: 0.005311286732 | BH108: 0.0004301882249 | BI108: 0 | BJ108: -0.001062613261 | BK108: -0.001062613261 | BL108: -0.001062613261 | BM108: 0.003585807391 | BN108: -0.001295291115 | BO108: -0.001391678112 | BP108: -0.001391678112 | BQ108: -0.001391678112 | BR108: 0.00325674254 | BS108: 4.33680869e-19 | BT108: 0 | BU108: 0 | BV108: 5.930616332e-19 | BW108: 1.593807642e-19 | BX108: 5.930616332e-19 | BZ108: 683.4523815 | CB108: 4.929857226 | CD108: =CB108-CG78/$K$1 -> 2.542077615
A109: 5 | B109: 97.24606143 | D109: 4.765638548 | F109: 0 | G109: 0 | H109: 0 | I109: 0 | J109: 117.4060628 | K109: 0 | L109: 0 | M109: 0 | N109: 0 | O109: 0 | P109: 0 | Q109: 0 | R109: 0 | S109: 0 | T109: 0 | U109: 0 | V109: 0 | W109: 0 | X109: 0 | Y109: 0 | Z109: 0 | AB109: 0 | AC109: 0 | AD109: 0 | AE109: 0 | AF109: 156.3986144 | AG109: 0 | AH109: 38.99255165 | AI109: 0 | AJ109: 0 | AK109: 0 | AL109: 0 | AN109: 4.593926791 | AP109: =OFFSET(AA104,A109,A109) -> 156.3986144 | AR109: 0.0004301882249 | AS109: 0.0004301882249 | AT109: 0.0004301882249 | AU109: 0.0004301882249 | AV109: 0.006824106763 | AW109: 0 | AX109: -0.00172547934 | AY109: 0.001295291115 | AZ109: -2.711912492e-19 | BA109: -1.807941661e-19 | BB109: 0 | BD109: 0.0004301882249 | BE109: 0.0004301882249 | BF109: 0.0004301882249 | BG109: 0.0004301882249 | BH109: 0.006824106763 | BI109: 0 | BJ109: -0.001295291115 | BK109: -0.001295291115 | BL109: -0.001295291115 | BM109: -0.001295291115 | BN109: 0.005098627423 | BO109: 2.168404345e-19 | BP109: 4.33680869e-19 | BQ109: 0 | BR109: 0 | BS109: -5.435081471e-20 | BT109: 1.624896198e-19 | BU109: -2.711912492e-19 | BV109: -2.351449808e-19 | BW109: -1.830454635e-20 | BX109: -2.351449808e-19 | BZ109: 539.3548571 | CB109: 4.765638548 | CD109: =CB109-CG78/$K$1 -> 2.377858937
A110: 6 | B110: 141.242468 | D110: 4.950478045 | F110: 0 | G110: 0 | H110: 0 | I110: 0 | J110: 0 | K110: 141.242468 | L110: 0 | M110: 0 | N110: 0 | O110: 0 | P110: 0 | Q110: 0 | R110: 0 | S110: 0 | T110: 0 | U110: 0 | V110: 0 | W110: 0 | X110: 0 | Y110: 0 | Z110: 0 | AB110: 0 | AC110: 0 | AD110: 0 | AE110: 0 | AF110: 0 | AG110: 141.242468 | AH110: 0 | AI110: 0 | AJ110: 0 | AK110: 0 | AL110: 0 | AN110: 4.950478045 | AP110: =OFFSET(AA104,A110,A110) -> 141.242468 | AR110: 0 | AS110: 0 | AT110: 0 | AU110: 0 | AV110: 0 | AW110: 0.007080023551 | AX110: 0 | AY110: 0 | AZ110: 0 | BA110: 0 | BB110: 0 | BD110: 0 | BE110: 0 | BF110: 0 | BG110: 0 | BH110: 0 | BI110: 0.007080023551 | BJ110: 0 | BK110: 0 | BL110: 0 | BM110: 0 | BN110: 0 | BO110: 0 | BP110: 0 | BQ110: 0 | BR110: 0 | BS110: 0 | BT110: 0 | BU110: 0 | BV110: 0 | BW110: 0 | BX110: 0 | BZ110: 699.217737 | CB110: 4.950478045 | CD110: =CB110-CG78/$K$1 -> 2.562698434
A111: 7 | B111: 29.86933802 | D111: 3.623429414 | F111: 0 | G111: 0 | H111: 0 | I111: 0 | J111: 0 | K111: 0 | L111: 37.46583363 | M111: 0 | N111: 0 | O111: 0 | P111: 0 | Q111: 0 | R111: 0 | S111: 0 | T111: 0 | U111: 0 | V111: 0 | W111: 0 | X111: 0 | Y111: 0 | Z111: 0 | AB111: 108.6657298 | AC111: 93.96064634 | AD111: 81.27398425 | AE111: 76.76707337 | AF111: 38.99255165 | AG111: 0 | AH111: 399.6599854 | AI111: 207.1818653 | AJ111: 104.2535072 | AK111: 29.7522268 | AL111: 10.00179838 | AN111: 3.420671465 | AP111: =OFFSET(AA104,A111,A111) -> 399.6599854 | AR111: -0.00172547934 | AS111: -0.00172547934 | AT111: -0.00172547934 | AU111: -0.00172547934 | AV111: -0.00172547934 | AW111: 0 | AX111: 0.006920875054 | AY111: -0.005195395713 | AZ111: 1.087744552e-18 | BA111: 7.251630344e-19 | BB111: 0 | BD111: -0.00172547934 | BE111: -0.00172547934 | BF111: -0.00172547934 | BG111: -0.00172547934 | BH111: -0.00172547934 | BI111: 0 | BJ111: 0.005195395713 | BK111: 0.005195395713 | BL111: 0.005195395713 | BM111: 0.005195395713 | BN111: 0.005195395713 | BO111: -1.734723476e-18 | BP111: -1.734723476e-18 | BQ111: -1.734723476e-18 | BR111: -1.734723476e-18 | BS111: -6.469789243e-19 | BT111: -6.469789243e-19 | BU111: -6.469789243e-19 | BV111: 7.818411012e-20 | BW111: 7.818411012e-20 | BX111: 7.818411012e-20 | BZ111: 128.158308 | CB111: -1.102267903 | CD111: =CB111-CG78/$K$1 -> -3.490047514
A112: 8 | B112: 32.24111247 | D112: 3.57458601 | F112: 0 | G112: 0 | H112: 0 | I112: 0 | J112: 0 | K112: 0 | L112: 0 | M112: 35.67984665 | N112: 0 | O112: 0 | P112: 0 | Q112: 0 | R112: 0 | S112: 0 | T112: 0 | U112: 0 | V112: 0 | W112: 0 | X112: 0 | Y112: 0 | Z112: 0 | AB112: 71.19989618 | AC112: 58.28079969 | AD112: 46.88572615 | AE112: 30.81544331 | AF112: 0 | AG112: 0 | AH112: 207.1818653 | AI112: 207.1818653 | AJ112: 104.2535072 | AK112: 29.7522268 | AL112: 10.00179838 | AN112: 3.478208516 | AP112: =OFFSET(AA104,A112,A112) -> 207.1818653 | AR112: -0.0003290648511 | AS112: -0.0003290648511 | AT112: -0.0003290648511 | AU112: -0.0003290648511 | AV112: 0.001295291115 | AW112: 0 | AX112: -0.005195395713 | AY112: 0.01523995606 | AZ112: -0.009715495499 | BA112: -2.919176645e-18 | BB112: 0 | BD112: -0.0003290648511 | BE112: -0.0003290648511 | BF112: -0.0003290648511 | BG112: -0.0003290648511 | BH112: 0.001295291115 | BI112: 0 | BJ112: -0.005524460564 | BK112: -0.005524460564 | BL112: -0.005524460564 | BM112: -0.005524460564 | BN112: -0.003900104598 | BO112: 0.009715495499 | BP112: 0.009715495499 | BQ112: 0.009715495499 | BR112: 0.009715495499 | BS112: 1.734723476e-18 | BT112: 1.734723476e-18 | BU112: 1.734723476e-18 | BV112: -1.184453169e-18 | BW112: -1.184453169e-18 | BX112: -1.184453169e-18 | BZ112: 124.1019465 | CB112: -0.399573352 | CD112: =CB112-CG78/$K$1 -> -2.787352963
A113: 9 | B113: 30.4740399 | D113: 3.537715172 | F113: 0 | G113: 0 | H113: 0 | I113: 0 | J113: 0 | K113: 0 | L113: 0 | M113: 0 | N113: 34.3882581 | O113: 0 | P113: 0 | Q113: 0 | R113: 0 | S113: 0 | T113: 0 | U113: 0 | V113: 0 | W113: 0 | X113: 0 | Y113: 0 | Z113: 0 | AB113: 46.07507969 | AC113: 34.35367696 | AD113: 23.82475057 | AE113: 0 | AF113: 0 | AG113: 0 | AH113: 104.2535072 | AI113: 104.2535072 | AJ113: 104.2535072 | AK113: 29.7522268 | AL113: 10.00179838 | AN113: 3.423890907 | AP113: =OFFSET(AA104,A113,A113) -> 104.2535072 | AR113: -0.0005946948352 | AS113: -0.0005946948352 | AT113: -0.0005946948352 | AU113: 0.001391678112 | AV113: -5.655790116e-19 | AW113: 0 | AX113: 1.60359912e-18 | AY113: -0.009715495499 | AZ113: 0.02373277843 | BA113: -0.0134225881 | BB113: -4.438098137e-18 | BD113: -0.0005946948352 | BE113: -0.0005946948352 | BF113: -0.0005946948352 | BG113: 0.001391678112 | BH113: -5.655790116e-19 | BI113: 0 | BJ113: -0.0005946948352 | BK113: -0.0005946948352 | BL113: -0.0005946948352 | BM113: 0.001391678112 | BN113: 1.038020109e-18 | BO113: -0.01031019033 | BP113: -0.01031019033 | BQ113: -0.01031019033 | BR113: -0.008323817387 | BS113: 0.0134225881 | BT113: 0.0134225881 | BU113: 0.0134225881 | BV113: 6.938893904e-18 | BW113: 5.204170428e-18 | BX113: 2.500795767e-18 | BZ113: 117.7416442 | CB113: 0.03258316048 | CD113: =CB113-CG78/$K$1 -> -2.355196451
A114: 10 | B114: 40.74107672 | D114: 3.827589323 | F114: 0 | G114: 0 | H114: 0 | I114: 0 | J114: 0 | K114: 0 | L114: 0 | M114: 0 | N114: 0 | O114: 45.95163005 | P114: 0 | Q114: 0 | R114: 0 | S114: 0 | T114: 0 | U114: 0 | V114: 0 | W114: 0 | X114: 0 | Y114: 0 | Z114: 0 | AB114: 20.1181342 | AC114: 9.634092603 | AD114: 0 | AE114: 0 | AF114: 0 | AG114: 0 | AH114: 29.7522268 | AI114: 29.7522268 | AJ114: 29.7522268 | AK114: 29.7522268 | AL114: 10.00179838 | AN114: 3.71419719 | AP114: =OFFSET(AA104,A114,A114) -> 29.7522268 | AR114: -0.0008134768385 | AS114: -0.0008134768385 | AT114: 0.001730309124 | AU114: -8.783219478e-20 | AV114: 1.02725304e-20 | AW114: 0 | AX114: 3.314615373e-19 | AY114: 7.026575582e-19 | AZ114: -0.0134225881 | BA114: 0.06486787802 | BB114: -0.05063181308 | BD114: -0.0008134768385 | BE114: -0.0008134768385 | BF114: 0.001730309124 | BG114: -8.783219478e-20 | BH114: 1.02725304e-20 | BI114: 0 | BJ114: -0.0008134768385 | BK114: -0.0008134768385 | BL114: 0.001730309124 | BM114: 2.436293426e-19 | BN114: 3.417340677e-19 | BO114: -0.0008134768385 | BP114: -0.0008134768385 | BQ114: 0.001730309124 | BR114: 9.462869008e-19 | BS114: -0.01423606494 | BT114: -0.01423606494 | BU114: -0.01169227898 | BV114: 0.05063181308 | BW114: 0.05063181308 | BX114: -6.938893904e-18 | BZ114: 170.6734152 | CB114: -0.942287698 | CD114: =CB114-CG78/$K$1 -> -3.330067309
A115: 11 | B115: 59.15255297 | D115: 3.663370645 | F115: =IF($A115=F$4,IF($B115<0,-(EXP(-$D115)^(2-$H$1)),IF($B115=0,0,EXP($D115)^(2-$H$1))),0) -> 0 | G115: 0 | H115: 0 | I115: 0 | J115: 0 | K115: 0 | L115: 0 | M115: 0 | N115: 0 | O115: 0 | P115: =IF($A115=P$4,IF($B115<0,-(EXP(-$D115)^(2-$H$1)),IF($B115=0,0,EXP($D115)^(2-$H$1))),0) -> 38.99255165 | Q115: 0 | R115: 0 | S115: 0 | T115: 0 | U115: 0 | V115: 0 | W115: 0 | X115: 0 | Y115: 0 | Z115: 0 | AB115: 10.00179838 | AC115: 0 | AD115: 0 | AE115: 0 | AF115: 0 | AG115: 0 | AH115: 10.00179838 | AI115: 10.00179838 | AJ115: 10.00179838 | AK115: 10.00179838 | AL115: 10.00179838 | AN115: 4.180392498 | AP115: =OFFSET(AA104,A115,A115) -> 10.00179838 | AR115: -0.002306636891 | AS115: 0.002422097685 | AT115: 5.305494565e-19 | AU115: 2.652747282e-19 | AV115: 8.605405086e-20 | AW115: 0 | AX115: -3.442162035e-19 | AY115: -2.122197826e-18 | AZ115: 0 | BA115: -0.05063181308 | BB115: 0.1529204694 | BD115: -0.002306636891 | BE115: 0.002422097685 | BF115: 5.305494565e-19 | BG115: 2.652747282e-19 | BH115: 8.605405086e-20 | BI115: 0 | BJ115: -0.002306636891 | BK115: 0.002422097685 | BL115: 1.86333253e-19 | BM115: -7.894147521e-20 | BN115: -2.581621526e-19 | BO115: -0.002306636891 | BP115: 0.002422097685 | BQ115: -1.935864573e-18 | BR115: -2.201139301e-18 | BS115: -0.002306636891 | BT115: 0.002422097685 | BU115: -1.935864573e-18 | BV115: -0.05293844997 | BW115: -0.04820971539 | BX115: 0.09998201944 | BZ115: 163.0041704 | CB115: -0.0113866102 | CD115: =CB115-CG78/$K$1 -> -2.399166221
A116: 12 | B116: 12.79973104 | D116: 3.223856062 | F116: 0 | G116: 0 | H116: 0 | I116: 0 | J116: 0 | K116: 0 | L116: 0 | M116: 0 | N116: 0 | O116: 0 | P116: 0 | Q116: 25.12481649 | R116: 0 | S116: 0 | T116: 0 | U116: 0 | V116: 0 | W116: 0 | X116: 0 | Y116: 0 | Z116: 0 | AN116: 2.733301815 | BZ116: 68.67370651
A117: 13 | B117: 24.01026285 | D117: 3.175012658 | F117: 0 | G117: 0 | H117: 0 | I117: 0 | J117: 0 | K117: 0 | L117: 0 | M117: 0 | N117: 0 | O117: 0 | P117: 0 | Q117: 0 | R117: 23.92712273 | S117: 0 | T117: 0 | U117: 0 | V117: 0 | W117: 0 | X117: 0 | Y117: 0 | Z117: 0 | AN117: 3.178487381 | BZ117: 76.05205766
A118: 14 | B118: 31.4509025 | D118: 3.13814182 | F118: 0 | G118: 0 | H118: 0 | I118: 0 | J118: 0 | K118: 0 | L118: 0 | M118: 0 | N118: 0 | O118: 0 | P118: 0 | Q118: 0 | R118: 0 | S118: 23.06097558 | T118: 0 | U118: 0 | V118: 0 | W118: 0 | X118: 0 | Y118: 0 | Z118: 0 | AN118: 3.501956738 | BZ118: 80.75853879
A119: 15 | B119: 34.66746172 | D119: 3.428015971 | F119: 0 | G119: 0 | H119: 0 | I119: 0 | J119: 0 | K119: 0 | L119: 0 | M119: 0 | N119: 0 | O119: 0 | P119: 0 | Q119: 0 | R119: 0 | S119: 0 | T119: 30.81544331 | U119: 0 | V119: 0 | W119: 0 | X119: 0 | Y119: 0 | Z119: 0 | AN119: 3.553018826 | BZ119: 109.4878502
A120: 16 | B120: 28.93358139 | D120: 3.256439223 | F120: 0 | G120: 0 | H120: 0 | I120: 0 | J120: 0 | K120: 0 | L120: 0 | M120: 0 | N120: 0 | O120: 0 | P120: 0 | Q120: 0 | R120: 0 | S120: 0 | T120: 0 | U120: 25.9569455 | V120: 0 | W120: 0 | X120: 0 | Y120: 0 | Z120: 0 | AN120: 3.371115115 | BZ120: 87.50385131
A121: 17 | B121: 18.5940837 | D121: 3.207595818 | F121: 0 | G121: 0 | H121: 0 | I121: 0 | J121: 0 | K121: 0 | L121: 0 | M121: 0 | N121: 0 | O121: 0 | P121: 0 | Q121: 0 | R121: 0 | S121: 0 | T121: 0 | U121: 0 | V121: 24.71958435 | W121: 0 | X121: 0 | Y121: 0 | Z121: 0 | AN121: 2.959796318 | BZ121: 73.16493475
A122: 18 | B122: 26.97361534 | D122: 3.17072498 | F122: 0 | G122: 0 | H122: 0 | I122: 0 | J122: 0 | K122: 0 | L122: 0 | M122: 0 | N122: 0 | O122: 0 | P122: 0 | Q122: 0 | R122: 0 | S122: 0 | T122: 0 | U122: 0 | V122: 0 | W122: 23.82475057 | X122: 0 | Y122: 0 | Z122: 0 | AN122: 3.302892776 | BZ122: 78.69059657
A123: 19 | B123: 12.11909114 | D123: 2.314151525 | F123: 0 | G123: 0 | H123: 0 | I123: 0 | J123: 0 | K123: 0 | L123: 0 | M123: 0 | N123: 0 | O123: 0 | P123: 0 | Q123: 0 | R123: 0 | S123: 0 | T123: 0 | U123: 0 | V123: 0 | W123: 0 | X123: 10.11633582 | Y123: 0 | Z123: 0 | AN123: 2.512123929 | BZ123: 25.41348928
A124: 20 | B124: 7.631337285 | D124: 2.26530812 | F124: 0 | G124: 0 | H124: 0 | I124: 0 | J124: 0 | K124: 0 | L124: 0 | M124: 0 | N124: 0 | O124: 0 | P124: 0 | Q124: 0 | R124: 0 | S124: 0 | T124: 0 | U124: 0 | V124: 0 | W124: 0 | X124: 0 | Y124: 9.634092603 | Z124: 0 | AN124: 2.057426029 | BZ124: 19.82143289
A125: 21 | B125: 10.00179838 | D125: 2.302764915 | F125: 0 | G125: 0 | H125: 0 | I125: 0 | J125: 0 | K125: 0 | L125: 0 | M125: 0 | N125: 0 | O125: 0 | P125: 0 | Q125: 0 | R125: 0 | S125: 0 | T125: 0 | U125: 0 | V125: 0 | W125: 0 | X125: 0 | Y125: 0 | Z125: 10.00179838 | AN125: 2.302764915 | BZ125: 23.03179039
A127: Newton-Raphson Interation Sequence -- Iteration 6
B128: y(i) | D128: xb(i) | F128: W(i,i) | AB128: XWX | AN128: zz(i) | AP128: factor | AR128: xwx-1 | BD128: aa1(i,j) | BZ128: aa2(j) | CB128: beta(j) | CD128: beta_diff = | CE128: =SUM(CD130:CD140) -> 7.993605777e-15 | CF128: beta_old = | CG128: =SUM(CB130:CB140) -> 26.26557572
B129: 1 | D129: 1 | F129: 1 | G129: 2 | H129: 3 | I129: 4 | J129: 5 | K129: 6 | L129: 7 | M129: 8 | N129: 9 | O129: 10 | P129: 11 | Q129: 12 | R129: 13 | S129: 14 | T129: 15 | U129: 16 | V129: 17 | W129: 18 | X129: 19 | Y129: 20 | Z129: 21 | AB129: 1 | AC129: 2 | AD129: 3 | AE129: 4 | AF129: 5 | AG129: 6 | AH129: 7 | AI129: 8 | AJ129: 9 | AK129: 10 | AL129: 11 | AN129: 1 | AR129: 1 | AS129: 2 | AT129: 3 | AU129: 4 | AV129: 5 | AW129: 6 | AX129: 7 | AY129: 8 | AZ129: 9 | BA129: 10 | BB129: 11 | BD129: 1 | BE129: 2 | BF129: 3 | BG129: 4 | BH129: 5 | BI129: 6 | BJ129: 7 | BK129: 8 | BL129: 9 | BM129: 10 | BN129: 11 | BO129: 12 | BP129: 13 | BQ129: 14 | BR129: 15 | BS129: 16 | BT129: 17 | BU129: 18 | BV129: 19 | BW129: 20 | BX129: 21
A130: 1 | B130: =B105 -> 127.7513246 | D130: =MMULT(DesignMatrix,CB105:CB115) -> 4.725697318 | F130: =IF($A130=F$4,IF($B130<0,-(EXP(-$D130)^(2-$H$1)),IF($B130=0,0,EXP($D130)^(2-$H$1))),0) -> 112.8091348 | G130: 0 | H130: 0 | I130: 0 | J130: 0 | K130: 0 | L130: 0 | M130: 0 | N130: 0 | O130: 0 | P130: =IF($A130=P$4,IF($B130<0,-(EXP(-$D130)^(2-$H$1)),IF($B130=0,0,EXP($D130)^(2-$H$1))),0) -> 0 | Q130: 0 | R130: 0 | S130: 0 | T130: 0 | U130: 0 | V130: 0 | W130: 0 | X130: 0 | Y130: 0 | Z130: 0 | AB130: =MMULT(TRANSPOSE(DesignMatrix),MMULT(F130:Z150,DesignMatrix)) -> 221.4748646 | AC130: 0 | AD130: 0 | AE130: 0 | AF130: 0 | AG130: 0 | AH130: 108.6657298 | AI130: 71.19989618 | AJ130: 46.07507969 | AK130: 20.1181342 | AL130: 10.00179838 | AN130: =IF(B130<0,D130+(B130+EXP(-D130))/-EXP(-D130),IF(B130=0,0,D130+(B130-EXP(D130))/EXP(D130))) -> 4.858152813 | AP130: =OFFSET(AA129,A130,A130) -> 221.4748646 | AR130: =MINVERSE(AB130:AL140) -> 0.005769352756 | AS130: 0.00104061818 | AT130: 0.0009189299029 | AU130: 0.000662866079 | AV130: 0.0004301882249 | AW130: 0 | AX130: -0.00172547934 | AY130: -0.0003290648511 | AZ130: -0.0005946948352 | BA130: -0.0008134768385 | BB130: -0.002306636891 | BD130: =MMULT(AR130:BB140,TRANSPOSE(DesignMatrix)) -> 0.005769352756 | BE130: 0.00104061818 | BF130: 0.0009189299029 | BG130: 0.000662866079 | BH130: 0.0004301882249 | BI130: 0 | BJ130: 0.004043873415 | BK130: -0.0006848611605 | BL130: -0.0008065494374 | BM130: -0.001062613261 | BN130: -0.001295291115 | BO130: 0.003714808564 | BP130: -0.001013926012 | BQ130: -0.001135614289 | BR130: -0.001391678112 | BS130: 0.003120113729 | BT130: -0.001608620847 | BU130: -0.001730309124 | BV130: 0.002306636891 | BW130: -0.002422097685 | BX130: -8.67361738e-19 | BZ130: =MMULT(F130:Z150,AN130:AN150) -> 548.0440154 | CB130: =MMULT(BD130:BX140,BZ130:BZ150) -> 4.725697318 | CD130: =CB130-CG103/$K$1 -> 2.337917707
A131: 2 | B131: =B106 -> 118.9154014 | D131: 4.676853913 | F131: 0 | G131: 107.4315513 | H131: 0 | I131: 0 | J131: 0 | K131: 0 | L131: 0 | M131: 0 | N131: 0 | O131: 0 | P131: 0 | Q131: 0 | R131: 0 | S131: 0 | T131: 0 | U131: 0 | V131: 0 | W131: 0 | X131: 0 | Y131: 0 | Z131: 0 | AB131: 0 | AC131: 201.3921977 | AD131: 0 | AE131: 0 | AF131: 0 | AG131: 0 | AH131: 93.96064634 | AI131: 58.28079969 | AJ131: 34.35367696 | AK131: 9.634092603 | AL131: 0 | AN131: =IF(B131<0,D131+(B131+EXP(-D131))/-EXP(-D131),IF(B131=0,0,D131+(B131-EXP(D131))/EXP(D131))) -> 4.783748488 | AP131: =OFFSET(AA129,A131,A131) -> 201.3921977 | AR131: 0.00104061818 | AS131: 0.00600605384 | AT131: 0.0009189299029 | AU131: 0.000662866079 | AV131: 0.0004301882249 | AW131: 0 | AX131: -0.00172547934 | AY131: -0.0003290648511 | AZ131: -0.0005946948352 | BA131: -0.0008134768385 | BB131: 0.002422097685 | BD131: 0.00104061818 | BE131: 0.00600605384 | BF131: 0.0009189299029 | BG131: 0.000662866079 | BH131: 0.0004301882249 | BI131: 0 | BJ131: -0.0006848611605 | BK131: 0.004280574499 | BL131: -0.0008065494374 | BM131: -0.001062613261 | BN131: -0.001295291115 | BO131: -0.001013926012 | BP131: 0.003951509648 | BQ131: -0.001135614289 | BR131: -0.001391678112 | BS131: -0.001608620847 | BT131: 0.003356814813 | BU131: -0.001730309124 | BV131: -0.002422097685 | BW131: 0.002543337975 | BX131: 0 | BZ131: 513.9255213 | CB131: 4.676853913 | CD131: =CB131-CG103/$K$1 -> 2.289074302
A132: 3 | B132: 95.91802164 | D132: 4.639983075 | F132: 0 | G132: 0 | H132: 103.5425951 | I132: 0 | J132: 0 | K132: 0 | L132: 0 | M132: 0 | N132: 0 | O132: 0 | P132: 0 | Q132: 0 | R132: 0 | S132: 0 | T132: 0 | U132: 0 | V132: 0 | W132: 0 | X132: 0 | Y132: 0 | Z132: 0 | AB132: 0 | AC132: 0 | AD132: 184.8165794 | AE132: 0 | AF132: 0 | AG132: 0 | AH132: 81.27398425 | AI132: 46.88572615 | AJ132: 23.82475057 | AK132: 0 | AL132: 0 | AN132: 4.566346004 | AP132: =OFFSET(AA129,A132,A132) -> 184.8165794 | AR132: 0.0009189299029 | AS132: 0.0009189299029 | AT132: 0.006329699885 | AU132: 0.000662866079 | AV132: 0.0004301882249 | AW132: 0 | AX132: -0.00172547934 | AY132: -0.0003290648511 | AZ132: -0.0005946948352 | BA132: 0.001730309124 | BB132: -1.188023063e-19 | BD132: 0.0009189299029 | BE132: 0.0009189299029 | BF132: 0.006329699885 | BG132: 0.000662866079 | BH132: 0.0004301882249 | BI132: 0 | BJ132: -0.0008065494374 | BK132: -0.0008065494374 | BL132: 0.004604220545 | BM132: -0.001062613261 | BN132: -0.001295291115 | BO132: -0.001135614289 | BP132: -0.001135614289 | BQ132: 0.004275155694 | BR132: -0.001391678112 | BS132: -0.001730309124 | BT132: -0.001730309124 | BU132: 0.003680460859 | BV132: 4.33680869e-19 | BW132: 4.33680869e-19 | BX132: 3.148785627e-19 | BZ132: 472.8113155 | CB132: 4.639983075 | CD132: =CB132-CG103/$K$1 -> 2.252203464
A133: 4 | B133: 139.7182917 | D133: 4.929857226 | F133: 0 | G133: 0 | H133: 0 | I133: 138.3597567 | J133: 0 | K133: 0 | L133: 0 | M133: 0 | N133: 0 | O133: 0 | P133: 0 | Q133: 0 | R133: 0 | S133: 0 | T133: 0 | U133: 0 | V133: 0 | W133: 0 | X133: 0 | Y133: 0 | Z133: 0 | AB133: 0 | AC133: 0 | AD133: 0 | AE133: 215.1268301 | AF133: 0 | AG133: 0 | AH133: 76.76707337 | AI133: 30.81544331 | AJ133: 0 | AK133: 0 | AL133: 0 | AN133: 4.939676085 | AP133: =OFFSET(AA129,A133,A133) -> 215.1268301 | AR133: 0.000662866079 | AS133: 0.000662866079 | AT133: 0.000662866079 | AU133: 0.005311286732 | AV133: 0.0004301882249 | AW133: 0 | AX133: -0.00172547934 | AY133: -0.0003290648511 | AZ133: 0.001391678112 | BA133: 3.450283651e-19 | BB133: -1.050673472e-20 | BD133: 0.000662866079 | BE133: 0.000662866079 | BF133: 0.000662866079 | BG133: 0.005311286732 | BH133: 0.0004301882249 | BI133: 0 | BJ133: -0.001062613261 | BK133: -0.001062613261 | BL133: -0.001062613261 | BM133: 0.003585807391 | BN133: -0.001295291115 | BO133: -0.001391678112 | BP133: -0.001391678112 | BQ133: -0.001391678112 | BR133: 0.00325674254 | BS133: -6.505213035e-19 | BT133: -6.505213035e-19 | BU133: -8.67361738e-19 | BV133: -3.054929384e-19 | BW133: -3.054929384e-19 | BX133: -3.159996731e-19 | BZ133: 683.4523815 | CB133: 4.929857226 | CD133: =CB133-CG103/$K$1 -> 2.542077615
A134: 5 | B134: 97.24606143 | D134: 4.765638548 | F134: 0 | G134: 0 | H134: 0 | I134: 0 | J134: 117.4060628 | K134: 0 | L134: 0 | M134: 0 | N134: 0 | O134: 0 | P134: 0 | Q134: 0 | R134: 0 | S134: 0 | T134: 0 | U134: 0 | V134: 0 | W134: 0 | X134: 0 | Y134: 0 | Z134: 0 | AB134: 0 | AC134: 0 | AD134: 0 | AE134: 0 | AF134: 156.3986144 | AG134: 0 | AH134: 38.99255165 | AI134: 0 | AJ134: 0 | AK134: 0 | AL134: 0 | AN134: 4.593926791 | AP134: =OFFSET(AA129,A134,A134) -> 156.3986144 | AR134: 0.0004301882249 | AS134: 0.0004301882249 | AT134: 0.0004301882249 | AU134: 0.0004301882249 | AV134: 0.006824106763 | AW134: 0 | AX134: -0.00172547934 | AY134: 0.001295291115 | AZ134: -8.554433682e-19 | BA134: 2.410588882e-19 | BB134: -2.410588882e-19 | BD134: 0.0004301882249 | BE134: 0.0004301882249 | BF134: 0.0004301882249 | BG134: 0.0004301882249 | BH134: 0.006824106763 | BI134: 0 | BJ134: -0.001295291115 | BK134: -0.001295291115 | BL134: -0.001295291115 | BM134: -0.001295291115 | BN134: 0.005098627423 | BO134: 2.168404345e-19 | BP134: 2.168404345e-19 | BQ134: 2.168404345e-19 | BR134: 2.168404345e-19 | BS134: -6.386029337e-19 | BT134: -6.386029337e-19 | BU134: -6.386029337e-19 | BV134: -3.975440455e-19 | BW134: -3.975440455e-19 | BX134: -6.386029337e-19 | BZ134: 539.3548571 | CB134: 4.765638548 | CD134: =CB134-CG103/$K$1 -> 2.377858937
A135: 6 | B135: 141.242468 | D135: 4.950478045 | F135: 0 | G135: 0 | H135: 0 | I135: 0 | J135: 0 | K135: 141.242468 | L135: 0 | M135: 0 | N135: 0 | O135: 0 | P135: 0 | Q135: 0 | R135: 0 | S135: 0 | T135: 0 | U135: 0 | V135: 0 | W135: 0 | X135: 0 | Y135: 0 | Z135: 0 | AB135: 0 | AC135: 0 | AD135: 0 | AE135: 0 | AF135: 0 | AG135: 141.242468 | AH135: 0 | AI135: 0 | AJ135: 0 | AK135: 0 | AL135: 0 | AN135: 4.950478045 | AP135: =OFFSET(AA129,A135,A135) -> 141.242468 | AR135: 0 | AS135: 0 | AT135: 0 | AU135: 0 | AV135: 0 | AW135: 0.007080023551 | AX135: 0 | AY135: 0 | AZ135: 0 | BA135: 0 | BB135: 0 | BD135: 0 | BE135: 0 | BF135: 0 | BG135: 0 | BH135: 0 | BI135: 0.007080023551 | BJ135: 0 | BK135: 0 | BL135: 0 | BM135: 0 | BN135: 0 | BO135: 0 | BP135: 0 | BQ135: 0 | BR135: 0 | BS135: 0 | BT135: 0 | BU135: 0 | BV135: 0 | BW135: 0 | BX135: 0 | BZ135: 699.217737 | CB135: 4.950478045 | CD135: =CB135-CG103/$K$1 -> 2.562698434
A136: 7 | B136: 29.86933802 | D136: 3.623429414 | F136: 0 | G136: 0 | H136: 0 | I136: 0 | J136: 0 | K136: 0 | L136: 37.46583363 | M136: 0 | N136: 0 | O136: 0 | P136: 0 | Q136: 0 | R136: 0 | S136: 0 | T136: 0 | U136: 0 | V136: 0 | W136: 0 | X136: 0 | Y136: 0 | Z136: 0 | AB136: 108.6657298 | AC136: 93.96064634 | AD136: 81.27398425 | AE136: 76.76707337 | AF136: 38.99255165 | AG136: 0 | AH136: 399.6599854 | AI136: 207.1818653 | AJ136: 104.2535072 | AK136: 29.7522268 | AL136: 10.00179838 | AN136: 3.420671465 | AP136: =OFFSET(AA129,A136,A136) -> 399.6599854 | AR136: -0.00172547934 | AS136: -0.00172547934 | AT136: -0.00172547934 | AU136: -0.00172547934 | AV136: -0.00172547934 | AW136: 0 | AX136: 0.006920875054 | AY136: -0.005195395713 | AZ136: 3.431172155e-18 | BA136: -9.668840459e-19 | BB136: 9.668840459e-19 | BD136: -0.00172547934 | BE136: -0.00172547934 | BF136: -0.00172547934 | BG136: -0.00172547934 | BH136: -0.00172547934 | BI136: 0 | BJ136: 0.005195395713 | BK136: 0.005195395713 | BL136: 0.005195395713 | BM136: 0.005195395713 | BN136: 0.005195395713 | BO136: -8.67361738e-19 | BP136: -8.67361738e-19 | BQ136: -8.67361738e-19 | BR136: -8.67361738e-19 | BS136: 2.563810417e-18 | BT136: 2.563810417e-18 | BU136: 2.563810417e-18 | BV136: 1.596926371e-18 | BW136: 1.596926371e-18 | BX136: 2.563810417e-18 | BZ136: 128.158308 | CB136: -1.102267903 | CD136: =CB136-CG103/$K$1 -> -3.490047514
A137: 8 | B137: 32.24111247 | D137: 3.57458601 | F137: 0 | G137: 0 | H137: 0 | I137: 0 | J137: 0 | K137: 0 | L137: 0 | M137: 35.67984665 | N137: 0 | O137: 0 | P137: 0 | Q137: 0 | R137: 0 | S137: 0 | T137: 0 | U137: 0 | V137: 0 | W137: 0 | X137: 0 | Y137: 0 | Z137: 0 | AB137: 71.19989618 | AC137: 58.28079969 | AD137: 46.88572615 | AE137: 30.81544331 | AF137: 0 | AG137: 0 | AH137: 207.1818653 | AI137: 207.1818653 | AJ137: 104.2535072 | AK137: 29.7522268 | AL137: 10.00179838 | AN137: 3.478208516 | AP137: =OFFSET(AA129,A137,A137) -> 207.1818653 | AR137: -0.0003290648511 | AS137: -0.0003290648511 | AT137: -0.0003290648511 | AU137: -0.0003290648511 | AV137: 0.001295291115 | AW137: 0 | AX137: -0.005195395713 | AY137: 0.01523995606 | AZ137: -0.009715495499 | BA137: 0 | BB137: -2.335341316e-18 | BD137: -0.0003290648511 | BE137: -0.0003290648511 | BF137: -0.0003290648511 | BG137: -0.0003290648511 | BH137: 0.001295291115 | BI137: 0 | BJ137: -0.005524460564 | BK137: -0.005524460564 | BL137: -0.005524460564 | BM137: -0.005524460564 | BN137: -0.003900104598 | BO137: 0.009715495499 | BP137: 0.009715495499 | BQ137: 0.009715495499 | BR137: 0.009715495499 | BS137: -3.469446952e-18 | BT137: -3.469446952e-18 | BU137: -3.469446952e-18 | BV137: -3.469446952e-18 | BW137: -3.469446952e-18 | BX137: -5.804788268e-18 | BZ137: 124.1019465 | CB137: -0.399573352 | CD137: =CB137-CG103/$K$1 -> -2.787352963
A138: 9 | B138: 30.4740399 | D138: 3.537715172 | F138: 0 | G138: 0 | H138: 0 | I138: 0 | J138: 0 | K138: 0 | L138: 0 | M138: 0 | N138: 34.3882581 | O138: 0 | P138: 0 | Q138: 0 | R138: 0 | S138: 0 | T138: 0 | U138: 0 | V138: 0 | W138: 0 | X138: 0 | Y138: 0 | Z138: 0 | AB138: 46.07507969 | AC138: 34.35367696 | AD138: 23.82475057 | AE138: 0 | AF138: 0 | AG138: 0 | AH138: 104.2535072 | AI138: 104.2535072 | AJ138: 104.2535072 | AK138: 29.7522268 | AL138: 10.00179838 | AN138: 3.423890907 | AP138: =OFFSET(AA129,A138,A138) -> 104.2535072 | AR138: -0.0005946948352 | AS138: -0.0005946948352 | AT138: -0.0005946948352 | AU138: 0.001391678112 | AV138: -4.474687374e-19 | AW138: 0 | AX138: 1.78987495e-18 | AY138: -0.009715495499 | AZ138: 0.02373277843 | BA138: -0.0134225881 | BB138: 2.219049069e-18 | BD138: -0.0005946948352 | BE138: -0.0005946948352 | BF138: -0.0005946948352 | BG138: 0.001391678112 | BH138: -4.474687374e-19 | BI138: 0 | BJ138: -0.0005946948352 | BK138: -0.0005946948352 | BL138: -0.0005946948352 | BM138: 0.001391678112 | BN138: 1.342406212e-18 | BO138: -0.01031019033 | BP138: -0.01031019033 | BQ138: -0.01031019033 | BR138: -0.008323817387 | BS138: 0.0134225881 | BT138: 0.0134225881 | BU138: 0.0134225881 | BV138: 0 | BW138: 0 | BX138: 2.219049069e-18 | BZ138: 117.7416442 | CB138: 0.03258316048 | CD138: =CB138-CG103/$K$1 -> -2.355196451
A139: 10 | B139: 40.74107672 | D139: 3.827589323 | F139: 0 | G139: 0 | H139: 0 | I139: 0 | J139: 0 | K139: 0 | L139: 0 | M139: 0 | N139: 0 | O139: 45.95163005 | P139: 0 | Q139: 0 | R139: 0 | S139: 0 | T139: 0 | U139: 0 | V139: 0 | W139: 0 | X139: 0 | Y139: 0 | Z139: 0 | AB139: 20.1181342 | AC139: 9.634092603 | AD139: 0 | AE139: 0 | AF139: 0 | AG139: 0 | AH139: 29.7522268 | AI139: 29.7522268 | AJ139: 29.7522268 | AK139: 29.7522268 | AL139: 10.00179838 | AN139: 3.71419719 | AP139: =OFFSET(AA129,A139,A139) -> 29.7522268 | AR139: -0.0008134768385 | AS139: -0.0008134768385 | AT139: 0.001730309124 | AU139: 4.061952259e-19 | AV139: 9.827417994e-20 | AW139: 0 | AX139: -5.687611093e-19 | AY139: -3.249561807e-18 | AZ139: -0.0134225881 | BA139: 0.06486787802 | BB139: -0.05063181308 | BD139: -0.0008134768385 | BE139: -0.0008134768385 | BF139: 0.001730309124 | BG139: 4.061952259e-19 | BH139: 9.827417994e-20 | BI139: 0 | BJ139: -0.0008134768385 | BK139: -0.0008134768385 | BL139: 0.001730309124 | BM139: -1.625658834e-19 | BN139: -4.704869294e-19 | BO139: -0.0008134768385 | BP139: -0.0008134768385 | BQ139: 0.001730309124 | BR139: -3.412127691e-18 | BS139: -0.01423606494 | BT139: -0.01423606494 | BU139: -0.01169227898 | BV139: 0.05063181308 | BW139: 0.05063181308 | BX139: -6.938893904e-18 | BZ139: 170.6734152 | CB139: -0.942287698 | CD139: =CB139-CG103/$K$1 -> -3.330067309
A140: 11 | B140: 59.15255297 | D140: 3.663370645 | F140: =IF($A140=F$4,IF($B140<0,-(EXP(-$D140)^(2-$H$1)),IF($B140=0,0,EXP($D140)^(2-$H$1))),0) -> 0 | G140: 0 | H140: 0 | I140: 0 | J140: 0 | K140: 0 | L140: 0 | M140: 0 | N140: 0 | O140: 0 | P140: =IF($A140=P$4,IF($B140<0,-(EXP(-$D140)^(2-$H$1)),IF($B140=0,0,EXP($D140)^(2-$H$1))),0) -> 38.99255165 | Q140: 0 | R140: 0 | S140: 0 | T140: 0 | U140: 0 | V140: 0 | W140: 0 | X140: 0 | Y140: 0 | Z140: 0 | AB140: 10.00179838 | AC140: 0 | AD140: 0 | AE140: 0 | AF140: 0 | AG140: 0 | AH140: 10.00179838 | AI140: 10.00179838 | AJ140: 10.00179838 | AK140: 10.00179838 | AL140: 10.00179838 | AN140: 4.180392498 | AP140: =OFFSET(AA129,A140,A140) -> 10.00179838 | AR140: -0.002306636891 | AS140: 0.002422097685 | AT140: 5.305494565e-19 | AU140: -2.18691415e-19 | AV140: 4.302702543e-20 | AW140: 0 | AX140: 3.584413548e-19 | AY140: 1.74953132e-18 | AZ140: -2.122197826e-18 | BA140: -0.05063181308 | BB140: 0.1529204694 | BD140: -0.002306636891 | BE140: 0.002422097685 | BF140: 5.305494565e-19 | BG140: -2.18691415e-19 | BH140: 4.302702543e-20 | BI140: 0 | BJ140: -0.002306636891 | BK140: 0.002422097685 | BL140: 8.889908112e-19 | BM140: 1.397499398e-19 | BN140: 4.014683802e-19 | BO140: -0.002306636891 | BP140: 0.002422097685 | BQ140: 2.638522131e-18 | BR140: 1.88928126e-18 | BS140: -0.002306636891 | BT140: 0.002422097685 | BU140: 5.163243052e-19 | BV140: -0.05293844997 | BW140: -0.04820971539 | BX140: 0.09998201944 | BZ140: 163.0041704 | CB140: -0.0113866102 | CD140: =CB140-CG103/$K$1 -> -2.399166221
A141: 12 | B141: 12.79973104 | D141: 3.223856062 | F141: 0 | G141: 0 | H141: 0 | I141: 0 | J141: 0 | K141: 0 | L141: 0 | M141: 0 | N141: 0 | O141: 0 | P141: 0 | Q141: 25.12481649 | R141: 0 | S141: 0 | T141: 0 | U141: 0 | V141: 0 | W141: 0 | X141: 0 | Y141: 0 | Z141: 0 | AN141: 2.733301815 | BZ141: 68.67370651
A142: 13 | B142: 24.01026285 | D142: 3.175012658 | F142: 0 | G142: 0 | H142: 0 | I142: 0 | J142: 0 | K142: 0 | L142: 0 | M142: 0 | N142: 0 | O142: 0 | P142: 0 | Q142: 0 | R142: 23.92712273 | S142: 0 | T142: 0 | U142: 0 | V142: 0 | W142: 0 | X142: 0 | Y142: 0 | Z142: 0 | AN142: 3.178487381 | BZ142: 76.05205766
